{"text_format":"1","workbook":"xlsx","n_sheets":14,"sheets":["Startblatt","Deckblatt","Meldung","EK w","EK m","Paarkür","Kleingrp","Großgrp","Juryabfrage","Startgebühr","Kürmusik","Ausfüll-Hilfe","Check-Liste","Daten"],"not_rendered":{"charts":0,"images":9,"macros":1,"external_links":0,"defined_names":28,"comments":1,"pivot_tables":0},"unopened":[],"bounds":{"document_bytes":16777216,"sheet_cells":100000,"rows_first":2000,"rows_last":500,"rows_between":2000,"halvings":0,"cell_chars":16384,"cell_head_chars":4096},"cells_cut":0,"cells_raw":0,"read":"whole","date_system":"1900"}

{"sheet":"Startblatt","index":0,"n_rows":3,"n_cols":2,"rows_kept":3,"cut":false,"hidden":false,"merged":[]}
[]
[]
[null,"Bitte aktivieren Sie Makros \nund öffnen Sie die Datei in MS Excel, \num die Inhalte zu sehen."]

{"sheet":"Deckblatt","index":1,"n_rows":35,"n_cols":5,"rows_kept":35,"cut":false,"hidden":true,"merged":[[25,3,25,6],[15,2,15,3],[1,2,1,3],[8,2,8,3],[9,2,9,3],[10,2,10,3],[11,2,11,3],[12,2,12,3],[13,2,13,3],[14,2,14,3],[2,1,2,2]]}
["Süddeutsche Meisterschaft Einrad Freestyle 🧡"]
[null,"2026-10-16","2026-10-18"]
[null,"Nächster Wettkampf ist die DM in Offenburg:",null,"2026-11-27"]
[]
[null,"Anmeldung"]
[]
[null,null,"→ Bitte die folgenden acht grauen Felder ausfüllen: "]
[]
[null,"Verein",null,null," ← Verwendung 1:1 für Urkunden-Druck!"]
[null,"Ansprechpartner"]
[null,"Straße"]
[null,"Postleitzahl"]
[null,"Wohnort"]
[null,"E-Mail"]
[null,"Telefon",null,null," ← Beispiel: 089-32168"]
[null,"Handy",null,null," ← Beispiel: 0175 32168"]
[]
[]
[null,"Startgebühr: "]
[null,"Einzelkür:",15,"  ← je Teilnehmer"]
[null,"Paarkür:",15,"  ← je Teilnehmer"]
[null,"Kleingruppe:",10,"  ← je Teilnehmer und je Ersatzfahrer"]
[null,"Großgruppe:",10,"  ← je Teilnehmer und je Ersatzfahrer"]
[]
[]
[null,"Fehlender Juryeinsatz:",7,"  ← fällige Strafgebühr pro fehlendem Juryeinsatz;\n  ← ggf. ist eine Nachzahlung fällig bei Absage und fehlendem Ersatz."]
[]
[]
[null,"Meldeschluss:","2026-08-30"]
[]
[null,"Meldeadresse:","Einrad.Anmeldung@tsv-ga.de"]
[]
[null,"TSV Gilching-Argelsried e.V."]
[null,"Doris Segerer"]
[null,"Einrad@tsv-ga.de"]

{"sheet":"Meldung","index":2,"n_rows":52,"n_cols":40,"rows_kept":52,"cut":false,"hidden":true,"merged":[]}
["Lfd. Nr.","Name","Vorname","Geb. Datum","Alter am ersten Wettkampftag","Geschlecht","Einzelkür","EK-Kürname","Paarkür","PK-Kürname","Kleingruppe","Großgruppe","Startgebühr","Spalte1","15 €","15 €2","10 €","10 €_","Wettkampfdatum","Spalte2","Spalte3","16.10.2026","16.10.2027","16.10.2028","16.10.2029","16.10.2030","Textkette","Alter am Wettkampftag 1","Plausi Geburtsdatum","27.11.2026","Alter am Wettkampftag 2","Altersklasse_1","Altersklasse_2","Altersklassensprung","01.04.1999","1","4","2026","01.04.2026","Alter am 01.04. im Wettkampf-Jahr"]
[{"$f":"$U$2&1","v":"1"},null,null,null,{"$f":"IF( D2>1940,DATEDIF(D2,V$1,\"y\"),\" \")","v":" "},null,null,null,null,null,null,null,{"$f":"IFERROR(IF(B2=\"\",\"\",IF(Teilnehmer[[#This Row],[Einzelkür]]=\"ja\",Deckblatt!$C$20,IF(NOT(Teilnehmer[[#This Row],[EK-Kürname]]=\"\"),12)))+(IF(NOT(Teilnehmer[[#This Row],[Paarkür]]=\"\"),Deckblatt!$C$21,0))+(IF(NOT(Teilnehmer[[#This Row],[Kleingruppe]]=\"\"),Deckblatt!$C$22,0))+(IF(NOT(Teilnehmer[[#This Row],[Großgruppe]]=\"\"),Deckblatt!$C$23,0)),\"\")","v":""},null,{"$f":"COUNTIF(Teilnehmer[[#This Row],[Einzelkür]:[EK-Kürname]],\"ja\")","v":0},{"$f":"COUNTIF(Teilnehmer[[#This Row],[Paarkür]:[PK-Kürname]],\"<>\")","v":0},{"$f":"COUNTIF(Teilnehmer[[#This Row],[Kleingruppe]],\"<>\")","v":0},{"$f":"COUNTIF(Teilnehmer[[#This Row],[Großgruppe]],\"<>\")","v":0},"Vereinskürzel",null,null,null,null,null,null,null,{"$f":"SUBSTITUTE(_xlfn.TEXTJOIN(\"\",TRUE,B2,C2),\" \",\"\")","v":""},{"$f":"Teilnehmer[[#This Row],[Geb. Datum]]","v":"00:00:00"},{"$f":"IFERROR(VLOOKUP($AA2,GebDatum_Datenbank[[Spalte1]:[Datenbasis]],4,FALSE),\"\")","v":""},null,{"$f":"IF( D2>1940,DATEDIF(D2,AD$1,\"y\"),\" \")","v":" "},{"$f":"IF(E2<11,\"U11\",IF(E2<13,\"U13\",IF(E2<15,\"U15\",IF(E2<17,\"U17\",IF(E2<19,\"U19\",IF(E2<21,\"U21\",IF(E2<23,\"U23\",IF(E2<25,\"U25\",IF(E2<30,\"U30\",IF(E2<50,\"U50\",IF(E2<70,\"U70\",IF(E2<99,\"70+\",\"\"))))))))))))","v":""},{"$f":"IF(AE2<11,\"U11\",IF(AE2<13,\"U13\",IF(AE2<15,\"U15\",IF(AE2<17,\"U17\",IF(AE2<19,\"U19\",IF(AE2<21,\"U21\",IF(AE2<23,\"U23\",IF(AE2<25,\"U25\",IF(AE2<30,\"U30\",IF(AE2<50,\"U50\",IF(AE2<70,\"U70\",IF(AE2<99,\"70+\",\"\"))))))))))))","v":""},{"$f":"IF(AF2=AG2,\"\",\"*\")","v":""},null,null,null,null,null,{"$f":"IF( D2>1940,DATEDIF(D2,AM$1,\"y\"),\" \")","v":" "}]
[{"$f":"$U$2&2","v":"2"},null,null,null," ",null,null,null,null,null,null,null,{"$f":"IFERROR(IF(B3=\"\",\"\",IF(Teilnehmer[[#This Row],[Einzelkür]]=\"ja\",Deckblatt!$C$20,IF(NOT(Teilnehmer[[#This Row],[EK-Kürname]]=\"\"),12)))+(IF(NOT(Teilnehmer[[#This Row],[Paarkür]]=\"\"),Deckblatt!$C$21,0))+(IF(NOT(Teilnehmer[[#This Row],[Kleingruppe]]=\"\"),Deckblatt!$C$22,0))+(IF(NOT(Teilnehmer[[#This Row],[Großgruppe]]=\"\"),Deckblatt!$C$23,0)),\"\")","v":""},null,{"$f":"COUNTIF(Teilnehmer[[#This Row],[Einzelkür]:[EK-Kürname]],\"ja\")","v":0},{"$f":"COUNTIF(Teilnehmer[[#This Row],[Paarkür]:[PK-Kürname]],\"<>\")","v":0},{"$f":"COUNTIF(Teilnehmer[[#This Row],[Kleingruppe]],\"<>\")","v":0},{"$f":"COUNTIF(Teilnehmer[[#This Row],[Großgruppe]],\"<>\")","v":0},null,null,null,null,null,null,null,null,"",{"$f":"Teilnehmer[[#This Row],[Geb. Datum]]","v":"00:00:00"},{"$f":"IFERROR(VLOOKUP($AA3,GebDatum_Datenbank[[Spalte1]:[Datenbasis]],4,FALSE),\"\")","v":""},null," ",{"$f":"IF(E3<11,\"U11\",IF(E3<13,\"U13\",IF(E3<15,\"U15\",IF(E3<17,\"U17\",IF(E3<19,\"U19\",IF(E3<21,\"U21\",IF(E3<23,\"U23\",IF(E3<25,\"U25\",IF(E3<30,\"U30\",IF(E3<50,\"U50\",IF(E3<70,\"U70\",IF(E3<99,\"70+\",\"\"))))))))))))","v":""},{"$f":"IF(AE3<11,\"U11\",IF(AE3<13,\"U13\",IF(AE3<15,\"U15\",IF(AE3<17,\"U17\",IF(AE3<19,\"U19\",IF(AE3<21,\"U21\",IF(AE3<23,\"U23\",IF(AE3<25,\"U25\",IF(AE3<30,\"U30\",IF(AE3<50,\"U50\",IF(AE3<70,\"U70\",IF(AE3<99,\"70+\",\"\"))))))))))))","v":""},{"$f":"IF(AF3=AG3,\"\",\"*\")","v":""},null,null,null,null,null," "]
[{"$f":"$U$2&3","v":"3"},null,null,null," ",null,null,null,null,null,null,null,{"$f":"IFERROR(IF(B4=\"\",\"\",IF(Teilnehmer[[#This Row],[Einzelkür]]=\"ja\",Deckblatt!$C$20,IF(NOT(Teilnehmer[[#This Row],[EK-Kürname]]=\"\"),12)))+(IF(NOT(Teilnehmer[[#This Row],[Paarkür]]=\"\"),Deckblatt!$C$21,0))+(IF(NOT(Teilnehmer[[#This Row],[Kleingruppe]]=\"\"),Deckblatt!$C$22,0))+(IF(NOT(Teilnehmer[[#This Row],[Großgruppe]]=\"\"),Deckblatt!$C$23,0)),\"\")","v":""},null,{"$f":"COUNTIF(Teilnehmer[[#This Row],[Einzelkür]:[EK-Kürname]],\"ja\")","v":0},{"$f":"COUNTIF(Teilnehmer[[#This Row],[Paarkür]:[PK-Kürname]],\"<>\")","v":0},{"$f":"COUNTIF(Teilnehmer[[#This Row],[Kleingruppe]],\"<>\")","v":0},{"$f":"COUNTIF(Teilnehmer[[#This Row],[Großgruppe]],\"<>\")","v":0},null,null,"w","n",null,null,1,null,"",{"$f":"Teilnehmer[[#This Row],[Geb. Datum]]","v":"00:00:00"},{"$f":"IFERROR(VLOOKUP($AA4,GebDatum_Datenbank[[Spalte1]:[Datenbasis]],4,FALSE),\"\")","v":""},null," ","","","",null,null,null,null,null," "]
[{"$f":"$U$2&4","v":"4"},null,null,null," ",null,null,null,null,null,null,null,{"$f":"IFERROR(IF(B5=\"\",\"\",IF(Teilnehmer[[#This Row],[Einzelkür]]=\"ja\",Deckblatt!$C$20,IF(NOT(Teilnehmer[[#This Row],[EK-Kürname]]=\"\"),12)))+(IF(NOT(Teilnehmer[[#This Row],[Paarkür]]=\"\"),Deckblatt!$C$21,0))+(IF(NOT(Teilnehmer[[#This Row],[Kleingruppe]]=\"\"),Deckblatt!$C$22,0))+(IF(NOT(Teilnehmer[[#This Row],[Großgruppe]]=\"\"),Deckblatt!$C$23,0)),\"\")","v":""},null,{"$f":"COUNTIF(Teilnehmer[[#This Row],[Einzelkür]:[EK-Kürname]],\"ja\")","v":0},{"$f":"COUNTIF(Teilnehmer[[#This Row],[Paarkür]:[PK-Kürname]],\"<>\")","v":0},{"$f":"COUNTIF(Teilnehmer[[#This Row],[Kleingruppe]],\"<>\")","v":0},{"$f":"COUNTIF(Teilnehmer[[#This Row],[Großgruppe]],\"<>\")","v":0},null,null,"m","ja","KG1","GG1",2,null,"",{"$f":"Teilnehmer[[#This Row],[Geb. Datum]]","v":"00:00:00"},{"$f":"IFERROR(VLOOKUP($AA5,GebDatum_Datenbank[[Spalte1]:[Datenbasis]],4,FALSE),\"\")","v":""},null," ","","","",null,null,null,null,null," "]
[{"$f":"$U$2&5","v":"5"},null,null,null," ",null,null,null,null,null,null,null,{"$f":"IFERROR(IF(B6=\"\",\"\",IF(Teilnehmer[[#This Row],[Einzelkür]]=\"ja\",Deckblatt!$C$20,IF(NOT(Teilnehmer[[#This Row],[EK-Kürname]]=\"\"),12)))+(IF(NOT(Teilnehmer[[#This Row],[Paarkür]]=\"\"),Deckblatt!$C$21,0))+(IF(NOT(Teilnehmer[[#This Row],[Kleingruppe]]=\"\"),Deckblatt!$C$22,0))+(IF(NOT(Teilnehmer[[#This Row],[Großgruppe]]=\"\"),Deckblatt!$C$23,0)),\"\")","v":""},null,{"$f":"COUNTIF(Teilnehmer[[#This Row],[Einzelkür]:[EK-Kürname]],\"ja\")","v":0},{"$f":"COUNTIF(Teilnehmer[[#This Row],[Paarkür]:[PK-Kürname]],\"<>\")","v":0},{"$f":"COUNTIF(Teilnehmer[[#This Row],[Kleingruppe]],\"<>\")","v":0},{"$f":"COUNTIF(Teilnehmer[[#This Row],[Großgruppe]],\"<>\")","v":0},null,null," ",null,"KG2","GG2",3,null,"",{"$f":"Teilnehmer[[#This Row],[Geb. Datum]]","v":"00:00:00"},{"$f":"IFERROR(VLOOKUP($AA6,GebDatum_Datenbank[[Spalte1]:[Datenbasis]],4,FALSE),\"\")","v":""},null," ","","","",null,null,null,null,null," "]
[{"$f":"$U$2&6","v":"6"},null,null,null," ",null,null,null,null,null,null,null,{"$f":"IFERROR(IF(B7=\"\",\"\",IF(Teilnehmer[[#This Row],[Einzelkür]]=\"ja\",Deckblatt!$C$20,IF(NOT(Teilnehmer[[#This Row],[EK-Kürname]]=\"\"),12)))+(IF(NOT(Teilnehmer[[#This Row],[Paarkür]]=\"\"),Deckblatt!$C$21,0))+(IF(NOT(Teilnehmer[[#This Row],[Kleingruppe]]=\"\"),Deckblatt!$C$22,0))+(IF(NOT(Teilnehmer[[#This Row],[Großgruppe]]=\"\"),Deckblatt!$C$23,0)),\"\")","v":""},null,{"$f":"COUNTIF(Teilnehmer[[#This Row],[Einzelkür]:[EK-Kürname]],\"ja\")","v":0},{"$f":"COUNTIF(Teilnehmer[[#This Row],[Paarkür]:[PK-Kürname]],\"<>\")","v":0},{"$f":"COUNTIF(Teilnehmer[[#This Row],[Kleingruppe]],\"<>\")","v":0},{"$f":"COUNTIF(Teilnehmer[[#This Row],[Großgruppe]],\"<>\")","v":0},null,null,null,null,"KG3","GG3",4,null,"",{"$f":"Teilnehmer[[#This Row],[Geb. Datum]]","v":"00:00:00"},{"$f":"IFERROR(VLOOKUP($AA7,GebDatum_Datenbank[[Spalte1]:[Datenbasis]],4,FALSE),\"\")","v":""},null," ","","","",null,null,null,null,null," "]
[{"$f":"$U$2&7","v":"7"},null,null,null," ",null,null,null,null,null,null,null,{"$f":"IFERROR(IF(B8=\"\",\"\",IF(Teilnehmer[[#This Row],[Einzelkür]]=\"ja\",Deckblatt!$C$20,IF(NOT(Teilnehmer[[#This Row],[EK-Kürname]]=\"\"),12)))+(IF(NOT(Teilnehmer[[#This Row],[Paarkür]]=\"\"),Deckblatt!$C$21,0))+(IF(NOT(Teilnehmer[[#This Row],[Kleingruppe]]=\"\"),Deckblatt!$C$22,0))+(IF(NOT(Teilnehmer[[#This Row],[Großgruppe]]=\"\"),Deckblatt!$C$23,0)),\"\")","v":""},null,{"$f":"COUNTIF(Teilnehmer[[#This Row],[Einzelkür]:[EK-Kürname]],\"ja\")","v":0},{"$f":"COUNTIF(Teilnehmer[[#This Row],[Paarkür]:[PK-Kürname]],\"<>\")","v":0},{"$f":"COUNTIF(Teilnehmer[[#This Row],[Kleingruppe]],\"<>\")","v":0},{"$f":"COUNTIF(Teilnehmer[[#This Row],[Großgruppe]],\"<>\")","v":0},null,null,null,null,"KG4","GG4",5,null,"",{"$f":"Teilnehmer[[#This Row],[Geb. Datum]]","v":"00:00:00"},{"$f":"IFERROR(VLOOKUP($AA8,GebDatum_Datenbank[[Spalte1]:[Datenbasis]],4,FALSE),\"\")","v":""},null," ","","","",null,null,null,null,null," "]
[{"$f":"$U$2&8","v":"8"},null,null,null," ",null,null,null,null,null,null,null,{"$f":"IFERROR(IF(B9=\"\",\"\",IF(Teilnehmer[[#This Row],[Einzelkür]]=\"ja\",Deckblatt!$C$20,IF(NOT(Teilnehmer[[#This Row],[EK-Kürname]]=\"\"),12)))+(IF(NOT(Teilnehmer[[#This Row],[Paarkür]]=\"\"),Deckblatt!$C$21,0))+(IF(NOT(Teilnehmer[[#This Row],[Kleingruppe]]=\"\"),Deckblatt!$C$22,0))+(IF(NOT(Teilnehmer[[#This Row],[Großgruppe]]=\"\"),Deckblatt!$C$23,0)),\"\")","v":""},null,{"$f":"COUNTIF(Teilnehmer[[#This Row],[Einzelkür]:[EK-Kürname]],\"ja\")","v":0},{"$f":"COUNTIF(Teilnehmer[[#This Row],[Paarkür]:[PK-Kürname]],\"<>\")","v":0},{"$f":"COUNTIF(Teilnehmer[[#This Row],[Kleingruppe]],\"<>\")","v":0},{"$f":"COUNTIF(Teilnehmer[[#This Row],[Großgruppe]],\"<>\")","v":0},null,null,null,null,"KG5","GG5",6,null,"",{"$f":"Teilnehmer[[#This Row],[Geb. Datum]]","v":"00:00:00"},{"$f":"IFERROR(VLOOKUP($AA9,GebDatum_Datenbank[[Spalte1]:[Datenbasis]],4,FALSE),\"\")","v":""},null," ","","","",null,null,null,null,null," "]
[{"$f":"$U$2&9","v":"9"},null,null,null," ",null,null,null,null,null,null,null,{"$f":"IFERROR(IF(B10=\"\",\"\",IF(Teilnehmer[[#This Row],[Einzelkür]]=\"ja\",Deckblatt!$C$20,IF(NOT(Teilnehmer[[#This Row],[EK-Kürname]]=\"\"),12)))+(IF(NOT(Teilnehmer[[#This Row],[Paarkür]]=\"\"),Deckblatt!$C$21,0))+(IF(NOT(Teilnehmer[[#This Row],[Kleingruppe]]=\"\"),Deckblatt!$C$22,0))+(IF(NOT(Teilnehmer[[#This Row],[Großgruppe]]=\"\"),Deckblatt!$C$23,0)),\"\")","v":""},null,{"$f":"COUNTIF(Teilnehmer[[#This Row],[Einzelkür]:[EK-Kürname]],\"ja\")","v":0},{"$f":"COUNTIF(Teilnehmer[[#This Row],[Paarkür]:[PK-Kürname]],\"<>\")","v":0},{"$f":"COUNTIF(Teilnehmer[[#This Row],[Kleingruppe]],\"<>\")","v":0},{"$f":"COUNTIF(Teilnehmer[[#This Row],[Großgruppe]],\"<>\")","v":0},null,null,null,null,"KG6","GG6",7,null,"",{"$f":"Teilnehmer[[#This Row],[Geb. Datum]]","v":"00:00:00"},{"$f":"IFERROR(VLOOKUP($AA10,GebDatum_Datenbank[[Spalte1]:[Datenbasis]],4,FALSE),\"\")","v":""},null," ","","","",null,null,null,null,null," "]
[{"$f":"$U$2&10","v":"10"},null,null,null," ",null,null,null,null,null,null,null,{"$f":"IFERROR(IF(B11=\"\",\"\",IF(Teilnehmer[[#This Row],[Einzelkür]]=\"ja\",Deckblatt!$C$20,IF(NOT(Teilnehmer[[#This Row],[EK-Kürname]]=\"\"),12)))+(IF(NOT(Teilnehmer[[#This Row],[Paarkür]]=\"\"),Deckblatt!$C$21,0))+(IF(NOT(Teilnehmer[[#This Row],[Kleingruppe]]=\"\"),Deckblatt!$C$22,0))+(IF(NOT(Teilnehmer[[#This Row],[Großgruppe]]=\"\"),Deckblatt!$C$23,0)),\"\")","v":""},null,{"$f":"COUNTIF(Teilnehmer[[#This Row],[Einzelkür]:[EK-Kürname]],\"ja\")","v":0},{"$f":"COUNTIF(Teilnehmer[[#This Row],[Paarkür]:[PK-Kürname]],\"<>\")","v":0},{"$f":"COUNTIF(Teilnehmer[[#This Row],[Kleingruppe]],\"<>\")","v":0},{"$f":"COUNTIF(Teilnehmer[[#This Row],[Großgruppe]],\"<>\")","v":0},null,null,null,null,null,null,8,null,"",{"$f":"Teilnehmer[[#This Row],[Geb. Datum]]","v":"00:00:00"},{"$f":"IFERROR(VLOOKUP($AA11,GebDatum_Datenbank[[Spalte1]:[Datenbasis]],4,FALSE),\"\")","v":""},null," ","","","",null,null,null,null,null," "]
[{"$f":"$U$2&11","v":"11"},null,null,null," ",null,null,null,null,null,null,null,{"$f":"IFERROR(IF(B12=\"\",\"\",IF(Teilnehmer[[#This Row],[Einzelkür]]=\"ja\",Deckblatt!$C$20,IF(NOT(Teilnehmer[[#This Row],[EK-Kürname]]=\"\"),12)))+(IF(NOT(Teilnehmer[[#This Row],[Paarkür]]=\"\"),Deckblatt!$C$21,0))+(IF(NOT(Teilnehmer[[#This Row],[Kleingruppe]]=\"\"),Deckblatt!$C$22,0))+(IF(NOT(Teilnehmer[[#This Row],[Großgruppe]]=\"\"),Deckblatt!$C$23,0)),\"\")","v":""},null,{"$f":"COUNTIF(Teilnehmer[[#This Row],[Einzelkür]:[EK-Kürname]],\"ja\")","v":0},{"$f":"COUNTIF(Teilnehmer[[#This Row],[Paarkür]:[PK-Kürname]],\"<>\")","v":0},{"$f":"COUNTIF(Teilnehmer[[#This Row],[Kleingruppe]],\"<>\")","v":0},{"$f":"COUNTIF(Teilnehmer[[#This Row],[Großgruppe]],\"<>\")","v":0},null,null,null,null,null,null,9,null,"",{"$f":"Teilnehmer[[#This Row],[Geb. Datum]]","v":"00:00:00"},{"$f":"IFERROR(VLOOKUP($AA12,GebDatum_Datenbank[[Spalte1]:[Datenbasis]],4,FALSE),\"\")","v":""},null," ","","","",null,null,null,null,null," "]
[{"$f":"$U$2&12","v":"12"},null,null,null," ",null,null,null,null,null,null,null,{"$f":"IFERROR(IF(B13=\"\",\"\",IF(Teilnehmer[[#This Row],[Einzelkür]]=\"ja\",Deckblatt!$C$20,IF(NOT(Teilnehmer[[#This Row],[EK-Kürname]]=\"\"),12)))+(IF(NOT(Teilnehmer[[#This Row],[Paarkür]]=\"\"),Deckblatt!$C$21,0))+(IF(NOT(Teilnehmer[[#This Row],[Kleingruppe]]=\"\"),Deckblatt!$C$22,0))+(IF(NOT(Teilnehmer[[#This Row],[Großgruppe]]=\"\"),Deckblatt!$C$23,0)),\"\")","v":""},null,{"$f":"COUNTIF(Teilnehmer[[#This Row],[Einzelkür]:[EK-Kürname]],\"ja\")","v":0},{"$f":"COUNTIF(Teilnehmer[[#This Row],[Paarkür]:[PK-Kürname]],\"<>\")","v":0},{"$f":"COUNTIF(Teilnehmer[[#This Row],[Kleingruppe]],\"<>\")","v":0},{"$f":"COUNTIF(Teilnehmer[[#This Row],[Großgruppe]],\"<>\")","v":0},null,null,null,null,null,null,10,null,"",{"$f":"Teilnehmer[[#This Row],[Geb. Datum]]","v":"00:00:00"},{"$f":"IFERROR(VLOOKUP($AA13,GebDatum_Datenbank[[Spalte1]:[Datenbasis]],4,FALSE),\"\")","v":""},null," ","","","",null,null,null,null,null," "]
[{"$f":"$U$2&13","v":"13"},null,null,null," ",null,null,null,null,null,null,null,{"$f":"IFERROR(IF(B14=\"\",\"\",IF(Teilnehmer[[#This Row],[Einzelkür]]=\"ja\",Deckblatt!$C$20,IF(NOT(Teilnehmer[[#This Row],[EK-Kürname]]=\"\"),12)))+(IF(NOT(Teilnehmer[[#This Row],[Paarkür]]=\"\"),Deckblatt!$C$21,0))+(IF(NOT(Teilnehmer[[#This Row],[Kleingruppe]]=\"\"),Deckblatt!$C$22,0))+(IF(NOT(Teilnehmer[[#This Row],[Großgruppe]]=\"\"),Deckblatt!$C$23,0)),\"\")","v":""},null,{"$f":"COUNTIF(Teilnehmer[[#This Row],[Einzelkür]:[EK-Kürname]],\"ja\")","v":0},{"$f":"COUNTIF(Teilnehmer[[#This Row],[Paarkür]:[PK-Kürname]],\"<>\")","v":0},{"$f":"COUNTIF(Teilnehmer[[#This Row],[Kleingruppe]],\"<>\")","v":0},{"$f":"COUNTIF(Teilnehmer[[#This Row],[Großgruppe]],\"<>\")","v":0},null,null,null,null,null,null,11,null,"",{"$f":"Teilnehmer[[#This Row],[Geb. Datum]]","v":"00:00:00"},{"$f":"IFERROR(VLOOKUP($AA14,GebDatum_Datenbank[[Spalte1]:[Datenbasis]],4,FALSE),\"\")","v":""},null," ","","","",null,null,null,null,null," "]
[{"$f":"$U$2&14","v":"14"},null,null,null,{"$f":"IF( D15>1940,DATEDIF(D15,V$1,\"y\"),\" \")","v":" "},null,null,null,null,null,null,null,{"$f":"IFERROR(IF(B15=\"\",\"\",IF(Teilnehmer[[#This Row],[Einzelkür]]=\"ja\",Deckblatt!$C$20,IF(NOT(Teilnehmer[[#This Row],[EK-Kürname]]=\"\"),12)))+(IF(NOT(Teilnehmer[[#This Row],[Paarkür]]=\"\"),Deckblatt!$C$21,0))+(IF(NOT(Teilnehmer[[#This Row],[Kleingruppe]]=\"\"),Deckblatt!$C$22,0))+(IF(NOT(Teilnehmer[[#This Row],[Großgruppe]]=\"\"),Deckblatt!$C$23,0)),\"\")","v":""},null,{"$f":"COUNTIF(Teilnehmer[[#This Row],[Einzelkür]:[EK-Kürname]],\"ja\")","v":0},{"$f":"COUNTIF(Teilnehmer[[#This Row],[Paarkür]:[PK-Kürname]],\"<>\")","v":0},{"$f":"COUNTIF(Teilnehmer[[#This Row],[Kleingruppe]],\"<>\")","v":0},{"$f":"COUNTIF(Teilnehmer[[#This Row],[Großgruppe]],\"<>\")","v":0},null,null,null,null,null,null,12,null,"",{"$f":"Teilnehmer[[#This Row],[Geb. Datum]]","v":"00:00:00"},{"$f":"IFERROR(VLOOKUP($AA15,GebDatum_Datenbank[[Spalte1]:[Datenbasis]],4,FALSE),\"\")","v":""},null," ","","","",null,null,null,null,null," "]
[{"$f":"$U$2&15","v":"15"},null,null,null," ",null,null,null,null,null,null,null,{"$f":"IFERROR(IF(B16=\"\",\"\",IF(Teilnehmer[[#This Row],[Einzelkür]]=\"ja\",Deckblatt!$C$20,IF(NOT(Teilnehmer[[#This Row],[EK-Kürname]]=\"\"),12)))+(IF(NOT(Teilnehmer[[#This Row],[Paarkür]]=\"\"),Deckblatt!$C$21,0))+(IF(NOT(Teilnehmer[[#This Row],[Kleingruppe]]=\"\"),Deckblatt!$C$22,0))+(IF(NOT(Teilnehmer[[#This Row],[Großgruppe]]=\"\"),Deckblatt!$C$23,0)),\"\")","v":""},null,{"$f":"COUNTIF(Teilnehmer[[#This Row],[Einzelkür]:[EK-Kürname]],\"ja\")","v":0},{"$f":"COUNTIF(Teilnehmer[[#This Row],[Paarkür]:[PK-Kürname]],\"<>\")","v":0},{"$f":"COUNTIF(Teilnehmer[[#This Row],[Kleingruppe]],\"<>\")","v":0},{"$f":"COUNTIF(Teilnehmer[[#This Row],[Großgruppe]],\"<>\")","v":0},null,null,null,null,null,null,13,null,"",{"$f":"Teilnehmer[[#This Row],[Geb. Datum]]","v":"00:00:00"},{"$f":"IFERROR(VLOOKUP($AA16,GebDatum_Datenbank[[Spalte1]:[Datenbasis]],4,FALSE),\"\")","v":""},null," ","","","",null,null,null,null,null," "]
[{"$f":"$U$2&16","v":"16"},null,null,null," ",null,null,null,null,null,null,null,{"$f":"IFERROR(IF(B17=\"\",\"\",IF(Teilnehmer[[#This Row],[Einzelkür]]=\"ja\",Deckblatt!$C$20,IF(NOT(Teilnehmer[[#This Row],[EK-Kürname]]=\"\"),12)))+(IF(NOT(Teilnehmer[[#This Row],[Paarkür]]=\"\"),Deckblatt!$C$21,0))+(IF(NOT(Teilnehmer[[#This Row],[Kleingruppe]]=\"\"),Deckblatt!$C$22,0))+(IF(NOT(Teilnehmer[[#This Row],[Großgruppe]]=\"\"),Deckblatt!$C$23,0)),\"\")","v":""},null,{"$f":"COUNTIF(Teilnehmer[[#This Row],[Einzelkür]:[EK-Kürname]],\"ja\")","v":0},{"$f":"COUNTIF(Teilnehmer[[#This Row],[Paarkür]:[PK-Kürname]],\"<>\")","v":0},{"$f":"COUNTIF(Teilnehmer[[#This Row],[Kleingruppe]],\"<>\")","v":0},{"$f":"COUNTIF(Teilnehmer[[#This Row],[Großgruppe]],\"<>\")","v":0},null,null,null,null,null,null,14,null,"",{"$f":"Teilnehmer[[#This Row],[Geb. Datum]]","v":"00:00:00"},{"$f":"IFERROR(VLOOKUP($AA17,GebDatum_Datenbank[[Spalte1]:[Datenbasis]],4,FALSE),\"\")","v":""},null," ","","","",null,null,null,null,null," "]
[{"$f":"$U$2&17","v":"17"},null,null,null," ",null,null,null,null,null,null,null,{"$f":"IFERROR(IF(B18=\"\",\"\",IF(Teilnehmer[[#This Row],[Einzelkür]]=\"ja\",Deckblatt!$C$20,IF(NOT(Teilnehmer[[#This Row],[EK-Kürname]]=\"\"),12)))+(IF(NOT(Teilnehmer[[#This Row],[Paarkür]]=\"\"),Deckblatt!$C$21,0))+(IF(NOT(Teilnehmer[[#This Row],[Kleingruppe]]=\"\"),Deckblatt!$C$22,0))+(IF(NOT(Teilnehmer[[#This Row],[Großgruppe]]=\"\"),Deckblatt!$C$23,0)),\"\")","v":""},null,{"$f":"COUNTIF(Teilnehmer[[#This Row],[Einzelkür]:[EK-Kürname]],\"ja\")","v":0},{"$f":"COUNTIF(Teilnehmer[[#This Row],[Paarkür]:[PK-Kürname]],\"<>\")","v":0},{"$f":"COUNTIF(Teilnehmer[[#This Row],[Kleingruppe]],\"<>\")","v":0},{"$f":"COUNTIF(Teilnehmer[[#This Row],[Großgruppe]],\"<>\")","v":0},null,null,null,null,null,null,15,null,"",{"$f":"Teilnehmer[[#This Row],[Geb. Datum]]","v":"00:00:00"},{"$f":"IFERROR(VLOOKUP($AA18,GebDatum_Datenbank[[Spalte1]:[Datenbasis]],4,FALSE),\"\")","v":""},null," ","","","",null,null,null,null,null," "]
[{"$f":"$U$2&18","v":"18"},null,null,null," ",null,null,null,null,null,null,null,{"$f":"IFERROR(IF(B19=\"\",\"\",IF(Teilnehmer[[#This Row],[Einzelkür]]=\"ja\",Deckblatt!$C$20,IF(NOT(Teilnehmer[[#This Row],[EK-Kürname]]=\"\"),12)))+(IF(NOT(Teilnehmer[[#This Row],[Paarkür]]=\"\"),Deckblatt!$C$21,0))+(IF(NOT(Teilnehmer[[#This Row],[Kleingruppe]]=\"\"),Deckblatt!$C$22,0))+(IF(NOT(Teilnehmer[[#This Row],[Großgruppe]]=\"\"),Deckblatt!$C$23,0)),\"\")","v":""},null,{"$f":"COUNTIF(Teilnehmer[[#This Row],[Einzelkür]:[EK-Kürname]],\"ja\")","v":0},{"$f":"COUNTIF(Teilnehmer[[#This Row],[Paarkür]:[PK-Kürname]],\"<>\")","v":0},{"$f":"COUNTIF(Teilnehmer[[#This Row],[Kleingruppe]],\"<>\")","v":0},{"$f":"COUNTIF(Teilnehmer[[#This Row],[Großgruppe]],\"<>\")","v":0},null,null,null,null,null,null,16,null,"",{"$f":"Teilnehmer[[#This Row],[Geb. Datum]]","v":"00:00:00"},{"$f":"IFERROR(VLOOKUP($AA19,GebDatum_Datenbank[[Spalte1]:[Datenbasis]],4,FALSE),\"\")","v":""},null," ","","","",null,null,null,null,null," "]
[{"$f":"$U$2&19","v":"19"},null,null,null," ",null,null,null,null,null,null,null,{"$f":"IFERROR(IF(B20=\"\",\"\",IF(Teilnehmer[[#This Row],[Einzelkür]]=\"ja\",Deckblatt!$C$20,IF(NOT(Teilnehmer[[#This Row],[EK-Kürname]]=\"\"),12)))+(IF(NOT(Teilnehmer[[#This Row],[Paarkür]]=\"\"),Deckblatt!$C$21,0))+(IF(NOT(Teilnehmer[[#This Row],[Kleingruppe]]=\"\"),Deckblatt!$C$22,0))+(IF(NOT(Teilnehmer[[#This Row],[Großgruppe]]=\"\"),Deckblatt!$C$23,0)),\"\")","v":""},null,{"$f":"COUNTIF(Teilnehmer[[#This Row],[Einzelkür]:[EK-Kürname]],\"ja\")","v":0},{"$f":"COUNTIF(Teilnehmer[[#This Row],[Paarkür]:[PK-Kürname]],\"<>\")","v":0},{"$f":"COUNTIF(Teilnehmer[[#This Row],[Kleingruppe]],\"<>\")","v":0},{"$f":"COUNTIF(Teilnehmer[[#This Row],[Großgruppe]],\"<>\")","v":0},null,null,null,null,null,null,17,null,"",{"$f":"Teilnehmer[[#This Row],[Geb. Datum]]","v":"00:00:00"},{"$f":"IFERROR(VLOOKUP($AA20,GebDatum_Datenbank[[Spalte1]:[Datenbasis]],4,FALSE),\"\")","v":""},null," ","","","",null,null,null,null,null," "]
[{"$f":"$U$2&20","v":"20"},null,null,null," ",null,null,null,null,null,null,null,{"$f":"IFERROR(IF(B21=\"\",\"\",IF(Teilnehmer[[#This Row],[Einzelkür]]=\"ja\",Deckblatt!$C$20,IF(NOT(Teilnehmer[[#This Row],[EK-Kürname]]=\"\"),12)))+(IF(NOT(Teilnehmer[[#This Row],[Paarkür]]=\"\"),Deckblatt!$C$21,0))+(IF(NOT(Teilnehmer[[#This Row],[Kleingruppe]]=\"\"),Deckblatt!$C$22,0))+(IF(NOT(Teilnehmer[[#This Row],[Großgruppe]]=\"\"),Deckblatt!$C$23,0)),\"\")","v":""},null,{"$f":"COUNTIF(Teilnehmer[[#This Row],[Einzelkür]:[EK-Kürname]],\"ja\")","v":0},{"$f":"COUNTIF(Teilnehmer[[#This Row],[Paarkür]:[PK-Kürname]],\"<>\")","v":0},{"$f":"COUNTIF(Teilnehmer[[#This Row],[Kleingruppe]],\"<>\")","v":0},{"$f":"COUNTIF(Teilnehmer[[#This Row],[Großgruppe]],\"<>\")","v":0},null,null,null,null,null,null,18,null,"",{"$f":"Teilnehmer[[#This Row],[Geb. Datum]]","v":"00:00:00"},{"$f":"IFERROR(VLOOKUP($AA21,GebDatum_Datenbank[[Spalte1]:[Datenbasis]],4,FALSE),\"\")","v":""},null," ","","","",null,null,null,null,null," "]
[{"$f":"$U$2&21","v":"21"},null,null,null," ",null,null,null,null,null,null,null,{"$f":"IFERROR(IF(B22=\"\",\"\",IF(Teilnehmer[[#This Row],[Einzelkür]]=\"ja\",Deckblatt!$C$20,IF(NOT(Teilnehmer[[#This Row],[EK-Kürname]]=\"\"),12)))+(IF(NOT(Teilnehmer[[#This Row],[Paarkür]]=\"\"),Deckblatt!$C$21,0))+(IF(NOT(Teilnehmer[[#This Row],[Kleingruppe]]=\"\"),Deckblatt!$C$22,0))+(IF(NOT(Teilnehmer[[#This Row],[Großgruppe]]=\"\"),Deckblatt!$C$23,0)),\"\")","v":""},null,{"$f":"COUNTIF(Teilnehmer[[#This Row],[Einzelkür]:[EK-Kürname]],\"ja\")","v":0},{"$f":"COUNTIF(Teilnehmer[[#This Row],[Paarkür]:[PK-Kürname]],\"<>\")","v":0},{"$f":"COUNTIF(Teilnehmer[[#This Row],[Kleingruppe]],\"<>\")","v":0},{"$f":"COUNTIF(Teilnehmer[[#This Row],[Großgruppe]],\"<>\")","v":0},null,null,null,null,null,null,19,null,"",{"$f":"Teilnehmer[[#This Row],[Geb. Datum]]","v":"00:00:00"},{"$f":"IFERROR(VLOOKUP($AA22,GebDatum_Datenbank[[Spalte1]:[Datenbasis]],4,FALSE),\"\")","v":""},null," ","","","",null,null,null,null,null," "]
[{"$f":"$U$2&22","v":"22"},null,null,null," ",null,null,null,null,null,null,null,{"$f":"IFERROR(IF(B23=\"\",\"\",IF(Teilnehmer[[#This Row],[Einzelkür]]=\"ja\",Deckblatt!$C$20,IF(NOT(Teilnehmer[[#This Row],[EK-Kürname]]=\"\"),12)))+(IF(NOT(Teilnehmer[[#This Row],[Paarkür]]=\"\"),Deckblatt!$C$21,0))+(IF(NOT(Teilnehmer[[#This Row],[Kleingruppe]]=\"\"),Deckblatt!$C$22,0))+(IF(NOT(Teilnehmer[[#This Row],[Großgruppe]]=\"\"),Deckblatt!$C$23,0)),\"\")","v":""},null,{"$f":"COUNTIF(Teilnehmer[[#This Row],[Einzelkür]:[EK-Kürname]],\"ja\")","v":0},{"$f":"COUNTIF(Teilnehmer[[#This Row],[Paarkür]:[PK-Kürname]],\"<>\")","v":0},{"$f":"COUNTIF(Teilnehmer[[#This Row],[Kleingruppe]],\"<>\")","v":0},{"$f":"COUNTIF(Teilnehmer[[#This Row],[Großgruppe]],\"<>\")","v":0},null,null,null,null,null,null,20,null,"",{"$f":"Teilnehmer[[#This Row],[Geb. Datum]]","v":"00:00:00"},{"$f":"IFERROR(VLOOKUP($AA23,GebDatum_Datenbank[[Spalte1]:[Datenbasis]],4,FALSE),\"\")","v":""},null," ","","","",null,null,null,null,null," "]
[{"$f":"$U$2&23","v":"23"},null,null,null," ",null,null,null,null,null,null,null,{"$f":"IFERROR(IF(B24=\"\",\"\",IF(Teilnehmer[[#This Row],[Einzelkür]]=\"ja\",Deckblatt!$C$20,IF(NOT(Teilnehmer[[#This Row],[EK-Kürname]]=\"\"),12)))+(IF(NOT(Teilnehmer[[#This Row],[Paarkür]]=\"\"),Deckblatt!$C$21,0))+(IF(NOT(Teilnehmer[[#This Row],[Kleingruppe]]=\"\"),Deckblatt!$C$22,0))+(IF(NOT(Teilnehmer[[#This Row],[Großgruppe]]=\"\"),Deckblatt!$C$23,0)),\"\")","v":""},null,{"$f":"COUNTIF(Teilnehmer[[#This Row],[Einzelkür]:[EK-Kürname]],\"ja\")","v":0},{"$f":"COUNTIF(Teilnehmer[[#This Row],[Paarkür]:[PK-Kürname]],\"<>\")","v":0},{"$f":"COUNTIF(Teilnehmer[[#This Row],[Kleingruppe]],\"<>\")","v":0},{"$f":"COUNTIF(Teilnehmer[[#This Row],[Großgruppe]],\"<>\")","v":0},null,null,null,null,null,null,21,null,"",{"$f":"Teilnehmer[[#This Row],[Geb. Datum]]","v":"00:00:00"},{"$f":"IFERROR(VLOOKUP($AA24,GebDatum_Datenbank[[Spalte1]:[Datenbasis]],4,FALSE),\"\")","v":""},null," ","","","",null,null,null,null,null," "]
[{"$f":"$U$2&24","v":"24"},null,null,null," ",null,null,null,null,null,null,null,{"$f":"IFERROR(IF(B25=\"\",\"\",IF(Teilnehmer[[#This Row],[Einzelkür]]=\"ja\",Deckblatt!$C$20,IF(NOT(Teilnehmer[[#This Row],[EK-Kürname]]=\"\"),12)))+(IF(NOT(Teilnehmer[[#This Row],[Paarkür]]=\"\"),Deckblatt!$C$21,0))+(IF(NOT(Teilnehmer[[#This Row],[Kleingruppe]]=\"\"),Deckblatt!$C$22,0))+(IF(NOT(Teilnehmer[[#This Row],[Großgruppe]]=\"\"),Deckblatt!$C$23,0)),\"\")","v":""},null,{"$f":"COUNTIF(Teilnehmer[[#This Row],[Einzelkür]:[EK-Kürname]],\"ja\")","v":0},{"$f":"COUNTIF(Teilnehmer[[#This Row],[Paarkür]:[PK-Kürname]],\"<>\")","v":0},{"$f":"COUNTIF(Teilnehmer[[#This Row],[Kleingruppe]],\"<>\")","v":0},{"$f":"COUNTIF(Teilnehmer[[#This Row],[Großgruppe]],\"<>\")","v":0},null,null,null,null,null,null,22,null,"",{"$f":"Teilnehmer[[#This Row],[Geb. Datum]]","v":"00:00:00"},{"$f":"IFERROR(VLOOKUP($AA25,GebDatum_Datenbank[[Spalte1]:[Datenbasis]],4,FALSE),\"\")","v":""},null," ","","","",null,null,null,null,null," "]
[{"$f":"$U$2&25","v":"25"},null,null,null," ",null,null,null,null,null,null,null,{"$f":"IFERROR(IF(B26=\"\",\"\",IF(Teilnehmer[[#This Row],[Einzelkür]]=\"ja\",Deckblatt!$C$20,IF(NOT(Teilnehmer[[#This Row],[EK-Kürname]]=\"\"),12)))+(IF(NOT(Teilnehmer[[#This Row],[Paarkür]]=\"\"),Deckblatt!$C$21,0))+(IF(NOT(Teilnehmer[[#This Row],[Kleingruppe]]=\"\"),Deckblatt!$C$22,0))+(IF(NOT(Teilnehmer[[#This Row],[Großgruppe]]=\"\"),Deckblatt!$C$23,0)),\"\")","v":""},null,{"$f":"COUNTIF(Teilnehmer[[#This Row],[Einzelkür]:[EK-Kürname]],\"ja\")","v":0},{"$f":"COUNTIF(Teilnehmer[[#This Row],[Paarkür]:[PK-Kürname]],\"<>\")","v":0},{"$f":"COUNTIF(Teilnehmer[[#This Row],[Kleingruppe]],\"<>\")","v":0},{"$f":"COUNTIF(Teilnehmer[[#This Row],[Großgruppe]],\"<>\")","v":0},null,null,null,null,null,null,23,null,"",{"$f":"Teilnehmer[[#This Row],[Geb. Datum]]","v":"00:00:00"},{"$f":"IFERROR(VLOOKUP($AA26,GebDatum_Datenbank[[Spalte1]:[Datenbasis]],4,FALSE),\"\")","v":""},null," ","","","",null,null,null,null,null," "]
[{"$f":"$U$2&26","v":"26"},null,null,null," ",null,null,null,null,null,null,null,{"$f":"IFERROR(IF(B27=\"\",\"\",IF(Teilnehmer[[#This Row],[Einzelkür]]=\"ja\",Deckblatt!$C$20,IF(NOT(Teilnehmer[[#This Row],[EK-Kürname]]=\"\"),12)))+(IF(NOT(Teilnehmer[[#This Row],[Paarkür]]=\"\"),Deckblatt!$C$21,0))+(IF(NOT(Teilnehmer[[#This Row],[Kleingruppe]]=\"\"),Deckblatt!$C$22,0))+(IF(NOT(Teilnehmer[[#This Row],[Großgruppe]]=\"\"),Deckblatt!$C$23,0)),\"\")","v":""},null,{"$f":"COUNTIF(Teilnehmer[[#This Row],[Einzelkür]:[EK-Kürname]],\"ja\")","v":0},{"$f":"COUNTIF(Teilnehmer[[#This Row],[Paarkür]:[PK-Kürname]],\"<>\")","v":0},{"$f":"COUNTIF(Teilnehmer[[#This Row],[Kleingruppe]],\"<>\")","v":0},{"$f":"COUNTIF(Teilnehmer[[#This Row],[Großgruppe]],\"<>\")","v":0},null,null,null,null,null,null,24,null,"",{"$f":"Teilnehmer[[#This Row],[Geb. Datum]]","v":"00:00:00"},{"$f":"IFERROR(VLOOKUP($AA27,GebDatum_Datenbank[[Spalte1]:[Datenbasis]],4,FALSE),\"\")","v":""},null," ","","","",null,null,null,null,null," "]
[{"$f":"$U$2&27","v":"27"},null,null,null," ",null,null,null,null,null,null,null,{"$f":"IFERROR(IF(B28=\"\",\"\",IF(Teilnehmer[[#This Row],[Einzelkür]]=\"ja\",Deckblatt!$C$20,IF(NOT(Teilnehmer[[#This Row],[EK-Kürname]]=\"\"),12)))+(IF(NOT(Teilnehmer[[#This Row],[Paarkür]]=\"\"),Deckblatt!$C$21,0))+(IF(NOT(Teilnehmer[[#This Row],[Kleingruppe]]=\"\"),Deckblatt!$C$22,0))+(IF(NOT(Teilnehmer[[#This Row],[Großgruppe]]=\"\"),Deckblatt!$C$23,0)),\"\")","v":""},null,{"$f":"COUNTIF(Teilnehmer[[#This Row],[Einzelkür]:[EK-Kürname]],\"ja\")","v":0},{"$f":"COUNTIF(Teilnehmer[[#This Row],[Paarkür]:[PK-Kürname]],\"<>\")","v":0},{"$f":"COUNTIF(Teilnehmer[[#This Row],[Kleingruppe]],\"<>\")","v":0},{"$f":"COUNTIF(Teilnehmer[[#This Row],[Großgruppe]],\"<>\")","v":0},null,null,null,null,null,null,null,null,"",{"$f":"Teilnehmer[[#This Row],[Geb. Datum]]","v":"00:00:00"},{"$f":"IFERROR(VLOOKUP($AA28,GebDatum_Datenbank[[Spalte1]:[Datenbasis]],4,FALSE),\"\")","v":""},null," ","","","",null,null,null,null,null," "]
[{"$f":"$U$2&28","v":"28"},null,null,null," ",null,null,null,null,null,null,null,{"$f":"IFERROR(IF(B29=\"\",\"\",IF(Teilnehmer[[#This Row],[Einzelkür]]=\"ja\",Deckblatt!$C$20,IF(NOT(Teilnehmer[[#This Row],[EK-Kürname]]=\"\"),12)))+(IF(NOT(Teilnehmer[[#This Row],[Paarkür]]=\"\"),Deckblatt!$C$21,0))+(IF(NOT(Teilnehmer[[#This Row],[Kleingruppe]]=\"\"),Deckblatt!$C$22,0))+(IF(NOT(Teilnehmer[[#This Row],[Großgruppe]]=\"\"),Deckblatt!$C$23,0)),\"\")","v":""},null,{"$f":"COUNTIF(Teilnehmer[[#This Row],[Einzelkür]:[EK-Kürname]],\"ja\")","v":0},{"$f":"COUNTIF(Teilnehmer[[#This Row],[Paarkür]:[PK-Kürname]],\"<>\")","v":0},{"$f":"COUNTIF(Teilnehmer[[#This Row],[Kleingruppe]],\"<>\")","v":0},{"$f":"COUNTIF(Teilnehmer[[#This Row],[Großgruppe]],\"<>\")","v":0},null,null,null,null,null,null,null,null,"",{"$f":"Teilnehmer[[#This Row],[Geb. Datum]]","v":"00:00:00"},{"$f":"IFERROR(VLOOKUP($AA29,GebDatum_Datenbank[[Spalte1]:[Datenbasis]],4,FALSE),\"\")","v":""},null," ","","","",null,null,null,null,null," "]
[{"$f":"$U$2&29","v":"29"},null,null,null," ",null,null,null,null,null,null,null,{"$f":"IFERROR(IF(B30=\"\",\"\",IF(Teilnehmer[[#This Row],[Einzelkür]]=\"ja\",Deckblatt!$C$20,IF(NOT(Teilnehmer[[#This Row],[EK-Kürname]]=\"\"),12)))+(IF(NOT(Teilnehmer[[#This Row],[Paarkür]]=\"\"),Deckblatt!$C$21,0))+(IF(NOT(Teilnehmer[[#This Row],[Kleingruppe]]=\"\"),Deckblatt!$C$22,0))+(IF(NOT(Teilnehmer[[#This Row],[Großgruppe]]=\"\"),Deckblatt!$C$23,0)),\"\")","v":""},null,{"$f":"COUNTIF(Teilnehmer[[#This Row],[Einzelkür]:[EK-Kürname]],\"ja\")","v":0},{"$f":"COUNTIF(Teilnehmer[[#This Row],[Paarkür]:[PK-Kürname]],\"<>\")","v":0},{"$f":"COUNTIF(Teilnehmer[[#This Row],[Kleingruppe]],\"<>\")","v":0},{"$f":"COUNTIF(Teilnehmer[[#This Row],[Großgruppe]],\"<>\")","v":0},null,null,null,null,null,null,null,null,"",{"$f":"Teilnehmer[[#This Row],[Geb. Datum]]","v":"00:00:00"},{"$f":"IFERROR(VLOOKUP($AA30,GebDatum_Datenbank[[Spalte1]:[Datenbasis]],4,FALSE),\"\")","v":""},null," ","","","",null,null,null,null,null," "]
[{"$f":"$U$2&30","v":"30"},null,null,null," ",null,null,null,null,null,null,null,{"$f":"IFERROR(IF(B31=\"\",\"\",IF(Teilnehmer[[#This Row],[Einzelkür]]=\"ja\",Deckblatt!$C$20,IF(NOT(Teilnehmer[[#This Row],[EK-Kürname]]=\"\"),12)))+(IF(NOT(Teilnehmer[[#This Row],[Paarkür]]=\"\"),Deckblatt!$C$21,0))+(IF(NOT(Teilnehmer[[#This Row],[Kleingruppe]]=\"\"),Deckblatt!$C$22,0))+(IF(NOT(Teilnehmer[[#This Row],[Großgruppe]]=\"\"),Deckblatt!$C$23,0)),\"\")","v":""},null,{"$f":"COUNTIF(Teilnehmer[[#This Row],[Einzelkür]:[EK-Kürname]],\"ja\")","v":0},{"$f":"COUNTIF(Teilnehmer[[#This Row],[Paarkür]:[PK-Kürname]],\"<>\")","v":0},{"$f":"COUNTIF(Teilnehmer[[#This Row],[Kleingruppe]],\"<>\")","v":0},{"$f":"COUNTIF(Teilnehmer[[#This Row],[Großgruppe]],\"<>\")","v":0},null,null,null,null,null,null,null,null,"",{"$f":"Teilnehmer[[#This Row],[Geb. Datum]]","v":"00:00:00"},{"$f":"IFERROR(VLOOKUP($AA31,GebDatum_Datenbank[[Spalte1]:[Datenbasis]],4,FALSE),\"\")","v":""},null," ","","","",null,null,null,null,null," "]
[{"$f":"$U$2&31","v":"31"},null,null,null," ",null,null,null,null,null,null,null,{"$f":"IFERROR(IF(B32=\"\",\"\",IF(Teilnehmer[[#This Row],[Einzelkür]]=\"ja\",Deckblatt!$C$20,IF(NOT(Teilnehmer[[#This Row],[EK-Kürname]]=\"\"),12)))+(IF(NOT(Teilnehmer[[#This Row],[Paarkür]]=\"\"),Deckblatt!$C$21,0))+(IF(NOT(Teilnehmer[[#This Row],[Kleingruppe]]=\"\"),Deckblatt!$C$22,0))+(IF(NOT(Teilnehmer[[#This Row],[Großgruppe]]=\"\"),Deckblatt!$C$23,0)),\"\")","v":""},null,{"$f":"COUNTIF(Teilnehmer[[#This Row],[Einzelkür]:[EK-Kürname]],\"ja\")","v":0},{"$f":"COUNTIF(Teilnehmer[[#This Row],[Paarkür]:[PK-Kürname]],\"<>\")","v":0},{"$f":"COUNTIF(Teilnehmer[[#This Row],[Kleingruppe]],\"<>\")","v":0},{"$f":"COUNTIF(Teilnehmer[[#This Row],[Großgruppe]],\"<>\")","v":0},null,null,null,null,null,null,null,null,"",{"$f":"Teilnehmer[[#This Row],[Geb. Datum]]","v":"00:00:00"},{"$f":"IFERROR(VLOOKUP($AA32,GebDatum_Datenbank[[Spalte1]:[Datenbasis]],4,FALSE),\"\")","v":""},null," ","","","",null,null,null,null,null," "]
[{"$f":"$U$2&32","v":"32"},null,null,null," ",null,null,null,null,null,null,null,{"$f":"IFERROR(IF(B33=\"\",\"\",IF(Teilnehmer[[#This Row],[Einzelkür]]=\"ja\",Deckblatt!$C$20,IF(NOT(Teilnehmer[[#This Row],[EK-Kürname]]=\"\"),12)))+(IF(NOT(Teilnehmer[[#This Row],[Paarkür]]=\"\"),Deckblatt!$C$21,0))+(IF(NOT(Teilnehmer[[#This Row],[Kleingruppe]]=\"\"),Deckblatt!$C$22,0))+(IF(NOT(Teilnehmer[[#This Row],[Großgruppe]]=\"\"),Deckblatt!$C$23,0)),\"\")","v":""},null,{"$f":"COUNTIF(Teilnehmer[[#This Row],[Einzelkür]:[EK-Kürname]],\"ja\")","v":0},{"$f":"COUNTIF(Teilnehmer[[#This Row],[Paarkür]:[PK-Kürname]],\"<>\")","v":0},{"$f":"COUNTIF(Teilnehmer[[#This Row],[Kleingruppe]],\"<>\")","v":0},{"$f":"COUNTIF(Teilnehmer[[#This Row],[Großgruppe]],\"<>\")","v":0},null,null,null,null,null,null," ",null,"",{"$f":"Teilnehmer[[#This Row],[Geb. Datum]]","v":"00:00:00"},{"$f":"IFERROR(VLOOKUP($AA33,GebDatum_Datenbank[[Spalte1]:[Datenbasis]],4,FALSE),\"\")","v":""},null," ","","","",null,null,null,null,null," "]
[{"$f":"$U$2&33","v":"33"},null,null,null,{"$f":"IF( D34>1940,DATEDIF(D34,V$1,\"y\"),\" \")","v":" "},null,null,null,null,null,null,null,{"$f":"IFERROR(IF(B34=\"\",\"\",IF(Teilnehmer[[#This Row],[Einzelkür]]=\"ja\",Deckblatt!$C$20,IF(NOT(Teilnehmer[[#This Row],[EK-Kürname]]=\"\"),12)))+(IF(NOT(Teilnehmer[[#This Row],[Paarkür]]=\"\"),Deckblatt!$C$21,0))+(IF(NOT(Teilnehmer[[#This Row],[Kleingruppe]]=\"\"),Deckblatt!$C$22,0))+(IF(NOT(Teilnehmer[[#This Row],[Großgruppe]]=\"\"),Deckblatt!$C$23,0)),\"\")","v":""},null,{"$f":"COUNTIF(Teilnehmer[[#This Row],[Einzelkür]:[EK-Kürname]],\"ja\")","v":0},{"$f":"COUNTIF(Teilnehmer[[#This Row],[Paarkür]:[PK-Kürname]],\"<>\")","v":0},{"$f":"COUNTIF(Teilnehmer[[#This Row],[Kleingruppe]],\"<>\")","v":0},{"$f":"COUNTIF(Teilnehmer[[#This Row],[Großgruppe]],\"<>\")","v":0},null,null,null,null,null,null,null,null,{"$f":"SUBSTITUTE(_xlfn.TEXTJOIN(\"\",TRUE,B34,C34),\" \",\"\")","v":""},{"$f":"Teilnehmer[[#This Row],[Geb. Datum]]","v":"00:00:00"},{"$f":"IFERROR(VLOOKUP($AA34,GebDatum_Datenbank[[Spalte1]:[Datenbasis]],4,FALSE),\"\")","v":""},null,{"$f":"IF( D34>1940,DATEDIF(D34,AD$1,\"y\"),\" \")","v":" "},"","","",null,null,null,null,null,{"$f":"IF( D34>1940,DATEDIF(D34,AM$1,\"y\"),\" \")","v":" "}]
[{"$f":"$U$2&34","v":"34"},null,null,null," ",null,null,null,null,null,null,null,{"$f":"IFERROR(IF(B35=\"\",\"\",IF(Teilnehmer[[#This Row],[Einzelkür]]=\"ja\",Deckblatt!$C$20,IF(NOT(Teilnehmer[[#This Row],[EK-Kürname]]=\"\"),12)))+(IF(NOT(Teilnehmer[[#This Row],[Paarkür]]=\"\"),Deckblatt!$C$21,0))+(IF(NOT(Teilnehmer[[#This Row],[Kleingruppe]]=\"\"),Deckblatt!$C$22,0))+(IF(NOT(Teilnehmer[[#This Row],[Großgruppe]]=\"\"),Deckblatt!$C$23,0)),\"\")","v":""},null,{"$f":"COUNTIF(Teilnehmer[[#This Row],[Einzelkür]:[EK-Kürname]],\"ja\")","v":0},{"$f":"COUNTIF(Teilnehmer[[#This Row],[Paarkür]:[PK-Kürname]],\"<>\")","v":0},{"$f":"COUNTIF(Teilnehmer[[#This Row],[Kleingruppe]],\"<>\")","v":0},{"$f":"COUNTIF(Teilnehmer[[#This Row],[Großgruppe]],\"<>\")","v":0},null,null,null,null,null,null,null,null,"",{"$f":"Teilnehmer[[#This Row],[Geb. Datum]]","v":"00:00:00"},{"$f":"IFERROR(VLOOKUP($AA35,GebDatum_Datenbank[[Spalte1]:[Datenbasis]],4,FALSE),\"\")","v":""},null," ","","","",null,null,null,null,null," "]
[{"$f":"$U$2&35","v":"35"},null,null,null," ",null,null,null,null,null,null,null,{"$f":"IFERROR(IF(B36=\"\",\"\",IF(Teilnehmer[[#This Row],[Einzelkür]]=\"ja\",Deckblatt!$C$20,IF(NOT(Teilnehmer[[#This Row],[EK-Kürname]]=\"\"),12)))+(IF(NOT(Teilnehmer[[#This Row],[Paarkür]]=\"\"),Deckblatt!$C$21,0))+(IF(NOT(Teilnehmer[[#This Row],[Kleingruppe]]=\"\"),Deckblatt!$C$22,0))+(IF(NOT(Teilnehmer[[#This Row],[Großgruppe]]=\"\"),Deckblatt!$C$23,0)),\"\")","v":""},null,{"$f":"COUNTIF(Teilnehmer[[#This Row],[Einzelkür]:[EK-Kürname]],\"ja\")","v":0},{"$f":"COUNTIF(Teilnehmer[[#This Row],[Paarkür]:[PK-Kürname]],\"<>\")","v":0},{"$f":"COUNTIF(Teilnehmer[[#This Row],[Kleingruppe]],\"<>\")","v":0},{"$f":"COUNTIF(Teilnehmer[[#This Row],[Großgruppe]],\"<>\")","v":0},null,null,null,null,null,null,null,null,"",{"$f":"Teilnehmer[[#This Row],[Geb. Datum]]","v":"00:00:00"},{"$f":"IFERROR(VLOOKUP($AA36,GebDatum_Datenbank[[Spalte1]:[Datenbasis]],4,FALSE),\"\")","v":""},null," ","","","",null,null,null,null,null," "]
[{"$f":"$U$2&36","v":"36"},null,null,null," ",null,null,null,null,null,null,null,{"$f":"IFERROR(IF(B37=\"\",\"\",IF(Teilnehmer[[#This Row],[Einzelkür]]=\"ja\",Deckblatt!$C$20,IF(NOT(Teilnehmer[[#This Row],[EK-Kürname]]=\"\"),12)))+(IF(NOT(Teilnehmer[[#This Row],[Paarkür]]=\"\"),Deckblatt!$C$21,0))+(IF(NOT(Teilnehmer[[#This Row],[Kleingruppe]]=\"\"),Deckblatt!$C$22,0))+(IF(NOT(Teilnehmer[[#This Row],[Großgruppe]]=\"\"),Deckblatt!$C$23,0)),\"\")","v":""},null,{"$f":"COUNTIF(Teilnehmer[[#This Row],[Einzelkür]:[EK-Kürname]],\"ja\")","v":0},{"$f":"COUNTIF(Teilnehmer[[#This Row],[Paarkür]:[PK-Kürname]],\"<>\")","v":0},{"$f":"COUNTIF(Teilnehmer[[#This Row],[Kleingruppe]],\"<>\")","v":0},{"$f":"COUNTIF(Teilnehmer[[#This Row],[Großgruppe]],\"<>\")","v":0},null,null,null,null,null,null,null,null,"",{"$f":"Teilnehmer[[#This Row],[Geb. Datum]]","v":"00:00:00"},{"$f":"IFERROR(VLOOKUP($AA37,GebDatum_Datenbank[[Spalte1]:[Datenbasis]],4,FALSE),\"\")","v":""},null," ","","","",null,null,null,null,null," "]
[{"$f":"$U$2&37","v":"37"},null,null,null," ",null,null,null,null,null,null,null,{"$f":"IFERROR(IF(B38=\"\",\"\",IF(Teilnehmer[[#This Row],[Einzelkür]]=\"ja\",Deckblatt!$C$20,IF(NOT(Teilnehmer[[#This Row],[EK-Kürname]]=\"\"),12)))+(IF(NOT(Teilnehmer[[#This Row],[Paarkür]]=\"\"),Deckblatt!$C$21,0))+(IF(NOT(Teilnehmer[[#This Row],[Kleingruppe]]=\"\"),Deckblatt!$C$22,0))+(IF(NOT(Teilnehmer[[#This Row],[Großgruppe]]=\"\"),Deckblatt!$C$23,0)),\"\")","v":""},null,{"$f":"COUNTIF(Teilnehmer[[#This Row],[Einzelkür]:[EK-Kürname]],\"ja\")","v":0},{"$f":"COUNTIF(Teilnehmer[[#This Row],[Paarkür]:[PK-Kürname]],\"<>\")","v":0},{"$f":"COUNTIF(Teilnehmer[[#This Row],[Kleingruppe]],\"<>\")","v":0},{"$f":"COUNTIF(Teilnehmer[[#This Row],[Großgruppe]],\"<>\")","v":0},null,null,null,null,null,null,null,null,"",{"$f":"Teilnehmer[[#This Row],[Geb. Datum]]","v":"00:00:00"},{"$f":"IFERROR(VLOOKUP($AA38,GebDatum_Datenbank[[Spalte1]:[Datenbasis]],4,FALSE),\"\")","v":""},null," ","","","",null,null,null,null,null," "]
[{"$f":"$U$2&38","v":"38"},null,null,null," ",null,null,null,null,null,null,null,{"$f":"IFERROR(IF(B39=\"\",\"\",IF(Teilnehmer[[#This Row],[Einzelkür]]=\"ja\",Deckblatt!$C$20,IF(NOT(Teilnehmer[[#This Row],[EK-Kürname]]=\"\"),12)))+(IF(NOT(Teilnehmer[[#This Row],[Paarkür]]=\"\"),Deckblatt!$C$21,0))+(IF(NOT(Teilnehmer[[#This Row],[Kleingruppe]]=\"\"),Deckblatt!$C$22,0))+(IF(NOT(Teilnehmer[[#This Row],[Großgruppe]]=\"\"),Deckblatt!$C$23,0)),\"\")","v":""},null,{"$f":"COUNTIF(Teilnehmer[[#This Row],[Einzelkür]:[EK-Kürname]],\"ja\")","v":0},{"$f":"COUNTIF(Teilnehmer[[#This Row],[Paarkür]:[PK-Kürname]],\"<>\")","v":0},{"$f":"COUNTIF(Teilnehmer[[#This Row],[Kleingruppe]],\"<>\")","v":0},{"$f":"COUNTIF(Teilnehmer[[#This Row],[Großgruppe]],\"<>\")","v":0},null,null,null,null,null,null,null,null,"",{"$f":"Teilnehmer[[#This Row],[Geb. Datum]]","v":"00:00:00"},{"$f":"IFERROR(VLOOKUP($AA39,GebDatum_Datenbank[[Spalte1]:[Datenbasis]],4,FALSE),\"\")","v":""},null," ","","","",null,null,null,null,null," "]
[{"$f":"$U$2&39","v":"39"},null,null,null," ",null,null,null,null,null,null,null,{"$f":"IFERROR(IF(B40=\"\",\"\",IF(Teilnehmer[[#This Row],[Einzelkür]]=\"ja\",Deckblatt!$C$20,IF(NOT(Teilnehmer[[#This Row],[EK-Kürname]]=\"\"),12)))+(IF(NOT(Teilnehmer[[#This Row],[Paarkür]]=\"\"),Deckblatt!$C$21,0))+(IF(NOT(Teilnehmer[[#This Row],[Kleingruppe]]=\"\"),Deckblatt!$C$22,0))+(IF(NOT(Teilnehmer[[#This Row],[Großgruppe]]=\"\"),Deckblatt!$C$23,0)),\"\")","v":""},null,{"$f":"COUNTIF(Teilnehmer[[#This Row],[Einzelkür]:[EK-Kürname]],\"ja\")","v":0},{"$f":"COUNTIF(Teilnehmer[[#This Row],[Paarkür]:[PK-Kürname]],\"<>\")","v":0},{"$f":"COUNTIF(Teilnehmer[[#This Row],[Kleingruppe]],\"<>\")","v":0},{"$f":"COUNTIF(Teilnehmer[[#This Row],[Großgruppe]],\"<>\")","v":0},null,null,null,null,null,null,null,null,"",{"$f":"Teilnehmer[[#This Row],[Geb. Datum]]","v":"00:00:00"},{"$f":"IFERROR(VLOOKUP($AA40,GebDatum_Datenbank[[Spalte1]:[Datenbasis]],4,FALSE),\"\")","v":""},null," ","","","",null,null,null,null,null," "]
[{"$f":"$U$2&40","v":"40"},null,null,null," ",null,null,null,null,null,null,null,{"$f":"IFERROR(IF(B41=\"\",\"\",IF(Teilnehmer[[#This Row],[Einzelkür]]=\"ja\",Deckblatt!$C$20,IF(NOT(Teilnehmer[[#This Row],[EK-Kürname]]=\"\"),12)))+(IF(NOT(Teilnehmer[[#This Row],[Paarkür]]=\"\"),Deckblatt!$C$21,0))+(IF(NOT(Teilnehmer[[#This Row],[Kleingruppe]]=\"\"),Deckblatt!$C$22,0))+(IF(NOT(Teilnehmer[[#This Row],[Großgruppe]]=\"\"),Deckblatt!$C$23,0)),\"\")","v":""},null,{"$f":"COUNTIF(Teilnehmer[[#This Row],[Einzelkür]:[EK-Kürname]],\"ja\")","v":0},{"$f":"COUNTIF(Teilnehmer[[#This Row],[Paarkür]:[PK-Kürname]],\"<>\")","v":0},{"$f":"COUNTIF(Teilnehmer[[#This Row],[Kleingruppe]],\"<>\")","v":0},{"$f":"COUNTIF(Teilnehmer[[#This Row],[Großgruppe]],\"<>\")","v":0},null,null,null,null,null,null,null,null,"",{"$f":"Teilnehmer[[#This Row],[Geb. Datum]]","v":"00:00:00"},{"$f":"IFERROR(VLOOKUP($AA41,GebDatum_Datenbank[[Spalte1]:[Datenbasis]],4,FALSE),\"\")","v":""},null," ","","","",null,null,null,null,null," "]
[{"$f":"$U$2&41","v":"41"},null,null,null," ",null,null,null,null,null,null,null,{"$f":"IFERROR(IF(B42=\"\",\"\",IF(Teilnehmer[[#This Row],[Einzelkür]]=\"ja\",Deckblatt!$C$20,IF(NOT(Teilnehmer[[#This Row],[EK-Kürname]]=\"\"),12)))+(IF(NOT(Teilnehmer[[#This Row],[Paarkür]]=\"\"),Deckblatt!$C$21,0))+(IF(NOT(Teilnehmer[[#This Row],[Kleingruppe]]=\"\"),Deckblatt!$C$22,0))+(IF(NOT(Teilnehmer[[#This Row],[Großgruppe]]=\"\"),Deckblatt!$C$23,0)),\"\")","v":""},null,{"$f":"COUNTIF(Teilnehmer[[#This Row],[Einzelkür]:[EK-Kürname]],\"ja\")","v":0},{"$f":"COUNTIF(Teilnehmer[[#This Row],[Paarkür]:[PK-Kürname]],\"<>\")","v":0},{"$f":"COUNTIF(Teilnehmer[[#This Row],[Kleingruppe]],\"<>\")","v":0},{"$f":"COUNTIF(Teilnehmer[[#This Row],[Großgruppe]],\"<>\")","v":0},null,null,null,null,null,null,null,null,"",{"$f":"Teilnehmer[[#This Row],[Geb. Datum]]","v":"00:00:00"},{"$f":"IFERROR(VLOOKUP($AA42,GebDatum_Datenbank[[Spalte1]:[Datenbasis]],4,FALSE),\"\")","v":""},null," ","","","",null,null,null,null,null," "]
[{"$f":"$U$2&42","v":"42"},null,null,null," ",null,null,null,null,null,null,null,{"$f":"IFERROR(IF(B43=\"\",\"\",IF(Teilnehmer[[#This Row],[Einzelkür]]=\"ja\",Deckblatt!$C$20,IF(NOT(Teilnehmer[[#This Row],[EK-Kürname]]=\"\"),12)))+(IF(NOT(Teilnehmer[[#This Row],[Paarkür]]=\"\"),Deckblatt!$C$21,0))+(IF(NOT(Teilnehmer[[#This Row],[Kleingruppe]]=\"\"),Deckblatt!$C$22,0))+(IF(NOT(Teilnehmer[[#This Row],[Großgruppe]]=\"\"),Deckblatt!$C$23,0)),\"\")","v":""},null,{"$f":"COUNTIF(Teilnehmer[[#This Row],[Einzelkür]:[EK-Kürname]],\"ja\")","v":0},{"$f":"COUNTIF(Teilnehmer[[#This Row],[Paarkür]:[PK-Kürname]],\"<>\")","v":0},{"$f":"COUNTIF(Teilnehmer[[#This Row],[Kleingruppe]],\"<>\")","v":0},{"$f":"COUNTIF(Teilnehmer[[#This Row],[Großgruppe]],\"<>\")","v":0},null,null,null,null,null,null,null,null,"",{"$f":"Teilnehmer[[#This Row],[Geb. Datum]]","v":"00:00:00"},{"$f":"IFERROR(VLOOKUP($AA43,GebDatum_Datenbank[[Spalte1]:[Datenbasis]],4,FALSE),\"\")","v":""},null," ","","","",null,null,null,null,null," "]
[{"$f":"$U$2&43","v":"43"},null,null,null," ",null,null,null,null,null,null,null,{"$f":"IFERROR(IF(B44=\"\",\"\",IF(Teilnehmer[[#This Row],[Einzelkür]]=\"ja\",Deckblatt!$C$20,IF(NOT(Teilnehmer[[#This Row],[EK-Kürname]]=\"\"),12)))+(IF(NOT(Teilnehmer[[#This Row],[Paarkür]]=\"\"),Deckblatt!$C$21,0))+(IF(NOT(Teilnehmer[[#This Row],[Kleingruppe]]=\"\"),Deckblatt!$C$22,0))+(IF(NOT(Teilnehmer[[#This Row],[Großgruppe]]=\"\"),Deckblatt!$C$23,0)),\"\")","v":""},null,{"$f":"COUNTIF(Teilnehmer[[#This Row],[Einzelkür]:[EK-Kürname]],\"ja\")","v":0},{"$f":"COUNTIF(Teilnehmer[[#This Row],[Paarkür]:[PK-Kürname]],\"<>\")","v":0},{"$f":"COUNTIF(Teilnehmer[[#This Row],[Kleingruppe]],\"<>\")","v":0},{"$f":"COUNTIF(Teilnehmer[[#This Row],[Großgruppe]],\"<>\")","v":0},null,null,null,null,null,null,null,null,"",{"$f":"Teilnehmer[[#This Row],[Geb. Datum]]","v":"00:00:00"},{"$f":"IFERROR(VLOOKUP($AA44,GebDatum_Datenbank[[Spalte1]:[Datenbasis]],4,FALSE),\"\")","v":""},null," ","","","",null,null,null,null,null," "]
[{"$f":"$U$2&44","v":"44"},null,null,null," ",null,null,null,null,null,null,null,{"$f":"IFERROR(IF(B45=\"\",\"\",IF(Teilnehmer[[#This Row],[Einzelkür]]=\"ja\",Deckblatt!$C$20,IF(NOT(Teilnehmer[[#This Row],[EK-Kürname]]=\"\"),12)))+(IF(NOT(Teilnehmer[[#This Row],[Paarkür]]=\"\"),Deckblatt!$C$21,0))+(IF(NOT(Teilnehmer[[#This Row],[Kleingruppe]]=\"\"),Deckblatt!$C$22,0))+(IF(NOT(Teilnehmer[[#This Row],[Großgruppe]]=\"\"),Deckblatt!$C$23,0)),\"\")","v":""},null,{"$f":"COUNTIF(Teilnehmer[[#This Row],[Einzelkür]:[EK-Kürname]],\"ja\")","v":0},{"$f":"COUNTIF(Teilnehmer[[#This Row],[Paarkür]:[PK-Kürname]],\"<>\")","v":0},{"$f":"COUNTIF(Teilnehmer[[#This Row],[Kleingruppe]],\"<>\")","v":0},{"$f":"COUNTIF(Teilnehmer[[#This Row],[Großgruppe]],\"<>\")","v":0},null,null,null,null,null,null,null,null,"",{"$f":"Teilnehmer[[#This Row],[Geb. Datum]]","v":"00:00:00"},{"$f":"IFERROR(VLOOKUP($AA45,GebDatum_Datenbank[[Spalte1]:[Datenbasis]],4,FALSE),\"\")","v":""},null," ","","","",null,null,null,null,null," "]
[{"$f":"$U$2&45","v":"45"},null,null,null," ",null,null,null,null,null,null,null,{"$f":"IFERROR(IF(B46=\"\",\"\",IF(Teilnehmer[[#This Row],[Einzelkür]]=\"ja\",Deckblatt!$C$20,IF(NOT(Teilnehmer[[#This Row],[EK-Kürname]]=\"\"),12)))+(IF(NOT(Teilnehmer[[#This Row],[Paarkür]]=\"\"),Deckblatt!$C$21,0))+(IF(NOT(Teilnehmer[[#This Row],[Kleingruppe]]=\"\"),Deckblatt!$C$22,0))+(IF(NOT(Teilnehmer[[#This Row],[Großgruppe]]=\"\"),Deckblatt!$C$23,0)),\"\")","v":""},null,{"$f":"COUNTIF(Teilnehmer[[#This Row],[Einzelkür]:[EK-Kürname]],\"ja\")","v":0},{"$f":"COUNTIF(Teilnehmer[[#This Row],[Paarkür]:[PK-Kürname]],\"<>\")","v":0},{"$f":"COUNTIF(Teilnehmer[[#This Row],[Kleingruppe]],\"<>\")","v":0},{"$f":"COUNTIF(Teilnehmer[[#This Row],[Großgruppe]],\"<>\")","v":0},null,null,null,null,null,null,null,null,"",{"$f":"Teilnehmer[[#This Row],[Geb. Datum]]","v":"00:00:00"},{"$f":"IFERROR(VLOOKUP($AA46,GebDatum_Datenbank[[Spalte1]:[Datenbasis]],4,FALSE),\"\")","v":""},null," ","","","",null,null,null,null,null," "]
[{"$f":"$U$2&46","v":"46"},null,null,null," ",null,null,null,null,null,null,null,{"$f":"IFERROR(IF(B47=\"\",\"\",IF(Teilnehmer[[#This Row],[Einzelkür]]=\"ja\",Deckblatt!$C$20,IF(NOT(Teilnehmer[[#This Row],[EK-Kürname]]=\"\"),12)))+(IF(NOT(Teilnehmer[[#This Row],[Paarkür]]=\"\"),Deckblatt!$C$21,0))+(IF(NOT(Teilnehmer[[#This Row],[Kleingruppe]]=\"\"),Deckblatt!$C$22,0))+(IF(NOT(Teilnehmer[[#This Row],[Großgruppe]]=\"\"),Deckblatt!$C$23,0)),\"\")","v":""},null,{"$f":"COUNTIF(Teilnehmer[[#This Row],[Einzelkür]:[EK-Kürname]],\"ja\")","v":0},{"$f":"COUNTIF(Teilnehmer[[#This Row],[Paarkür]:[PK-Kürname]],\"<>\")","v":0},{"$f":"COUNTIF(Teilnehmer[[#This Row],[Kleingruppe]],\"<>\")","v":0},{"$f":"COUNTIF(Teilnehmer[[#This Row],[Großgruppe]],\"<>\")","v":0},null,null,null,null,null,null,null,null,"",{"$f":"Teilnehmer[[#This Row],[Geb. Datum]]","v":"00:00:00"},{"$f":"IFERROR(VLOOKUP($AA47,GebDatum_Datenbank[[Spalte1]:[Datenbasis]],4,FALSE),\"\")","v":""},null," ","","","",null,null,null,null,null," "]
[{"$f":"$U$2&47","v":"47"},null,null,null," ",null,null,null,null,null,null,null,{"$f":"IFERROR(IF(B48=\"\",\"\",IF(Teilnehmer[[#This Row],[Einzelkür]]=\"ja\",Deckblatt!$C$20,IF(NOT(Teilnehmer[[#This Row],[EK-Kürname]]=\"\"),12)))+(IF(NOT(Teilnehmer[[#This Row],[Paarkür]]=\"\"),Deckblatt!$C$21,0))+(IF(NOT(Teilnehmer[[#This Row],[Kleingruppe]]=\"\"),Deckblatt!$C$22,0))+(IF(NOT(Teilnehmer[[#This Row],[Großgruppe]]=\"\"),Deckblatt!$C$23,0)),\"\")","v":""},null,{"$f":"COUNTIF(Teilnehmer[[#This Row],[Einzelkür]:[EK-Kürname]],\"ja\")","v":0},{"$f":"COUNTIF(Teilnehmer[[#This Row],[Paarkür]:[PK-Kürname]],\"<>\")","v":0},{"$f":"COUNTIF(Teilnehmer[[#This Row],[Kleingruppe]],\"<>\")","v":0},{"$f":"COUNTIF(Teilnehmer[[#This Row],[Großgruppe]],\"<>\")","v":0},null,null,null,null,null,null,null,null,"",{"$f":"Teilnehmer[[#This Row],[Geb. Datum]]","v":"00:00:00"},{"$f":"IFERROR(VLOOKUP($AA48,GebDatum_Datenbank[[Spalte1]:[Datenbasis]],4,FALSE),\"\")","v":""},null," ","","","",null,null,null,null,null," "]
[{"$f":"$U$2&48","v":"48"},null,null,null," ",null,null,null,null,null,null,null,{"$f":"IFERROR(IF(B49=\"\",\"\",IF(Teilnehmer[[#This Row],[Einzelkür]]=\"ja\",Deckblatt!$C$20,IF(NOT(Teilnehmer[[#This Row],[EK-Kürname]]=\"\"),12)))+(IF(NOT(Teilnehmer[[#This Row],[Paarkür]]=\"\"),Deckblatt!$C$21,0))+(IF(NOT(Teilnehmer[[#This Row],[Kleingruppe]]=\"\"),Deckblatt!$C$22,0))+(IF(NOT(Teilnehmer[[#This Row],[Großgruppe]]=\"\"),Deckblatt!$C$23,0)),\"\")","v":""},null,{"$f":"COUNTIF(Teilnehmer[[#This Row],[Einzelkür]:[EK-Kürname]],\"ja\")","v":0},{"$f":"COUNTIF(Teilnehmer[[#This Row],[Paarkür]:[PK-Kürname]],\"<>\")","v":0},{"$f":"COUNTIF(Teilnehmer[[#This Row],[Kleingruppe]],\"<>\")","v":0},{"$f":"COUNTIF(Teilnehmer[[#This Row],[Großgruppe]],\"<>\")","v":0},null,null,null,null,null,null,null,null,"",{"$f":"Teilnehmer[[#This Row],[Geb. Datum]]","v":"00:00:00"},{"$f":"IFERROR(VLOOKUP($AA49,GebDatum_Datenbank[[Spalte1]:[Datenbasis]],4,FALSE),\"\")","v":""},null," ","","","",null,null,null,null,null," "]
[{"$f":"$U$2&49","v":"49"},null,null,null," ",null,null,null,null,null,null,null,{"$f":"IFERROR(IF(B50=\"\",\"\",IF(Teilnehmer[[#This Row],[Einzelkür]]=\"ja\",Deckblatt!$C$20,IF(NOT(Teilnehmer[[#This Row],[EK-Kürname]]=\"\"),12)))+(IF(NOT(Teilnehmer[[#This Row],[Paarkür]]=\"\"),Deckblatt!$C$21,0))+(IF(NOT(Teilnehmer[[#This Row],[Kleingruppe]]=\"\"),Deckblatt!$C$22,0))+(IF(NOT(Teilnehmer[[#This Row],[Großgruppe]]=\"\"),Deckblatt!$C$23,0)),\"\")","v":""},null,{"$f":"COUNTIF(Teilnehmer[[#This Row],[Einzelkür]:[EK-Kürname]],\"ja\")","v":0},{"$f":"COUNTIF(Teilnehmer[[#This Row],[Paarkür]:[PK-Kürname]],\"<>\")","v":0},{"$f":"COUNTIF(Teilnehmer[[#This Row],[Kleingruppe]],\"<>\")","v":0},{"$f":"COUNTIF(Teilnehmer[[#This Row],[Großgruppe]],\"<>\")","v":0},null,null,null,null,null,null,null,null,"",{"$f":"Teilnehmer[[#This Row],[Geb. Datum]]","v":"00:00:00"},{"$f":"IFERROR(VLOOKUP($AA50,GebDatum_Datenbank[[Spalte1]:[Datenbasis]],4,FALSE),\"\")","v":""},null," ","","","",null,null,null,null,null," "]
[{"$f":"$U$2&50","v":"50"},null,null,null," ",null,null,null,null,null,null,null,{"$f":"IFERROR(IF(B51=\"\",\"\",IF(Teilnehmer[[#This Row],[Einzelkür]]=\"ja\",Deckblatt!$C$20,IF(NOT(Teilnehmer[[#This Row],[EK-Kürname]]=\"\"),12)))+(IF(NOT(Teilnehmer[[#This Row],[Paarkür]]=\"\"),Deckblatt!$C$21,0))+(IF(NOT(Teilnehmer[[#This Row],[Kleingruppe]]=\"\"),Deckblatt!$C$22,0))+(IF(NOT(Teilnehmer[[#This Row],[Großgruppe]]=\"\"),Deckblatt!$C$23,0)),\"\")","v":""},null,{"$f":"COUNTIF(Teilnehmer[[#This Row],[Einzelkür]:[EK-Kürname]],\"ja\")","v":0},{"$f":"COUNTIF(Teilnehmer[[#This Row],[Paarkür]:[PK-Kürname]],\"<>\")","v":0},{"$f":"COUNTIF(Teilnehmer[[#This Row],[Kleingruppe]],\"<>\")","v":0},{"$f":"COUNTIF(Teilnehmer[[#This Row],[Großgruppe]],\"<>\")","v":0},null,null,null,null,null,null,null,null,"",{"$f":"Teilnehmer[[#This Row],[Geb. Datum]]","v":"00:00:00"},{"$f":"IFERROR(VLOOKUP($AA51,GebDatum_Datenbank[[Spalte1]:[Datenbasis]],4,FALSE),\"\")","v":""},null," ","","","",null,null,null,null,null," "]
["Ergebnis",null,null,null,{"$f":"SUBTOTAL(102,Teilnehmer[Alter am ersten Wettkampftag])","v":0},null,null,null,null,null,null,null,{"$f":"SUM(Teilnehmer[Startgebühr])","v":0},null,{"$f":"SUBTOTAL(109,Teilnehmer[15 €])","v":0},{"$f":"SUBTOTAL(109,Teilnehmer[15 €2])","v":0},{"$f":"SUBTOTAL(109,Teilnehmer[10 €])","v":0},{"$f":"SUBTOTAL(109,Teilnehmer[10 €_])","v":0}]

{"sheet":"EK w","index":3,"n_rows":35,"n_cols":13,"rows_kept":35,"cut":false,"hidden":true,"merged":[[1,4,1,5]]}
["Süddeutsche Meisterschaft Einrad Freestyle 🧡"]
["Einzelküren weiblich.",null,null,{"$f":"Meldung!V1","v":"16.10.2026"},{"$f":"Deckblatt!C2","v":"2026-10-18"},null,"w"]
[]
["Kür Nr.","lf.Nr. Anmeldung","Name","Vorname","Alter","Kürname","Altersklasse","Altersklassensprung *\nzum nächsten Wettkampf"]
[1,{"$f":"IFERROR(INDEX(Teilnehmer[Lfd. Nr.],_xlfn.AGGREGATE(15,6,ROW(Teilnehmer[Lfd. Nr.])/((Teilnehmer[Geschlecht]=$G$2)*(Teilnehmer[Einzelkür]=\"ja\")),ROW()-4)-1,1),\"\")","v":""},{"$f":"IFERROR(VLOOKUP($B5,Teilnehmer[],2,FALSE),\"\")","v":""},{"$f":"IFERROR(VLOOKUP($B5,Teilnehmer[],3,FALSE),\"\")","v":""},{"$f":"IFERROR(VLOOKUP($B5,Teilnehmer[],5,FALSE),\"\")","v":""},{"$f":"IFERROR(VLOOKUP($B5,Teilnehmer[],8,FALSE),\"\")","v":""},{"$f":"IF(E5<11,\"U11\",IF(E5<13,\"U13\",IF(E5<15,\"U15\",IF(E5<17,\"U17\",IF(E5<19,\"U19\",IF(E5<21,\"U21\",IF(E5<23,\"U23\",IF(E5<25,\"U25\",IF(E5<30,\"U30\",IF(E5<50,\"U50\",IF(E5<70,\"U70\",IF(E5<99,\"70+\",\"\"))))))))))))","v":""},{"$f":"IFERROR(VLOOKUP(B5,Meldung!A2:AH51,34,FALSE),\"\")","v":""},null,null,null,null,"nein"]
[{"$f":"A5+1","v":2},{"$f":"IFERROR(INDEX(Teilnehmer[Lfd. Nr.],_xlfn.AGGREGATE(15,6,ROW(Teilnehmer[Lfd. Nr.])/((Teilnehmer[Geschlecht]=$G$2)*(Teilnehmer[Einzelkür]=\"ja\")),ROW()-4)-1,1),\"\")","v":""},{"$f":"IFERROR(VLOOKUP($B6,Teilnehmer[],2,FALSE),\"\")","v":""},{"$f":"IFERROR(VLOOKUP($B6,Teilnehmer[],3,FALSE),\"\")","v":""},{"$f":"IFERROR(VLOOKUP($B6,Teilnehmer[],5,FALSE),\"\")","v":""},{"$f":"IFERROR(VLOOKUP($B6,Teilnehmer[],8,FALSE),\"\")","v":""},{"$f":"IF(E6<11,\"U11\",IF(E6<13,\"U13\",IF(E6<15,\"U15\",IF(E6<17,\"U17\",IF(E6<19,\"U19\",IF(E6<21,\"U21\",IF(E6<23,\"U23\",IF(E6<25,\"U25\",IF(E6<30,\"U30\",IF(E6<50,\"U50\",IF(E6<70,\"U70\",IF(E6<99,\"70+\",\"\"))))))))))))","v":""},{"$f":"IFERROR(VLOOKUP(B6,Meldung!A3:AH52,34,FALSE),\"\")","v":""},null,null,null,null,"ja"]
[{"$f":"A6+1","v":3},{"$f":"IFERROR(INDEX(Teilnehmer[Lfd. Nr.],_xlfn.AGGREGATE(15,6,ROW(Teilnehmer[Lfd. Nr.])/((Teilnehmer[Geschlecht]=$G$2)*(Teilnehmer[Einzelkür]=\"ja\")),ROW()-4)-1,1),\"\")","v":""},{"$f":"IFERROR(VLOOKUP($B7,Teilnehmer[],2,FALSE),\"\")","v":""},{"$f":"IFERROR(VLOOKUP($B7,Teilnehmer[],3,FALSE),\"\")","v":""},{"$f":"IFERROR(VLOOKUP($B7,Teilnehmer[],5,FALSE),\"\")","v":""},{"$f":"IFERROR(VLOOKUP($B7,Teilnehmer[],8,FALSE),\"\")","v":""},"",{"$f":"IFERROR(VLOOKUP(B7,Meldung!A4:AH53,34,FALSE),\"\")","v":""},null,null,null,null,""]
[4,{"$f":"IFERROR(INDEX(Teilnehmer[Lfd. Nr.],_xlfn.AGGREGATE(15,6,ROW(Teilnehmer[Lfd. Nr.])/((Teilnehmer[Geschlecht]=$G$2)*(Teilnehmer[Einzelkür]=\"ja\")),ROW()-4)-1,1),\"\")","v":""},{"$f":"IFERROR(VLOOKUP($B8,Teilnehmer[],2,FALSE),\"\")","v":""},{"$f":"IFERROR(VLOOKUP($B8,Teilnehmer[],3,FALSE),\"\")","v":""},{"$f":"IFERROR(VLOOKUP($B8,Teilnehmer[],5,FALSE),\"\")","v":""},{"$f":"IFERROR(VLOOKUP($B8,Teilnehmer[],8,FALSE),\"\")","v":""},"",{"$f":"IFERROR(VLOOKUP(B8,Meldung!A5:AH54,34,FALSE),\"\")","v":""}]
[5,{"$f":"IFERROR(INDEX(Teilnehmer[Lfd. Nr.],_xlfn.AGGREGATE(15,6,ROW(Teilnehmer[Lfd. Nr.])/((Teilnehmer[Geschlecht]=$G$2)*(Teilnehmer[Einzelkür]=\"ja\")),ROW()-4)-1,1),\"\")","v":""},{"$f":"IFERROR(VLOOKUP($B9,Teilnehmer[],2,FALSE),\"\")","v":""},{"$f":"IFERROR(VLOOKUP($B9,Teilnehmer[],3,FALSE),\"\")","v":""},{"$f":"IFERROR(VLOOKUP($B9,Teilnehmer[],5,FALSE),\"\")","v":""},{"$f":"IFERROR(VLOOKUP($B9,Teilnehmer[],8,FALSE),\"\")","v":""},"",{"$f":"IFERROR(VLOOKUP(B9,Meldung!A6:AH55,34,FALSE),\"\")","v":""}]
[6,{"$f":"IFERROR(INDEX(Teilnehmer[Lfd. Nr.],_xlfn.AGGREGATE(15,6,ROW(Teilnehmer[Lfd. Nr.])/((Teilnehmer[Geschlecht]=$G$2)*(Teilnehmer[Einzelkür]=\"ja\")),ROW()-4)-1,1),\"\")","v":""},{"$f":"IFERROR(VLOOKUP($B10,Teilnehmer[],2,FALSE),\"\")","v":""},{"$f":"IFERROR(VLOOKUP($B10,Teilnehmer[],3,FALSE),\"\")","v":""},{"$f":"IFERROR(VLOOKUP($B10,Teilnehmer[],5,FALSE),\"\")","v":""},{"$f":"IFERROR(VLOOKUP($B10,Teilnehmer[],8,FALSE),\"\")","v":""},"",{"$f":"IFERROR(VLOOKUP(B10,Meldung!A7:AH56,34,FALSE),\"\")","v":""}]
[7,{"$f":"IFERROR(INDEX(Teilnehmer[Lfd. Nr.],_xlfn.AGGREGATE(15,6,ROW(Teilnehmer[Lfd. Nr.])/((Teilnehmer[Geschlecht]=$G$2)*(Teilnehmer[Einzelkür]=\"ja\")),ROW()-4)-1,1),\"\")","v":""},{"$f":"IFERROR(VLOOKUP($B11,Teilnehmer[],2,FALSE),\"\")","v":""},{"$f":"IFERROR(VLOOKUP($B11,Teilnehmer[],3,FALSE),\"\")","v":""},{"$f":"IFERROR(VLOOKUP($B11,Teilnehmer[],5,FALSE),\"\")","v":""},{"$f":"IFERROR(VLOOKUP($B11,Teilnehmer[],8,FALSE),\"\")","v":""},"",{"$f":"IFERROR(VLOOKUP(B11,Meldung!A8:AH57,34,FALSE),\"\")","v":""}]
[8,{"$f":"IFERROR(INDEX(Teilnehmer[Lfd. Nr.],_xlfn.AGGREGATE(15,6,ROW(Teilnehmer[Lfd. Nr.])/((Teilnehmer[Geschlecht]=$G$2)*(Teilnehmer[Einzelkür]=\"ja\")),ROW()-4)-1,1),\"\")","v":""},{"$f":"IFERROR(VLOOKUP($B12,Teilnehmer[],2,FALSE),\"\")","v":""},{"$f":"IFERROR(VLOOKUP($B12,Teilnehmer[],3,FALSE),\"\")","v":""},{"$f":"IFERROR(VLOOKUP($B12,Teilnehmer[],5,FALSE),\"\")","v":""},{"$f":"IFERROR(VLOOKUP($B12,Teilnehmer[],8,FALSE),\"\")","v":""},"",{"$f":"IFERROR(VLOOKUP(B12,Meldung!A9:AH58,34,FALSE),\"\")","v":""}]
[9,{"$f":"IFERROR(INDEX(Teilnehmer[Lfd. Nr.],_xlfn.AGGREGATE(15,6,ROW(Teilnehmer[Lfd. Nr.])/((Teilnehmer[Geschlecht]=$G$2)*(Teilnehmer[Einzelkür]=\"ja\")),ROW()-4)-1,1),\"\")","v":""},{"$f":"IFERROR(VLOOKUP($B13,Teilnehmer[],2,FALSE),\"\")","v":""},{"$f":"IFERROR(VLOOKUP($B13,Teilnehmer[],3,FALSE),\"\")","v":""},{"$f":"IFERROR(VLOOKUP($B13,Teilnehmer[],5,FALSE),\"\")","v":""},{"$f":"IFERROR(VLOOKUP($B13,Teilnehmer[],8,FALSE),\"\")","v":""},"",{"$f":"IFERROR(VLOOKUP(B13,Meldung!A10:AH59,34,FALSE),\"\")","v":""}]
[10,{"$f":"IFERROR(INDEX(Teilnehmer[Lfd. Nr.],_xlfn.AGGREGATE(15,6,ROW(Teilnehmer[Lfd. Nr.])/((Teilnehmer[Geschlecht]=$G$2)*(Teilnehmer[Einzelkür]=\"ja\")),ROW()-4)-1,1),\"\")","v":""},{"$f":"IFERROR(VLOOKUP($B14,Teilnehmer[],2,FALSE),\"\")","v":""},{"$f":"IFERROR(VLOOKUP($B14,Teilnehmer[],3,FALSE),\"\")","v":""},{"$f":"IFERROR(VLOOKUP($B14,Teilnehmer[],5,FALSE),\"\")","v":""},{"$f":"IFERROR(VLOOKUP($B14,Teilnehmer[],8,FALSE),\"\")","v":""},"",{"$f":"IFERROR(VLOOKUP(B14,Meldung!A11:AH60,34,FALSE),\"\")","v":""}]
[11,{"$f":"IFERROR(INDEX(Teilnehmer[Lfd. Nr.],_xlfn.AGGREGATE(15,6,ROW(Teilnehmer[Lfd. Nr.])/((Teilnehmer[Geschlecht]=$G$2)*(Teilnehmer[Einzelkür]=\"ja\")),ROW()-4)-1,1),\"\")","v":""},{"$f":"IFERROR(VLOOKUP($B15,Teilnehmer[],2,FALSE),\"\")","v":""},{"$f":"IFERROR(VLOOKUP($B15,Teilnehmer[],3,FALSE),\"\")","v":""},{"$f":"IFERROR(VLOOKUP($B15,Teilnehmer[],5,FALSE),\"\")","v":""},{"$f":"IFERROR(VLOOKUP($B15,Teilnehmer[],8,FALSE),\"\")","v":""},"",{"$f":"IFERROR(VLOOKUP(B15,Meldung!A12:AH61,34,FALSE),\"\")","v":""}]
[12,{"$f":"IFERROR(INDEX(Teilnehmer[Lfd. Nr.],_xlfn.AGGREGATE(15,6,ROW(Teilnehmer[Lfd. Nr.])/((Teilnehmer[Geschlecht]=$G$2)*(Teilnehmer[Einzelkür]=\"ja\")),ROW()-4)-1,1),\"\")","v":""},{"$f":"IFERROR(VLOOKUP($B16,Teilnehmer[],2,FALSE),\"\")","v":""},{"$f":"IFERROR(VLOOKUP($B16,Teilnehmer[],3,FALSE),\"\")","v":""},{"$f":"IFERROR(VLOOKUP($B16,Teilnehmer[],5,FALSE),\"\")","v":""},{"$f":"IFERROR(VLOOKUP($B16,Teilnehmer[],8,FALSE),\"\")","v":""},"",{"$f":"IFERROR(VLOOKUP(B16,Meldung!A13:AH62,34,FALSE),\"\")","v":""}]
[13,{"$f":"IFERROR(INDEX(Teilnehmer[Lfd. Nr.],_xlfn.AGGREGATE(15,6,ROW(Teilnehmer[Lfd. Nr.])/((Teilnehmer[Geschlecht]=$G$2)*(Teilnehmer[Einzelkür]=\"ja\")),ROW()-4)-1,1),\"\")","v":""},{"$f":"IFERROR(VLOOKUP($B17,Teilnehmer[],2,FALSE),\"\")","v":""},{"$f":"IFERROR(VLOOKUP($B17,Teilnehmer[],3,FALSE),\"\")","v":""},{"$f":"IFERROR(VLOOKUP($B17,Teilnehmer[],5,FALSE),\"\")","v":""},{"$f":"IFERROR(VLOOKUP($B17,Teilnehmer[],8,FALSE),\"\")","v":""},"",{"$f":"IFERROR(VLOOKUP(B17,Meldung!A14:AH63,34,FALSE),\"\")","v":""}]
[14,{"$f":"IFERROR(INDEX(Teilnehmer[Lfd. Nr.],_xlfn.AGGREGATE(15,6,ROW(Teilnehmer[Lfd. Nr.])/((Teilnehmer[Geschlecht]=$G$2)*(Teilnehmer[Einzelkür]=\"ja\")),ROW()-4)-1,1),\"\")","v":""},{"$f":"IFERROR(VLOOKUP($B18,Teilnehmer[],2,FALSE),\"\")","v":""},{"$f":"IFERROR(VLOOKUP($B18,Teilnehmer[],3,FALSE),\"\")","v":""},{"$f":"IFERROR(VLOOKUP($B18,Teilnehmer[],5,FALSE),\"\")","v":""},{"$f":"IFERROR(VLOOKUP($B18,Teilnehmer[],8,FALSE),\"\")","v":""},"",{"$f":"IFERROR(VLOOKUP(B18,Meldung!A15:AH64,34,FALSE),\"\")","v":""}]
[15,{"$f":"IFERROR(INDEX(Teilnehmer[Lfd. Nr.],_xlfn.AGGREGATE(15,6,ROW(Teilnehmer[Lfd. Nr.])/((Teilnehmer[Geschlecht]=$G$2)*(Teilnehmer[Einzelkür]=\"ja\")),ROW()-4)-1,1),\"\")","v":""},{"$f":"IFERROR(VLOOKUP($B19,Teilnehmer[],2,FALSE),\"\")","v":""},{"$f":"IFERROR(VLOOKUP($B19,Teilnehmer[],3,FALSE),\"\")","v":""},{"$f":"IFERROR(VLOOKUP($B19,Teilnehmer[],5,FALSE),\"\")","v":""},{"$f":"IFERROR(VLOOKUP($B19,Teilnehmer[],8,FALSE),\"\")","v":""},"",{"$f":"IFERROR(VLOOKUP(B19,Meldung!A16:AH65,34,FALSE),\"\")","v":""}]
[16,{"$f":"IFERROR(INDEX(Teilnehmer[Lfd. Nr.],_xlfn.AGGREGATE(15,6,ROW(Teilnehmer[Lfd. Nr.])/((Teilnehmer[Geschlecht]=$G$2)*(Teilnehmer[Einzelkür]=\"ja\")),ROW()-4)-1,1),\"\")","v":""},{"$f":"IFERROR(VLOOKUP($B20,Teilnehmer[],2,FALSE),\"\")","v":""},{"$f":"IFERROR(VLOOKUP($B20,Teilnehmer[],3,FALSE),\"\")","v":""},{"$f":"IFERROR(VLOOKUP($B20,Teilnehmer[],5,FALSE),\"\")","v":""},{"$f":"IFERROR(VLOOKUP($B20,Teilnehmer[],8,FALSE),\"\")","v":""},"",{"$f":"IFERROR(VLOOKUP(B20,Meldung!A17:AH66,34,FALSE),\"\")","v":""}]
[17,{"$f":"IFERROR(INDEX(Teilnehmer[Lfd. Nr.],_xlfn.AGGREGATE(15,6,ROW(Teilnehmer[Lfd. Nr.])/((Teilnehmer[Geschlecht]=$G$2)*(Teilnehmer[Einzelkür]=\"ja\")),ROW()-4)-1,1),\"\")","v":""},{"$f":"IFERROR(VLOOKUP($B21,Teilnehmer[],2,FALSE),\"\")","v":""},{"$f":"IFERROR(VLOOKUP($B21,Teilnehmer[],3,FALSE),\"\")","v":""},{"$f":"IFERROR(VLOOKUP($B21,Teilnehmer[],5,FALSE),\"\")","v":""},{"$f":"IFERROR(VLOOKUP($B21,Teilnehmer[],8,FALSE),\"\")","v":""},"",{"$f":"IFERROR(VLOOKUP(B21,Meldung!A18:AH67,34,FALSE),\"\")","v":""}]
[18,{"$f":"IFERROR(INDEX(Teilnehmer[Lfd. Nr.],_xlfn.AGGREGATE(15,6,ROW(Teilnehmer[Lfd. Nr.])/((Teilnehmer[Geschlecht]=$G$2)*(Teilnehmer[Einzelkür]=\"ja\")),ROW()-4)-1,1),\"\")","v":""},{"$f":"IFERROR(VLOOKUP($B22,Teilnehmer[],2,FALSE),\"\")","v":""},{"$f":"IFERROR(VLOOKUP($B22,Teilnehmer[],3,FALSE),\"\")","v":""},{"$f":"IFERROR(VLOOKUP($B22,Teilnehmer[],5,FALSE),\"\")","v":""},{"$f":"IFERROR(VLOOKUP($B22,Teilnehmer[],8,FALSE),\"\")","v":""},"",{"$f":"IFERROR(VLOOKUP(B22,Meldung!A19:AH68,34,FALSE),\"\")","v":""}]
[19,{"$f":"IFERROR(INDEX(Teilnehmer[Lfd. Nr.],_xlfn.AGGREGATE(15,6,ROW(Teilnehmer[Lfd. Nr.])/((Teilnehmer[Geschlecht]=$G$2)*(Teilnehmer[Einzelkür]=\"ja\")),ROW()-4)-1,1),\"\")","v":""},{"$f":"IFERROR(VLOOKUP($B23,Teilnehmer[],2,FALSE),\"\")","v":""},{"$f":"IFERROR(VLOOKUP($B23,Teilnehmer[],3,FALSE),\"\")","v":""},{"$f":"IFERROR(VLOOKUP($B23,Teilnehmer[],5,FALSE),\"\")","v":""},{"$f":"IFERROR(VLOOKUP($B23,Teilnehmer[],8,FALSE),\"\")","v":""},"",{"$f":"IFERROR(VLOOKUP(B23,Meldung!A20:AH69,34,FALSE),\"\")","v":""}]
[20,{"$f":"IFERROR(INDEX(Teilnehmer[Lfd. Nr.],_xlfn.AGGREGATE(15,6,ROW(Teilnehmer[Lfd. Nr.])/((Teilnehmer[Geschlecht]=$G$2)*(Teilnehmer[Einzelkür]=\"ja\")),ROW()-4)-1,1),\"\")","v":""},{"$f":"IFERROR(VLOOKUP($B24,Teilnehmer[],2,FALSE),\"\")","v":""},{"$f":"IFERROR(VLOOKUP($B24,Teilnehmer[],3,FALSE),\"\")","v":""},{"$f":"IFERROR(VLOOKUP($B24,Teilnehmer[],5,FALSE),\"\")","v":""},{"$f":"IFERROR(VLOOKUP($B24,Teilnehmer[],8,FALSE),\"\")","v":""},"",{"$f":"IFERROR(VLOOKUP(B24,Meldung!A21:AH70,34,FALSE),\"\")","v":""}]
[21,{"$f":"IFERROR(INDEX(Teilnehmer[Lfd. Nr.],_xlfn.AGGREGATE(15,6,ROW(Teilnehmer[Lfd. Nr.])/((Teilnehmer[Geschlecht]=$G$2)*(Teilnehmer[Einzelkür]=\"ja\")),ROW()-4)-1,1),\"\")","v":""},{"$f":"IFERROR(VLOOKUP($B25,Teilnehmer[],2,FALSE),\"\")","v":""},{"$f":"IFERROR(VLOOKUP($B25,Teilnehmer[],3,FALSE),\"\")","v":""},{"$f":"IFERROR(VLOOKUP($B25,Teilnehmer[],5,FALSE),\"\")","v":""},{"$f":"IFERROR(VLOOKUP($B25,Teilnehmer[],8,FALSE),\"\")","v":""},"",{"$f":"IFERROR(VLOOKUP(B25,Meldung!A22:AH71,34,FALSE),\"\")","v":""}]
[22,{"$f":"IFERROR(INDEX(Teilnehmer[Lfd. Nr.],_xlfn.AGGREGATE(15,6,ROW(Teilnehmer[Lfd. Nr.])/((Teilnehmer[Geschlecht]=$G$2)*(Teilnehmer[Einzelkür]=\"ja\")),ROW()-4)-1,1),\"\")","v":""},{"$f":"IFERROR(VLOOKUP($B26,Teilnehmer[],2,FALSE),\"\")","v":""},{"$f":"IFERROR(VLOOKUP($B26,Teilnehmer[],3,FALSE),\"\")","v":""},{"$f":"IFERROR(VLOOKUP($B26,Teilnehmer[],5,FALSE),\"\")","v":""},{"$f":"IFERROR(VLOOKUP($B26,Teilnehmer[],8,FALSE),\"\")","v":""},"",{"$f":"IFERROR(VLOOKUP(B26,Meldung!A23:AH72,34,FALSE),\"\")","v":""}]
[23,{"$f":"IFERROR(INDEX(Teilnehmer[Lfd. Nr.],_xlfn.AGGREGATE(15,6,ROW(Teilnehmer[Lfd. Nr.])/((Teilnehmer[Geschlecht]=$G$2)*(Teilnehmer[Einzelkür]=\"ja\")),ROW()-4)-1,1),\"\")","v":""},{"$f":"IFERROR(VLOOKUP($B27,Teilnehmer[],2,FALSE),\"\")","v":""},{"$f":"IFERROR(VLOOKUP($B27,Teilnehmer[],3,FALSE),\"\")","v":""},{"$f":"IFERROR(VLOOKUP($B27,Teilnehmer[],5,FALSE),\"\")","v":""},{"$f":"IFERROR(VLOOKUP($B27,Teilnehmer[],8,FALSE),\"\")","v":""},"",{"$f":"IFERROR(VLOOKUP(B27,Meldung!A24:AH73,34,FALSE),\"\")","v":""}]
[24,{"$f":"IFERROR(INDEX(Teilnehmer[Lfd. Nr.],_xlfn.AGGREGATE(15,6,ROW(Teilnehmer[Lfd. Nr.])/((Teilnehmer[Geschlecht]=$G$2)*(Teilnehmer[Einzelkür]=\"ja\")),ROW()-4)-1,1),\"\")","v":""},{"$f":"IFERROR(VLOOKUP($B28,Teilnehmer[],2,FALSE),\"\")","v":""},{"$f":"IFERROR(VLOOKUP($B28,Teilnehmer[],3,FALSE),\"\")","v":""},{"$f":"IFERROR(VLOOKUP($B28,Teilnehmer[],5,FALSE),\"\")","v":""},{"$f":"IFERROR(VLOOKUP($B28,Teilnehmer[],8,FALSE),\"\")","v":""},"",{"$f":"IFERROR(VLOOKUP(B28,Meldung!A25:AH74,34,FALSE),\"\")","v":""}]
[25,{"$f":"IFERROR(INDEX(Teilnehmer[Lfd. Nr.],_xlfn.AGGREGATE(15,6,ROW(Teilnehmer[Lfd. Nr.])/((Teilnehmer[Geschlecht]=$G$2)*(Teilnehmer[Einzelkür]=\"ja\")),ROW()-4)-1,1),\"\")","v":""},{"$f":"IFERROR(VLOOKUP($B29,Teilnehmer[],2,FALSE),\"\")","v":""},{"$f":"IFERROR(VLOOKUP($B29,Teilnehmer[],3,FALSE),\"\")","v":""},{"$f":"IFERROR(VLOOKUP($B29,Teilnehmer[],5,FALSE),\"\")","v":""},{"$f":"IFERROR(VLOOKUP($B29,Teilnehmer[],8,FALSE),\"\")","v":""},"",{"$f":"IFERROR(VLOOKUP(B29,Meldung!A26:AH75,34,FALSE),\"\")","v":""}]
[26,{"$f":"IFERROR(INDEX(Teilnehmer[Lfd. Nr.],_xlfn.AGGREGATE(15,6,ROW(Teilnehmer[Lfd. Nr.])/((Teilnehmer[Geschlecht]=$G$2)*(Teilnehmer[Einzelkür]=\"ja\")),ROW()-4)-1,1),\"\")","v":""},{"$f":"IFERROR(VLOOKUP($B30,Teilnehmer[],2,FALSE),\"\")","v":""},{"$f":"IFERROR(VLOOKUP($B30,Teilnehmer[],3,FALSE),\"\")","v":""},{"$f":"IFERROR(VLOOKUP($B30,Teilnehmer[],5,FALSE),\"\")","v":""},{"$f":"IFERROR(VLOOKUP($B30,Teilnehmer[],8,FALSE),\"\")","v":""},"",{"$f":"IFERROR(VLOOKUP(B30,Meldung!A27:AH76,34,FALSE),\"\")","v":""}]
[27,{"$f":"IFERROR(INDEX(Teilnehmer[Lfd. Nr.],_xlfn.AGGREGATE(15,6,ROW(Teilnehmer[Lfd. Nr.])/((Teilnehmer[Geschlecht]=$G$2)*(Teilnehmer[Einzelkür]=\"ja\")),ROW()-4)-1,1),\"\")","v":""},{"$f":"IFERROR(VLOOKUP($B31,Teilnehmer[],2,FALSE),\"\")","v":""},{"$f":"IFERROR(VLOOKUP($B31,Teilnehmer[],3,FALSE),\"\")","v":""},{"$f":"IFERROR(VLOOKUP($B31,Teilnehmer[],5,FALSE),\"\")","v":""},{"$f":"IFERROR(VLOOKUP($B31,Teilnehmer[],8,FALSE),\"\")","v":""},"",{"$f":"IFERROR(VLOOKUP(B31,Meldung!A28:AH77,34,FALSE),\"\")","v":""}]
[28,{"$f":"IFERROR(INDEX(Teilnehmer[Lfd. Nr.],_xlfn.AGGREGATE(15,6,ROW(Teilnehmer[Lfd. Nr.])/((Teilnehmer[Geschlecht]=$G$2)*(Teilnehmer[Einzelkür]=\"ja\")),ROW()-4)-1,1),\"\")","v":""},{"$f":"IFERROR(VLOOKUP($B32,Teilnehmer[],2,FALSE),\"\")","v":""},{"$f":"IFERROR(VLOOKUP($B32,Teilnehmer[],3,FALSE),\"\")","v":""},{"$f":"IFERROR(VLOOKUP($B32,Teilnehmer[],5,FALSE),\"\")","v":""},{"$f":"IFERROR(VLOOKUP($B32,Teilnehmer[],8,FALSE),\"\")","v":""},"",{"$f":"IFERROR(VLOOKUP(B32,Meldung!A29:AH78,34,FALSE),\"\")","v":""}]
[29,{"$f":"IFERROR(INDEX(Teilnehmer[Lfd. Nr.],_xlfn.AGGREGATE(15,6,ROW(Teilnehmer[Lfd. Nr.])/((Teilnehmer[Geschlecht]=$G$2)*(Teilnehmer[Einzelkür]=\"ja\")),ROW()-4)-1,1),\"\")","v":""},{"$f":"IFERROR(VLOOKUP($B33,Teilnehmer[],2,FALSE),\"\")","v":""},{"$f":"IFERROR(VLOOKUP($B33,Teilnehmer[],3,FALSE),\"\")","v":""},{"$f":"IFERROR(VLOOKUP($B33,Teilnehmer[],5,FALSE),\"\")","v":""},{"$f":"IFERROR(VLOOKUP($B33,Teilnehmer[],8,FALSE),\"\")","v":""},"",{"$f":"IFERROR(VLOOKUP(B33,Meldung!A30:AH79,34,FALSE),\"\")","v":""}]
[30,{"$f":"IFERROR(INDEX(Teilnehmer[Lfd. Nr.],_xlfn.AGGREGATE(15,6,ROW(Teilnehmer[Lfd. Nr.])/((Teilnehmer[Geschlecht]=$G$2)*(Teilnehmer[Einzelkür]=\"ja\")),ROW()-4)-1,1),\"\")","v":""},{"$f":"IFERROR(VLOOKUP($B34,Teilnehmer[],2,FALSE),\"\")","v":""},{"$f":"IFERROR(VLOOKUP($B34,Teilnehmer[],3,FALSE),\"\")","v":""},{"$f":"IFERROR(VLOOKUP($B34,Teilnehmer[],5,FALSE),\"\")","v":""},{"$f":"IFERROR(VLOOKUP($B34,Teilnehmer[],8,FALSE),\"\")","v":""},"",{"$f":"IFERROR(VLOOKUP(B34,Meldung!A31:AH80,34,FALSE),\"\")","v":""}]
[31,{"$f":"IFERROR(INDEX(Teilnehmer[Lfd. Nr.],_xlfn.AGGREGATE(15,6,ROW(Teilnehmer[Lfd. Nr.])/((Teilnehmer[Geschlecht]=$G$2)*(Teilnehmer[Einzelkür]=\"ja\")),ROW()-4)-1,1),\"\")","v":""},{"$f":"IFERROR(VLOOKUP($B35,Teilnehmer[],2,FALSE),\"\")","v":""},{"$f":"IFERROR(VLOOKUP($B35,Teilnehmer[],3,FALSE),\"\")","v":""},{"$f":"IFERROR(VLOOKUP($B35,Teilnehmer[],5,FALSE),\"\")","v":""},{"$f":"IFERROR(VLOOKUP($B35,Teilnehmer[],8,FALSE),\"\")","v":""},"",{"$f":"IFERROR(VLOOKUP(B35,Meldung!A32:AH81,34,FALSE),\"\")","v":""}]

{"sheet":"EK m","index":4,"n_rows":35,"n_cols":13,"rows_kept":35,"cut":false,"hidden":true,"merged":[[1,4,1,5],[33,1,33,2],[36,2,36,3],[38,1,38,2],[41,2,41,3],[18,1,18,2],[21,2,21,3],[23,1,23,2],[26,2,26,3],[28,1,28,2],[31,2,31,3]]}
["Süddeutsche Meisterschaft Einrad Freestyle 🧡"]
["Einzelküren männlich.",null,null,{"$f":"Meldung!V1","v":"16.10.2026"},{"$f":"Deckblatt!C2","v":"2026-10-18"},null,"m"]
[]
["Kür Nr.","lf.Nr. Anmeldung","Name","Vorname","Alter","Kürname","Altersklasse","Altersklassensprung *\nzum nächsten Wettkampf"]
[1,{"$f":"IFERROR(INDEX(Teilnehmer[Lfd. Nr.],_xlfn.AGGREGATE(15,6,ROW(Teilnehmer[Lfd. Nr.])/((Teilnehmer[Geschlecht]=$G$2)*(Teilnehmer[Einzelkür]=\"ja\")),ROW()-4)-1,1),\"\")","v":""},{"$f":"IFERROR(VLOOKUP($B5,Teilnehmer[],2,FALSE),\"\")","v":""},{"$f":"IFERROR(VLOOKUP($B5,Teilnehmer[],3,FALSE),\"\")","v":""},{"$f":"IFERROR(VLOOKUP($B5,Teilnehmer[],5,FALSE),\"\")","v":""},{"$f":"IFERROR(VLOOKUP($B5,Teilnehmer[],8,FALSE),\"\")","v":""},{"$f":"IF(E5<11,\"U11\",IF(E5<13,\"U13\",IF(E5<15,\"U15\",IF(E5<17,\"U17\",IF(E5<19,\"U19\",IF(E5<21,\"U21\",IF(E5<23,\"U23\",IF(E5<25,\"U25\",IF(E5<30,\"U30\",IF(E5<50,\"U50\",IF(E5<70,\"U70\",IF(E5<99,\"70+\",\"\"))))))))))))","v":""},{"$f":"IFERROR(VLOOKUP(B5,Meldung!A2:AH51,34,FALSE),\"\")","v":""},null,null,null,null,"nein"]
[{"$f":"A5+1","v":2},{"$f":"IFERROR(INDEX(Teilnehmer[Lfd. Nr.],_xlfn.AGGREGATE(15,6,ROW(Teilnehmer[Lfd. Nr.])/((Teilnehmer[Geschlecht]=$G$2)*(Teilnehmer[Einzelkür]=\"ja\")),ROW()-4)-1,1),\"\")","v":""},{"$f":"IFERROR(VLOOKUP($B6,Teilnehmer[],2,FALSE),\"\")","v":""},{"$f":"IFERROR(VLOOKUP($B6,Teilnehmer[],3,FALSE),\"\")","v":""},{"$f":"IFERROR(VLOOKUP($B6,Teilnehmer[],5,FALSE),\"\")","v":""},{"$f":"IFERROR(VLOOKUP($B6,Teilnehmer[],8,FALSE),\"\")","v":""},{"$f":"IF(E6<11,\"U11\",IF(E6<13,\"U13\",IF(E6<15,\"U15\",IF(E6<17,\"U17\",IF(E6<19,\"U19\",IF(E6<21,\"U21\",IF(E6<23,\"U23\",IF(E6<25,\"U25\",IF(E6<30,\"U30\",IF(E6<50,\"U50\",IF(E6<70,\"U70\",IF(E6<99,\"70+\",\"\"))))))))))))","v":""},{"$f":"IFERROR(VLOOKUP(B6,Meldung!A3:AH52,34,FALSE),\"\")","v":""},null,null,null,null,"ja"]
[{"$f":"A6+1","v":3},{"$f":"IFERROR(INDEX(Teilnehmer[Lfd. Nr.],_xlfn.AGGREGATE(15,6,ROW(Teilnehmer[Lfd. Nr.])/((Teilnehmer[Geschlecht]=$G$2)*(Teilnehmer[Einzelkür]=\"ja\")),ROW()-4)-1,1),\"\")","v":""},{"$f":"IFERROR(VLOOKUP($B7,Teilnehmer[],2,FALSE),\"\")","v":""},{"$f":"IFERROR(VLOOKUP($B7,Teilnehmer[],3,FALSE),\"\")","v":""},{"$f":"IFERROR(VLOOKUP($B7,Teilnehmer[],5,FALSE),\"\")","v":""},{"$f":"IFERROR(VLOOKUP($B7,Teilnehmer[],8,FALSE),\"\")","v":""},"",{"$f":"IFERROR(VLOOKUP(B7,Meldung!A4:AH53,34,FALSE),\"\")","v":""},null,null,null,null,""]
[4,{"$f":"IFERROR(INDEX(Teilnehmer[Lfd. Nr.],_xlfn.AGGREGATE(15,6,ROW(Teilnehmer[Lfd. Nr.])/((Teilnehmer[Geschlecht]=$G$2)*(Teilnehmer[Einzelkür]=\"ja\")),ROW()-4)-1,1),\"\")","v":""},{"$f":"IFERROR(VLOOKUP($B8,Teilnehmer[],2,FALSE),\"\")","v":""},{"$f":"IFERROR(VLOOKUP($B8,Teilnehmer[],3,FALSE),\"\")","v":""},{"$f":"IFERROR(VLOOKUP($B8,Teilnehmer[],5,FALSE),\"\")","v":""},{"$f":"IFERROR(VLOOKUP($B8,Teilnehmer[],8,FALSE),\"\")","v":""},"",{"$f":"IFERROR(VLOOKUP(B8,Meldung!A5:AH54,34,FALSE),\"\")","v":""}]
[5,{"$f":"IFERROR(INDEX(Teilnehmer[Lfd. Nr.],_xlfn.AGGREGATE(15,6,ROW(Teilnehmer[Lfd. Nr.])/((Teilnehmer[Geschlecht]=$G$2)*(Teilnehmer[Einzelkür]=\"ja\")),ROW()-4)-1,1),\"\")","v":""},{"$f":"IFERROR(VLOOKUP($B9,Teilnehmer[],2,FALSE),\"\")","v":""},{"$f":"IFERROR(VLOOKUP($B9,Teilnehmer[],3,FALSE),\"\")","v":""},{"$f":"IFERROR(VLOOKUP($B9,Teilnehmer[],5,FALSE),\"\")","v":""},{"$f":"IFERROR(VLOOKUP($B9,Teilnehmer[],8,FALSE),\"\")","v":""},"",{"$f":"IFERROR(VLOOKUP(B9,Meldung!A6:AH55,34,FALSE),\"\")","v":""}]
[6,{"$f":"IFERROR(INDEX(Teilnehmer[Lfd. Nr.],_xlfn.AGGREGATE(15,6,ROW(Teilnehmer[Lfd. Nr.])/((Teilnehmer[Geschlecht]=$G$2)*(Teilnehmer[Einzelkür]=\"ja\")),ROW()-4)-1,1),\"\")","v":""},{"$f":"IFERROR(VLOOKUP($B10,Teilnehmer[],2,FALSE),\"\")","v":""},{"$f":"IFERROR(VLOOKUP($B10,Teilnehmer[],3,FALSE),\"\")","v":""},{"$f":"IFERROR(VLOOKUP($B10,Teilnehmer[],5,FALSE),\"\")","v":""},{"$f":"IFERROR(VLOOKUP($B10,Teilnehmer[],8,FALSE),\"\")","v":""},"",{"$f":"IFERROR(VLOOKUP(B10,Meldung!A7:AH56,34,FALSE),\"\")","v":""}]
[7,{"$f":"IFERROR(INDEX(Teilnehmer[Lfd. Nr.],_xlfn.AGGREGATE(15,6,ROW(Teilnehmer[Lfd. Nr.])/((Teilnehmer[Geschlecht]=$G$2)*(Teilnehmer[Einzelkür]=\"ja\")),ROW()-4)-1,1),\"\")","v":""},{"$f":"IFERROR(VLOOKUP($B11,Teilnehmer[],2,FALSE),\"\")","v":""},{"$f":"IFERROR(VLOOKUP($B11,Teilnehmer[],3,FALSE),\"\")","v":""},{"$f":"IFERROR(VLOOKUP($B11,Teilnehmer[],5,FALSE),\"\")","v":""},{"$f":"IFERROR(VLOOKUP($B11,Teilnehmer[],8,FALSE),\"\")","v":""},"",{"$f":"IFERROR(VLOOKUP(B11,Meldung!A8:AH57,34,FALSE),\"\")","v":""}]
[8,{"$f":"IFERROR(INDEX(Teilnehmer[Lfd. Nr.],_xlfn.AGGREGATE(15,6,ROW(Teilnehmer[Lfd. Nr.])/((Teilnehmer[Geschlecht]=$G$2)*(Teilnehmer[Einzelkür]=\"ja\")),ROW()-4)-1,1),\"\")","v":""},{"$f":"IFERROR(VLOOKUP($B12,Teilnehmer[],2,FALSE),\"\")","v":""},{"$f":"IFERROR(VLOOKUP($B12,Teilnehmer[],3,FALSE),\"\")","v":""},{"$f":"IFERROR(VLOOKUP($B12,Teilnehmer[],5,FALSE),\"\")","v":""},{"$f":"IFERROR(VLOOKUP($B12,Teilnehmer[],8,FALSE),\"\")","v":""},"",{"$f":"IFERROR(VLOOKUP(B12,Meldung!A9:AH58,34,FALSE),\"\")","v":""}]
[9,{"$f":"IFERROR(INDEX(Teilnehmer[Lfd. Nr.],_xlfn.AGGREGATE(15,6,ROW(Teilnehmer[Lfd. Nr.])/((Teilnehmer[Geschlecht]=$G$2)*(Teilnehmer[Einzelkür]=\"ja\")),ROW()-4)-1,1),\"\")","v":""},{"$f":"IFERROR(VLOOKUP($B13,Teilnehmer[],2,FALSE),\"\")","v":""},{"$f":"IFERROR(VLOOKUP($B13,Teilnehmer[],3,FALSE),\"\")","v":""},{"$f":"IFERROR(VLOOKUP($B13,Teilnehmer[],5,FALSE),\"\")","v":""},{"$f":"IFERROR(VLOOKUP($B13,Teilnehmer[],8,FALSE),\"\")","v":""},"",{"$f":"IFERROR(VLOOKUP(B13,Meldung!A10:AH59,34,FALSE),\"\")","v":""}]
[10,{"$f":"IFERROR(INDEX(Teilnehmer[Lfd. Nr.],_xlfn.AGGREGATE(15,6,ROW(Teilnehmer[Lfd. Nr.])/((Teilnehmer[Geschlecht]=$G$2)*(Teilnehmer[Einzelkür]=\"ja\")),ROW()-4)-1,1),\"\")","v":""},{"$f":"IFERROR(VLOOKUP($B14,Teilnehmer[],2,FALSE),\"\")","v":""},{"$f":"IFERROR(VLOOKUP($B14,Teilnehmer[],3,FALSE),\"\")","v":""},{"$f":"IFERROR(VLOOKUP($B14,Teilnehmer[],5,FALSE),\"\")","v":""},{"$f":"IFERROR(VLOOKUP($B14,Teilnehmer[],8,FALSE),\"\")","v":""},"",{"$f":"IFERROR(VLOOKUP(B14,Meldung!A11:AH60,34,FALSE),\"\")","v":""}]
[null,null,null,null,null,null,null,{"$f":"IFERROR(VLOOKUP(B15,Meldung!A12:AH61,33,FALSE),\"\")","v":""}]
[null,null,null,null,null,null,null,{"$f":"IFERROR(VLOOKUP(B16,Meldung!A13:AH62,33,FALSE),\"\")","v":""}]
[null,null,null,null,null,null,null,{"$f":"IFERROR(VLOOKUP(B17,Meldung!A14:AH63,33,FALSE),\"\")","v":""}]
[null,null,null,null,null,null,null,{"$f":"IFERROR(VLOOKUP(B18,Meldung!A15:AH64,33,FALSE),\"\")","v":""}]
[null,null,null,null,null,null,null,{"$f":"IFERROR(VLOOKUP(B19,Meldung!A16:AH65,33,FALSE),\"\")","v":""}]
[null,null,null,null,null,null,null,{"$f":"IFERROR(VLOOKUP(B20,Meldung!A17:AH66,33,FALSE),\"\")","v":""}]
[null,null,null,null,null,null,null,{"$f":"IFERROR(VLOOKUP(B21,Meldung!A18:AH67,33,FALSE),\"\")","v":""}]
[null,null,null,null,null,null,null,{"$f":"IFERROR(VLOOKUP(B22,Meldung!A19:AH68,33,FALSE),\"\")","v":""}]
[null,null,null,null,null,null,null,{"$f":"IFERROR(VLOOKUP(B23,Meldung!A20:AH69,33,FALSE),\"\")","v":""}]
[null,null,null,null,null,null,null,{"$f":"IFERROR(VLOOKUP(B24,Meldung!A21:AH70,33,FALSE),\"\")","v":""}]
[null,null,null,null,null,null,null,{"$f":"IFERROR(VLOOKUP(B25,Meldung!A22:AH71,33,FALSE),\"\")","v":""}]
[null,null,null,null,null,null,null,{"$f":"IFERROR(VLOOKUP(B26,Meldung!A23:AH72,33,FALSE),\"\")","v":""}]
[null,null,null,null,null,null,null,{"$f":"IFERROR(VLOOKUP(B27,Meldung!A24:AH73,33,FALSE),\"\")","v":""}]
[null,null,null,null,null,null,null,{"$f":"IFERROR(VLOOKUP(B28,Meldung!A25:AH74,33,FALSE),\"\")","v":""}]
[null,null,null,null,null,null,null,{"$f":"IFERROR(VLOOKUP(B29,Meldung!A26:AH75,33,FALSE),\"\")","v":""}]
[null,null,null,null,null,null,null,{"$f":"IFERROR(VLOOKUP(B30,Meldung!A27:AH76,33,FALSE),\"\")","v":""}]
[null,null,null,null,null,null,null,{"$f":"IFERROR(VLOOKUP(B31,Meldung!A28:AH77,33,FALSE),\"\")","v":""}]
[null,null,null,null,null,null,null,{"$f":"IFERROR(VLOOKUP(B32,Meldung!A29:AH78,33,FALSE),\"\")","v":""}]
[null,null,null,null,null,null,null,{"$f":"IFERROR(VLOOKUP(B33,Meldung!A30:AH79,33,FALSE),\"\")","v":""}]
[null,null,null,null,null,null,null,{"$f":"IFERROR(VLOOKUP(B34,Meldung!A31:AH80,33,FALSE),\"\")","v":""}]
[null,null,null,null,null,null,null,{"$f":"IFERROR(VLOOKUP(B35,Meldung!A32:AH81,33,FALSE),\"\")","v":""}]

{"sheet":"Paarkür","index":5,"n_rows":46,"n_cols":15,"rows_kept":46,"cut":false,"hidden":true,"merged":[[40,8,41,8],[42,8,43,8],[44,8,45,8],[28,8,29,8],[30,8,31,8],[32,8,33,8],[34,8,35,8],[36,8,37,8],[38,8,39,8],[26,8,27,8],[14,8,15,8],[4,8,5,8],[6,8,7,8],[8,8,9,8],[10,8,11,8],[12,8,13,8],[16,8,17,8],[18,8,19,8],[20,8,21,8],[22,8,23,8],[24,8,25,8],[4,9,5,9],[6,9,7,9],[8,9,9,9],[10,9,11,9],[12,9,13,9],[14,9,15,9],[16,9,17,9],[18,9,19,9],[20,9,21,9],[22,9,23,9],[24,9,25,9],[26,9,27,9],[28,9,29,9],[30,9,31,9],[32,9,33,9],[44,9,45,9],[34,9,35,9],[36,9,37,9],[38,9,39,9],[40,9,41,9],[42,9,43,9]]}
["Süddeutsche Meisterschaft Einrad Freestyle 🧡"]
["Paarkür.",null,null,{"$f":"Meldung!V1","v":"16.10.2026"},{"$f":"Deckblatt!C2","v":"2026-10-18"}]
[]
["Kür Nr.","Spalte1","lf.Nr. Anmeldung","Name","Vorname","Alter","Alter_2","Kürname","Altersklasse","Altersklassensprung *\nzum nächsten Wettkampf"]
[1,1,{"$f":"IFERROR(INDEX(Teilnehmer[Lfd. Nr.],_xlfn.AGGREGATE(15,6,ROW(Teilnehmer[Lfd. Nr.])/((Teilnehmer[Paarkür]=A5)),ROW()-4)-1,1),\"\")","v":""},{"$f":"IFERROR(VLOOKUP(C5,Teilnehmer[],2,FALSE),\"\")","v":""},{"$f":"IFERROR(VLOOKUP(C5,Teilnehmer[],3,FALSE),\"\")","v":""},{"$f":"IFERROR(VLOOKUP(C5,Teilnehmer[],5,FALSE),\"\")","v":""},{"$f":"IFERROR(VLOOKUP(C5,Meldung!$A$2:$AE$51,31,FALSE),\"\")","v":""},{"$f":"IFERROR(VLOOKUP(C5,Teilnehmer[],10,FALSE),\"\")","v":""},{"$f":"IF(Tabelle_Paarkür[[#This Row],[Name]]=\"\",\"\",IF(MAX(F5,F6)<11,\"U11\",IF(MAX(F5,F6)<13,\"U13\",IF(MAX(F5,F6)<15,\"U15\",IF(MAX(F5,F6)<17,\"U17\",IF(MAX(F5,F6)<19,\"U19\",IF(MAX(F5,F6)<21,\"U21\",IF(MAX(F5,F6)<23,\"U23\",IF(MAX(F5,F6)<25,\"U25\",IF(MAX(F5,F6)<30,\"U30\",IF(MAX(F5,F6)<50,\"U50\",IF(MAX(F5,F6)<70,\"U70\",IF(MAX(F5,F6)<99,\" 70+\",\"\")))))))))))))","v":""},{"$f":"IF(IF(Tabelle_Paarkür[[#This Row],[Name]]=\"\",\"\",IF(MAX(G5,G6)<11,\"U11\",IF(MAX(G5,G6)<13,\"U13\",IF(MAX(G5,G6)<15,\"U15\",IF(MAX(G5,G6)<17,\"U17\",IF(MAX(G5,G6)<19,\"U19\",IF(MAX(G5,G6)<21,\"U21\",IF(MAX(G5,G6)<23,\"U23\",IF(MAX(G5,G6)<25,\"U25\",IF(MAX(G5,G6)<30,\"U30\",IF(MAX(G5,G6)<50,\"U50\",IF(MAX(G5,G6)<70,\"U70\",IF(MAX(G5,G6)<99,\"70+\",\"\")))))))))))))=I5,\"\",\"*\")","v":""},2,null,null,null,"nein"]
[null,2,{"$f":"IFERROR(INDEX(Teilnehmer[Lfd. Nr.],_xlfn.AGGREGATE(15,6,ROW(Teilnehmer[Lfd. Nr.])/((Teilnehmer[Paarkür]=A5)),ROW()-4)-1,1),\"\")","v":""},{"$f":"IFERROR(VLOOKUP(C6,Teilnehmer[],2,FALSE),\"\")","v":""},{"$f":"IFERROR(VLOOKUP(C6,Teilnehmer[],3,FALSE),\"\")","v":""},{"$f":"IFERROR(VLOOKUP(C6,Teilnehmer[],5,FALSE),\"\")","v":""},{"$f":"IFERROR(VLOOKUP(C6,Meldung!$A$2:$AE$51,31,FALSE),\"\")","v":""},{"$f":"IFERROR(VLOOKUP(C6,Teilnehmer[],10,FALSE),\"\")","v":""},null,null,null,null,null,null,"ja"]
[2,1,{"$f":"IFERROR(INDEX(Teilnehmer[Lfd. Nr.],_xlfn.AGGREGATE(15,6,ROW(Teilnehmer[Lfd. Nr.])/((Teilnehmer[Paarkür]=A7)),ROW()-6)-1,1),\"\")","v":""},{"$f":"IFERROR(VLOOKUP(C7,Teilnehmer[],2,FALSE),\"\")","v":""},{"$f":"IFERROR(VLOOKUP(C7,Teilnehmer[],3,FALSE),\"\")","v":""},{"$f":"IFERROR(VLOOKUP(C7,Teilnehmer[],5,FALSE),\"\")","v":""},{"$f":"IFERROR(VLOOKUP(C7,Meldung!$A$2:$AE$51,31,FALSE),\"\")","v":""},{"$f":"IFERROR(VLOOKUP(C7,Teilnehmer[],10,FALSE),\"\")","v":""},{"$f":"IF(Tabelle_Paarkür[[#This Row],[Name]]=\"\",\"\",IF(MAX(F7,F8)<11,\"U11\",IF(MAX(F7,F8)<13,\"U13\",IF(MAX(F7,F8)<15,\"U15\",IF(MAX(F7,F8)<17,\"U17\",IF(MAX(F7,F8)<19,\"U19\",IF(MAX(F7,F8)<21,\"U21\",IF(MAX(F7,F8)<23,\"U23\",IF(MAX(F7,F8)<25,\"U25\",IF(MAX(F7,F8)<30,\"U30\",IF(MAX(F7,F8)<50,\"U50\",IF(MAX(F7,F8)<70,\"U70\",IF(MAX(F7,F8)<99,\" 70+\",\"\")))))))))))))","v":""},{"$f":"IF(IF(Tabelle_Paarkür[[#This Row],[Name]]=\"\",\"\",IF(MAX(G7,G8)<11,\"U11\",IF(MAX(G7,G8)<13,\"U13\",IF(MAX(G7,G8)<15,\"U15\",IF(MAX(G7,G8)<17,\"U17\",IF(MAX(G7,G8)<19,\"U19\",IF(MAX(G7,G8)<21,\"U21\",IF(MAX(G7,G8)<23,\"U23\",IF(MAX(G7,G8)<25,\"U25\",IF(MAX(G7,G8)<30,\"U30\",IF(MAX(G7,G8)<50,\"U50\",IF(MAX(G7,G8)<70,\"U70\",IF(MAX(G7,G8)<99,\"70+\",\"\")))))))))))))=I7,\"\",\"*\")","v":""},2,null,null,null,""]
[null,2,{"$f":"IFERROR(INDEX(Teilnehmer[Lfd. Nr.],_xlfn.AGGREGATE(15,6,ROW(Teilnehmer[Lfd. Nr.])/((Teilnehmer[Paarkür]=A7)),ROW()-6)-1,1),\"\")","v":""},{"$f":"IFERROR(VLOOKUP(C8,Teilnehmer[],2,FALSE),\"\")","v":""},{"$f":"IFERROR(VLOOKUP(C8,Teilnehmer[],3,FALSE),\"\")","v":""},{"$f":"IFERROR(VLOOKUP(C8,Teilnehmer[],5,FALSE),\"\")","v":""},{"$f":"IFERROR(VLOOKUP(C8,Meldung!$A$2:$AE$51,31,FALSE),\"\")","v":""},{"$f":"IFERROR(VLOOKUP(C8,Teilnehmer[],10,FALSE),\"\")","v":""}]
[3,1,{"$f":"IFERROR(INDEX(Teilnehmer[Lfd. Nr.],_xlfn.AGGREGATE(15,6,ROW(Teilnehmer[Lfd. Nr.])/((Teilnehmer[Paarkür]=A9)),ROW()-8)-1,1),\"\")","v":""},{"$f":"IFERROR(VLOOKUP(C9,Teilnehmer[],2,FALSE),\"\")","v":""},{"$f":"IFERROR(VLOOKUP(C9,Teilnehmer[],3,FALSE),\"\")","v":""},{"$f":"IFERROR(VLOOKUP(C9,Teilnehmer[],5,FALSE),\"\")","v":""},{"$f":"IFERROR(VLOOKUP(C9,Meldung!$A$2:$AE$51,31,FALSE),\"\")","v":""},{"$f":"IFERROR(VLOOKUP(C9,Teilnehmer[],10,FALSE),\"\")","v":""},{"$f":"IF(Tabelle_Paarkür[[#This Row],[Name]]=\"\",\"\",IF(MAX(F9,F10)<11,\"U11\",IF(MAX(F9,F10)<13,\"U13\",IF(MAX(F9,F10)<15,\"U15\",IF(MAX(F9,F10)<17,\"U17\",IF(MAX(F9,F10)<19,\"U19\",IF(MAX(F9,F10)<21,\"U21\",IF(MAX(F9,F10)<23,\"U23\",IF(MAX(F9,F10)<25,\"U25\",IF(MAX(F9,F10)<30,\"U30\",IF(MAX(F9,F10)<50,\"U50\",IF(MAX(F9,F10)<70,\"U70\",IF(MAX(F9,F10)<99,\" 70+\",\"\")))))))))))))","v":""},{"$f":"IF(IF(Tabelle_Paarkür[[#This Row],[Name]]=\"\",\"\",IF(MAX(G9,G10)<11,\"U11\",IF(MAX(G9,G10)<13,\"U13\",IF(MAX(G9,G10)<15,\"U15\",IF(MAX(G9,G10)<17,\"U17\",IF(MAX(G9,G10)<19,\"U19\",IF(MAX(G9,G10)<21,\"U21\",IF(MAX(G9,G10)<23,\"U23\",IF(MAX(G9,G10)<25,\"U25\",IF(MAX(G9,G10)<30,\"U30\",IF(MAX(G9,G10)<50,\"U50\",IF(MAX(G9,G10)<70,\"U70\",IF(MAX(G9,G10)<99,\"70+\",\"\")))))))))))))=I9,\"\",\"*\")","v":""},2]
[null,2,{"$f":"IFERROR(INDEX(Teilnehmer[Lfd. Nr.],_xlfn.AGGREGATE(15,6,ROW(Teilnehmer[Lfd. Nr.])/((Teilnehmer[Paarkür]=A9)),ROW()-8)-1,1),\"\")","v":""},{"$f":"IFERROR(VLOOKUP(C10,Teilnehmer[],2,FALSE),\"\")","v":""},{"$f":"IFERROR(VLOOKUP(C10,Teilnehmer[],3,FALSE),\"\")","v":""},{"$f":"IFERROR(VLOOKUP(C10,Teilnehmer[],5,FALSE),\"\")","v":""},{"$f":"IFERROR(VLOOKUP(C10,Meldung!$A$2:$AE$51,31,FALSE),\"\")","v":""},{"$f":"IFERROR(VLOOKUP(C10,Teilnehmer[],10,FALSE),\"\")","v":""}]
[4,1,{"$f":"IFERROR(INDEX(Teilnehmer[Lfd. Nr.],_xlfn.AGGREGATE(15,6,ROW(Teilnehmer[Lfd. Nr.])/((Teilnehmer[Paarkür]=A11)),ROW()-10)-1,1),\"\")","v":""},{"$f":"IFERROR(VLOOKUP(C11,Teilnehmer[],2,FALSE),\"\")","v":""},{"$f":"IFERROR(VLOOKUP(C11,Teilnehmer[],3,FALSE),\"\")","v":""},{"$f":"IFERROR(VLOOKUP(C11,Teilnehmer[],5,FALSE),\"\")","v":""},{"$f":"IFERROR(VLOOKUP(C11,Meldung!$A$2:$AE$51,31,FALSE),\"\")","v":""},{"$f":"IFERROR(VLOOKUP(C11,Teilnehmer[],10,FALSE),\"\")","v":""},{"$f":"IF(Tabelle_Paarkür[[#This Row],[Name]]=\"\",\"\",IF(MAX(F11,F12)<11,\"U11\",IF(MAX(F11,F12)<13,\"U13\",IF(MAX(F11,F12)<15,\"U15\",IF(MAX(F11,F12)<17,\"U17\",IF(MAX(F11,F12)<19,\"U19\",IF(MAX(F11,F12)<21,\"U21\",IF(MAX(F11,F12)<23,\"U23\",IF(MAX(F11,F12)<25,\"U25\",IF(MAX(F11,F12)<30,\"U30\",IF(MAX(F11,F12)<50,\"U50\",IF(MAX(F11,F12)<70,\"U70\",IF(MAX(F11,F12)<99,\" 70+\",\"\")))))))))))))","v":""},{"$f":"IF(IF(Tabelle_Paarkür[[#This Row],[Name]]=\"\",\"\",IF(MAX(G11,G12)<11,\"U11\",IF(MAX(G11,G12)<13,\"U13\",IF(MAX(G11,G12)<15,\"U15\",IF(MAX(G11,G12)<17,\"U17\",IF(MAX(G11,G12)<19,\"U19\",IF(MAX(G11,G12)<21,\"U21\",IF(MAX(G11,G12)<23,\"U23\",IF(MAX(G11,G12)<25,\"U25\",IF(MAX(G11,G12)<30,\"U30\",IF(MAX(G11,G12)<50,\"U50\",IF(MAX(G11,G12)<70,\"U70\",IF(MAX(G11,G12)<99,\"70+\",\"\")))))))))))))=I11,\"\",\"*\")","v":""},2]
[null,2,{"$f":"IFERROR(INDEX(Teilnehmer[Lfd. Nr.],_xlfn.AGGREGATE(15,6,ROW(Teilnehmer[Lfd. Nr.])/((Teilnehmer[Paarkür]=A11)),ROW()-10)-1,1),\"\")","v":""},{"$f":"IFERROR(VLOOKUP(C12,Teilnehmer[],2,FALSE),\"\")","v":""},{"$f":"IFERROR(VLOOKUP(C12,Teilnehmer[],3,FALSE),\"\")","v":""},{"$f":"IFERROR(VLOOKUP(C12,Teilnehmer[],5,FALSE),\"\")","v":""},{"$f":"IFERROR(VLOOKUP(C12,Meldung!$A$2:$AE$51,31,FALSE),\"\")","v":""},{"$f":"IFERROR(VLOOKUP(C12,Teilnehmer[],10,FALSE),\"\")","v":""}]
[5,1,{"$f":"IFERROR(INDEX(Teilnehmer[Lfd. Nr.],_xlfn.AGGREGATE(15,6,ROW(Teilnehmer[Lfd. Nr.])/((Teilnehmer[Paarkür]=A13)),ROW()-12)-1,1),\"\")","v":""},{"$f":"IFERROR(VLOOKUP(C13,Teilnehmer[],2,FALSE),\"\")","v":""},{"$f":"IFERROR(VLOOKUP(C13,Teilnehmer[],3,FALSE),\"\")","v":""},{"$f":"IFERROR(VLOOKUP(C13,Teilnehmer[],5,FALSE),\"\")","v":""},{"$f":"IFERROR(VLOOKUP(C13,Meldung!$A$2:$AE$51,31,FALSE),\"\")","v":""},{"$f":"IFERROR(VLOOKUP(C13,Teilnehmer[],10,FALSE),\"\")","v":""},{"$f":"IF(Tabelle_Paarkür[[#This Row],[Name]]=\"\",\"\",IF(MAX(F13,F14)<11,\"U11\",IF(MAX(F13,F14)<13,\"U13\",IF(MAX(F13,F14)<15,\"U15\",IF(MAX(F13,F14)<17,\"U17\",IF(MAX(F13,F14)<19,\"U19\",IF(MAX(F13,F14)<21,\"U21\",IF(MAX(F13,F14)<23,\"U23\",IF(MAX(F13,F14)<25,\"U25\",IF(MAX(F13,F14)<30,\"U30\",IF(MAX(F13,F14)<50,\"U50\",IF(MAX(F13,F14)<70,\"U70\",IF(MAX(F13,F14)<99,\" 70+\",\"\")))))))))))))","v":""},{"$f":"IF(IF(Tabelle_Paarkür[[#This Row],[Name]]=\"\",\"\",IF(MAX(G13,G14)<11,\"U11\",IF(MAX(G13,G14)<13,\"U13\",IF(MAX(G13,G14)<15,\"U15\",IF(MAX(G13,G14)<17,\"U17\",IF(MAX(G13,G14)<19,\"U19\",IF(MAX(G13,G14)<21,\"U21\",IF(MAX(G13,G14)<23,\"U23\",IF(MAX(G13,G14)<25,\"U25\",IF(MAX(G13,G14)<30,\"U30\",IF(MAX(G13,G14)<50,\"U50\",IF(MAX(G13,G14)<70,\"U70\",IF(MAX(G13,G14)<99,\"70+\",\"\")))))))))))))=I13,\"\",\"*\")","v":""},2]
[null,2,{"$f":"IFERROR(INDEX(Teilnehmer[Lfd. Nr.],_xlfn.AGGREGATE(15,6,ROW(Teilnehmer[Lfd. Nr.])/((Teilnehmer[Paarkür]=A13)),ROW()-12)-1,1),\"\")","v":""},{"$f":"IFERROR(VLOOKUP(C14,Teilnehmer[],2,FALSE),\"\")","v":""},{"$f":"IFERROR(VLOOKUP(C14,Teilnehmer[],3,FALSE),\"\")","v":""},{"$f":"IFERROR(VLOOKUP(C14,Teilnehmer[],5,FALSE),\"\")","v":""},{"$f":"IFERROR(VLOOKUP(C14,Meldung!$A$2:$AE$51,31,FALSE),\"\")","v":""},{"$f":"IFERROR(VLOOKUP(C14,Teilnehmer[],10,FALSE),\"\")","v":""}]
[6,1,{"$f":"IFERROR(INDEX(Teilnehmer[Lfd. Nr.],_xlfn.AGGREGATE(15,6,ROW(Teilnehmer[Lfd. Nr.])/((Teilnehmer[Paarkür]=A15)),ROW()-14)-1,1),\"\")","v":""},{"$f":"IFERROR(VLOOKUP(C15,Teilnehmer[],2,FALSE),\"\")","v":""},{"$f":"IFERROR(VLOOKUP(C15,Teilnehmer[],3,FALSE),\"\")","v":""},{"$f":"IFERROR(VLOOKUP(C15,Teilnehmer[],5,FALSE),\"\")","v":""},{"$f":"IFERROR(VLOOKUP(C15,Meldung!$A$2:$AE$51,31,FALSE),\"\")","v":""},{"$f":"IFERROR(VLOOKUP(C15,Teilnehmer[],10,FALSE),\"\")","v":""},{"$f":"IF(Tabelle_Paarkür[[#This Row],[Name]]=\"\",\"\",IF(MAX(F15,F16)<11,\"U11\",IF(MAX(F15,F16)<13,\"U13\",IF(MAX(F15,F16)<15,\"U15\",IF(MAX(F15,F16)<17,\"U17\",IF(MAX(F15,F16)<19,\"U19\",IF(MAX(F15,F16)<21,\"U21\",IF(MAX(F15,F16)<23,\"U23\",IF(MAX(F15,F16)<25,\"U25\",IF(MAX(F15,F16)<30,\"U30\",IF(MAX(F15,F16)<50,\"U50\",IF(MAX(F15,F16)<70,\"U70\",IF(MAX(F15,F16)<99,\" 70+\",\"\")))))))))))))","v":""},{"$f":"IF(IF(Tabelle_Paarkür[[#This Row],[Name]]=\"\",\"\",IF(MAX(G15,G16)<11,\"U11\",IF(MAX(G15,G16)<13,\"U13\",IF(MAX(G15,G16)<15,\"U15\",IF(MAX(G15,G16)<17,\"U17\",IF(MAX(G15,G16)<19,\"U19\",IF(MAX(G15,G16)<21,\"U21\",IF(MAX(G15,G16)<23,\"U23\",IF(MAX(G15,G16)<25,\"U25\",IF(MAX(G15,G16)<30,\"U30\",IF(MAX(G15,G16)<50,\"U50\",IF(MAX(G15,G16)<70,\"U70\",IF(MAX(G15,G16)<99,\"70+\",\"\")))))))))))))=I15,\"\",\"*\")","v":""},2]
[null,2,{"$f":"IFERROR(INDEX(Teilnehmer[Lfd. Nr.],_xlfn.AGGREGATE(15,6,ROW(Teilnehmer[Lfd. Nr.])/((Teilnehmer[Paarkür]=A15)),ROW()-14)-1,1),\"\")","v":""},{"$f":"IFERROR(VLOOKUP(C16,Teilnehmer[],2,FALSE),\"\")","v":""},{"$f":"IFERROR(VLOOKUP(C16,Teilnehmer[],3,FALSE),\"\")","v":""},{"$f":"IFERROR(VLOOKUP(C16,Teilnehmer[],5,FALSE),\"\")","v":""},{"$f":"IFERROR(VLOOKUP(C16,Meldung!$A$2:$AE$51,31,FALSE),\"\")","v":""},{"$f":"IFERROR(VLOOKUP(C16,Teilnehmer[],10,FALSE),\"\")","v":""}]
[7,1,{"$f":"IFERROR(INDEX(Teilnehmer[Lfd. Nr.],_xlfn.AGGREGATE(15,6,ROW(Teilnehmer[Lfd. Nr.])/((Teilnehmer[Paarkür]=A17)),ROW()-16)-1,1),\"\")","v":""},{"$f":"IFERROR(VLOOKUP(C17,Teilnehmer[],2,FALSE),\"\")","v":""},{"$f":"IFERROR(VLOOKUP(C17,Teilnehmer[],3,FALSE),\"\")","v":""},{"$f":"IFERROR(VLOOKUP(C17,Teilnehmer[],5,FALSE),\"\")","v":""},{"$f":"IFERROR(VLOOKUP(C17,Meldung!$A$2:$AE$51,31,FALSE),\"\")","v":""},{"$f":"IFERROR(VLOOKUP(C17,Teilnehmer[],10,FALSE),\"\")","v":""},{"$f":"IF(Tabelle_Paarkür[[#This Row],[Name]]=\"\",\"\",IF(MAX(F17,F18)<11,\"U11\",IF(MAX(F17,F18)<13,\"U13\",IF(MAX(F17,F18)<15,\"U15\",IF(MAX(F17,F18)<17,\"U17\",IF(MAX(F17,F18)<19,\"U19\",IF(MAX(F17,F18)<21,\"U21\",IF(MAX(F17,F18)<23,\"U23\",IF(MAX(F17,F18)<25,\"U25\",IF(MAX(F17,F18)<30,\"U30\",IF(MAX(F17,F18)<50,\"U50\",IF(MAX(F17,F18)<70,\"U70\",IF(MAX(F17,F18)<99,\" 70+\",\"\")))))))))))))","v":""},{"$f":"IF(IF(Tabelle_Paarkür[[#This Row],[Name]]=\"\",\"\",IF(MAX(G17,G18)<11,\"U11\",IF(MAX(G17,G18)<13,\"U13\",IF(MAX(G17,G18)<15,\"U15\",IF(MAX(G17,G18)<17,\"U17\",IF(MAX(G17,G18)<19,\"U19\",IF(MAX(G17,G18)<21,\"U21\",IF(MAX(G17,G18)<23,\"U23\",IF(MAX(G17,G18)<25,\"U25\",IF(MAX(G17,G18)<30,\"U30\",IF(MAX(G17,G18)<50,\"U50\",IF(MAX(G17,G18)<70,\"U70\",IF(MAX(G17,G18)<99,\"70+\",\"\")))))))))))))=I17,\"\",\"*\")","v":""},2]
[null,2,{"$f":"IFERROR(INDEX(Teilnehmer[Lfd. Nr.],_xlfn.AGGREGATE(15,6,ROW(Teilnehmer[Lfd. Nr.])/((Teilnehmer[Paarkür]=A17)),ROW()-16)-1,1),\"\")","v":""},{"$f":"IFERROR(VLOOKUP(C18,Teilnehmer[],2,FALSE),\"\")","v":""},{"$f":"IFERROR(VLOOKUP(C18,Teilnehmer[],3,FALSE),\"\")","v":""},{"$f":"IFERROR(VLOOKUP(C18,Teilnehmer[],5,FALSE),\"\")","v":""},{"$f":"IFERROR(VLOOKUP(C18,Meldung!$A$2:$AE$51,31,FALSE),\"\")","v":""},{"$f":"IFERROR(VLOOKUP(C18,Teilnehmer[],10,FALSE),\"\")","v":""}]
[8,1,{"$f":"IFERROR(INDEX(Teilnehmer[Lfd. Nr.],_xlfn.AGGREGATE(15,6,ROW(Teilnehmer[Lfd. Nr.])/((Teilnehmer[Paarkür]=A19)),ROW()-18)-1,1),\"\")","v":""},{"$f":"IFERROR(VLOOKUP(C19,Teilnehmer[],2,FALSE),\"\")","v":""},{"$f":"IFERROR(VLOOKUP(C19,Teilnehmer[],3,FALSE),\"\")","v":""},{"$f":"IFERROR(VLOOKUP(C19,Teilnehmer[],5,FALSE),\"\")","v":""},{"$f":"IFERROR(VLOOKUP(C19,Meldung!$A$2:$AE$51,31,FALSE),\"\")","v":""},{"$f":"IFERROR(VLOOKUP(C19,Teilnehmer[],10,FALSE),\"\")","v":""},{"$f":"IF(Tabelle_Paarkür[[#This Row],[Name]]=\"\",\"\",IF(MAX(F19,F20)<11,\"U11\",IF(MAX(F19,F20)<13,\"U13\",IF(MAX(F19,F20)<15,\"U15\",IF(MAX(F19,F20)<17,\"U17\",IF(MAX(F19,F20)<19,\"U19\",IF(MAX(F19,F20)<21,\"U21\",IF(MAX(F19,F20)<23,\"U23\",IF(MAX(F19,F20)<25,\"U25\",IF(MAX(F19,F20)<30,\"U30\",IF(MAX(F19,F20)<50,\"U50\",IF(MAX(F19,F20)<70,\"U70\",IF(MAX(F19,F20)<99,\" 70+\",\"\")))))))))))))","v":""},{"$f":"IF(IF(Tabelle_Paarkür[[#This Row],[Name]]=\"\",\"\",IF(MAX(G19,G20)<11,\"U11\",IF(MAX(G19,G20)<13,\"U13\",IF(MAX(G19,G20)<15,\"U15\",IF(MAX(G19,G20)<17,\"U17\",IF(MAX(G19,G20)<19,\"U19\",IF(MAX(G19,G20)<21,\"U21\",IF(MAX(G19,G20)<23,\"U23\",IF(MAX(G19,G20)<25,\"U25\",IF(MAX(G19,G20)<30,\"U30\",IF(MAX(G19,G20)<50,\"U50\",IF(MAX(G19,G20)<70,\"U70\",IF(MAX(G19,G20)<99,\"70+\",\"\")))))))))))))=I19,\"\",\"*\")","v":""},2]
[null,2,{"$f":"IFERROR(INDEX(Teilnehmer[Lfd. Nr.],_xlfn.AGGREGATE(15,6,ROW(Teilnehmer[Lfd. Nr.])/((Teilnehmer[Paarkür]=A19)),ROW()-18)-1,1),\"\")","v":""},{"$f":"IFERROR(VLOOKUP(C20,Teilnehmer[],2,FALSE),\"\")","v":""},{"$f":"IFERROR(VLOOKUP(C20,Teilnehmer[],3,FALSE),\"\")","v":""},{"$f":"IFERROR(VLOOKUP(C20,Teilnehmer[],5,FALSE),\"\")","v":""},{"$f":"IFERROR(VLOOKUP(C20,Meldung!$A$2:$AE$51,31,FALSE),\"\")","v":""},{"$f":"IFERROR(VLOOKUP(C20,Teilnehmer[],10,FALSE),\"\")","v":""}]
[9,1,{"$f":"IFERROR(INDEX(Teilnehmer[Lfd. Nr.],_xlfn.AGGREGATE(15,6,ROW(Teilnehmer[Lfd. Nr.])/((Teilnehmer[Paarkür]=A21)),ROW()-20)-1,1),\"\")","v":""},{"$f":"IFERROR(VLOOKUP(C21,Teilnehmer[],2,FALSE),\"\")","v":""},{"$f":"IFERROR(VLOOKUP(C21,Teilnehmer[],3,FALSE),\"\")","v":""},{"$f":"IFERROR(VLOOKUP(C21,Teilnehmer[],5,FALSE),\"\")","v":""},{"$f":"IFERROR(VLOOKUP(C21,Meldung!$A$2:$AE$51,31,FALSE),\"\")","v":""},{"$f":"IFERROR(VLOOKUP(C21,Teilnehmer[],10,FALSE),\"\")","v":""},{"$f":"IF(Tabelle_Paarkür[[#This Row],[Name]]=\"\",\"\",IF(MAX(F21,F22)<11,\"U11\",IF(MAX(F21,F22)<13,\"U13\",IF(MAX(F21,F22)<15,\"U15\",IF(MAX(F21,F22)<17,\"U17\",IF(MAX(F21,F22)<19,\"U19\",IF(MAX(F21,F22)<21,\"U21\",IF(MAX(F21,F22)<23,\"U23\",IF(MAX(F21,F22)<25,\"U25\",IF(MAX(F21,F22)<30,\"U30\",IF(MAX(F21,F22)<50,\"U50\",IF(MAX(F21,F22)<70,\"U70\",IF(MAX(F21,F22)<99,\" 70+\",\"\")))))))))))))","v":""},{"$f":"IF(IF(Tabelle_Paarkür[[#This Row],[Name]]=\"\",\"\",IF(MAX(G21,G22)<11,\"U11\",IF(MAX(G21,G22)<13,\"U13\",IF(MAX(G21,G22)<15,\"U15\",IF(MAX(G21,G22)<17,\"U17\",IF(MAX(G21,G22)<19,\"U19\",IF(MAX(G21,G22)<21,\"U21\",IF(MAX(G21,G22)<23,\"U23\",IF(MAX(G21,G22)<25,\"U25\",IF(MAX(G21,G22)<30,\"U30\",IF(MAX(G21,G22)<50,\"U50\",IF(MAX(G21,G22)<70,\"U70\",IF(MAX(G21,G22)<99,\"70+\",\"\")))))))))))))=I21,\"\",\"*\")","v":""},2]
[null,2,{"$f":"IFERROR(INDEX(Teilnehmer[Lfd. Nr.],_xlfn.AGGREGATE(15,6,ROW(Teilnehmer[Lfd. Nr.])/((Teilnehmer[Paarkür]=A21)),ROW()-20)-1,1),\"\")","v":""},{"$f":"IFERROR(VLOOKUP(C22,Teilnehmer[],2,FALSE),\"\")","v":""},{"$f":"IFERROR(VLOOKUP(C22,Teilnehmer[],3,FALSE),\"\")","v":""},{"$f":"IFERROR(VLOOKUP(C22,Teilnehmer[],5,FALSE),\"\")","v":""},{"$f":"IFERROR(VLOOKUP(C22,Meldung!$A$2:$AE$51,31,FALSE),\"\")","v":""},{"$f":"IFERROR(VLOOKUP(C22,Teilnehmer[],10,FALSE),\"\")","v":""}]
[10,1,{"$f":"IFERROR(INDEX(Teilnehmer[Lfd. Nr.],_xlfn.AGGREGATE(15,6,ROW(Teilnehmer[Lfd. Nr.])/((Teilnehmer[Paarkür]=A23)),ROW()-22)-1,1),\"\")","v":""},{"$f":"IFERROR(VLOOKUP(C23,Teilnehmer[],2,FALSE),\"\")","v":""},{"$f":"IFERROR(VLOOKUP(C23,Teilnehmer[],3,FALSE),\"\")","v":""},{"$f":"IFERROR(VLOOKUP(C23,Teilnehmer[],5,FALSE),\"\")","v":""},{"$f":"IFERROR(VLOOKUP(C23,Meldung!$A$2:$AE$51,31,FALSE),\"\")","v":""},{"$f":"IFERROR(VLOOKUP(C23,Teilnehmer[],10,FALSE),\"\")","v":""},{"$f":"IF(Tabelle_Paarkür[[#This Row],[Name]]=\"\",\"\",IF(MAX(F23,F24)<11,\"U11\",IF(MAX(F23,F24)<13,\"U13\",IF(MAX(F23,F24)<15,\"U15\",IF(MAX(F23,F24)<17,\"U17\",IF(MAX(F23,F24)<19,\"U19\",IF(MAX(F23,F24)<21,\"U21\",IF(MAX(F23,F24)<23,\"U23\",IF(MAX(F23,F24)<25,\"U25\",IF(MAX(F23,F24)<30,\"U30\",IF(MAX(F23,F24)<50,\"U50\",IF(MAX(F23,F24)<70,\"U70\",IF(MAX(F23,F24)<99,\" 70+\",\"\")))))))))))))","v":""},{"$f":"IF(IF(Tabelle_Paarkür[[#This Row],[Name]]=\"\",\"\",IF(MAX(G23,G24)<11,\"U11\",IF(MAX(G23,G24)<13,\"U13\",IF(MAX(G23,G24)<15,\"U15\",IF(MAX(G23,G24)<17,\"U17\",IF(MAX(G23,G24)<19,\"U19\",IF(MAX(G23,G24)<21,\"U21\",IF(MAX(G23,G24)<23,\"U23\",IF(MAX(G23,G24)<25,\"U25\",IF(MAX(G23,G24)<30,\"U30\",IF(MAX(G23,G24)<50,\"U50\",IF(MAX(G23,G24)<70,\"U70\",IF(MAX(G23,G24)<99,\"70+\",\"\")))))))))))))=I23,\"\",\"*\")","v":""},2]
[null,2,{"$f":"IFERROR(INDEX(Teilnehmer[Lfd. Nr.],_xlfn.AGGREGATE(15,6,ROW(Teilnehmer[Lfd. Nr.])/((Teilnehmer[Paarkür]=A23)),ROW()-22)-1,1),\"\")","v":""},{"$f":"IFERROR(VLOOKUP(C24,Teilnehmer[],2,FALSE),\"\")","v":""},{"$f":"IFERROR(VLOOKUP(C24,Teilnehmer[],3,FALSE),\"\")","v":""},{"$f":"IFERROR(VLOOKUP(C24,Teilnehmer[],5,FALSE),\"\")","v":""},{"$f":"IFERROR(VLOOKUP(C24,Meldung!$A$2:$AE$51,31,FALSE),\"\")","v":""},{"$f":"IFERROR(VLOOKUP(C24,Teilnehmer[],10,FALSE),\"\")","v":""}]
[11,1,{"$f":"IFERROR(INDEX(Teilnehmer[Lfd. Nr.],_xlfn.AGGREGATE(15,6,ROW(Teilnehmer[Lfd. Nr.])/((Teilnehmer[Paarkür]=A25)),ROW()-24)-1,1),\"\")","v":""},{"$f":"IFERROR(VLOOKUP(C25,Teilnehmer[],2,FALSE),\"\")","v":""},{"$f":"IFERROR(VLOOKUP(C25,Teilnehmer[],3,FALSE),\"\")","v":""},{"$f":"IFERROR(VLOOKUP(C25,Teilnehmer[],5,FALSE),\"\")","v":""},{"$f":"IFERROR(VLOOKUP(C25,Meldung!$A$2:$AE$51,31,FALSE),\"\")","v":""},{"$f":"IFERROR(VLOOKUP(C25,Teilnehmer[],10,FALSE),\"\")","v":""},{"$f":"IF(Tabelle_Paarkür[[#This Row],[Name]]=\"\",\"\",IF(MAX(F25,F26)<11,\"U11\",IF(MAX(F25,F26)<13,\"U13\",IF(MAX(F25,F26)<15,\"U15\",IF(MAX(F25,F26)<17,\"U17\",IF(MAX(F25,F26)<19,\"U19\",IF(MAX(F25,F26)<21,\"U21\",IF(MAX(F25,F26)<23,\"U23\",IF(MAX(F25,F26)<25,\"U25\",IF(MAX(F25,F26)<30,\"U30\",IF(MAX(F25,F26)<50,\"U50\",IF(MAX(F25,F26)<70,\"U70\",IF(MAX(F25,F26)<99,\" 70+\",\"\")))))))))))))","v":""},{"$f":"IF(IF(Tabelle_Paarkür[[#This Row],[Name]]=\"\",\"\",IF(MAX(G25,G26)<11,\"U11\",IF(MAX(G25,G26)<13,\"U13\",IF(MAX(G25,G26)<15,\"U15\",IF(MAX(G25,G26)<17,\"U17\",IF(MAX(G25,G26)<19,\"U19\",IF(MAX(G25,G26)<21,\"U21\",IF(MAX(G25,G26)<23,\"U23\",IF(MAX(G25,G26)<25,\"U25\",IF(MAX(G25,G26)<30,\"U30\",IF(MAX(G25,G26)<50,\"U50\",IF(MAX(G25,G26)<70,\"U70\",IF(MAX(G25,G26)<99,\"70+\",\"\")))))))))))))=I25,\"\",\"*\")","v":""},2]
[null,2,{"$f":"IFERROR(INDEX(Teilnehmer[Lfd. Nr.],_xlfn.AGGREGATE(15,6,ROW(Teilnehmer[Lfd. Nr.])/((Teilnehmer[Paarkür]=A25)),ROW()-24)-1,1),\"\")","v":""},{"$f":"IFERROR(VLOOKUP(C26,Teilnehmer[],2,FALSE),\"\")","v":""},{"$f":"IFERROR(VLOOKUP(C26,Teilnehmer[],3,FALSE),\"\")","v":""},{"$f":"IFERROR(VLOOKUP(C26,Teilnehmer[],5,FALSE),\"\")","v":""},{"$f":"IFERROR(VLOOKUP(C26,Meldung!$A$2:$AE$51,31,FALSE),\"\")","v":""},{"$f":"IFERROR(VLOOKUP(C26,Teilnehmer[],10,FALSE),\"\")","v":""}]
[12,1,{"$f":"IFERROR(INDEX(Teilnehmer[Lfd. Nr.],_xlfn.AGGREGATE(15,6,ROW(Teilnehmer[Lfd. Nr.])/((Teilnehmer[Paarkür]=A27)),ROW()-26)-1,1),\"\")","v":""},{"$f":"IFERROR(VLOOKUP(C27,Teilnehmer[],2,FALSE),\"\")","v":""},{"$f":"IFERROR(VLOOKUP(C27,Teilnehmer[],3,FALSE),\"\")","v":""},{"$f":"IFERROR(VLOOKUP(C27,Teilnehmer[],5,FALSE),\"\")","v":""},{"$f":"IFERROR(VLOOKUP(C27,Meldung!$A$2:$AE$51,31,FALSE),\"\")","v":""},{"$f":"IFERROR(VLOOKUP(C27,Teilnehmer[],10,FALSE),\"\")","v":""},{"$f":"IF(Tabelle_Paarkür[[#This Row],[Name]]=\"\",\"\",IF(MAX(F27,F28)<11,\"U11\",IF(MAX(F27,F28)<13,\"U13\",IF(MAX(F27,F28)<15,\"U15\",IF(MAX(F27,F28)<17,\"U17\",IF(MAX(F27,F28)<19,\"U19\",IF(MAX(F27,F28)<21,\"U21\",IF(MAX(F27,F28)<23,\"U23\",IF(MAX(F27,F28)<25,\"U25\",IF(MAX(F27,F28)<30,\"U30\",IF(MAX(F27,F28)<50,\"U50\",IF(MAX(F27,F28)<70,\"U70\",IF(MAX(F27,F28)<99,\" 70+\",\"\")))))))))))))","v":""},{"$f":"IF(IF(Tabelle_Paarkür[[#This Row],[Name]]=\"\",\"\",IF(MAX(G27,G28)<11,\"U11\",IF(MAX(G27,G28)<13,\"U13\",IF(MAX(G27,G28)<15,\"U15\",IF(MAX(G27,G28)<17,\"U17\",IF(MAX(G27,G28)<19,\"U19\",IF(MAX(G27,G28)<21,\"U21\",IF(MAX(G27,G28)<23,\"U23\",IF(MAX(G27,G28)<25,\"U25\",IF(MAX(G27,G28)<30,\"U30\",IF(MAX(G27,G28)<50,\"U50\",IF(MAX(G27,G28)<70,\"U70\",IF(MAX(G27,G28)<99,\"70+\",\"\")))))))))))))=I27,\"\",\"*\")","v":""},2]
[null,2,{"$f":"IFERROR(INDEX(Teilnehmer[Lfd. Nr.],_xlfn.AGGREGATE(15,6,ROW(Teilnehmer[Lfd. Nr.])/((Teilnehmer[Paarkür]=A27)),ROW()-26)-1,1),\"\")","v":""},{"$f":"IFERROR(VLOOKUP(C28,Teilnehmer[],2,FALSE),\"\")","v":""},{"$f":"IFERROR(VLOOKUP(C28,Teilnehmer[],3,FALSE),\"\")","v":""},{"$f":"IFERROR(VLOOKUP(C28,Teilnehmer[],5,FALSE),\"\")","v":""},{"$f":"IFERROR(VLOOKUP(C28,Meldung!$A$2:$AE$51,31,FALSE),\"\")","v":""},{"$f":"IFERROR(VLOOKUP(C28,Teilnehmer[],10,FALSE),\"\")","v":""}]
[13,1,{"$f":"IFERROR(INDEX(Teilnehmer[Lfd. Nr.],_xlfn.AGGREGATE(15,6,ROW(Teilnehmer[Lfd. Nr.])/((Teilnehmer[Paarkür]=A29)),ROW()-28)-1,1),\"\")","v":""},{"$f":"IFERROR(VLOOKUP(C29,Teilnehmer[],2,FALSE),\"\")","v":""},{"$f":"IFERROR(VLOOKUP(C29,Teilnehmer[],3,FALSE),\"\")","v":""},{"$f":"IFERROR(VLOOKUP(C29,Teilnehmer[],5,FALSE),\"\")","v":""},{"$f":"IFERROR(VLOOKUP(C29,Meldung!$A$2:$AE$51,31,FALSE),\"\")","v":""},{"$f":"IFERROR(VLOOKUP(C29,Teilnehmer[],10,FALSE),\"\")","v":""},{"$f":"IF(Tabelle_Paarkür[[#This Row],[Name]]=\"\",\"\",IF(MAX(F29,F30)<11,\"U11\",IF(MAX(F29,F30)<13,\"U13\",IF(MAX(F29,F30)<15,\"U15\",IF(MAX(F29,F30)<17,\"U17\",IF(MAX(F29,F30)<19,\"U19\",IF(MAX(F29,F30)<21,\"U21\",IF(MAX(F29,F30)<23,\"U23\",IF(MAX(F29,F30)<25,\"U25\",IF(MAX(F29,F30)<30,\"U30\",IF(MAX(F29,F30)<50,\"U50\",IF(MAX(F29,F30)<70,\"U70\",IF(MAX(F29,F30)<99,\" 70+\",\"\")))))))))))))","v":""},{"$f":"IF(IF(Tabelle_Paarkür[[#This Row],[Name]]=\"\",\"\",IF(MAX(G29,G30)<11,\"U11\",IF(MAX(G29,G30)<13,\"U13\",IF(MAX(G29,G30)<15,\"U15\",IF(MAX(G29,G30)<17,\"U17\",IF(MAX(G29,G30)<19,\"U19\",IF(MAX(G29,G30)<21,\"U21\",IF(MAX(G29,G30)<23,\"U23\",IF(MAX(G29,G30)<25,\"U25\",IF(MAX(G29,G30)<30,\"U30\",IF(MAX(G29,G30)<50,\"U50\",IF(MAX(G29,G30)<70,\"U70\",IF(MAX(G29,G30)<99,\"70+\",\"\")))))))))))))=I29,\"\",\"*\")","v":""},2]
[null,2,{"$f":"IFERROR(INDEX(Teilnehmer[Lfd. Nr.],_xlfn.AGGREGATE(15,6,ROW(Teilnehmer[Lfd. Nr.])/((Teilnehmer[Paarkür]=A29)),ROW()-28)-1,1),\"\")","v":""},{"$f":"IFERROR(VLOOKUP(C30,Teilnehmer[],2,FALSE),\"\")","v":""},{"$f":"IFERROR(VLOOKUP(C30,Teilnehmer[],3,FALSE),\"\")","v":""},{"$f":"IFERROR(VLOOKUP(C30,Teilnehmer[],5,FALSE),\"\")","v":""},{"$f":"IFERROR(VLOOKUP(C30,Meldung!$A$2:$AE$51,31,FALSE),\"\")","v":""},{"$f":"IFERROR(VLOOKUP(C30,Teilnehmer[],10,FALSE),\"\")","v":""}]
[14,1,{"$f":"IFERROR(INDEX(Teilnehmer[Lfd. Nr.],_xlfn.AGGREGATE(15,6,ROW(Teilnehmer[Lfd. Nr.])/((Teilnehmer[Paarkür]=A31)),ROW()-30)-1,1),\"\")","v":""},{"$f":"IFERROR(VLOOKUP(C31,Teilnehmer[],2,FALSE),\"\")","v":""},{"$f":"IFERROR(VLOOKUP(C31,Teilnehmer[],3,FALSE),\"\")","v":""},{"$f":"IFERROR(VLOOKUP(C31,Teilnehmer[],5,FALSE),\"\")","v":""},{"$f":"IFERROR(VLOOKUP(C31,Meldung!$A$2:$AE$51,31,FALSE),\"\")","v":""},{"$f":"IFERROR(VLOOKUP(C31,Teilnehmer[],10,FALSE),\"\")","v":""},{"$f":"IF(Tabelle_Paarkür[[#This Row],[Name]]=\"\",\"\",IF(MAX(F31,F32)<11,\"U11\",IF(MAX(F31,F32)<13,\"U13\",IF(MAX(F31,F32)<15,\"U15\",IF(MAX(F31,F32)<17,\"U17\",IF(MAX(F31,F32)<19,\"U19\",IF(MAX(F31,F32)<21,\"U21\",IF(MAX(F31,F32)<23,\"U23\",IF(MAX(F31,F32)<25,\"U25\",IF(MAX(F31,F32)<30,\"U30\",IF(MAX(F31,F32)<50,\"U50\",IF(MAX(F31,F32)<70,\"U70\",IF(MAX(F31,F32)<99,\" 70+\",\"\")))))))))))))","v":""},{"$f":"IF(IF(Tabelle_Paarkür[[#This Row],[Name]]=\"\",\"\",IF(MAX(G31,G32)<11,\"U11\",IF(MAX(G31,G32)<13,\"U13\",IF(MAX(G31,G32)<15,\"U15\",IF(MAX(G31,G32)<17,\"U17\",IF(MAX(G31,G32)<19,\"U19\",IF(MAX(G31,G32)<21,\"U21\",IF(MAX(G31,G32)<23,\"U23\",IF(MAX(G31,G32)<25,\"U25\",IF(MAX(G31,G32)<30,\"U30\",IF(MAX(G31,G32)<50,\"U50\",IF(MAX(G31,G32)<70,\"U70\",IF(MAX(G31,G32)<99,\"70+\",\"\")))))))))))))=I31,\"\",\"*\")","v":""},2]
[null,2,{"$f":"IFERROR(INDEX(Teilnehmer[Lfd. Nr.],_xlfn.AGGREGATE(15,6,ROW(Teilnehmer[Lfd. Nr.])/((Teilnehmer[Paarkür]=A31)),ROW()-30)-1,1),\"\")","v":""},{"$f":"IFERROR(VLOOKUP(C32,Teilnehmer[],2,FALSE),\"\")","v":""},{"$f":"IFERROR(VLOOKUP(C32,Teilnehmer[],3,FALSE),\"\")","v":""},{"$f":"IFERROR(VLOOKUP(C32,Teilnehmer[],5,FALSE),\"\")","v":""},{"$f":"IFERROR(VLOOKUP(C32,Meldung!$A$2:$AE$51,31,FALSE),\"\")","v":""},{"$f":"IFERROR(VLOOKUP(C32,Teilnehmer[],10,FALSE),\"\")","v":""}]
[15,1,{"$f":"IFERROR(INDEX(Teilnehmer[Lfd. Nr.],_xlfn.AGGREGATE(15,6,ROW(Teilnehmer[Lfd. Nr.])/((Teilnehmer[Paarkür]=A33)),ROW()-32)-1,1),\"\")","v":""},{"$f":"IFERROR(VLOOKUP(C33,Teilnehmer[],2,FALSE),\"\")","v":""},{"$f":"IFERROR(VLOOKUP(C33,Teilnehmer[],3,FALSE),\"\")","v":""},{"$f":"IFERROR(VLOOKUP(C33,Teilnehmer[],5,FALSE),\"\")","v":""},{"$f":"IFERROR(VLOOKUP(C33,Meldung!$A$2:$AE$51,31,FALSE),\"\")","v":""},{"$f":"IFERROR(VLOOKUP(C33,Teilnehmer[],10,FALSE),\"\")","v":""},{"$f":"IF(Tabelle_Paarkür[[#This Row],[Name]]=\"\",\"\",IF(MAX(F33,F34)<11,\"U11\",IF(MAX(F33,F34)<13,\"U13\",IF(MAX(F33,F34)<15,\"U15\",IF(MAX(F33,F34)<17,\"U17\",IF(MAX(F33,F34)<19,\"U19\",IF(MAX(F33,F34)<21,\"U21\",IF(MAX(F33,F34)<23,\"U23\",IF(MAX(F33,F34)<25,\"U25\",IF(MAX(F33,F34)<30,\"U30\",IF(MAX(F33,F34)<50,\"U50\",IF(MAX(F33,F34)<70,\"U70\",IF(MAX(F33,F34)<99,\" 70+\",\"\")))))))))))))","v":""},{"$f":"IF(IF(Tabelle_Paarkür[[#This Row],[Name]]=\"\",\"\",IF(MAX(G33,G34)<11,\"U11\",IF(MAX(G33,G34)<13,\"U13\",IF(MAX(G33,G34)<15,\"U15\",IF(MAX(G33,G34)<17,\"U17\",IF(MAX(G33,G34)<19,\"U19\",IF(MAX(G33,G34)<21,\"U21\",IF(MAX(G33,G34)<23,\"U23\",IF(MAX(G33,G34)<25,\"U25\",IF(MAX(G33,G34)<30,\"U30\",IF(MAX(G33,G34)<50,\"U50\",IF(MAX(G33,G34)<70,\"U70\",IF(MAX(G33,G34)<99,\"70+\",\"\")))))))))))))=I33,\"\",\"*\")","v":""},2]
[null,2,{"$f":"IFERROR(INDEX(Teilnehmer[Lfd. Nr.],_xlfn.AGGREGATE(15,6,ROW(Teilnehmer[Lfd. Nr.])/((Teilnehmer[Paarkür]=A33)),ROW()-32)-1,1),\"\")","v":""},{"$f":"IFERROR(VLOOKUP(C34,Teilnehmer[],2,FALSE),\"\")","v":""},{"$f":"IFERROR(VLOOKUP(C34,Teilnehmer[],3,FALSE),\"\")","v":""},{"$f":"IFERROR(VLOOKUP(C34,Teilnehmer[],5,FALSE),\"\")","v":""},{"$f":"IFERROR(VLOOKUP(C34,Meldung!$A$2:$AE$51,31,FALSE),\"\")","v":""},{"$f":"IFERROR(VLOOKUP(C34,Teilnehmer[],10,FALSE),\"\")","v":""}]
[16,1,{"$f":"IFERROR(INDEX(Teilnehmer[Lfd. Nr.],_xlfn.AGGREGATE(15,6,ROW(Teilnehmer[Lfd. Nr.])/((Teilnehmer[Paarkür]=A35)),ROW()-34)-1,1),\"\")","v":""},{"$f":"IFERROR(VLOOKUP(C35,Teilnehmer[],2,FALSE),\"\")","v":""},{"$f":"IFERROR(VLOOKUP(C35,Teilnehmer[],3,FALSE),\"\")","v":""},{"$f":"IFERROR(VLOOKUP(C35,Teilnehmer[],5,FALSE),\"\")","v":""},{"$f":"IFERROR(VLOOKUP(C35,Meldung!$A$2:$AE$51,31,FALSE),\"\")","v":""},{"$f":"IFERROR(VLOOKUP(C35,Teilnehmer[],10,FALSE),\"\")","v":""},{"$f":"IF(Tabelle_Paarkür[[#This Row],[Name]]=\"\",\"\",IF(MAX(F35,F36)<11,\"U11\",IF(MAX(F35,F36)<13,\"U13\",IF(MAX(F35,F36)<15,\"U15\",IF(MAX(F35,F36)<17,\"U17\",IF(MAX(F35,F36)<19,\"U19\",IF(MAX(F35,F36)<21,\"U21\",IF(MAX(F35,F36)<23,\"U23\",IF(MAX(F35,F36)<25,\"U25\",IF(MAX(F35,F36)<30,\"U30\",IF(MAX(F35,F36)<50,\"U50\",IF(MAX(F35,F36)<70,\"U70\",IF(MAX(F35,F36)<99,\" 70+\",\"\")))))))))))))","v":""},{"$f":"IF(IF(Tabelle_Paarkür[[#This Row],[Name]]=\"\",\"\",IF(MAX(G35,G36)<11,\"U11\",IF(MAX(G35,G36)<13,\"U13\",IF(MAX(G35,G36)<15,\"U15\",IF(MAX(G35,G36)<17,\"U17\",IF(MAX(G35,G36)<19,\"U19\",IF(MAX(G35,G36)<21,\"U21\",IF(MAX(G35,G36)<23,\"U23\",IF(MAX(G35,G36)<25,\"U25\",IF(MAX(G35,G36)<30,\"U30\",IF(MAX(G35,G36)<50,\"U50\",IF(MAX(G35,G36)<70,\"U70\",IF(MAX(G35,G36)<99,\"70+\",\"\")))))))))))))=I35,\"\",\"*\")","v":""},2]
[null,2,{"$f":"IFERROR(INDEX(Teilnehmer[Lfd. Nr.],_xlfn.AGGREGATE(15,6,ROW(Teilnehmer[Lfd. Nr.])/((Teilnehmer[Paarkür]=A35)),ROW()-34)-1,1),\"\")","v":""},{"$f":"IFERROR(VLOOKUP(C36,Teilnehmer[],2,FALSE),\"\")","v":""},{"$f":"IFERROR(VLOOKUP(C36,Teilnehmer[],3,FALSE),\"\")","v":""},{"$f":"IFERROR(VLOOKUP(C36,Teilnehmer[],5,FALSE),\"\")","v":""},{"$f":"IFERROR(VLOOKUP(C36,Meldung!$A$2:$AE$51,31,FALSE),\"\")","v":""},{"$f":"IFERROR(VLOOKUP(C36,Teilnehmer[],10,FALSE),\"\")","v":""}]
[17,1,{"$f":"IFERROR(INDEX(Teilnehmer[Lfd. Nr.],_xlfn.AGGREGATE(15,6,ROW(Teilnehmer[Lfd. Nr.])/((Teilnehmer[Paarkür]=A37)),ROW()-36)-1,1),\"\")","v":""},{"$f":"IFERROR(VLOOKUP(C37,Teilnehmer[],2,FALSE),\"\")","v":""},{"$f":"IFERROR(VLOOKUP(C37,Teilnehmer[],3,FALSE),\"\")","v":""},{"$f":"IFERROR(VLOOKUP(C37,Teilnehmer[],5,FALSE),\"\")","v":""},{"$f":"IFERROR(VLOOKUP(C37,Meldung!$A$2:$AE$51,31,FALSE),\"\")","v":""},{"$f":"IFERROR(VLOOKUP(C37,Teilnehmer[],10,FALSE),\"\")","v":""},{"$f":"IF(Tabelle_Paarkür[[#This Row],[Name]]=\"\",\"\",IF(MAX(F37,F38)<11,\"U11\",IF(MAX(F37,F38)<13,\"U13\",IF(MAX(F37,F38)<15,\"U15\",IF(MAX(F37,F38)<17,\"U17\",IF(MAX(F37,F38)<19,\"U19\",IF(MAX(F37,F38)<21,\"U21\",IF(MAX(F37,F38)<23,\"U23\",IF(MAX(F37,F38)<25,\"U25\",IF(MAX(F37,F38)<30,\"U30\",IF(MAX(F37,F38)<50,\"U50\",IF(MAX(F37,F38)<70,\"U70\",IF(MAX(F37,F38)<99,\" 70+\",\"\")))))))))))))","v":""},{"$f":"IF(IF(Tabelle_Paarkür[[#This Row],[Name]]=\"\",\"\",IF(MAX(G37,G38)<11,\"U11\",IF(MAX(G37,G38)<13,\"U13\",IF(MAX(G37,G38)<15,\"U15\",IF(MAX(G37,G38)<17,\"U17\",IF(MAX(G37,G38)<19,\"U19\",IF(MAX(G37,G38)<21,\"U21\",IF(MAX(G37,G38)<23,\"U23\",IF(MAX(G37,G38)<25,\"U25\",IF(MAX(G37,G38)<30,\"U30\",IF(MAX(G37,G38)<50,\"U50\",IF(MAX(G37,G38)<70,\"U70\",IF(MAX(G37,G38)<99,\"70+\",\"\")))))))))))))=I37,\"\",\"*\")","v":""},2]
[null,2,{"$f":"IFERROR(INDEX(Teilnehmer[Lfd. Nr.],_xlfn.AGGREGATE(15,6,ROW(Teilnehmer[Lfd. Nr.])/((Teilnehmer[Paarkür]=A37)),ROW()-36)-1,1),\"\")","v":""},{"$f":"IFERROR(VLOOKUP(C38,Teilnehmer[],2,FALSE),\"\")","v":""},{"$f":"IFERROR(VLOOKUP(C38,Teilnehmer[],3,FALSE),\"\")","v":""},{"$f":"IFERROR(VLOOKUP(C38,Teilnehmer[],5,FALSE),\"\")","v":""},{"$f":"IFERROR(VLOOKUP(C38,Meldung!$A$2:$AE$51,31,FALSE),\"\")","v":""},{"$f":"IFERROR(VLOOKUP(C38,Teilnehmer[],10,FALSE),\"\")","v":""}]
[18,1,{"$f":"IFERROR(INDEX(Teilnehmer[Lfd. Nr.],_xlfn.AGGREGATE(15,6,ROW(Teilnehmer[Lfd. Nr.])/((Teilnehmer[Paarkür]=A39)),ROW()-38)-1,1),\"\")","v":""},{"$f":"IFERROR(VLOOKUP(C39,Teilnehmer[],2,FALSE),\"\")","v":""},{"$f":"IFERROR(VLOOKUP(C39,Teilnehmer[],3,FALSE),\"\")","v":""},{"$f":"IFERROR(VLOOKUP(C39,Teilnehmer[],5,FALSE),\"\")","v":""},{"$f":"IFERROR(VLOOKUP(C39,Meldung!$A$2:$AE$51,31,FALSE),\"\")","v":""},{"$f":"IFERROR(VLOOKUP(C39,Teilnehmer[],10,FALSE),\"\")","v":""},{"$f":"IF(Tabelle_Paarkür[[#This Row],[Name]]=\"\",\"\",IF(MAX(F39,F40)<11,\"U11\",IF(MAX(F39,F40)<13,\"U13\",IF(MAX(F39,F40)<15,\"U15\",IF(MAX(F39,F40)<17,\"U17\",IF(MAX(F39,F40)<19,\"U19\",IF(MAX(F39,F40)<21,\"U21\",IF(MAX(F39,F40)<23,\"U23\",IF(MAX(F39,F40)<25,\"U25\",IF(MAX(F39,F40)<30,\"U30\",IF(MAX(F39,F40)<50,\"U50\",IF(MAX(F39,F40)<70,\"U70\",IF(MAX(F39,F40)<99,\" 70+\",\"\")))))))))))))","v":""},{"$f":"IF(IF(Tabelle_Paarkür[[#This Row],[Name]]=\"\",\"\",IF(MAX(G39,G40)<11,\"U11\",IF(MAX(G39,G40)<13,\"U13\",IF(MAX(G39,G40)<15,\"U15\",IF(MAX(G39,G40)<17,\"U17\",IF(MAX(G39,G40)<19,\"U19\",IF(MAX(G39,G40)<21,\"U21\",IF(MAX(G39,G40)<23,\"U23\",IF(MAX(G39,G40)<25,\"U25\",IF(MAX(G39,G40)<30,\"U30\",IF(MAX(G39,G40)<50,\"U50\",IF(MAX(G39,G40)<70,\"U70\",IF(MAX(G39,G40)<99,\"70+\",\"\")))))))))))))=I39,\"\",\"*\")","v":""},2]
[null,2,{"$f":"IFERROR(INDEX(Teilnehmer[Lfd. Nr.],_xlfn.AGGREGATE(15,6,ROW(Teilnehmer[Lfd. Nr.])/((Teilnehmer[Paarkür]=A39)),ROW()-38)-1,1),\"\")","v":""},{"$f":"IFERROR(VLOOKUP(C40,Teilnehmer[],2,FALSE),\"\")","v":""},{"$f":"IFERROR(VLOOKUP(C40,Teilnehmer[],3,FALSE),\"\")","v":""},{"$f":"IFERROR(VLOOKUP(C40,Teilnehmer[],5,FALSE),\"\")","v":""},{"$f":"IFERROR(VLOOKUP(C40,Meldung!$A$2:$AE$51,31,FALSE),\"\")","v":""},{"$f":"IFERROR(VLOOKUP(C40,Teilnehmer[],10,FALSE),\"\")","v":""}]
[19,1,{"$f":"IFERROR(INDEX(Teilnehmer[Lfd. Nr.],_xlfn.AGGREGATE(15,6,ROW(Teilnehmer[Lfd. Nr.])/((Teilnehmer[Paarkür]=A41)),ROW()-40)-1,1),\"\")","v":""},{"$f":"IFERROR(VLOOKUP(C41,Teilnehmer[],2,FALSE),\"\")","v":""},{"$f":"IFERROR(VLOOKUP(C41,Teilnehmer[],3,FALSE),\"\")","v":""},{"$f":"IFERROR(VLOOKUP(C41,Teilnehmer[],5,FALSE),\"\")","v":""},{"$f":"IFERROR(VLOOKUP(C41,Meldung!$A$2:$AE$51,31,FALSE),\"\")","v":""},{"$f":"IFERROR(VLOOKUP(C41,Teilnehmer[],10,FALSE),\"\")","v":""},{"$f":"IF(Tabelle_Paarkür[[#This Row],[Name]]=\"\",\"\",IF(MAX(F41,F42)<11,\"U11\",IF(MAX(F41,F42)<13,\"U13\",IF(MAX(F41,F42)<15,\"U15\",IF(MAX(F41,F42)<17,\"U17\",IF(MAX(F41,F42)<19,\"U19\",IF(MAX(F41,F42)<21,\"U21\",IF(MAX(F41,F42)<23,\"U23\",IF(MAX(F41,F42)<25,\"U25\",IF(MAX(F41,F42)<30,\"U30\",IF(MAX(F41,F42)<50,\"U50\",IF(MAX(F41,F42)<70,\"U70\",IF(MAX(F41,F42)<99,\" 70+\",\"\")))))))))))))","v":""},{"$f":"IF(IF(Tabelle_Paarkür[[#This Row],[Name]]=\"\",\"\",IF(MAX(G41,G42)<11,\"U11\",IF(MAX(G41,G42)<13,\"U13\",IF(MAX(G41,G42)<15,\"U15\",IF(MAX(G41,G42)<17,\"U17\",IF(MAX(G41,G42)<19,\"U19\",IF(MAX(G41,G42)<21,\"U21\",IF(MAX(G41,G42)<23,\"U23\",IF(MAX(G41,G42)<25,\"U25\",IF(MAX(G41,G42)<30,\"U30\",IF(MAX(G41,G42)<50,\"U50\",IF(MAX(G41,G42)<70,\"U70\",IF(MAX(G41,G42)<99,\"70+\",\"\")))))))))))))=I41,\"\",\"*\")","v":""},2]
[null,2,{"$f":"IFERROR(INDEX(Teilnehmer[Lfd. Nr.],_xlfn.AGGREGATE(15,6,ROW(Teilnehmer[Lfd. Nr.])/((Teilnehmer[Paarkür]=A41)),ROW()-40)-1,1),\"\")","v":""},{"$f":"IFERROR(VLOOKUP(C42,Teilnehmer[],2,FALSE),\"\")","v":""},{"$f":"IFERROR(VLOOKUP(C42,Teilnehmer[],3,FALSE),\"\")","v":""},{"$f":"IFERROR(VLOOKUP(C42,Teilnehmer[],5,FALSE),\"\")","v":""},{"$f":"IFERROR(VLOOKUP(C42,Meldung!$A$2:$AE$51,31,FALSE),\"\")","v":""},{"$f":"IFERROR(VLOOKUP(C42,Teilnehmer[],10,FALSE),\"\")","v":""}]
[20,1,{"$f":"IFERROR(INDEX(Teilnehmer[Lfd. Nr.],_xlfn.AGGREGATE(15,6,ROW(Teilnehmer[Lfd. Nr.])/((Teilnehmer[Paarkür]=A43)),ROW()-42)-1,1),\"\")","v":""},{"$f":"IFERROR(VLOOKUP(C43,Teilnehmer[],2,FALSE),\"\")","v":""},{"$f":"IFERROR(VLOOKUP(C43,Teilnehmer[],3,FALSE),\"\")","v":""},{"$f":"IFERROR(VLOOKUP(C43,Teilnehmer[],5,FALSE),\"\")","v":""},{"$f":"IFERROR(VLOOKUP(C43,Meldung!$A$2:$AE$51,31,FALSE),\"\")","v":""},{"$f":"IFERROR(VLOOKUP(C43,Teilnehmer[],10,FALSE),\"\")","v":""},{"$f":"IF(Tabelle_Paarkür[[#This Row],[Name]]=\"\",\"\",IF(MAX(F43,F44)<11,\"U11\",IF(MAX(F43,F44)<13,\"U13\",IF(MAX(F43,F44)<15,\"U15\",IF(MAX(F43,F44)<17,\"U17\",IF(MAX(F43,F44)<19,\"U19\",IF(MAX(F43,F44)<21,\"U21\",IF(MAX(F43,F44)<23,\"U23\",IF(MAX(F43,F44)<25,\"U25\",IF(MAX(F43,F44)<30,\"U30\",IF(MAX(F43,F44)<50,\"U50\",IF(MAX(F43,F44)<70,\"U70\",IF(MAX(F43,F44)<99,\" 70+\",\"\")))))))))))))","v":""},{"$f":"IF(IF(Tabelle_Paarkür[[#This Row],[Name]]=\"\",\"\",IF(MAX(G43,G44)<11,\"U11\",IF(MAX(G43,G44)<13,\"U13\",IF(MAX(G43,G44)<15,\"U15\",IF(MAX(G43,G44)<17,\"U17\",IF(MAX(G43,G44)<19,\"U19\",IF(MAX(G43,G44)<21,\"U21\",IF(MAX(G43,G44)<23,\"U23\",IF(MAX(G43,G44)<25,\"U25\",IF(MAX(G43,G44)<30,\"U30\",IF(MAX(G43,G44)<50,\"U50\",IF(MAX(G43,G44)<70,\"U70\",IF(MAX(G43,G44)<99,\"70+\",\"\")))))))))))))=I43,\"\",\"*\")","v":""},2]
[null,2,{"$f":"IFERROR(INDEX(Teilnehmer[Lfd. Nr.],_xlfn.AGGREGATE(15,6,ROW(Teilnehmer[Lfd. Nr.])/((Teilnehmer[Paarkür]=A43)),ROW()-42)-1,1),\"\")","v":""},{"$f":"IFERROR(VLOOKUP(C44,Teilnehmer[],2,FALSE),\"\")","v":""},{"$f":"IFERROR(VLOOKUP(C44,Teilnehmer[],3,FALSE),\"\")","v":""},{"$f":"IFERROR(VLOOKUP(C44,Teilnehmer[],5,FALSE),\"\")","v":""},{"$f":"IFERROR(VLOOKUP(C44,Meldung!$A$2:$AE$51,31,FALSE),\"\")","v":""},{"$f":"IFERROR(VLOOKUP(C44,Teilnehmer[],10,FALSE),\"\")","v":""}]
[21,1,{"$f":"IFERROR(INDEX(Teilnehmer[Lfd. Nr.],_xlfn.AGGREGATE(15,6,ROW(Teilnehmer[Lfd. Nr.])/((Teilnehmer[Paarkür]=A45)),ROW()-44)-1,1),\"\")","v":""},{"$f":"IFERROR(VLOOKUP(C45,Teilnehmer[],2,FALSE),\"\")","v":""},{"$f":"IFERROR(VLOOKUP(C45,Teilnehmer[],3,FALSE),\"\")","v":""},{"$f":"IFERROR(VLOOKUP(C45,Teilnehmer[],5,FALSE),\"\")","v":""},{"$f":"IFERROR(VLOOKUP(C45,Meldung!$A$2:$AE$51,31,FALSE),\"\")","v":""},{"$f":"IFERROR(VLOOKUP(C45,Teilnehmer[],10,FALSE),\"\")","v":""},{"$f":"IF(Tabelle_Paarkür[[#This Row],[Name]]=\"\",\"\",IF(MAX(F45,F46)<11,\"U11\",IF(MAX(F45,F46)<13,\"U13\",IF(MAX(F45,F46)<15,\"U15\",IF(MAX(F45,F46)<17,\"U17\",IF(MAX(F45,F46)<19,\"U19\",IF(MAX(F45,F46)<21,\"U21\",IF(MAX(F45,F46)<23,\"U23\",IF(MAX(F45,F46)<25,\"U25\",IF(MAX(F45,F46)<30,\"U30\",IF(MAX(F45,F46)<50,\"U50\",IF(MAX(F45,F46)<70,\"U70\",IF(MAX(F45,F46)<99,\" 70+\",\"\")))))))))))))","v":""},{"$f":"IF(IF(Tabelle_Paarkür[[#This Row],[Name]]=\"\",\"\",IF(MAX(G45,G46)<11,\"U11\",IF(MAX(G45,G46)<13,\"U13\",IF(MAX(G45,G46)<15,\"U15\",IF(MAX(G45,G46)<17,\"U17\",IF(MAX(G45,G46)<19,\"U19\",IF(MAX(G45,G46)<21,\"U21\",IF(MAX(G45,G46)<23,\"U23\",IF(MAX(G45,G46)<25,\"U25\",IF(MAX(G45,G46)<30,\"U30\",IF(MAX(G45,G46)<50,\"U50\",IF(MAX(G45,G46)<70,\"U70\",IF(MAX(G45,G46)<99,\"70+\",\"\")))))))))))))=I45,\"\",\"*\")","v":""},2]
[null,2,{"$f":"IFERROR(INDEX(Teilnehmer[Lfd. Nr.],_xlfn.AGGREGATE(15,6,ROW(Teilnehmer[Lfd. Nr.])/((Teilnehmer[Paarkür]=A45)),ROW()-44)-1,1),\"\")","v":""},{"$f":"IFERROR(VLOOKUP(C46,Teilnehmer[],2,FALSE),\"\")","v":""},{"$f":"IFERROR(VLOOKUP(C46,Teilnehmer[],3,FALSE),\"\")","v":""},{"$f":"IFERROR(VLOOKUP(C46,Teilnehmer[],5,FALSE),\"\")","v":""},{"$f":"IFERROR(VLOOKUP(C46,Meldung!$A$2:$AE$51,31,FALSE),\"\")","v":""},{"$f":"IFERROR(VLOOKUP(C46,Teilnehmer[],10,FALSE),\"\")","v":""}]

{"sheet":"Kleingrp","index":6,"n_rows":105,"n_cols":15,"rows_kept":105,"cut":false,"hidden":true,"merged":[[91,5,102,5],[72,2,72,4],[89,2,89,4],[1,4,1,5],[4,2,4,4],[21,2,21,4],[38,2,38,4],[55,2,55,4],[6,5,17,5],[23,5,34,5],[40,5,51,5],[57,5,68,5],[74,5,85,5],[1,2,1,3]]}
["Süddeutsche Meisterschaft Einrad Freestyle 🧡"]
["Kleingruppe.",null,{"$f":"Deckblatt!C2","v":"2026-10-18"}]
[]
["Kleingruppe",null,{"$f":"IFERROR(IF(Deckblatt!$C$9=0,\"\",Deckblatt!$C$9),\"\")","v":""},null,"KG1",null,null,null,null,"KürNr.","älterste Fahrer","Kürname","Verein","Anzahl Fahrer","Anzahl Fahrer2"]
["Name:",null,null,null,null,null,null,{"$f":"OR(AND(ISBLANK($C$5),$C$7<>\"\"),AND($N$5=0,$C$5<>\"\"))","v":false},null,{"$f":"E4","v":"KG1"},{"$f":"IF(ISBLANK($C$5)=TRUE,\"\",MAX(Tabelle182[Alter am 01.04.]))","v":""},{"$f":"IF(ISBLANK($C$5)=TRUE,\"\",$C$5)","v":""},{"$f":"C4","v":""},{"$f":"COUNT(E7:E18)","v":0},{"$f":"SUBTOTAL(102,Tabelle182[Alter am 01.04.])","v":0}]
["Fahrer","lf.Nr.","Name","Vorname","Alter am 01.04.","Altersklasse",null,null,null,{"$f":"E21","v":"KG2"},{"$f":"IF(ISBLANK($C$22)=TRUE,\"\",MAX(Tabelle18211[Alter am 01.04.]))","v":""},{"$f":"IF(ISBLANK($C$22)=TRUE,\"\",$C$22)","v":""},{"$f":"C21","v":""},{"$f":"COUNT(E24:E35)","v":0},{"$f":"SUBTOTAL(102,Tabelle18211[Alter am 01.04.])","v":0}]
[1,{"$f":"IFERROR(INDEX(Teilnehmer[Lfd. Nr.],_xlfn.AGGREGATE(15,6,ROW(Teilnehmer[Lfd. Nr.])/((Teilnehmer[Kleingruppe]=$E$4)),ROW()-6)-1,1),\"\")","v":""},{"$f":"IFERROR(VLOOKUP(B7,Teilnehmer[],2,FALSE),\"\")","v":""},{"$f":"IFERROR(VLOOKUP(B7,Teilnehmer[],3,FALSE),\"\")","v":""},{"$f":"IFERROR(VLOOKUP(B7,Teilnehmer[],40,FALSE),\"\")","v":""},{"$f":"IF(K$5=0,\"\",IF(K$5<11,\"Junior Expert\",IF(K$5<13,\"Junior Expert\",IF(K$5<15,\"Junior Expert\",IF(K$5<17,\"Expert\",IF(K$5<19,\"Expert\",IF(K$5<21,\"Expert\",IF(K$5<23,\"Expert\",IF(K$5<25,\"Expert\",IF(K$5<99,\"Expert\",\"\"))))))))))","v":""},null,null,null,{"$f":"E38","v":"KG3"},{"$f":"IF(ISBLANK($C$39)=TRUE,\"\",MAX(Tabelle18212[Alter am 01.04.]))","v":""},{"$f":"IF(ISBLANK($C$39)=TRUE,\"\",$C$39)","v":""},{"$f":"C38","v":""},{"$f":"COUNT(E41:E52)","v":0},{"$f":"SUBTOTAL(102,Tabelle18212[Alter am 01.04.])","v":0}]
[{"$f":"A7+1","v":2},{"$f":"IFERROR(INDEX(Teilnehmer[Lfd. Nr.],_xlfn.AGGREGATE(15,6,ROW(Teilnehmer[Lfd. Nr.])/((Teilnehmer[Kleingruppe]=$E$4)),ROW()-6)-1,1),\"\")","v":""},{"$f":"IFERROR(VLOOKUP(B8,Teilnehmer[],2,FALSE),\"\")","v":""},{"$f":"IFERROR(VLOOKUP(B8,Teilnehmer[],3,FALSE),\"\")","v":""},{"$f":"IFERROR(VLOOKUP(B8,Teilnehmer[],40,FALSE),\"\")","v":""},null,null,null,null,{"$f":"E55","v":"KG4"},{"$f":"IF(ISBLANK($C$56)=TRUE,\"\",MAX(Tabelle1821113[Alter am 01.04.]))","v":""},{"$f":"IF(ISBLANK($C$56)=TRUE,\"\",$C$56)","v":""},{"$f":"C55","v":""},{"$f":"COUNT(E58:E69)","v":0},{"$f":"SUBTOTAL(102,Tabelle1821113[Alter am 01.04.])","v":0}]
[{"$f":"A8+1","v":3},{"$f":"IFERROR(INDEX(Teilnehmer[Lfd. Nr.],_xlfn.AGGREGATE(15,6,ROW(Teilnehmer[Lfd. Nr.])/((Teilnehmer[Kleingruppe]=$E$4)),ROW()-6)-1,1),\"\")","v":""},{"$f":"IFERROR(VLOOKUP(B9,Teilnehmer[],2,FALSE),\"\")","v":""},{"$f":"IFERROR(VLOOKUP(B9,Teilnehmer[],3,FALSE),\"\")","v":""},{"$f":"IFERROR(VLOOKUP(B9,Teilnehmer[],40,FALSE),\"\")","v":""},null,null,null,null,{"$f":"E72","v":"KG5"},{"$f":"IF(ISBLANK($C$73)=TRUE,\"\",MAX(Tabelle18211139[Alter am 01.04.]))","v":""},{"$f":"IF(ISBLANK($C$73)=TRUE,\"\",$C$73)","v":""},{"$f":"C72","v":""},{"$f":"COUNT(E75:E86)","v":0},{"$f":"SUBTOTAL(102,Tabelle18211139[Alter am 01.04.])","v":0}]
[4,{"$f":"IFERROR(INDEX(Teilnehmer[Lfd. Nr.],_xlfn.AGGREGATE(15,6,ROW(Teilnehmer[Lfd. Nr.])/((Teilnehmer[Kleingruppe]=$E$4)),ROW()-6)-1,1),\"\")","v":""},{"$f":"IFERROR(VLOOKUP(B10,Teilnehmer[],2,FALSE),\"\")","v":""},{"$f":"IFERROR(VLOOKUP(B10,Teilnehmer[],3,FALSE),\"\")","v":""},{"$f":"IFERROR(VLOOKUP(B10,Teilnehmer[],40,FALSE),\"\")","v":""},null,null,null,null,{"$f":"E89","v":"KG6"},{"$f":"IF(ISBLANK($C$90)=TRUE,\"\",MAX(Tabelle_KG6[Alter am 01.04.]))","v":""},{"$f":"IF(ISBLANK($C$90)=TRUE,\"\",$C$90)","v":""},{"$f":"C89","v":""},{"$f":"COUNT(E91:E100)","v":0},{"$f":"SUBTOTAL(102,Tabelle_KG6[Alter am 01.04.])","v":0}]
[5,{"$f":"IFERROR(INDEX(Teilnehmer[Lfd. Nr.],_xlfn.AGGREGATE(15,6,ROW(Teilnehmer[Lfd. Nr.])/((Teilnehmer[Kleingruppe]=$E$4)),ROW()-6)-1,1),\"\")","v":""},{"$f":"IFERROR(VLOOKUP(B11,Teilnehmer[],2,FALSE),\"\")","v":""},{"$f":"IFERROR(VLOOKUP(B11,Teilnehmer[],3,FALSE),\"\")","v":""},{"$f":"IFERROR(VLOOKUP(B11,Teilnehmer[],40,FALSE),\"\")","v":""},null,null,null,null,"Ergebnis",{"$f":"SUBTOTAL(102,Kleingrp[älterste Fahrer])","v":0},{"$f":"(COUNTA(Kleingrp!L5:L10)-COUNTBLANK(Kleingrp!L5:L10))","v":0}]
[6,{"$f":"IFERROR(INDEX(Teilnehmer[Lfd. Nr.],_xlfn.AGGREGATE(15,6,ROW(Teilnehmer[Lfd. Nr.])/((Teilnehmer[Kleingruppe]=$E$4)),ROW()-6)-1,1),\"\")","v":""},{"$f":"IFERROR(VLOOKUP(B12,Teilnehmer[],2,FALSE),\"\")","v":""},{"$f":"IFERROR(VLOOKUP(B12,Teilnehmer[],3,FALSE),\"\")","v":""},{"$f":"IFERROR(VLOOKUP(B12,Teilnehmer[],40,FALSE),\"\")","v":""}]
[7,{"$f":"IFERROR(INDEX(Teilnehmer[Lfd. Nr.],_xlfn.AGGREGATE(15,6,ROW(Teilnehmer[Lfd. Nr.])/((Teilnehmer[Kleingruppe]=$E$4)),ROW()-6)-1,1),\"\")","v":""},{"$f":"IFERROR(VLOOKUP(B13,Teilnehmer[],2,FALSE),\"\")","v":""},{"$f":"IFERROR(VLOOKUP(B13,Teilnehmer[],3,FALSE),\"\")","v":""},{"$f":"IFERROR(VLOOKUP(B13,Teilnehmer[],40,FALSE),\"\")","v":""}]
[8,{"$f":"IFERROR(INDEX(Teilnehmer[Lfd. Nr.],_xlfn.AGGREGATE(15,6,ROW(Teilnehmer[Lfd. Nr.])/((Teilnehmer[Kleingruppe]=$E$4)),ROW()-6)-1,1),\"\")","v":""},{"$f":"IFERROR(VLOOKUP(B14,Teilnehmer[],2,FALSE),\"\")","v":""},{"$f":"IFERROR(VLOOKUP(B14,Teilnehmer[],3,FALSE),\"\")","v":""},{"$f":"IFERROR(VLOOKUP(B14,Teilnehmer[],40,FALSE),\"\")","v":""}]
[9,{"$f":"IFERROR(INDEX(Teilnehmer[Lfd. Nr.],_xlfn.AGGREGATE(15,6,ROW(Teilnehmer[Lfd. Nr.])/((Teilnehmer[Kleingruppe]=$E$4)),ROW()-6)-1,1),\"\")","v":""},{"$f":"IFERROR(VLOOKUP(B15,Teilnehmer[],2,FALSE),\"\")","v":""},{"$f":"IFERROR(VLOOKUP(B15,Teilnehmer[],3,FALSE),\"\")","v":""},{"$f":"IFERROR(VLOOKUP(B15,Teilnehmer[],40,FALSE),\"\")","v":""}]
[10,{"$f":"IFERROR(INDEX(Teilnehmer[Lfd. Nr.],_xlfn.AGGREGATE(15,6,ROW(Teilnehmer[Lfd. Nr.])/((Teilnehmer[Kleingruppe]=$E$4)),ROW()-6)-1,1),\"\")","v":""},{"$f":"IFERROR(VLOOKUP(B16,Teilnehmer[],2,FALSE),\"\")","v":""},{"$f":"IFERROR(VLOOKUP(B16,Teilnehmer[],3,FALSE),\"\")","v":""},{"$f":"IFERROR(VLOOKUP(B16,Teilnehmer[],40,FALSE),\"\")","v":""}]
[11,{"$f":"IFERROR(INDEX(Teilnehmer[Lfd. Nr.],_xlfn.AGGREGATE(15,6,ROW(Teilnehmer[Lfd. Nr.])/((Teilnehmer[Kleingruppe]=$E$4)),ROW()-6)-1,1),\"\")","v":""},{"$f":"IFERROR(VLOOKUP(B17,Teilnehmer[],2,FALSE),\"\")","v":""},{"$f":"IFERROR(VLOOKUP(B17,Teilnehmer[],3,FALSE),\"\")","v":""},{"$f":"IFERROR(VLOOKUP(B17,Teilnehmer[],40,FALSE),\"\")","v":""}]
[12,{"$f":"IFERROR(INDEX(Teilnehmer[Lfd. Nr.],_xlfn.AGGREGATE(15,6,ROW(Teilnehmer[Lfd. Nr.])/((Teilnehmer[Kleingruppe]=$E$4)),ROW()-6)-1,1),\"\")","v":""},{"$f":"IFERROR(VLOOKUP(B18,Teilnehmer[],2,FALSE),\"\")","v":""},{"$f":"IFERROR(VLOOKUP(B18,Teilnehmer[],3,FALSE),\"\")","v":""},{"$f":"IFERROR(VLOOKUP(B18,Teilnehmer[],40,FALSE),\"\")","v":""}]
["Anzahl Fahrer:",null,null,"Anzahl Ersatzfahrer:",null,null,null,{"$f":"OR(AND(C7<>\"\",(C19+E19)<>$N$5),AND(C7<>\"\",C19<3),AND(C7<>\"\",C19>8))","v":false}]
[]
["Kleingruppe",null,{"$f":"IFERROR(IF(Deckblatt!$C$9=0,\"\",Deckblatt!$C$9),\"\")","v":""},null,"KG2"]
["Name:",null,null,null,null,null,null,{"$f":"OR(AND(ISBLANK($C$22),$C$24<>\"\"),AND($N$6=0,$C$22<>\"\"))","v":false}]
["Fahrer","lf.Nr.","Name","Vorname","Alter am 01.04.","Altersklasse"]
[1,{"$f":"IFERROR(_xlfn.SINGLE(INDEX(Teilnehmer[Lfd. Nr.],_xlfn.AGGREGATE(15,6,ROW(Teilnehmer[Lfd. Nr.])/((Teilnehmer[Kleingruppe]=$E$21)),ROW()-23)-1,1)),\"\")","v":""},{"$f":"IFERROR(VLOOKUP(B24,Teilnehmer[],2,FALSE),\"\")","v":""},{"$f":"IFERROR(VLOOKUP(B24,Teilnehmer[],3,FALSE),\"\")","v":""},{"$f":"IFERROR(VLOOKUP(B24,Teilnehmer[],40,FALSE),\"\")","v":""},{"$f":"IF(K$6=0,\"\",IF(K$6<11,\"Junior Expert\",IF(K$6<13,\"Junior Expert\",IF(K$6<15,\"Junior Expert\",IF(K$6<17,\"Expert\",IF(K$6<19,\"Expert\",IF(K$6<21,\"Expert\",IF(K$6<23,\"Expert\",IF(K$6<25,\"Expert\",IF(K$6<99,\"Expert\",\"\"))))))))))","v":""}]
[{"$f":"A24+1","v":2},{"$f":"IFERROR(_xlfn.SINGLE(INDEX(Teilnehmer[Lfd. Nr.],_xlfn.AGGREGATE(15,6,ROW(Teilnehmer[Lfd. Nr.])/((Teilnehmer[Kleingruppe]=$E$21)),ROW()-23)-1,1)),\"\")","v":""},{"$f":"IFERROR(VLOOKUP(B25,Teilnehmer[],2,FALSE),\"\")","v":""},{"$f":"IFERROR(VLOOKUP(B25,Teilnehmer[],3,FALSE),\"\")","v":""},{"$f":"IFERROR(VLOOKUP(B25,Teilnehmer[],40,FALSE),\"\")","v":""}]
[{"$f":"A25+1","v":3},{"$f":"IFERROR(_xlfn.SINGLE(INDEX(Teilnehmer[Lfd. Nr.],_xlfn.AGGREGATE(15,6,ROW(Teilnehmer[Lfd. Nr.])/((Teilnehmer[Kleingruppe]=$E$21)),ROW()-23)-1,1)),\"\")","v":""},{"$f":"IFERROR(VLOOKUP(B26,Teilnehmer[],2,FALSE),\"\")","v":""},{"$f":"IFERROR(VLOOKUP(B26,Teilnehmer[],3,FALSE),\"\")","v":""},{"$f":"IFERROR(VLOOKUP(B26,Teilnehmer[],40,FALSE),\"\")","v":""}]
[4,{"$f":"IFERROR(_xlfn.SINGLE(INDEX(Teilnehmer[Lfd. Nr.],_xlfn.AGGREGATE(15,6,ROW(Teilnehmer[Lfd. Nr.])/((Teilnehmer[Kleingruppe]=$E$21)),ROW()-23)-1,1)),\"\")","v":""},{"$f":"IFERROR(VLOOKUP(B27,Teilnehmer[],2,FALSE),\"\")","v":""},{"$f":"IFERROR(VLOOKUP(B27,Teilnehmer[],3,FALSE),\"\")","v":""},{"$f":"IFERROR(VLOOKUP(B27,Teilnehmer[],40,FALSE),\"\")","v":""}]
[5,{"$f":"IFERROR(_xlfn.SINGLE(INDEX(Teilnehmer[Lfd. Nr.],_xlfn.AGGREGATE(15,6,ROW(Teilnehmer[Lfd. Nr.])/((Teilnehmer[Kleingruppe]=$E$21)),ROW()-23)-1,1)),\"\")","v":""},{"$f":"IFERROR(VLOOKUP(B28,Teilnehmer[],2,FALSE),\"\")","v":""},{"$f":"IFERROR(VLOOKUP(B28,Teilnehmer[],3,FALSE),\"\")","v":""},{"$f":"IFERROR(VLOOKUP(B28,Teilnehmer[],40,FALSE),\"\")","v":""}]
[6,{"$f":"IFERROR(_xlfn.SINGLE(INDEX(Teilnehmer[Lfd. Nr.],_xlfn.AGGREGATE(15,6,ROW(Teilnehmer[Lfd. Nr.])/((Teilnehmer[Kleingruppe]=$E$21)),ROW()-23)-1,1)),\"\")","v":""},{"$f":"IFERROR(VLOOKUP(B29,Teilnehmer[],2,FALSE),\"\")","v":""},{"$f":"IFERROR(VLOOKUP(B29,Teilnehmer[],3,FALSE),\"\")","v":""},{"$f":"IFERROR(VLOOKUP(B29,Teilnehmer[],40,FALSE),\"\")","v":""}]
[7,{"$f":"IFERROR(_xlfn.SINGLE(INDEX(Teilnehmer[Lfd. Nr.],_xlfn.AGGREGATE(15,6,ROW(Teilnehmer[Lfd. Nr.])/((Teilnehmer[Kleingruppe]=$E$21)),ROW()-23)-1,1)),\"\")","v":""},{"$f":"IFERROR(VLOOKUP(B30,Teilnehmer[],2,FALSE),\"\")","v":""},{"$f":"IFERROR(VLOOKUP(B30,Teilnehmer[],3,FALSE),\"\")","v":""},{"$f":"IFERROR(VLOOKUP(B30,Teilnehmer[],40,FALSE),\"\")","v":""}]
[8,{"$f":"IFERROR(_xlfn.SINGLE(INDEX(Teilnehmer[Lfd. Nr.],_xlfn.AGGREGATE(15,6,ROW(Teilnehmer[Lfd. Nr.])/((Teilnehmer[Kleingruppe]=$E$21)),ROW()-23)-1,1)),\"\")","v":""},{"$f":"IFERROR(VLOOKUP(B31,Teilnehmer[],2,FALSE),\"\")","v":""},{"$f":"IFERROR(VLOOKUP(B31,Teilnehmer[],3,FALSE),\"\")","v":""},{"$f":"IFERROR(VLOOKUP(B31,Teilnehmer[],40,FALSE),\"\")","v":""}]
[9,{"$f":"IFERROR(_xlfn.SINGLE(INDEX(Teilnehmer[Lfd. Nr.],_xlfn.AGGREGATE(15,6,ROW(Teilnehmer[Lfd. Nr.])/((Teilnehmer[Kleingruppe]=$E$21)),ROW()-23)-1,1)),\"\")","v":""},{"$f":"IFERROR(VLOOKUP(B32,Teilnehmer[],2,FALSE),\"\")","v":""},{"$f":"IFERROR(VLOOKUP(B32,Teilnehmer[],3,FALSE),\"\")","v":""},{"$f":"IFERROR(VLOOKUP(B32,Teilnehmer[],40,FALSE),\"\")","v":""}]
[10,{"$f":"IFERROR(_xlfn.SINGLE(INDEX(Teilnehmer[Lfd. Nr.],_xlfn.AGGREGATE(15,6,ROW(Teilnehmer[Lfd. Nr.])/((Teilnehmer[Kleingruppe]=$E$21)),ROW()-23)-1,1)),\"\")","v":""},{"$f":"IFERROR(VLOOKUP(B33,Teilnehmer[],2,FALSE),\"\")","v":""},{"$f":"IFERROR(VLOOKUP(B33,Teilnehmer[],3,FALSE),\"\")","v":""},{"$f":"IFERROR(VLOOKUP(B33,Teilnehmer[],40,FALSE),\"\")","v":""}]
[11,{"$f":"IFERROR(_xlfn.SINGLE(INDEX(Teilnehmer[Lfd. Nr.],_xlfn.AGGREGATE(15,6,ROW(Teilnehmer[Lfd. Nr.])/((Teilnehmer[Kleingruppe]=$E$21)),ROW()-23)-1,1)),\"\")","v":""},{"$f":"IFERROR(VLOOKUP(B34,Teilnehmer[],2,FALSE),\"\")","v":""},{"$f":"IFERROR(VLOOKUP(B34,Teilnehmer[],3,FALSE),\"\")","v":""},{"$f":"IFERROR(VLOOKUP(B34,Teilnehmer[],40,FALSE),\"\")","v":""}]
[12,{"$f":"IFERROR(_xlfn.SINGLE(INDEX(Teilnehmer[Lfd. Nr.],_xlfn.AGGREGATE(15,6,ROW(Teilnehmer[Lfd. Nr.])/((Teilnehmer[Kleingruppe]=$E$21)),ROW()-23)-1,1)),\"\")","v":""},{"$f":"IFERROR(VLOOKUP(B35,Teilnehmer[],2,FALSE),\"\")","v":""},{"$f":"IFERROR(VLOOKUP(B35,Teilnehmer[],3,FALSE),\"\")","v":""},{"$f":"IFERROR(VLOOKUP(B35,Teilnehmer[],40,FALSE),\"\")","v":""}]
["Anzahl Fahrer:",null,null,"Anzahl Ersatzfahrer:",null,null,null,{"$f":"OR(AND(C24<>\"\",(C36+E36)<>$N$6),AND(C24<>\"\",C36<3),AND(C24<>\"\",C36>8))","v":false}]
[]
["Kleingruppe",null,{"$f":"IFERROR(IF(Deckblatt!$C$9=0,\"\",Deckblatt!$C$9),\"\")","v":""},null,"KG3"]
["Name:",null,null,null,null,null,null,{"$f":"OR(AND(ISBLANK($C$39),$C$41<>\"\"),AND($N$7=0,$C$39<>\"\"))","v":false}]
["Fahrer","lf.Nr.","Name","Vorname","Alter am 01.04.","Altersklasse"]
[1,{"$f":"IFERROR(_xlfn.SINGLE(INDEX(Teilnehmer[Lfd. Nr.],_xlfn.AGGREGATE(15,6,ROW(Teilnehmer[Lfd. Nr.])/((Teilnehmer[Kleingruppe]=$E$38)),ROW()-40)-1,1)),\"\")","v":""},{"$f":"IFERROR(VLOOKUP(B41,Teilnehmer[],2,FALSE),\"\")","v":""},{"$f":"IFERROR(VLOOKUP(B41,Teilnehmer[],3,FALSE),\"\")","v":""},{"$f":"IFERROR(VLOOKUP(B41,Teilnehmer[],40,FALSE),\"\")","v":""},{"$f":"IF(K$7=0,\"\",IF(K$7<11,\"Junior Expert\",IF(K$7<13,\"Junior Expert\",IF(K$7<15,\"Junior Expert\",IF(K$7<17,\"Expert\",IF(K$7<19,\"Expert\",IF(K$7<21,\"Expert\",IF(K$7<23,\"Expert\",IF(K$7<25,\"Expert\",IF(K$7<99,\"Expert\",\"\"))))))))))","v":""}]
[{"$f":"A41+1","v":2},{"$f":"IFERROR(_xlfn.SINGLE(INDEX(Teilnehmer[Lfd. Nr.],_xlfn.AGGREGATE(15,6,ROW(Teilnehmer[Lfd. Nr.])/((Teilnehmer[Kleingruppe]=$E$38)),ROW()-40)-1,1)),\"\")","v":""},{"$f":"IFERROR(VLOOKUP(B42,Teilnehmer[],2,FALSE),\"\")","v":""},{"$f":"IFERROR(VLOOKUP(B42,Teilnehmer[],3,FALSE),\"\")","v":""},{"$f":"IFERROR(VLOOKUP(B42,Teilnehmer[],40,FALSE),\"\")","v":""}]
[{"$f":"A42+1","v":3},{"$f":"IFERROR(_xlfn.SINGLE(INDEX(Teilnehmer[Lfd. Nr.],_xlfn.AGGREGATE(15,6,ROW(Teilnehmer[Lfd. Nr.])/((Teilnehmer[Kleingruppe]=$E$38)),ROW()-40)-1,1)),\"\")","v":""},{"$f":"IFERROR(VLOOKUP(B43,Teilnehmer[],2,FALSE),\"\")","v":""},{"$f":"IFERROR(VLOOKUP(B43,Teilnehmer[],3,FALSE),\"\")","v":""},{"$f":"IFERROR(VLOOKUP(B43,Teilnehmer[],40,FALSE),\"\")","v":""}]
[4,{"$f":"IFERROR(_xlfn.SINGLE(INDEX(Teilnehmer[Lfd. Nr.],_xlfn.AGGREGATE(15,6,ROW(Teilnehmer[Lfd. Nr.])/((Teilnehmer[Kleingruppe]=$E$38)),ROW()-40)-1,1)),\"\")","v":""},{"$f":"IFERROR(VLOOKUP(B44,Teilnehmer[],2,FALSE),\"\")","v":""},{"$f":"IFERROR(VLOOKUP(B44,Teilnehmer[],3,FALSE),\"\")","v":""},{"$f":"IFERROR(VLOOKUP(B44,Teilnehmer[],40,FALSE),\"\")","v":""}]
[5,{"$f":"IFERROR(_xlfn.SINGLE(INDEX(Teilnehmer[Lfd. Nr.],_xlfn.AGGREGATE(15,6,ROW(Teilnehmer[Lfd. Nr.])/((Teilnehmer[Kleingruppe]=$E$38)),ROW()-40)-1,1)),\"\")","v":""},{"$f":"IFERROR(VLOOKUP(B45,Teilnehmer[],2,FALSE),\"\")","v":""},{"$f":"IFERROR(VLOOKUP(B45,Teilnehmer[],3,FALSE),\"\")","v":""},{"$f":"IFERROR(VLOOKUP(B45,Teilnehmer[],40,FALSE),\"\")","v":""}]
[6,{"$f":"IFERROR(_xlfn.SINGLE(INDEX(Teilnehmer[Lfd. Nr.],_xlfn.AGGREGATE(15,6,ROW(Teilnehmer[Lfd. Nr.])/((Teilnehmer[Kleingruppe]=$E$38)),ROW()-40)-1,1)),\"\")","v":""},{"$f":"IFERROR(VLOOKUP(B46,Teilnehmer[],2,FALSE),\"\")","v":""},{"$f":"IFERROR(VLOOKUP(B46,Teilnehmer[],3,FALSE),\"\")","v":""},{"$f":"IFERROR(VLOOKUP(B46,Teilnehmer[],40,FALSE),\"\")","v":""}]
[7,{"$f":"IFERROR(_xlfn.SINGLE(INDEX(Teilnehmer[Lfd. Nr.],_xlfn.AGGREGATE(15,6,ROW(Teilnehmer[Lfd. Nr.])/((Teilnehmer[Kleingruppe]=$E$38)),ROW()-40)-1,1)),\"\")","v":""},{"$f":"IFERROR(VLOOKUP(B47,Teilnehmer[],2,FALSE),\"\")","v":""},{"$f":"IFERROR(VLOOKUP(B47,Teilnehmer[],3,FALSE),\"\")","v":""},{"$f":"IFERROR(VLOOKUP(B47,Teilnehmer[],40,FALSE),\"\")","v":""}]
[8,{"$f":"IFERROR(_xlfn.SINGLE(INDEX(Teilnehmer[Lfd. Nr.],_xlfn.AGGREGATE(15,6,ROW(Teilnehmer[Lfd. Nr.])/((Teilnehmer[Kleingruppe]=$E$38)),ROW()-40)-1,1)),\"\")","v":""},{"$f":"IFERROR(VLOOKUP(B48,Teilnehmer[],2,FALSE),\"\")","v":""},{"$f":"IFERROR(VLOOKUP(B48,Teilnehmer[],3,FALSE),\"\")","v":""},{"$f":"IFERROR(VLOOKUP(B48,Teilnehmer[],40,FALSE),\"\")","v":""}]
[9,{"$f":"IFERROR(_xlfn.SINGLE(INDEX(Teilnehmer[Lfd. Nr.],_xlfn.AGGREGATE(15,6,ROW(Teilnehmer[Lfd. Nr.])/((Teilnehmer[Kleingruppe]=$E$38)),ROW()-40)-1,1)),\"\")","v":""},{"$f":"IFERROR(VLOOKUP(B49,Teilnehmer[],2,FALSE),\"\")","v":""},{"$f":"IFERROR(VLOOKUP(B49,Teilnehmer[],3,FALSE),\"\")","v":""},{"$f":"IFERROR(VLOOKUP(B49,Teilnehmer[],40,FALSE),\"\")","v":""}]
[10,{"$f":"IFERROR(_xlfn.SINGLE(INDEX(Teilnehmer[Lfd. Nr.],_xlfn.AGGREGATE(15,6,ROW(Teilnehmer[Lfd. Nr.])/((Teilnehmer[Kleingruppe]=$E$38)),ROW()-40)-1,1)),\"\")","v":""},{"$f":"IFERROR(VLOOKUP(B50,Teilnehmer[],2,FALSE),\"\")","v":""},{"$f":"IFERROR(VLOOKUP(B50,Teilnehmer[],3,FALSE),\"\")","v":""},{"$f":"IFERROR(VLOOKUP(B50,Teilnehmer[],40,FALSE),\"\")","v":""}]
[11,{"$f":"IFERROR(_xlfn.SINGLE(INDEX(Teilnehmer[Lfd. Nr.],_xlfn.AGGREGATE(15,6,ROW(Teilnehmer[Lfd. Nr.])/((Teilnehmer[Kleingruppe]=$E$38)),ROW()-40)-1,1)),\"\")","v":""},{"$f":"IFERROR(VLOOKUP(B51,Teilnehmer[],2,FALSE),\"\")","v":""},{"$f":"IFERROR(VLOOKUP(B51,Teilnehmer[],3,FALSE),\"\")","v":""},{"$f":"IFERROR(VLOOKUP(B51,Teilnehmer[],40,FALSE),\"\")","v":""}]
[12,{"$f":"IFERROR(_xlfn.SINGLE(INDEX(Teilnehmer[Lfd. Nr.],_xlfn.AGGREGATE(15,6,ROW(Teilnehmer[Lfd. Nr.])/((Teilnehmer[Kleingruppe]=$E$38)),ROW()-40)-1,1)),\"\")","v":""},{"$f":"IFERROR(VLOOKUP(B52,Teilnehmer[],2,FALSE),\"\")","v":""},{"$f":"IFERROR(VLOOKUP(B52,Teilnehmer[],3,FALSE),\"\")","v":""},{"$f":"IFERROR(VLOOKUP(B52,Teilnehmer[],40,FALSE),\"\")","v":""}]
["Anzahl Fahrer:",null,null,"Anzahl Ersatzfahrer:",null,null,null,{"$f":"OR(AND(C41<>\"\",(C53+E53)<>$N$7),AND(C41<>\"\",C53<3),AND(C41<>\"\",C53>8))","v":false}]
[]
["Kleingruppe",null,{"$f":"IFERROR(IF(Deckblatt!$C$9=0,\"\",Deckblatt!$C$9),\"\")","v":""},null,"KG4"]
["Name:",null,null,null,null,null,null,{"$f":"OR(AND(ISBLANK($C$56),$C$58<>\"\"),AND($N$8=0,$C$56<>\"\"))","v":false}]
["Fahrer","lf.Nr.","Name","Vorname","Alter am 01.04.","Altersklasse"]
[1,{"$f":"IFERROR(_xlfn.SINGLE(INDEX(Teilnehmer[Lfd. Nr.],_xlfn.AGGREGATE(15,6,ROW(Teilnehmer[Lfd. Nr.])/((Teilnehmer[Kleingruppe]=$E$55)),ROW()-57)-1,1)),\"\")","v":""},{"$f":"IFERROR(VLOOKUP(B58,Teilnehmer[],2,FALSE),\"\")","v":""},{"$f":"IFERROR(VLOOKUP(B58,Teilnehmer[],3,FALSE),\"\")","v":""},{"$f":"IFERROR(VLOOKUP(B58,Teilnehmer[],40,FALSE),\"\")","v":""},{"$f":"IF(K$8=0,\"\",IF(K$8<11,\"Junior Expert\",IF(K$8<13,\"Junior Expert\",IF(K$8<15,\"Junior Expert\",IF(K$8<17,\"Expert\",IF(K$8<19,\"Expert\",IF(K$8<21,\"Expert\",IF(K$8<23,\"Expert\",IF(K$8<25,\"Expert\",IF(K$8<99,\"Expert\",\"\"))))))))))","v":""}]
[{"$f":"A58+1","v":2},{"$f":"IFERROR(_xlfn.SINGLE(INDEX(Teilnehmer[Lfd. Nr.],_xlfn.AGGREGATE(15,6,ROW(Teilnehmer[Lfd. Nr.])/((Teilnehmer[Kleingruppe]=$E$55)),ROW()-57)-1,1)),\"\")","v":""},{"$f":"IFERROR(VLOOKUP(B59,Teilnehmer[],2,FALSE),\"\")","v":""},{"$f":"IFERROR(VLOOKUP(B59,Teilnehmer[],3,FALSE),\"\")","v":""},{"$f":"IFERROR(VLOOKUP(B59,Teilnehmer[],40,FALSE),\"\")","v":""}]
[{"$f":"A59+1","v":3},{"$f":"IFERROR(_xlfn.SINGLE(INDEX(Teilnehmer[Lfd. Nr.],_xlfn.AGGREGATE(15,6,ROW(Teilnehmer[Lfd. Nr.])/((Teilnehmer[Kleingruppe]=$E$55)),ROW()-57)-1,1)),\"\")","v":""},{"$f":"IFERROR(VLOOKUP(B60,Teilnehmer[],2,FALSE),\"\")","v":""},{"$f":"IFERROR(VLOOKUP(B60,Teilnehmer[],3,FALSE),\"\")","v":""},{"$f":"IFERROR(VLOOKUP(B60,Teilnehmer[],40,FALSE),\"\")","v":""}]
[4,{"$f":"IFERROR(_xlfn.SINGLE(INDEX(Teilnehmer[Lfd. Nr.],_xlfn.AGGREGATE(15,6,ROW(Teilnehmer[Lfd. Nr.])/((Teilnehmer[Kleingruppe]=$E$55)),ROW()-57)-1,1)),\"\")","v":""},{"$f":"IFERROR(VLOOKUP(B61,Teilnehmer[],2,FALSE),\"\")","v":""},{"$f":"IFERROR(VLOOKUP(B61,Teilnehmer[],3,FALSE),\"\")","v":""},{"$f":"IFERROR(VLOOKUP(B61,Teilnehmer[],40,FALSE),\"\")","v":""}]
[5,{"$f":"IFERROR(_xlfn.SINGLE(INDEX(Teilnehmer[Lfd. Nr.],_xlfn.AGGREGATE(15,6,ROW(Teilnehmer[Lfd. Nr.])/((Teilnehmer[Kleingruppe]=$E$55)),ROW()-57)-1,1)),\"\")","v":""},{"$f":"IFERROR(VLOOKUP(B62,Teilnehmer[],2,FALSE),\"\")","v":""},{"$f":"IFERROR(VLOOKUP(B62,Teilnehmer[],3,FALSE),\"\")","v":""},{"$f":"IFERROR(VLOOKUP(B62,Teilnehmer[],40,FALSE),\"\")","v":""}]
[6,{"$f":"IFERROR(_xlfn.SINGLE(INDEX(Teilnehmer[Lfd. Nr.],_xlfn.AGGREGATE(15,6,ROW(Teilnehmer[Lfd. Nr.])/((Teilnehmer[Kleingruppe]=$E$55)),ROW()-57)-1,1)),\"\")","v":""},{"$f":"IFERROR(VLOOKUP(B63,Teilnehmer[],2,FALSE),\"\")","v":""},{"$f":"IFERROR(VLOOKUP(B63,Teilnehmer[],3,FALSE),\"\")","v":""},{"$f":"IFERROR(VLOOKUP(B63,Teilnehmer[],40,FALSE),\"\")","v":""}]
[7,{"$f":"IFERROR(_xlfn.SINGLE(INDEX(Teilnehmer[Lfd. Nr.],_xlfn.AGGREGATE(15,6,ROW(Teilnehmer[Lfd. Nr.])/((Teilnehmer[Kleingruppe]=$E$55)),ROW()-57)-1,1)),\"\")","v":""},{"$f":"IFERROR(VLOOKUP(B64,Teilnehmer[],2,FALSE),\"\")","v":""},{"$f":"IFERROR(VLOOKUP(B64,Teilnehmer[],3,FALSE),\"\")","v":""},{"$f":"IFERROR(VLOOKUP(B64,Teilnehmer[],40,FALSE),\"\")","v":""}]
[8,{"$f":"IFERROR(_xlfn.SINGLE(INDEX(Teilnehmer[Lfd. Nr.],_xlfn.AGGREGATE(15,6,ROW(Teilnehmer[Lfd. Nr.])/((Teilnehmer[Kleingruppe]=$E$55)),ROW()-57)-1,1)),\"\")","v":""},{"$f":"IFERROR(VLOOKUP(B65,Teilnehmer[],2,FALSE),\"\")","v":""},{"$f":"IFERROR(VLOOKUP(B65,Teilnehmer[],3,FALSE),\"\")","v":""},{"$f":"IFERROR(VLOOKUP(B65,Teilnehmer[],40,FALSE),\"\")","v":""}]
[9,{"$f":"IFERROR(_xlfn.SINGLE(INDEX(Teilnehmer[Lfd. Nr.],_xlfn.AGGREGATE(15,6,ROW(Teilnehmer[Lfd. Nr.])/((Teilnehmer[Kleingruppe]=$E$55)),ROW()-57)-1,1)),\"\")","v":""},{"$f":"IFERROR(VLOOKUP(B66,Teilnehmer[],2,FALSE),\"\")","v":""},{"$f":"IFERROR(VLOOKUP(B66,Teilnehmer[],3,FALSE),\"\")","v":""},{"$f":"IFERROR(VLOOKUP(B66,Teilnehmer[],40,FALSE),\"\")","v":""}]
[10,{"$f":"IFERROR(_xlfn.SINGLE(INDEX(Teilnehmer[Lfd. Nr.],_xlfn.AGGREGATE(15,6,ROW(Teilnehmer[Lfd. Nr.])/((Teilnehmer[Kleingruppe]=$E$55)),ROW()-57)-1,1)),\"\")","v":""},{"$f":"IFERROR(VLOOKUP(B67,Teilnehmer[],2,FALSE),\"\")","v":""},{"$f":"IFERROR(VLOOKUP(B67,Teilnehmer[],3,FALSE),\"\")","v":""},{"$f":"IFERROR(VLOOKUP(B67,Teilnehmer[],40,FALSE),\"\")","v":""}]
[11,{"$f":"IFERROR(_xlfn.SINGLE(INDEX(Teilnehmer[Lfd. Nr.],_xlfn.AGGREGATE(15,6,ROW(Teilnehmer[Lfd. Nr.])/((Teilnehmer[Kleingruppe]=$E$55)),ROW()-57)-1,1)),\"\")","v":""},{"$f":"IFERROR(VLOOKUP(B68,Teilnehmer[],2,FALSE),\"\")","v":""},{"$f":"IFERROR(VLOOKUP(B68,Teilnehmer[],3,FALSE),\"\")","v":""},{"$f":"IFERROR(VLOOKUP(B68,Teilnehmer[],40,FALSE),\"\")","v":""}]
[12,{"$f":"IFERROR(_xlfn.SINGLE(INDEX(Teilnehmer[Lfd. Nr.],_xlfn.AGGREGATE(15,6,ROW(Teilnehmer[Lfd. Nr.])/((Teilnehmer[Kleingruppe]=$E$55)),ROW()-57)-1,1)),\"\")","v":""},{"$f":"IFERROR(VLOOKUP(B69,Teilnehmer[],2,FALSE),\"\")","v":""},{"$f":"IFERROR(VLOOKUP(B69,Teilnehmer[],3,FALSE),\"\")","v":""},{"$f":"IFERROR(VLOOKUP(B69,Teilnehmer[],40,FALSE),\"\")","v":""}]
["Anzahl Fahrer:",null,null,"Anzahl Ersatzfahrer:",null,null,null,{"$f":"OR(AND(C58<>\"\",(C70+E70)<>$N$8),AND(C58<>\"\",C70<3),AND(C58<>\"\",C70>8))","v":false}]
[]
["Kleingruppe",null,{"$f":"IFERROR(IF(Deckblatt!$C$9=0,\"\",Deckblatt!$C$9),\"\")","v":""},null,"KG5"]
["Name:",null,null,null,null,null,null,{"$f":"OR(AND(ISBLANK($C$73),$C$75<>\"\"),AND($N$9=0,$C$73<>\"\"))","v":false}]
["Fahrer","lf.Nr.","Name","Vorname","Alter am 01.04.","Altersklasse"]
[1,{"$f":"IFERROR(_xlfn.SINGLE(INDEX(Teilnehmer[Lfd. Nr.],_xlfn.AGGREGATE(15,6,ROW(Teilnehmer[Lfd. Nr.])/((Teilnehmer[Kleingruppe]=$E$72)),ROW()-74)-1,1)),\"\")","v":""},{"$f":"IFERROR(VLOOKUP(B75,Teilnehmer[],2,FALSE),\"\")","v":""},{"$f":"IFERROR(VLOOKUP(B75,Teilnehmer[],3,FALSE),\"\")","v":""},{"$f":"IFERROR(VLOOKUP(B75,Teilnehmer[],40,FALSE),\"\")","v":""},{"$f":"IF(K$9=0,\"\",IF(K$9<11,\"Junior Expert\",IF(K$9<13,\"Junior Expert\",IF(K$9<15,\"Junior Expert\",IF(K$9<17,\"Expert\",IF(K$9<19,\"Expert\",IF(K$9<21,\"Expert\",IF(K$9<23,\"Expert\",IF(K$9<25,\"Expert\",IF(K$9<99,\"Expert\",\"\"))))))))))","v":""}]
[{"$f":"A75+1","v":2},{"$f":"IFERROR(_xlfn.SINGLE(INDEX(Teilnehmer[Lfd. Nr.],_xlfn.AGGREGATE(15,6,ROW(Teilnehmer[Lfd. Nr.])/((Teilnehmer[Kleingruppe]=$E$72)),ROW()-74)-1,1)),\"\")","v":""},{"$f":"IFERROR(VLOOKUP(B76,Teilnehmer[],2,FALSE),\"\")","v":""},{"$f":"IFERROR(VLOOKUP(B76,Teilnehmer[],3,FALSE),\"\")","v":""},{"$f":"IFERROR(VLOOKUP(B76,Teilnehmer[],40,FALSE),\"\")","v":""}]
[{"$f":"A76+1","v":3},{"$f":"IFERROR(_xlfn.SINGLE(INDEX(Teilnehmer[Lfd. Nr.],_xlfn.AGGREGATE(15,6,ROW(Teilnehmer[Lfd. Nr.])/((Teilnehmer[Kleingruppe]=$E$72)),ROW()-74)-1,1)),\"\")","v":""},{"$f":"IFERROR(VLOOKUP(B77,Teilnehmer[],2,FALSE),\"\")","v":""},{"$f":"IFERROR(VLOOKUP(B77,Teilnehmer[],3,FALSE),\"\")","v":""},{"$f":"IFERROR(VLOOKUP(B77,Teilnehmer[],40,FALSE),\"\")","v":""}]
[4,{"$f":"IFERROR(_xlfn.SINGLE(INDEX(Teilnehmer[Lfd. Nr.],_xlfn.AGGREGATE(15,6,ROW(Teilnehmer[Lfd. Nr.])/((Teilnehmer[Kleingruppe]=$E$72)),ROW()-74)-1,1)),\"\")","v":""},{"$f":"IFERROR(VLOOKUP(B78,Teilnehmer[],2,FALSE),\"\")","v":""},{"$f":"IFERROR(VLOOKUP(B78,Teilnehmer[],3,FALSE),\"\")","v":""},{"$f":"IFERROR(VLOOKUP(B78,Teilnehmer[],40,FALSE),\"\")","v":""}]
[5,{"$f":"IFERROR(_xlfn.SINGLE(INDEX(Teilnehmer[Lfd. Nr.],_xlfn.AGGREGATE(15,6,ROW(Teilnehmer[Lfd. Nr.])/((Teilnehmer[Kleingruppe]=$E$72)),ROW()-74)-1,1)),\"\")","v":""},{"$f":"IFERROR(VLOOKUP(B79,Teilnehmer[],2,FALSE),\"\")","v":""},{"$f":"IFERROR(VLOOKUP(B79,Teilnehmer[],3,FALSE),\"\")","v":""},{"$f":"IFERROR(VLOOKUP(B79,Teilnehmer[],40,FALSE),\"\")","v":""}]
[6,{"$f":"IFERROR(_xlfn.SINGLE(INDEX(Teilnehmer[Lfd. Nr.],_xlfn.AGGREGATE(15,6,ROW(Teilnehmer[Lfd. Nr.])/((Teilnehmer[Kleingruppe]=$E$72)),ROW()-74)-1,1)),\"\")","v":""},{"$f":"IFERROR(VLOOKUP(B80,Teilnehmer[],2,FALSE),\"\")","v":""},{"$f":"IFERROR(VLOOKUP(B80,Teilnehmer[],3,FALSE),\"\")","v":""},{"$f":"IFERROR(VLOOKUP(B80,Teilnehmer[],40,FALSE),\"\")","v":""}]
[7,{"$f":"IFERROR(_xlfn.SINGLE(INDEX(Teilnehmer[Lfd. Nr.],_xlfn.AGGREGATE(15,6,ROW(Teilnehmer[Lfd. Nr.])/((Teilnehmer[Kleingruppe]=$E$72)),ROW()-74)-1,1)),\"\")","v":""},{"$f":"IFERROR(VLOOKUP(B81,Teilnehmer[],2,FALSE),\"\")","v":""},{"$f":"IFERROR(VLOOKUP(B81,Teilnehmer[],3,FALSE),\"\")","v":""},{"$f":"IFERROR(VLOOKUP(B81,Teilnehmer[],40,FALSE),\"\")","v":""}]
[8,{"$f":"IFERROR(_xlfn.SINGLE(INDEX(Teilnehmer[Lfd. Nr.],_xlfn.AGGREGATE(15,6,ROW(Teilnehmer[Lfd. Nr.])/((Teilnehmer[Kleingruppe]=$E$72)),ROW()-74)-1,1)),\"\")","v":""},{"$f":"IFERROR(VLOOKUP(B82,Teilnehmer[],2,FALSE),\"\")","v":""},{"$f":"IFERROR(VLOOKUP(B82,Teilnehmer[],3,FALSE),\"\")","v":""},{"$f":"IFERROR(VLOOKUP(B82,Teilnehmer[],40,FALSE),\"\")","v":""}]
[9,{"$f":"IFERROR(_xlfn.SINGLE(INDEX(Teilnehmer[Lfd. Nr.],_xlfn.AGGREGATE(15,6,ROW(Teilnehmer[Lfd. Nr.])/((Teilnehmer[Kleingruppe]=$E$72)),ROW()-74)-1,1)),\"\")","v":""},{"$f":"IFERROR(VLOOKUP(B83,Teilnehmer[],2,FALSE),\"\")","v":""},{"$f":"IFERROR(VLOOKUP(B83,Teilnehmer[],3,FALSE),\"\")","v":""},{"$f":"IFERROR(VLOOKUP(B83,Teilnehmer[],40,FALSE),\"\")","v":""}]
[10,{"$f":"IFERROR(_xlfn.SINGLE(INDEX(Teilnehmer[Lfd. Nr.],_xlfn.AGGREGATE(15,6,ROW(Teilnehmer[Lfd. Nr.])/((Teilnehmer[Kleingruppe]=$E$72)),ROW()-74)-1,1)),\"\")","v":""},{"$f":"IFERROR(VLOOKUP(B84,Teilnehmer[],2,FALSE),\"\")","v":""},{"$f":"IFERROR(VLOOKUP(B84,Teilnehmer[],3,FALSE),\"\")","v":""},{"$f":"IFERROR(VLOOKUP(B84,Teilnehmer[],40,FALSE),\"\")","v":""}]
[11,{"$f":"IFERROR(_xlfn.SINGLE(INDEX(Teilnehmer[Lfd. Nr.],_xlfn.AGGREGATE(15,6,ROW(Teilnehmer[Lfd. Nr.])/((Teilnehmer[Kleingruppe]=$E$72)),ROW()-74)-1,1)),\"\")","v":""},{"$f":"IFERROR(VLOOKUP(B85,Teilnehmer[],2,FALSE),\"\")","v":""},{"$f":"IFERROR(VLOOKUP(B85,Teilnehmer[],3,FALSE),\"\")","v":""},{"$f":"IFERROR(VLOOKUP(B85,Teilnehmer[],40,FALSE),\"\")","v":""}]
[12,{"$f":"IFERROR(_xlfn.SINGLE(INDEX(Teilnehmer[Lfd. Nr.],_xlfn.AGGREGATE(15,6,ROW(Teilnehmer[Lfd. Nr.])/((Teilnehmer[Kleingruppe]=$E$72)),ROW()-74)-1,1)),\"\")","v":""},{"$f":"IFERROR(VLOOKUP(B86,Teilnehmer[],2,FALSE),\"\")","v":""},{"$f":"IFERROR(VLOOKUP(B86,Teilnehmer[],3,FALSE),\"\")","v":""},{"$f":"IFERROR(VLOOKUP(B86,Teilnehmer[],40,FALSE),\"\")","v":""}]
["Anzahl Fahrer:",null,null,"Anzahl Ersatzfahrer:",null,null,null,{"$f":"OR(AND(C75<>\"\",(C87+E87)<>$N$9),AND(C75<>\"\",C87<3),AND(C75<>\"\",C87>8))","v":false}]
[]
["Kleingruppe",null,{"$f":"IFERROR(IF(Deckblatt!$C$9=0,\"\",Deckblatt!$C$9),\"\")","v":""},null,"KG6"]
["Name:",null,null,null,null,null,null,{"$f":"OR(AND(ISBLANK($C$90),$C$92<>\"\"),AND($N$10=0,$C$90<>\"\"))","v":false}]
["Fahrer","lf.Nr.","Name","Vorname","Alter am 01.04.","Altersklasse"]
[1,{"$f":"IFERROR(_xlfn.SINGLE(INDEX(Teilnehmer[Lfd. Nr.],_xlfn.AGGREGATE(15,6,ROW(Teilnehmer[Lfd. Nr.])/((Teilnehmer[Kleingruppe]=$E$89)),ROW()-91)-1,1)),\"\")","v":""},{"$f":"IFERROR(VLOOKUP(B92,Teilnehmer[],2,FALSE),\"\")","v":""},{"$f":"IFERROR(VLOOKUP(B92,Teilnehmer[],3,FALSE),\"\")","v":""},{"$f":"IFERROR(VLOOKUP(B92,Teilnehmer[],40,FALSE),\"\")","v":""},{"$f":"IF(K$10=0,\"\",IF(K$10<11,\"Junior Expert\",IF(K$10<13,\"Junior Expert\",IF(K$10<15,\"Junior Expert\",IF(K$10<17,\"Expert\",IF(K$10<19,\"Expert\",IF(K$10<21,\"Expert\",IF(K$10<23,\"Expert\",IF(K$10<25,\"Expert\",IF(K$10<99,\"Expert\",\"\"))))))))))","v":""}]
[{"$f":"A92+1","v":2},{"$f":"IFERROR(_xlfn.SINGLE(INDEX(Teilnehmer[Lfd. Nr.],_xlfn.AGGREGATE(15,6,ROW(Teilnehmer[Lfd. Nr.])/((Teilnehmer[Kleingruppe]=$E$89)),ROW()-91)-1,1)),\"\")","v":""},{"$f":"IFERROR(VLOOKUP(B93,Teilnehmer[],2,FALSE),\"\")","v":""},{"$f":"IFERROR(VLOOKUP(B93,Teilnehmer[],3,FALSE),\"\")","v":""},{"$f":"IFERROR(VLOOKUP(B93,Teilnehmer[],40,FALSE),\"\")","v":""}]
[{"$f":"A93+1","v":3},{"$f":"IFERROR(_xlfn.SINGLE(INDEX(Teilnehmer[Lfd. Nr.],_xlfn.AGGREGATE(15,6,ROW(Teilnehmer[Lfd. Nr.])/((Teilnehmer[Kleingruppe]=$E$89)),ROW()-91)-1,1)),\"\")","v":""},{"$f":"IFERROR(VLOOKUP(B94,Teilnehmer[],2,FALSE),\"\")","v":""},{"$f":"IFERROR(VLOOKUP(B94,Teilnehmer[],3,FALSE),\"\")","v":""},{"$f":"IFERROR(VLOOKUP(B94,Teilnehmer[],40,FALSE),\"\")","v":""}]
[4,{"$f":"IFERROR(_xlfn.SINGLE(INDEX(Teilnehmer[Lfd. Nr.],_xlfn.AGGREGATE(15,6,ROW(Teilnehmer[Lfd. Nr.])/((Teilnehmer[Kleingruppe]=$E$89)),ROW()-91)-1,1)),\"\")","v":""},{"$f":"IFERROR(VLOOKUP(B95,Teilnehmer[],2,FALSE),\"\")","v":""},{"$f":"IFERROR(VLOOKUP(B95,Teilnehmer[],3,FALSE),\"\")","v":""},{"$f":"IFERROR(VLOOKUP(B95,Teilnehmer[],40,FALSE),\"\")","v":""}]
[5,{"$f":"IFERROR(_xlfn.SINGLE(INDEX(Teilnehmer[Lfd. Nr.],_xlfn.AGGREGATE(15,6,ROW(Teilnehmer[Lfd. Nr.])/((Teilnehmer[Kleingruppe]=$E$89)),ROW()-91)-1,1)),\"\")","v":""},{"$f":"IFERROR(VLOOKUP(B96,Teilnehmer[],2,FALSE),\"\")","v":""},{"$f":"IFERROR(VLOOKUP(B96,Teilnehmer[],3,FALSE),\"\")","v":""},{"$f":"IFERROR(VLOOKUP(B96,Teilnehmer[],40,FALSE),\"\")","v":""}]
[6,{"$f":"IFERROR(_xlfn.SINGLE(INDEX(Teilnehmer[Lfd. Nr.],_xlfn.AGGREGATE(15,6,ROW(Teilnehmer[Lfd. Nr.])/((Teilnehmer[Kleingruppe]=$E$89)),ROW()-91)-1,1)),\"\")","v":""},{"$f":"IFERROR(VLOOKUP(B97,Teilnehmer[],2,FALSE),\"\")","v":""},{"$f":"IFERROR(VLOOKUP(B97,Teilnehmer[],3,FALSE),\"\")","v":""},{"$f":"IFERROR(VLOOKUP(B97,Teilnehmer[],40,FALSE),\"\")","v":""}]
[7,{"$f":"IFERROR(_xlfn.SINGLE(INDEX(Teilnehmer[Lfd. Nr.],_xlfn.AGGREGATE(15,6,ROW(Teilnehmer[Lfd. Nr.])/((Teilnehmer[Kleingruppe]=$E$89)),ROW()-91)-1,1)),\"\")","v":""},{"$f":"IFERROR(VLOOKUP(B98,Teilnehmer[],2,FALSE),\"\")","v":""},{"$f":"IFERROR(VLOOKUP(B98,Teilnehmer[],3,FALSE),\"\")","v":""},{"$f":"IFERROR(VLOOKUP(B98,Teilnehmer[],40,FALSE),\"\")","v":""}]
[8,{"$f":"IFERROR(_xlfn.SINGLE(INDEX(Teilnehmer[Lfd. Nr.],_xlfn.AGGREGATE(15,6,ROW(Teilnehmer[Lfd. Nr.])/((Teilnehmer[Kleingruppe]=$E$89)),ROW()-91)-1,1)),\"\")","v":""},{"$f":"IFERROR(VLOOKUP(B99,Teilnehmer[],2,FALSE),\"\")","v":""},{"$f":"IFERROR(VLOOKUP(B99,Teilnehmer[],3,FALSE),\"\")","v":""},{"$f":"IFERROR(VLOOKUP(B99,Teilnehmer[],40,FALSE),\"\")","v":""}]
[9,{"$f":"IFERROR(_xlfn.SINGLE(INDEX(Teilnehmer[Lfd. Nr.],_xlfn.AGGREGATE(15,6,ROW(Teilnehmer[Lfd. Nr.])/((Teilnehmer[Kleingruppe]=$E$89)),ROW()-91)-1,1)),\"\")","v":""},{"$f":"IFERROR(VLOOKUP(B100,Teilnehmer[],2,FALSE),\"\")","v":""},{"$f":"IFERROR(VLOOKUP(B100,Teilnehmer[],3,FALSE),\"\")","v":""},{"$f":"IFERROR(VLOOKUP(B100,Teilnehmer[],40,FALSE),\"\")","v":""}]
[10,{"$f":"IFERROR(_xlfn.SINGLE(INDEX(Teilnehmer[Lfd. Nr.],_xlfn.AGGREGATE(15,6,ROW(Teilnehmer[Lfd. Nr.])/((Teilnehmer[Kleingruppe]=$E$89)),ROW()-91)-1,1)),\"\")","v":""},{"$f":"IFERROR(VLOOKUP(B101,Teilnehmer[],2,FALSE),\"\")","v":""},{"$f":"IFERROR(VLOOKUP(B101,Teilnehmer[],3,FALSE),\"\")","v":""},{"$f":"IFERROR(VLOOKUP(B101,Teilnehmer[],40,FALSE),\"\")","v":""}]
[11,{"$f":"IFERROR(_xlfn.SINGLE(INDEX(Teilnehmer[Lfd. Nr.],_xlfn.AGGREGATE(15,6,ROW(Teilnehmer[Lfd. Nr.])/((Teilnehmer[Kleingruppe]=$E$89)),ROW()-91)-1,1)),\"\")","v":""},{"$f":"IFERROR(VLOOKUP(B102,Teilnehmer[],2,FALSE),\"\")","v":""},{"$f":"IFERROR(VLOOKUP(B102,Teilnehmer[],3,FALSE),\"\")","v":""},{"$f":"IFERROR(VLOOKUP(B102,Teilnehmer[],40,FALSE),\"\")","v":""}]
[12,{"$f":"IFERROR(_xlfn.SINGLE(INDEX(Teilnehmer[Lfd. Nr.],_xlfn.AGGREGATE(15,6,ROW(Teilnehmer[Lfd. Nr.])/((Teilnehmer[Kleingruppe]=$E$89)),ROW()-91)-1,1)),\"\")","v":""},{"$f":"IFERROR(VLOOKUP(B103,Teilnehmer[],2,FALSE),\"\")","v":""},{"$f":"IFERROR(VLOOKUP(B103,Teilnehmer[],3,FALSE),\"\")","v":""},{"$f":"IFERROR(VLOOKUP(B103,Teilnehmer[],40,FALSE),\"\")","v":""}]
["Anzahl Fahrer:",null,null,"Anzahl Ersatzfahrer:",null,null,null,{"$f":"OR(AND(C92<>\"\",(C104+E104)<>$N$10),AND(C92<>\"\",C104<3),AND(C92<>\"\",C104>8))","v":false}]
[null,null,null,null,null,null,null,{"$f":"OR(H104,H90,H87,H73,H70,H56,H53,H39,H36,H22,H19,H5)","v":false}]

{"sheet":"Großgrp","index":7,"n_rows":61,"n_cols":30,"rows_kept":61,"cut":false,"hidden":true,"merged":[[6,19,29,19],[35,19,58,19],[35,12,58,12],[35,5,58,5],[1,4,1,7],[4,2,4,4],[4,9,4,11],[4,16,4,18],[33,2,33,4],[33,9,33,11],[33,16,33,18],[6,5,29,5],[6,12,29,12],[1,2,1,3]]}
["Süddeutsche Meisterschaft Einrad Freestyle 🧡"]
["Großgruppe.",null,{"$f":"Deckblatt!C2","v":"2026-10-18"}]
[]
["Großgruppe",null,{"$f":"IFERROR(IF(Deckblatt!$C$9=0,\"\",Deckblatt!$C$9),\"\")","v":""},null,"GG1",null,null,"Großgruppe",null,{"$f":"IFERROR(IF(Deckblatt!$C$9=0,\"\",Deckblatt!$C$9),\"\")","v":""},null,"GG2",null,null,"Großgruppe",null,{"$f":"IFERROR(IF(Deckblatt!$C$9=0,\"\",Deckblatt!$C$9),\"\")","v":""},null,"GG3",null,null,null,null,null,"KürNr.","älterste Fahrer","Kürname","Verein","Anzahl Fahrer","Anzahl Fahrer2"]
["Name:",null,null,null,null,null,null,"Name:",null,null,null,null,null,null,"Name:",null,null,null,null,null,null,{"$f":"OR(AND(ISBLANK($C$5),$C$7<>\"\"),AND($AC$5=0,$C$5<>\"\"))","v":false},{"$f":"OR(AND(ISBLANK($J$5),$J$7<>\"\"),AND($AC$6=0,$J$5<>\"\"))","v":false},{"$f":"OR(AND(ISBLANK($Q$5),$Q$7<>\"\"),AND($AC$7=0,$Q$5<>\"\"))","v":false},{"$f":"E4","v":"GG1"},{"$f":"IF(ISBLANK($C$5)=TRUE,\"\",MAX(Tabelle18214[Alter am 01.04.]))","v":""},{"$f":"IF(ISBLANK($C$5)=TRUE,\"\",$C$5)","v":""},{"$f":"C4","v":""},{"$f":"COUNT(Tabelle18214[Alter am 01.04.])","v":0},{"$f":"SUBTOTAL(102,Tabelle18214[Alter am 01.04.])","v":0}]
["Fahrer","lf.Nr.","Name","Vorname","Alter am 01.04.","Altersklasse",null,"Fahrer","lf.Nr.","Name","Vorname","Alter am 01.04.","Altersklasse",null,"Fahrer","lf.Nr.","Name","Vorname","Alter am 01.04.","Altersklasse",null,null,null,null,{"$f":"L4","v":"GG2"},{"$f":"IF(ISBLANK($J$5)=TRUE,\"\",MAX(Tabelle1821115[Alter am 01.04.]))","v":""},{"$f":"IF(ISBLANK($J$5)=TRUE,\"\",$J$5)","v":""},{"$f":"J4","v":""},{"$f":"COUNT(Tabelle1821115[Alter am 01.04.])","v":0},{"$f":"SUBTOTAL(102,Tabelle1821115[Alter am 01.04.])","v":0}]
[1,{"$f":"IFERROR(INDEX(Teilnehmer[Lfd. Nr.],_xlfn.AGGREGATE(15,6,ROW(Teilnehmer[Lfd. Nr.])/((Teilnehmer[Großgruppe]=$E$4)),ROW()-6)-1,1),\"\")","v":""},{"$f":"IFERROR(VLOOKUP(B7,Teilnehmer[],2,FALSE),\"\")","v":""},{"$f":"IFERROR(VLOOKUP(B7,Teilnehmer[],3,FALSE),\"\")","v":""},{"$f":"IFERROR(VLOOKUP(B7,Teilnehmer[],40,FALSE),\"\")","v":""},{"$f":"IF($Z$5=0,\"\",IF($Z$5<11,\"Junior Expert\",IF($Z$5<13,\"Junior Expert\",IF($Z$5<15,\"Junior Expert\",IF($Z$5<17,\"Expert\",IF($Z$5<19,\"Expert\",IF($Z$5<21,\"Expert\",IF($Z$5<23,\"Expert\",IF($Z$5<25,\"Expert\",IF($Z$5<99,\"Expert\",\"\"))))))))))","v":""},null,1,{"$f":"IFERROR(INDEX(Teilnehmer[Lfd. Nr.],_xlfn.AGGREGATE(15,6,ROW(Teilnehmer[Lfd. Nr.])/((Teilnehmer[Großgruppe]=$L$4)),ROW()-6)-1,1),\"\")","v":""},{"$f":"IFERROR(VLOOKUP(I7,Teilnehmer[],2,FALSE),\"\")","v":""},{"$f":"IFERROR(VLOOKUP(I7,Teilnehmer[],3,FALSE),\"\")","v":""},{"$f":"IFERROR(VLOOKUP(I7,Teilnehmer[],40,FALSE),\"\")","v":""},{"$f":"IF($Z$6=0,\"\",IF($Z$6<11,\"Junior Expert\",IF($Z$6<13,\"Junior Expert\",IF($Z$6<15,\"Junior Expert\",IF($Z$6<17,\"Expert\",IF($Z$6<19,\"Expert\",IF($Z$6<21,\"Expert\",IF($Z$6<23,\"Expert\",IF($Z$6<25,\"Expert\",IF($Z$6<99,\"Expert\",\"\"))))))))))","v":""},null,1,{"$f":"IFERROR(INDEX(Teilnehmer[Lfd. Nr.],_xlfn.AGGREGATE(15,6,ROW(Teilnehmer[Lfd. Nr.])/((Teilnehmer[Großgruppe]=$S$4)),ROW()-6)-1,1),\"\")","v":""},{"$f":"IFERROR(VLOOKUP(P7,Teilnehmer[],2,FALSE),\"\")","v":""},{"$f":"IFERROR(VLOOKUP(P7,Teilnehmer[],3,FALSE),\"\")","v":""},{"$f":"IFERROR(VLOOKUP(P7,Teilnehmer[],40,FALSE),\"\")","v":""},{"$f":"IF($Z$7=0,\"\",IF($Z$7<11,\"Junior Expert\",IF($Z$7<13,\"Junior Expert\",IF($Z$7<15,\"Junior Expert\",IF($Z$7<17,\"Expert\",IF($Z$7<19,\"Expert\",IF($Z$7<21,\"Expert\",IF($Z$7<23,\"Expert\",IF($Z$7<25,\"Expert\",IF($Z$7<99,\"Expert\",\"\"))))))))))","v":""},null,null,null,null,{"$f":"S4","v":"GG3"},{"$f":"IF(ISBLANK($Q$5)=TRUE,\"\",MAX(Tabelle5[Alter am 01.04.]))","v":""},{"$f":"IF(ISBLANK($Q$5)=TRUE,\"\",$Q$5)","v":""},{"$f":"Q4","v":""},{"$f":"COUNT(Tabelle5[Alter am 01.04.])","v":0},{"$f":"SUBTOTAL(102,Tabelle5[Alter am 01.04.])","v":0}]
[{"$f":"A7+1","v":2},{"$f":"IFERROR(INDEX(Teilnehmer[Lfd. Nr.],_xlfn.AGGREGATE(15,6,ROW(Teilnehmer[Lfd. Nr.])/((Teilnehmer[Großgruppe]=$E$4)),ROW()-6)-1,1),\"\")","v":""},{"$f":"IFERROR(VLOOKUP(B8,Teilnehmer[],2,FALSE),\"\")","v":""},{"$f":"IFERROR(VLOOKUP(B8,Teilnehmer[],3,FALSE),\"\")","v":""},{"$f":"IFERROR(VLOOKUP(B8,Teilnehmer[],40,FALSE),\"\")","v":""},null,null,{"$f":"H7+1","v":2},{"$f":"IFERROR(INDEX(Teilnehmer[Lfd. Nr.],_xlfn.AGGREGATE(15,6,ROW(Teilnehmer[Lfd. Nr.])/((Teilnehmer[Großgruppe]=$L$4)),ROW()-6)-1,1),\"\")","v":""},{"$f":"IFERROR(VLOOKUP(I8,Teilnehmer[],2,FALSE),\"\")","v":""},{"$f":"IFERROR(VLOOKUP(I8,Teilnehmer[],3,FALSE),\"\")","v":""},{"$f":"IFERROR(VLOOKUP(I8,Teilnehmer[],40,FALSE),\"\")","v":""},null,null,{"$f":"O7+1","v":2},{"$f":"IFERROR(INDEX(Teilnehmer[Lfd. Nr.],_xlfn.AGGREGATE(15,6,ROW(Teilnehmer[Lfd. Nr.])/((Teilnehmer[Großgruppe]=$S$4)),ROW()-6)-1,1),\"\")","v":""},{"$f":"IFERROR(VLOOKUP(P8,Teilnehmer[],2,FALSE),\"\")","v":""},{"$f":"IFERROR(VLOOKUP(P8,Teilnehmer[],3,FALSE),\"\")","v":""},{"$f":"IFERROR(VLOOKUP(P8,Teilnehmer[],40,FALSE),\"\")","v":""},null,null,null,null,null,{"$f":"E33","v":"GG4"},{"$f":"IF(ISBLANK($C$34)=TRUE,\"\",MAX(Tabelle_GG4[Alter am 01.04.]))","v":""},{"$f":"IF(ISBLANK($C$34)=TRUE,\"\",$C$34)","v":""},{"$f":"C33","v":""},{"$f":"COUNT(Tabelle_GG4[Alter am 01.04.])","v":0},{"$f":"SUBTOTAL(102,Tabelle_GG4[Alter am 01.04.])","v":0}]
[{"$f":"A8+1","v":3},{"$f":"IFERROR(INDEX(Teilnehmer[Lfd. Nr.],_xlfn.AGGREGATE(15,6,ROW(Teilnehmer[Lfd. Nr.])/((Teilnehmer[Großgruppe]=$E$4)),ROW()-6)-1,1),\"\")","v":""},{"$f":"IFERROR(VLOOKUP(B9,Teilnehmer[],2,FALSE),\"\")","v":""},{"$f":"IFERROR(VLOOKUP(B9,Teilnehmer[],3,FALSE),\"\")","v":""},{"$f":"IFERROR(VLOOKUP(B9,Teilnehmer[],40,FALSE),\"\")","v":""},null,null,{"$f":"H8+1","v":3},{"$f":"IFERROR(INDEX(Teilnehmer[Lfd. Nr.],_xlfn.AGGREGATE(15,6,ROW(Teilnehmer[Lfd. Nr.])/((Teilnehmer[Großgruppe]=$L$4)),ROW()-6)-1,1),\"\")","v":""},{"$f":"IFERROR(VLOOKUP(I9,Teilnehmer[],2,FALSE),\"\")","v":""},{"$f":"IFERROR(VLOOKUP(I9,Teilnehmer[],3,FALSE),\"\")","v":""},{"$f":"IFERROR(VLOOKUP(I9,Teilnehmer[],40,FALSE),\"\")","v":""},null,null,{"$f":"O8+1","v":3},{"$f":"IFERROR(INDEX(Teilnehmer[Lfd. Nr.],_xlfn.AGGREGATE(15,6,ROW(Teilnehmer[Lfd. Nr.])/((Teilnehmer[Großgruppe]=$S$4)),ROW()-6)-1,1),\"\")","v":""},{"$f":"IFERROR(VLOOKUP(P9,Teilnehmer[],2,FALSE),\"\")","v":""},{"$f":"IFERROR(VLOOKUP(P9,Teilnehmer[],3,FALSE),\"\")","v":""},{"$f":"IFERROR(VLOOKUP(P9,Teilnehmer[],40,FALSE),\"\")","v":""},null,null,null,null,null,{"$f":"L33","v":"GG5"},{"$f":"IF(ISBLANK($J$34)=TRUE,\"\",MAX(Tabelle_GG5[Alter am 01.04.]))","v":""},{"$f":"IF(ISBLANK($J$34)=TRUE,\"\",$J$34)","v":""},{"$f":"J33","v":""},{"$f":"COUNT(Tabelle_GG4[Alter am 01.04.])","v":0},{"$f":"SUBTOTAL(102,Tabelle_GG5[Alter am 01.04.])","v":0}]
[4,{"$f":"IFERROR(INDEX(Teilnehmer[Lfd. Nr.],_xlfn.AGGREGATE(15,6,ROW(Teilnehmer[Lfd. Nr.])/((Teilnehmer[Großgruppe]=$E$4)),ROW()-6)-1,1),\"\")","v":""},{"$f":"IFERROR(VLOOKUP(B10,Teilnehmer[],2,FALSE),\"\")","v":""},{"$f":"IFERROR(VLOOKUP(B10,Teilnehmer[],3,FALSE),\"\")","v":""},{"$f":"IFERROR(VLOOKUP(B10,Teilnehmer[],40,FALSE),\"\")","v":""},null,null,4,{"$f":"IFERROR(INDEX(Teilnehmer[Lfd. Nr.],_xlfn.AGGREGATE(15,6,ROW(Teilnehmer[Lfd. Nr.])/((Teilnehmer[Großgruppe]=$L$4)),ROW()-6)-1,1),\"\")","v":""},{"$f":"IFERROR(VLOOKUP(I10,Teilnehmer[],2,FALSE),\"\")","v":""},{"$f":"IFERROR(VLOOKUP(I10,Teilnehmer[],3,FALSE),\"\")","v":""},{"$f":"IFERROR(VLOOKUP(I10,Teilnehmer[],40,FALSE),\"\")","v":""},null,null,4,{"$f":"IFERROR(INDEX(Teilnehmer[Lfd. Nr.],_xlfn.AGGREGATE(15,6,ROW(Teilnehmer[Lfd. Nr.])/((Teilnehmer[Großgruppe]=$S$4)),ROW()-6)-1,1),\"\")","v":""},{"$f":"IFERROR(VLOOKUP(P10,Teilnehmer[],2,FALSE),\"\")","v":""},{"$f":"IFERROR(VLOOKUP(P10,Teilnehmer[],3,FALSE),\"\")","v":""},{"$f":"IFERROR(VLOOKUP(P10,Teilnehmer[],40,FALSE),\"\")","v":""},null,null,null,null,null,{"$f":"S33","v":"GG6"},{"$f":"IF(ISBLANK($Q$34)=TRUE,\"\",MAX(Tabelle_GG6[Alter am 01.04.]))","v":""},{"$f":"IF(ISBLANK($Q$34)=TRUE,\"\",$Q$34)","v":""},{"$f":"Q33","v":""},{"$f":"COUNT(Tabelle_GG6[Alter am 01.04.])","v":0},{"$f":"SUBTOTAL(102,Tabelle_GG6[Alter am 01.04.])","v":0}]
[5,{"$f":"IFERROR(INDEX(Teilnehmer[Lfd. Nr.],_xlfn.AGGREGATE(15,6,ROW(Teilnehmer[Lfd. Nr.])/((Teilnehmer[Großgruppe]=$E$4)),ROW()-6)-1,1),\"\")","v":""},{"$f":"IFERROR(VLOOKUP(B11,Teilnehmer[],2,FALSE),\"\")","v":""},{"$f":"IFERROR(VLOOKUP(B11,Teilnehmer[],3,FALSE),\"\")","v":""},{"$f":"IFERROR(VLOOKUP(B11,Teilnehmer[],40,FALSE),\"\")","v":""},null,null,5,{"$f":"IFERROR(INDEX(Teilnehmer[Lfd. Nr.],_xlfn.AGGREGATE(15,6,ROW(Teilnehmer[Lfd. Nr.])/((Teilnehmer[Großgruppe]=$L$4)),ROW()-6)-1,1),\"\")","v":""},{"$f":"IFERROR(VLOOKUP(I11,Teilnehmer[],2,FALSE),\"\")","v":""},{"$f":"IFERROR(VLOOKUP(I11,Teilnehmer[],3,FALSE),\"\")","v":""},{"$f":"IFERROR(VLOOKUP(I11,Teilnehmer[],40,FALSE),\"\")","v":""},null,null,5,{"$f":"IFERROR(INDEX(Teilnehmer[Lfd. Nr.],_xlfn.AGGREGATE(15,6,ROW(Teilnehmer[Lfd. Nr.])/((Teilnehmer[Großgruppe]=$S$4)),ROW()-6)-1,1),\"\")","v":""},{"$f":"IFERROR(VLOOKUP(P11,Teilnehmer[],2,FALSE),\"\")","v":""},{"$f":"IFERROR(VLOOKUP(P11,Teilnehmer[],3,FALSE),\"\")","v":""},{"$f":"IFERROR(VLOOKUP(P11,Teilnehmer[],40,FALSE),\"\")","v":""},null,null,null,null,null,"Ergebnis",{"$f":"SUBTOTAL(102,Tabelle30[älterste Fahrer])","v":0},{"$f":"(COUNTA(Tabelle30[Kürname])-COUNTBLANK(Tabelle30[Kürname]))","v":0}]
[6,{"$f":"IFERROR(INDEX(Teilnehmer[Lfd. Nr.],_xlfn.AGGREGATE(15,6,ROW(Teilnehmer[Lfd. Nr.])/((Teilnehmer[Großgruppe]=$E$4)),ROW()-6)-1,1),\"\")","v":""},{"$f":"IFERROR(VLOOKUP(B12,Teilnehmer[],2,FALSE),\"\")","v":""},{"$f":"IFERROR(VLOOKUP(B12,Teilnehmer[],3,FALSE),\"\")","v":""},{"$f":"IFERROR(VLOOKUP(B12,Teilnehmer[],40,FALSE),\"\")","v":""},null,null,6,{"$f":"IFERROR(INDEX(Teilnehmer[Lfd. Nr.],_xlfn.AGGREGATE(15,6,ROW(Teilnehmer[Lfd. Nr.])/((Teilnehmer[Großgruppe]=$L$4)),ROW()-6)-1,1),\"\")","v":""},{"$f":"IFERROR(VLOOKUP(I12,Teilnehmer[],2,FALSE),\"\")","v":""},{"$f":"IFERROR(VLOOKUP(I12,Teilnehmer[],3,FALSE),\"\")","v":""},{"$f":"IFERROR(VLOOKUP(I12,Teilnehmer[],40,FALSE),\"\")","v":""},null,null,6,{"$f":"IFERROR(INDEX(Teilnehmer[Lfd. Nr.],_xlfn.AGGREGATE(15,6,ROW(Teilnehmer[Lfd. Nr.])/((Teilnehmer[Großgruppe]=$S$4)),ROW()-6)-1,1),\"\")","v":""},{"$f":"IFERROR(VLOOKUP(P12,Teilnehmer[],2,FALSE),\"\")","v":""},{"$f":"IFERROR(VLOOKUP(P12,Teilnehmer[],3,FALSE),\"\")","v":""},{"$f":"IFERROR(VLOOKUP(P12,Teilnehmer[],40,FALSE),\"\")","v":""}]
[7,{"$f":"IFERROR(INDEX(Teilnehmer[Lfd. Nr.],_xlfn.AGGREGATE(15,6,ROW(Teilnehmer[Lfd. Nr.])/((Teilnehmer[Großgruppe]=$E$4)),ROW()-6)-1,1),\"\")","v":""},{"$f":"IFERROR(VLOOKUP(B13,Teilnehmer[],2,FALSE),\"\")","v":""},{"$f":"IFERROR(VLOOKUP(B13,Teilnehmer[],3,FALSE),\"\")","v":""},{"$f":"IFERROR(VLOOKUP(B13,Teilnehmer[],40,FALSE),\"\")","v":""},null,null,7,{"$f":"IFERROR(INDEX(Teilnehmer[Lfd. Nr.],_xlfn.AGGREGATE(15,6,ROW(Teilnehmer[Lfd. Nr.])/((Teilnehmer[Großgruppe]=$L$4)),ROW()-6)-1,1),\"\")","v":""},{"$f":"IFERROR(VLOOKUP(I13,Teilnehmer[],2,FALSE),\"\")","v":""},{"$f":"IFERROR(VLOOKUP(I13,Teilnehmer[],3,FALSE),\"\")","v":""},{"$f":"IFERROR(VLOOKUP(I13,Teilnehmer[],40,FALSE),\"\")","v":""},null,null,7,{"$f":"IFERROR(INDEX(Teilnehmer[Lfd. Nr.],_xlfn.AGGREGATE(15,6,ROW(Teilnehmer[Lfd. Nr.])/((Teilnehmer[Großgruppe]=$S$4)),ROW()-6)-1,1),\"\")","v":""},{"$f":"IFERROR(VLOOKUP(P13,Teilnehmer[],2,FALSE),\"\")","v":""},{"$f":"IFERROR(VLOOKUP(P13,Teilnehmer[],3,FALSE),\"\")","v":""},{"$f":"IFERROR(VLOOKUP(P13,Teilnehmer[],40,FALSE),\"\")","v":""}]
[8,{"$f":"IFERROR(INDEX(Teilnehmer[Lfd. Nr.],_xlfn.AGGREGATE(15,6,ROW(Teilnehmer[Lfd. Nr.])/((Teilnehmer[Großgruppe]=$E$4)),ROW()-6)-1,1),\"\")","v":""},{"$f":"IFERROR(VLOOKUP(B14,Teilnehmer[],2,FALSE),\"\")","v":""},{"$f":"IFERROR(VLOOKUP(B14,Teilnehmer[],3,FALSE),\"\")","v":""},{"$f":"IFERROR(VLOOKUP(B14,Teilnehmer[],40,FALSE),\"\")","v":""},null,null,8,{"$f":"IFERROR(INDEX(Teilnehmer[Lfd. Nr.],_xlfn.AGGREGATE(15,6,ROW(Teilnehmer[Lfd. Nr.])/((Teilnehmer[Großgruppe]=$L$4)),ROW()-6)-1,1),\"\")","v":""},{"$f":"IFERROR(VLOOKUP(I14,Teilnehmer[],2,FALSE),\"\")","v":""},{"$f":"IFERROR(VLOOKUP(I14,Teilnehmer[],3,FALSE),\"\")","v":""},{"$f":"IFERROR(VLOOKUP(I14,Teilnehmer[],40,FALSE),\"\")","v":""},null,null,8,{"$f":"IFERROR(INDEX(Teilnehmer[Lfd. Nr.],_xlfn.AGGREGATE(15,6,ROW(Teilnehmer[Lfd. Nr.])/((Teilnehmer[Großgruppe]=$S$4)),ROW()-6)-1,1),\"\")","v":""},{"$f":"IFERROR(VLOOKUP(P14,Teilnehmer[],2,FALSE),\"\")","v":""},{"$f":"IFERROR(VLOOKUP(P14,Teilnehmer[],3,FALSE),\"\")","v":""},{"$f":"IFERROR(VLOOKUP(P14,Teilnehmer[],40,FALSE),\"\")","v":""}]
[9,{"$f":"IFERROR(INDEX(Teilnehmer[Lfd. Nr.],_xlfn.AGGREGATE(15,6,ROW(Teilnehmer[Lfd. Nr.])/((Teilnehmer[Großgruppe]=$E$4)),ROW()-6)-1,1),\"\")","v":""},{"$f":"IFERROR(VLOOKUP(B15,Teilnehmer[],2,FALSE),\"\")","v":""},{"$f":"IFERROR(VLOOKUP(B15,Teilnehmer[],3,FALSE),\"\")","v":""},{"$f":"IFERROR(VLOOKUP(B15,Teilnehmer[],40,FALSE),\"\")","v":""},null,null,9,{"$f":"IFERROR(INDEX(Teilnehmer[Lfd. Nr.],_xlfn.AGGREGATE(15,6,ROW(Teilnehmer[Lfd. Nr.])/((Teilnehmer[Großgruppe]=$L$4)),ROW()-6)-1,1),\"\")","v":""},{"$f":"IFERROR(VLOOKUP(I15,Teilnehmer[],2,FALSE),\"\")","v":""},{"$f":"IFERROR(VLOOKUP(I15,Teilnehmer[],3,FALSE),\"\")","v":""},{"$f":"IFERROR(VLOOKUP(I15,Teilnehmer[],40,FALSE),\"\")","v":""},null,null,9,{"$f":"IFERROR(INDEX(Teilnehmer[Lfd. Nr.],_xlfn.AGGREGATE(15,6,ROW(Teilnehmer[Lfd. Nr.])/((Teilnehmer[Großgruppe]=$S$4)),ROW()-6)-1,1),\"\")","v":""},{"$f":"IFERROR(VLOOKUP(P15,Teilnehmer[],2,FALSE),\"\")","v":""},{"$f":"IFERROR(VLOOKUP(P15,Teilnehmer[],3,FALSE),\"\")","v":""},{"$f":"IFERROR(VLOOKUP(P15,Teilnehmer[],40,FALSE),\"\")","v":""}]
[10,{"$f":"IFERROR(INDEX(Teilnehmer[Lfd. Nr.],_xlfn.AGGREGATE(15,6,ROW(Teilnehmer[Lfd. Nr.])/((Teilnehmer[Großgruppe]=$E$4)),ROW()-6)-1,1),\"\")","v":""},{"$f":"IFERROR(VLOOKUP(B16,Teilnehmer[],2,FALSE),\"\")","v":""},{"$f":"IFERROR(VLOOKUP(B16,Teilnehmer[],3,FALSE),\"\")","v":""},{"$f":"IFERROR(VLOOKUP(B16,Teilnehmer[],40,FALSE),\"\")","v":""},null,null,10,{"$f":"IFERROR(INDEX(Teilnehmer[Lfd. Nr.],_xlfn.AGGREGATE(15,6,ROW(Teilnehmer[Lfd. Nr.])/((Teilnehmer[Großgruppe]=$L$4)),ROW()-6)-1,1),\"\")","v":""},{"$f":"IFERROR(VLOOKUP(I16,Teilnehmer[],2,FALSE),\"\")","v":""},{"$f":"IFERROR(VLOOKUP(I16,Teilnehmer[],3,FALSE),\"\")","v":""},{"$f":"IFERROR(VLOOKUP(I16,Teilnehmer[],40,FALSE),\"\")","v":""},null,null,10,{"$f":"IFERROR(INDEX(Teilnehmer[Lfd. Nr.],_xlfn.AGGREGATE(15,6,ROW(Teilnehmer[Lfd. Nr.])/((Teilnehmer[Großgruppe]=$S$4)),ROW()-6)-1,1),\"\")","v":""},{"$f":"IFERROR(VLOOKUP(P16,Teilnehmer[],2,FALSE),\"\")","v":""},{"$f":"IFERROR(VLOOKUP(P16,Teilnehmer[],3,FALSE),\"\")","v":""},{"$f":"IFERROR(VLOOKUP(P16,Teilnehmer[],40,FALSE),\"\")","v":""}]
[11,{"$f":"IFERROR(INDEX(Teilnehmer[Lfd. Nr.],_xlfn.AGGREGATE(15,6,ROW(Teilnehmer[Lfd. Nr.])/((Teilnehmer[Großgruppe]=$E$4)),ROW()-6)-1,1),\"\")","v":""},{"$f":"IFERROR(VLOOKUP(B17,Teilnehmer[],2,FALSE),\"\")","v":""},{"$f":"IFERROR(VLOOKUP(B17,Teilnehmer[],3,FALSE),\"\")","v":""},{"$f":"IFERROR(VLOOKUP(B17,Teilnehmer[],40,FALSE),\"\")","v":""},null,null,11,{"$f":"IFERROR(INDEX(Teilnehmer[Lfd. Nr.],_xlfn.AGGREGATE(15,6,ROW(Teilnehmer[Lfd. Nr.])/((Teilnehmer[Großgruppe]=$L$4)),ROW()-6)-1,1),\"\")","v":""},{"$f":"IFERROR(VLOOKUP(I17,Teilnehmer[],2,FALSE),\"\")","v":""},{"$f":"IFERROR(VLOOKUP(I17,Teilnehmer[],3,FALSE),\"\")","v":""},{"$f":"IFERROR(VLOOKUP(I17,Teilnehmer[],40,FALSE),\"\")","v":""},null,null,11,{"$f":"IFERROR(INDEX(Teilnehmer[Lfd. Nr.],_xlfn.AGGREGATE(15,6,ROW(Teilnehmer[Lfd. Nr.])/((Teilnehmer[Großgruppe]=$S$4)),ROW()-6)-1,1),\"\")","v":""},{"$f":"IFERROR(VLOOKUP(P17,Teilnehmer[],2,FALSE),\"\")","v":""},{"$f":"IFERROR(VLOOKUP(P17,Teilnehmer[],3,FALSE),\"\")","v":""},{"$f":"IFERROR(VLOOKUP(P17,Teilnehmer[],40,FALSE),\"\")","v":""}]
[12,{"$f":"IFERROR(INDEX(Teilnehmer[Lfd. Nr.],_xlfn.AGGREGATE(15,6,ROW(Teilnehmer[Lfd. Nr.])/((Teilnehmer[Großgruppe]=$E$4)),ROW()-6)-1,1),\"\")","v":""},{"$f":"IFERROR(VLOOKUP(B18,Teilnehmer[],2,FALSE),\"\")","v":""},{"$f":"IFERROR(VLOOKUP(B18,Teilnehmer[],3,FALSE),\"\")","v":""},{"$f":"IFERROR(VLOOKUP(B18,Teilnehmer[],40,FALSE),\"\")","v":""},null,null,12,{"$f":"IFERROR(INDEX(Teilnehmer[Lfd. Nr.],_xlfn.AGGREGATE(15,6,ROW(Teilnehmer[Lfd. Nr.])/((Teilnehmer[Großgruppe]=$L$4)),ROW()-6)-1,1),\"\")","v":""},{"$f":"IFERROR(VLOOKUP(I18,Teilnehmer[],2,FALSE),\"\")","v":""},{"$f":"IFERROR(VLOOKUP(I18,Teilnehmer[],3,FALSE),\"\")","v":""},{"$f":"IFERROR(VLOOKUP(I18,Teilnehmer[],40,FALSE),\"\")","v":""},null,null,12,{"$f":"IFERROR(INDEX(Teilnehmer[Lfd. Nr.],_xlfn.AGGREGATE(15,6,ROW(Teilnehmer[Lfd. Nr.])/((Teilnehmer[Großgruppe]=$S$4)),ROW()-6)-1,1),\"\")","v":""},{"$f":"IFERROR(VLOOKUP(P18,Teilnehmer[],2,FALSE),\"\")","v":""},{"$f":"IFERROR(VLOOKUP(P18,Teilnehmer[],3,FALSE),\"\")","v":""},{"$f":"IFERROR(VLOOKUP(P18,Teilnehmer[],40,FALSE),\"\")","v":""}]
[13,{"$f":"IFERROR(INDEX(Teilnehmer[Lfd. Nr.],_xlfn.AGGREGATE(15,6,ROW(Teilnehmer[Lfd. Nr.])/((Teilnehmer[Großgruppe]=$E$4)),ROW()-6)-1,1),\"\")","v":""},{"$f":"IFERROR(VLOOKUP(B19,Teilnehmer[],2,FALSE),\"\")","v":""},{"$f":"IFERROR(VLOOKUP(B19,Teilnehmer[],3,FALSE),\"\")","v":""},{"$f":"IFERROR(VLOOKUP(B19,Teilnehmer[],40,FALSE),\"\")","v":""},null,null,13,{"$f":"IFERROR(INDEX(Teilnehmer[Lfd. Nr.],_xlfn.AGGREGATE(15,6,ROW(Teilnehmer[Lfd. Nr.])/((Teilnehmer[Großgruppe]=$L$4)),ROW()-6)-1,1),\"\")","v":""},{"$f":"IFERROR(VLOOKUP(I19,Teilnehmer[],2,FALSE),\"\")","v":""},{"$f":"IFERROR(VLOOKUP(I19,Teilnehmer[],3,FALSE),\"\")","v":""},{"$f":"IFERROR(VLOOKUP(I19,Teilnehmer[],40,FALSE),\"\")","v":""},null,null,13,{"$f":"IFERROR(INDEX(Teilnehmer[Lfd. Nr.],_xlfn.AGGREGATE(15,6,ROW(Teilnehmer[Lfd. Nr.])/((Teilnehmer[Großgruppe]=$S$4)),ROW()-6)-1,1),\"\")","v":""},{"$f":"IFERROR(VLOOKUP(P19,Teilnehmer[],2,FALSE),\"\")","v":""},{"$f":"IFERROR(VLOOKUP(P19,Teilnehmer[],3,FALSE),\"\")","v":""},{"$f":"IFERROR(VLOOKUP(P19,Teilnehmer[],40,FALSE),\"\")","v":""}]
[14,{"$f":"IFERROR(INDEX(Teilnehmer[Lfd. Nr.],_xlfn.AGGREGATE(15,6,ROW(Teilnehmer[Lfd. Nr.])/((Teilnehmer[Großgruppe]=$E$4)),ROW()-6)-1,1),\"\")","v":""},{"$f":"IFERROR(VLOOKUP(B20,Teilnehmer[],2,FALSE),\"\")","v":""},{"$f":"IFERROR(VLOOKUP(B20,Teilnehmer[],3,FALSE),\"\")","v":""},{"$f":"IFERROR(VLOOKUP(B20,Teilnehmer[],40,FALSE),\"\")","v":""},null,null,14,{"$f":"IFERROR(INDEX(Teilnehmer[Lfd. Nr.],_xlfn.AGGREGATE(15,6,ROW(Teilnehmer[Lfd. Nr.])/((Teilnehmer[Großgruppe]=$L$4)),ROW()-6)-1,1),\"\")","v":""},{"$f":"IFERROR(VLOOKUP(I20,Teilnehmer[],2,FALSE),\"\")","v":""},{"$f":"IFERROR(VLOOKUP(I20,Teilnehmer[],3,FALSE),\"\")","v":""},{"$f":"IFERROR(VLOOKUP(I20,Teilnehmer[],40,FALSE),\"\")","v":""},null,null,14,{"$f":"IFERROR(INDEX(Teilnehmer[Lfd. Nr.],_xlfn.AGGREGATE(15,6,ROW(Teilnehmer[Lfd. Nr.])/((Teilnehmer[Großgruppe]=$S$4)),ROW()-6)-1,1),\"\")","v":""},{"$f":"IFERROR(VLOOKUP(P20,Teilnehmer[],2,FALSE),\"\")","v":""},{"$f":"IFERROR(VLOOKUP(P20,Teilnehmer[],3,FALSE),\"\")","v":""},{"$f":"IFERROR(VLOOKUP(P20,Teilnehmer[],40,FALSE),\"\")","v":""}]
[15,{"$f":"IFERROR(INDEX(Teilnehmer[Lfd. Nr.],_xlfn.AGGREGATE(15,6,ROW(Teilnehmer[Lfd. Nr.])/((Teilnehmer[Großgruppe]=$E$4)),ROW()-6)-1,1),\"\")","v":""},{"$f":"IFERROR(VLOOKUP(B21,Teilnehmer[],2,FALSE),\"\")","v":""},{"$f":"IFERROR(VLOOKUP(B21,Teilnehmer[],3,FALSE),\"\")","v":""},{"$f":"IFERROR(VLOOKUP(B21,Teilnehmer[],40,FALSE),\"\")","v":""},null,null,15,{"$f":"IFERROR(INDEX(Teilnehmer[Lfd. Nr.],_xlfn.AGGREGATE(15,6,ROW(Teilnehmer[Lfd. Nr.])/((Teilnehmer[Großgruppe]=$L$4)),ROW()-6)-1,1),\"\")","v":""},{"$f":"IFERROR(VLOOKUP(I21,Teilnehmer[],2,FALSE),\"\")","v":""},{"$f":"IFERROR(VLOOKUP(I21,Teilnehmer[],3,FALSE),\"\")","v":""},{"$f":"IFERROR(VLOOKUP(I21,Teilnehmer[],40,FALSE),\"\")","v":""},null,null,15,{"$f":"IFERROR(INDEX(Teilnehmer[Lfd. Nr.],_xlfn.AGGREGATE(15,6,ROW(Teilnehmer[Lfd. Nr.])/((Teilnehmer[Großgruppe]=$S$4)),ROW()-6)-1,1),\"\")","v":""},{"$f":"IFERROR(VLOOKUP(P21,Teilnehmer[],2,FALSE),\"\")","v":""},{"$f":"IFERROR(VLOOKUP(P21,Teilnehmer[],3,FALSE),\"\")","v":""},{"$f":"IFERROR(VLOOKUP(P21,Teilnehmer[],40,FALSE),\"\")","v":""}]
[16,{"$f":"IFERROR(INDEX(Teilnehmer[Lfd. Nr.],_xlfn.AGGREGATE(15,6,ROW(Teilnehmer[Lfd. Nr.])/((Teilnehmer[Großgruppe]=$E$4)),ROW()-6)-1,1),\"\")","v":""},{"$f":"IFERROR(VLOOKUP(B22,Teilnehmer[],2,FALSE),\"\")","v":""},{"$f":"IFERROR(VLOOKUP(B22,Teilnehmer[],3,FALSE),\"\")","v":""},{"$f":"IFERROR(VLOOKUP(B22,Teilnehmer[],40,FALSE),\"\")","v":""},null,null,16,{"$f":"IFERROR(INDEX(Teilnehmer[Lfd. Nr.],_xlfn.AGGREGATE(15,6,ROW(Teilnehmer[Lfd. Nr.])/((Teilnehmer[Großgruppe]=$L$4)),ROW()-6)-1,1),\"\")","v":""},{"$f":"IFERROR(VLOOKUP(I22,Teilnehmer[],2,FALSE),\"\")","v":""},{"$f":"IFERROR(VLOOKUP(I22,Teilnehmer[],3,FALSE),\"\")","v":""},{"$f":"IFERROR(VLOOKUP(I22,Teilnehmer[],40,FALSE),\"\")","v":""},null,null,16,{"$f":"IFERROR(INDEX(Teilnehmer[Lfd. Nr.],_xlfn.AGGREGATE(15,6,ROW(Teilnehmer[Lfd. Nr.])/((Teilnehmer[Großgruppe]=$S$4)),ROW()-6)-1,1),\"\")","v":""},{"$f":"IFERROR(VLOOKUP(P22,Teilnehmer[],2,FALSE),\"\")","v":""},{"$f":"IFERROR(VLOOKUP(P22,Teilnehmer[],3,FALSE),\"\")","v":""},{"$f":"IFERROR(VLOOKUP(P22,Teilnehmer[],40,FALSE),\"\")","v":""}]
[17,{"$f":"IFERROR(INDEX(Teilnehmer[Lfd. Nr.],_xlfn.AGGREGATE(15,6,ROW(Teilnehmer[Lfd. Nr.])/((Teilnehmer[Großgruppe]=$E$4)),ROW()-6)-1,1),\"\")","v":""},{"$f":"IFERROR(VLOOKUP(B23,Teilnehmer[],2,FALSE),\"\")","v":""},{"$f":"IFERROR(VLOOKUP(B23,Teilnehmer[],3,FALSE),\"\")","v":""},{"$f":"IFERROR(VLOOKUP(B23,Teilnehmer[],40,FALSE),\"\")","v":""},null,null,17,{"$f":"IFERROR(INDEX(Teilnehmer[Lfd. Nr.],_xlfn.AGGREGATE(15,6,ROW(Teilnehmer[Lfd. Nr.])/((Teilnehmer[Großgruppe]=$L$4)),ROW()-6)-1,1),\"\")","v":""},{"$f":"IFERROR(VLOOKUP(I23,Teilnehmer[],2,FALSE),\"\")","v":""},{"$f":"IFERROR(VLOOKUP(I23,Teilnehmer[],3,FALSE),\"\")","v":""},{"$f":"IFERROR(VLOOKUP(I23,Teilnehmer[],40,FALSE),\"\")","v":""},null,null,17,{"$f":"IFERROR(INDEX(Teilnehmer[Lfd. Nr.],_xlfn.AGGREGATE(15,6,ROW(Teilnehmer[Lfd. Nr.])/((Teilnehmer[Großgruppe]=$S$4)),ROW()-6)-1,1),\"\")","v":""},{"$f":"IFERROR(VLOOKUP(P23,Teilnehmer[],2,FALSE),\"\")","v":""},{"$f":"IFERROR(VLOOKUP(P23,Teilnehmer[],3,FALSE),\"\")","v":""},{"$f":"IFERROR(VLOOKUP(P23,Teilnehmer[],40,FALSE),\"\")","v":""}]
[18,{"$f":"IFERROR(INDEX(Teilnehmer[Lfd. Nr.],_xlfn.AGGREGATE(15,6,ROW(Teilnehmer[Lfd. Nr.])/((Teilnehmer[Großgruppe]=$E$4)),ROW()-6)-1,1),\"\")","v":""},{"$f":"IFERROR(VLOOKUP(B24,Teilnehmer[],2,FALSE),\"\")","v":""},{"$f":"IFERROR(VLOOKUP(B24,Teilnehmer[],3,FALSE),\"\")","v":""},{"$f":"IFERROR(VLOOKUP(B24,Teilnehmer[],40,FALSE),\"\")","v":""},null,null,18,{"$f":"IFERROR(INDEX(Teilnehmer[Lfd. Nr.],_xlfn.AGGREGATE(15,6,ROW(Teilnehmer[Lfd. Nr.])/((Teilnehmer[Großgruppe]=$L$4)),ROW()-6)-1,1),\"\")","v":""},{"$f":"IFERROR(VLOOKUP(I24,Teilnehmer[],2,FALSE),\"\")","v":""},{"$f":"IFERROR(VLOOKUP(I24,Teilnehmer[],3,FALSE),\"\")","v":""},{"$f":"IFERROR(VLOOKUP(I24,Teilnehmer[],40,FALSE),\"\")","v":""},null,null,18,{"$f":"IFERROR(INDEX(Teilnehmer[Lfd. Nr.],_xlfn.AGGREGATE(15,6,ROW(Teilnehmer[Lfd. Nr.])/((Teilnehmer[Großgruppe]=$S$4)),ROW()-6)-1,1),\"\")","v":""},{"$f":"IFERROR(VLOOKUP(P24,Teilnehmer[],2,FALSE),\"\")","v":""},{"$f":"IFERROR(VLOOKUP(P24,Teilnehmer[],3,FALSE),\"\")","v":""},{"$f":"IFERROR(VLOOKUP(P24,Teilnehmer[],40,FALSE),\"\")","v":""}]
[19,{"$f":"IFERROR(INDEX(Teilnehmer[Lfd. Nr.],_xlfn.AGGREGATE(15,6,ROW(Teilnehmer[Lfd. Nr.])/((Teilnehmer[Großgruppe]=$E$4)),ROW()-6)-1,1),\"\")","v":""},{"$f":"IFERROR(VLOOKUP(B25,Teilnehmer[],2,FALSE),\"\")","v":""},{"$f":"IFERROR(VLOOKUP(B25,Teilnehmer[],3,FALSE),\"\")","v":""},{"$f":"IFERROR(VLOOKUP(B25,Teilnehmer[],40,FALSE),\"\")","v":""},null,null,19,{"$f":"IFERROR(INDEX(Teilnehmer[Lfd. Nr.],_xlfn.AGGREGATE(15,6,ROW(Teilnehmer[Lfd. Nr.])/((Teilnehmer[Großgruppe]=$L$4)),ROW()-6)-1,1),\"\")","v":""},{"$f":"IFERROR(VLOOKUP(I25,Teilnehmer[],2,FALSE),\"\")","v":""},{"$f":"IFERROR(VLOOKUP(I25,Teilnehmer[],3,FALSE),\"\")","v":""},{"$f":"IFERROR(VLOOKUP(I25,Teilnehmer[],40,FALSE),\"\")","v":""},null,null,19,{"$f":"IFERROR(INDEX(Teilnehmer[Lfd. Nr.],_xlfn.AGGREGATE(15,6,ROW(Teilnehmer[Lfd. Nr.])/((Teilnehmer[Großgruppe]=$S$4)),ROW()-6)-1,1),\"\")","v":""},{"$f":"IFERROR(VLOOKUP(P25,Teilnehmer[],2,FALSE),\"\")","v":""},{"$f":"IFERROR(VLOOKUP(P25,Teilnehmer[],3,FALSE),\"\")","v":""},{"$f":"IFERROR(VLOOKUP(P25,Teilnehmer[],40,FALSE),\"\")","v":""}]
[20,{"$f":"IFERROR(INDEX(Teilnehmer[Lfd. Nr.],_xlfn.AGGREGATE(15,6,ROW(Teilnehmer[Lfd. Nr.])/((Teilnehmer[Großgruppe]=$E$4)),ROW()-6)-1,1),\"\")","v":""},{"$f":"IFERROR(VLOOKUP(B26,Teilnehmer[],2,FALSE),\"\")","v":""},{"$f":"IFERROR(VLOOKUP(B26,Teilnehmer[],3,FALSE),\"\")","v":""},{"$f":"IFERROR(VLOOKUP(B26,Teilnehmer[],40,FALSE),\"\")","v":""},null,null,20,{"$f":"IFERROR(INDEX(Teilnehmer[Lfd. Nr.],_xlfn.AGGREGATE(15,6,ROW(Teilnehmer[Lfd. Nr.])/((Teilnehmer[Großgruppe]=$L$4)),ROW()-6)-1,1),\"\")","v":""},{"$f":"IFERROR(VLOOKUP(I26,Teilnehmer[],2,FALSE),\"\")","v":""},{"$f":"IFERROR(VLOOKUP(I26,Teilnehmer[],3,FALSE),\"\")","v":""},{"$f":"IFERROR(VLOOKUP(I26,Teilnehmer[],40,FALSE),\"\")","v":""},null,null,20,{"$f":"IFERROR(INDEX(Teilnehmer[Lfd. Nr.],_xlfn.AGGREGATE(15,6,ROW(Teilnehmer[Lfd. Nr.])/((Teilnehmer[Großgruppe]=$S$4)),ROW()-6)-1,1),\"\")","v":""},{"$f":"IFERROR(VLOOKUP(P26,Teilnehmer[],2,FALSE),\"\")","v":""},{"$f":"IFERROR(VLOOKUP(P26,Teilnehmer[],3,FALSE),\"\")","v":""},{"$f":"IFERROR(VLOOKUP(P26,Teilnehmer[],40,FALSE),\"\")","v":""}]
[21,{"$f":"IFERROR(INDEX(Teilnehmer[Lfd. Nr.],_xlfn.AGGREGATE(15,6,ROW(Teilnehmer[Lfd. Nr.])/((Teilnehmer[Großgruppe]=$E$4)),ROW()-6)-1,1),\"\")","v":""},{"$f":"IFERROR(VLOOKUP(B27,Teilnehmer[],2,FALSE),\"\")","v":""},{"$f":"IFERROR(VLOOKUP(B27,Teilnehmer[],3,FALSE),\"\")","v":""},{"$f":"IFERROR(VLOOKUP(B27,Teilnehmer[],40,FALSE),\"\")","v":""},null,null,21,{"$f":"IFERROR(INDEX(Teilnehmer[Lfd. Nr.],_xlfn.AGGREGATE(15,6,ROW(Teilnehmer[Lfd. Nr.])/((Teilnehmer[Großgruppe]=$L$4)),ROW()-6)-1,1),\"\")","v":""},{"$f":"IFERROR(VLOOKUP(I27,Teilnehmer[],2,FALSE),\"\")","v":""},{"$f":"IFERROR(VLOOKUP(I27,Teilnehmer[],3,FALSE),\"\")","v":""},{"$f":"IFERROR(VLOOKUP(I27,Teilnehmer[],40,FALSE),\"\")","v":""},null,null,21,{"$f":"IFERROR(INDEX(Teilnehmer[Lfd. Nr.],_xlfn.AGGREGATE(15,6,ROW(Teilnehmer[Lfd. Nr.])/((Teilnehmer[Großgruppe]=$S$4)),ROW()-6)-1,1),\"\")","v":""},{"$f":"IFERROR(VLOOKUP(P27,Teilnehmer[],2,FALSE),\"\")","v":""},{"$f":"IFERROR(VLOOKUP(P27,Teilnehmer[],3,FALSE),\"\")","v":""},{"$f":"IFERROR(VLOOKUP(P27,Teilnehmer[],40,FALSE),\"\")","v":""}]
[22,{"$f":"IFERROR(INDEX(Teilnehmer[Lfd. Nr.],_xlfn.AGGREGATE(15,6,ROW(Teilnehmer[Lfd. Nr.])/((Teilnehmer[Großgruppe]=$E$4)),ROW()-6)-1,1),\"\")","v":""},{"$f":"IFERROR(VLOOKUP(B28,Teilnehmer[],2,FALSE),\"\")","v":""},{"$f":"IFERROR(VLOOKUP(B28,Teilnehmer[],3,FALSE),\"\")","v":""},{"$f":"IFERROR(VLOOKUP(B28,Teilnehmer[],40,FALSE),\"\")","v":""},null,null,22,{"$f":"IFERROR(INDEX(Teilnehmer[Lfd. Nr.],_xlfn.AGGREGATE(15,6,ROW(Teilnehmer[Lfd. Nr.])/((Teilnehmer[Großgruppe]=$L$4)),ROW()-6)-1,1),\"\")","v":""},{"$f":"IFERROR(VLOOKUP(I28,Teilnehmer[],2,FALSE),\"\")","v":""},{"$f":"IFERROR(VLOOKUP(I28,Teilnehmer[],3,FALSE),\"\")","v":""},{"$f":"IFERROR(VLOOKUP(I28,Teilnehmer[],40,FALSE),\"\")","v":""},null,null,22,{"$f":"IFERROR(INDEX(Teilnehmer[Lfd. Nr.],_xlfn.AGGREGATE(15,6,ROW(Teilnehmer[Lfd. Nr.])/((Teilnehmer[Großgruppe]=$S$4)),ROW()-6)-1,1),\"\")","v":""},{"$f":"IFERROR(VLOOKUP(P28,Teilnehmer[],2,FALSE),\"\")","v":""},{"$f":"IFERROR(VLOOKUP(P28,Teilnehmer[],3,FALSE),\"\")","v":""},{"$f":"IFERROR(VLOOKUP(P28,Teilnehmer[],40,FALSE),\"\")","v":""}]
[23,{"$f":"IFERROR(INDEX(Teilnehmer[Lfd. Nr.],_xlfn.AGGREGATE(15,6,ROW(Teilnehmer[Lfd. Nr.])/((Teilnehmer[Großgruppe]=$E$4)),ROW()-6)-1,1),\"\")","v":""},{"$f":"IFERROR(VLOOKUP(B29,Teilnehmer[],2,FALSE),\"\")","v":""},{"$f":"IFERROR(VLOOKUP(B29,Teilnehmer[],3,FALSE),\"\")","v":""},{"$f":"IFERROR(VLOOKUP(B29,Teilnehmer[],40,FALSE),\"\")","v":""},null,null,23,{"$f":"IFERROR(INDEX(Teilnehmer[Lfd. Nr.],_xlfn.AGGREGATE(15,6,ROW(Teilnehmer[Lfd. Nr.])/((Teilnehmer[Großgruppe]=$L$4)),ROW()-6)-1,1),\"\")","v":""},{"$f":"IFERROR(VLOOKUP(I29,Teilnehmer[],2,FALSE),\"\")","v":""},{"$f":"IFERROR(VLOOKUP(I29,Teilnehmer[],3,FALSE),\"\")","v":""},{"$f":"IFERROR(VLOOKUP(I29,Teilnehmer[],40,FALSE),\"\")","v":""},null,null,23,{"$f":"IFERROR(INDEX(Teilnehmer[Lfd. Nr.],_xlfn.AGGREGATE(15,6,ROW(Teilnehmer[Lfd. Nr.])/((Teilnehmer[Großgruppe]=$S$4)),ROW()-6)-1,1),\"\")","v":""},{"$f":"IFERROR(VLOOKUP(P29,Teilnehmer[],2,FALSE),\"\")","v":""},{"$f":"IFERROR(VLOOKUP(P29,Teilnehmer[],3,FALSE),\"\")","v":""},{"$f":"IFERROR(VLOOKUP(P29,Teilnehmer[],40,FALSE),\"\")","v":""}]
[24,{"$f":"IFERROR(INDEX(Teilnehmer[Lfd. Nr.],_xlfn.AGGREGATE(15,6,ROW(Teilnehmer[Lfd. Nr.])/((Teilnehmer[Großgruppe]=$E$4)),ROW()-6)-1,1),\"\")","v":""},{"$f":"IFERROR(VLOOKUP(B30,Teilnehmer[],2,FALSE),\"\")","v":""},{"$f":"IFERROR(VLOOKUP(B30,Teilnehmer[],3,FALSE),\"\")","v":""},{"$f":"IFERROR(VLOOKUP(B30,Teilnehmer[],40,FALSE),\"\")","v":""},null,null,24,{"$f":"IFERROR(INDEX(Teilnehmer[Lfd. Nr.],_xlfn.AGGREGATE(15,6,ROW(Teilnehmer[Lfd. Nr.])/((Teilnehmer[Großgruppe]=$L$4)),ROW()-6)-1,1),\"\")","v":""},{"$f":"IFERROR(VLOOKUP(I30,Teilnehmer[],2,FALSE),\"\")","v":""},{"$f":"IFERROR(VLOOKUP(I30,Teilnehmer[],3,FALSE),\"\")","v":""},{"$f":"IFERROR(VLOOKUP(I30,Teilnehmer[],40,FALSE),\"\")","v":""},null,null,24,{"$f":"IFERROR(INDEX(Teilnehmer[Lfd. Nr.],_xlfn.AGGREGATE(15,6,ROW(Teilnehmer[Lfd. Nr.])/((Teilnehmer[Großgruppe]=$S$4)),ROW()-6)-1,1),\"\")","v":""},{"$f":"IFERROR(VLOOKUP(P30,Teilnehmer[],2,FALSE),\"\")","v":""},{"$f":"IFERROR(VLOOKUP(P30,Teilnehmer[],3,FALSE),\"\")","v":""},{"$f":"IFERROR(VLOOKUP(P30,Teilnehmer[],40,FALSE),\"\")","v":""}]
["Anzahl Fahrer:",null,null,"Anzahl Ersatzfahrer:",null,null,null,"Anzahl Fahrer:",null,null,"Anzahl Ersatzfahrer:",null,null,null,"Anzahl Fahrer:",null,null,"Anzahl Ersatzfahrer:",null,null,null,{"$f":"OR(AND(C7<>\"\",(C31+E31)<>$AC$5),AND(C7<>\"\",C31<9),AND(C7<>\"\",C31>24))","v":false},{"$f":"OR(AND(J7<>\"\",(J31+L31)<>$AC$6),AND(J7<>\"\",J31<9),AND(J7<>\"\",J31>24))","v":false},{"$f":"OR(AND(Q7<>\"\",(Q31+S31)<>$AC$7),AND(Q7<>\"\",Q31<9),AND(Q7<>\"\",Q31>24))","v":false}]
[]
["Großgruppe",null,{"$f":"IFERROR(IF(Deckblatt!$C$9=0,\"\",Deckblatt!$C$9),\"\")","v":""},null,"GG4",null,null,"Großgruppe",null,{"$f":"IFERROR(IF(Deckblatt!$C$9=0,\"\",Deckblatt!$C$9),\"\")","v":""},null,"GG5",null,null,"Großgruppe",null,{"$f":"IFERROR(IF(Deckblatt!$C$9=0,\"\",Deckblatt!$C$9),\"\")","v":""},null,"GG6"]
["Name:",null,null,null,null,null,null,"Name:",null,null,null,null,null,null,"Name:",null,null,null,null,null,null,{"$f":"OR(AND(ISBLANK($C$34),$C$36<>\"\"),AND($AC$8=0,$C$34<>\"\"))","v":false},{"$f":"OR(AND(ISBLANK($J$34),$J$36<>\"\"),AND($AC$9=0,$J$34<>\"\"))","v":false},{"$f":"OR(AND(ISBLANK($Q$34),$Q$36<>\"\"),AND($AC$10=0,$Q$34<>\"\"))","v":false}]
["Fahrer","lf.Nr.","Name","Vorname","Alter am 01.04.","Altersklasse",null,"Fahrer","lf.Nr.","Name","Vorname","Alter am 01.04.","Altersklasse",null,"Fahrer","lf.Nr.","Name","Vorname","Alter am 01.04.","Altersklasse"]
[1,{"$f":"IFERROR(_xlfn.SINGLE(INDEX(Teilnehmer[Lfd. Nr.],_xlfn.AGGREGATE(15,6,ROW(Teilnehmer[Lfd. Nr.])/((Teilnehmer[Großgruppe]=$E$33)),ROW()-35)-1,1)),\"\")","v":""},{"$f":"IFERROR(VLOOKUP(B36,Teilnehmer[],2,FALSE),\"\")","v":""},{"$f":"IFERROR(VLOOKUP(B36,Teilnehmer[],3,FALSE),\"\")","v":""},{"$f":"IFERROR(VLOOKUP(B36,Teilnehmer[],40,FALSE),\"\")","v":""},{"$f":"IF($Z$8=0,\"\",IF($Z$8<11,\"Junior Expert\",IF($Z$8<13,\"Junior Expert\",IF($Z$8<15,\"Junior Expert\",IF($Z$8<17,\"Expert\",IF($Z$8<19,\"Expert\",IF($Z$8<21,\"Expert\",IF($Z$8<23,\"Expert\",IF($Z$8<25,\"Expert\",IF($Z$8<99,\"Expert\",\"\"))))))))))","v":""},null,1,{"$f":"IFERROR(_xlfn.SINGLE(INDEX(Teilnehmer[Lfd. Nr.],_xlfn.AGGREGATE(15,6,ROW(Teilnehmer[Lfd. Nr.])/((Teilnehmer[Großgruppe]=$L$33)),ROW()-35)-1,1)),\"\")","v":""},{"$f":"IFERROR(VLOOKUP(I36,Teilnehmer[],2,FALSE),\"\")","v":""},{"$f":"IFERROR(VLOOKUP(I36,Teilnehmer[],3,FALSE),\"\")","v":""},{"$f":"IFERROR(VLOOKUP(I36,Teilnehmer[],40,FALSE),\"\")","v":""},{"$f":"IF($Z$9=0,\"\",IF($Z$9<11,\"Junior Expert\",IF($Z$9<13,\"Junior Expert\",IF($Z$9<15,\"Junior Expert\",IF($Z$9<17,\"Expert\",IF($Z$9<19,\"Expert\",IF($Z$9<21,\"Expert\",IF($Z$9<23,\"Expert\",IF($Z$9<25,\"Expert\",IF($Z$9<99,\"Expert\",\"\"))))))))))","v":""},null,1,{"$f":"IFERROR(_xlfn.SINGLE(INDEX(Teilnehmer[Lfd. Nr.],_xlfn.AGGREGATE(15,6,ROW(Teilnehmer[Lfd. Nr.])/((Teilnehmer[Großgruppe]=$S$33)),ROW()-35)-1,1)),\"\")","v":""},{"$f":"IFERROR(VLOOKUP(P36,Teilnehmer[],2,FALSE),\"\")","v":""},{"$f":"IFERROR(VLOOKUP(P36,Teilnehmer[],3,FALSE),\"\")","v":""},{"$f":"IFERROR(VLOOKUP(P36,Teilnehmer[],40,FALSE),\"\")","v":""},{"$f":"IF($Z$10=0,\"\",IF($Z$10<11,\"Junior Expert\",IF($Z$10<13,\"Junior Expert\",IF($Z$10<15,\"Junior Expert\",IF($Z$10<17,\"Expert\",IF($Z$10<19,\"Expert\",IF($Z$10<21,\"Expert\",IF($Z$10<23,\"Expert\",IF($Z$10<25,\"Expert\",IF($Z$10<99,\"Expert\",\"\"))))))))))","v":""}]
[{"$f":"A36+1","v":2},{"$f":"IFERROR(_xlfn.SINGLE(INDEX(Teilnehmer[Lfd. Nr.],_xlfn.AGGREGATE(15,6,ROW(Teilnehmer[Lfd. Nr.])/((Teilnehmer[Großgruppe]=$E$33)),ROW()-35)-1,1)),\"\")","v":""},{"$f":"IFERROR(VLOOKUP(B37,Teilnehmer[],2,FALSE),\"\")","v":""},{"$f":"IFERROR(VLOOKUP(B37,Teilnehmer[],3,FALSE),\"\")","v":""},{"$f":"IFERROR(VLOOKUP(B37,Teilnehmer[],40,FALSE),\"\")","v":""},null,null,{"$f":"H36+1","v":2},{"$f":"IFERROR(_xlfn.SINGLE(INDEX(Teilnehmer[Lfd. Nr.],_xlfn.AGGREGATE(15,6,ROW(Teilnehmer[Lfd. Nr.])/((Teilnehmer[Großgruppe]=$L$33)),ROW()-35)-1,1)),\"\")","v":""},{"$f":"IFERROR(VLOOKUP(I37,Teilnehmer[],2,FALSE),\"\")","v":""},{"$f":"IFERROR(VLOOKUP(I37,Teilnehmer[],3,FALSE),\"\")","v":""},{"$f":"IFERROR(VLOOKUP(I37,Teilnehmer[],40,FALSE),\"\")","v":""},null,null,{"$f":"O36+1","v":2},{"$f":"IFERROR(_xlfn.SINGLE(INDEX(Teilnehmer[Lfd. Nr.],_xlfn.AGGREGATE(15,6,ROW(Teilnehmer[Lfd. Nr.])/((Teilnehmer[Großgruppe]=$S$33)),ROW()-35)-1,1)),\"\")","v":""},{"$f":"IFERROR(VLOOKUP(P37,Teilnehmer[],2,FALSE),\"\")","v":""},{"$f":"IFERROR(VLOOKUP(P37,Teilnehmer[],3,FALSE),\"\")","v":""},{"$f":"IFERROR(VLOOKUP(P37,Teilnehmer[],40,FALSE),\"\")","v":""}]
[{"$f":"A37+1","v":3},{"$f":"IFERROR(_xlfn.SINGLE(INDEX(Teilnehmer[Lfd. Nr.],_xlfn.AGGREGATE(15,6,ROW(Teilnehmer[Lfd. Nr.])/((Teilnehmer[Großgruppe]=$E$33)),ROW()-35)-1,1)),\"\")","v":""},{"$f":"IFERROR(VLOOKUP(B38,Teilnehmer[],2,FALSE),\"\")","v":""},{"$f":"IFERROR(VLOOKUP(B38,Teilnehmer[],3,FALSE),\"\")","v":""},{"$f":"IFERROR(VLOOKUP(B38,Teilnehmer[],40,FALSE),\"\")","v":""},null,null,{"$f":"H37+1","v":3},{"$f":"IFERROR(_xlfn.SINGLE(INDEX(Teilnehmer[Lfd. Nr.],_xlfn.AGGREGATE(15,6,ROW(Teilnehmer[Lfd. Nr.])/((Teilnehmer[Großgruppe]=$L$33)),ROW()-35)-1,1)),\"\")","v":""},{"$f":"IFERROR(VLOOKUP(I38,Teilnehmer[],2,FALSE),\"\")","v":""},{"$f":"IFERROR(VLOOKUP(I38,Teilnehmer[],3,FALSE),\"\")","v":""},{"$f":"IFERROR(VLOOKUP(I38,Teilnehmer[],40,FALSE),\"\")","v":""},null,null,{"$f":"O37+1","v":3},{"$f":"IFERROR(_xlfn.SINGLE(INDEX(Teilnehmer[Lfd. Nr.],_xlfn.AGGREGATE(15,6,ROW(Teilnehmer[Lfd. Nr.])/((Teilnehmer[Großgruppe]=$S$33)),ROW()-35)-1,1)),\"\")","v":""},{"$f":"IFERROR(VLOOKUP(P38,Teilnehmer[],2,FALSE),\"\")","v":""},{"$f":"IFERROR(VLOOKUP(P38,Teilnehmer[],3,FALSE),\"\")","v":""},{"$f":"IFERROR(VLOOKUP(P38,Teilnehmer[],40,FALSE),\"\")","v":""}]
[4,{"$f":"IFERROR(_xlfn.SINGLE(INDEX(Teilnehmer[Lfd. Nr.],_xlfn.AGGREGATE(15,6,ROW(Teilnehmer[Lfd. Nr.])/((Teilnehmer[Großgruppe]=$E$33)),ROW()-35)-1,1)),\"\")","v":""},{"$f":"IFERROR(VLOOKUP(B39,Teilnehmer[],2,FALSE),\"\")","v":""},{"$f":"IFERROR(VLOOKUP(B39,Teilnehmer[],3,FALSE),\"\")","v":""},{"$f":"IFERROR(VLOOKUP(B39,Teilnehmer[],40,FALSE),\"\")","v":""},null,null,4,{"$f":"IFERROR(_xlfn.SINGLE(INDEX(Teilnehmer[Lfd. Nr.],_xlfn.AGGREGATE(15,6,ROW(Teilnehmer[Lfd. Nr.])/((Teilnehmer[Großgruppe]=$L$33)),ROW()-35)-1,1)),\"\")","v":""},{"$f":"IFERROR(VLOOKUP(I39,Teilnehmer[],2,FALSE),\"\")","v":""},{"$f":"IFERROR(VLOOKUP(I39,Teilnehmer[],3,FALSE),\"\")","v":""},{"$f":"IFERROR(VLOOKUP(I39,Teilnehmer[],40,FALSE),\"\")","v":""},null,null,4,{"$f":"IFERROR(_xlfn.SINGLE(INDEX(Teilnehmer[Lfd. Nr.],_xlfn.AGGREGATE(15,6,ROW(Teilnehmer[Lfd. Nr.])/((Teilnehmer[Großgruppe]=$S$33)),ROW()-35)-1,1)),\"\")","v":""},{"$f":"IFERROR(VLOOKUP(P39,Teilnehmer[],2,FALSE),\"\")","v":""},{"$f":"IFERROR(VLOOKUP(P39,Teilnehmer[],3,FALSE),\"\")","v":""},{"$f":"IFERROR(VLOOKUP(P39,Teilnehmer[],40,FALSE),\"\")","v":""}]
[5,{"$f":"IFERROR(_xlfn.SINGLE(INDEX(Teilnehmer[Lfd. Nr.],_xlfn.AGGREGATE(15,6,ROW(Teilnehmer[Lfd. Nr.])/((Teilnehmer[Großgruppe]=$E$33)),ROW()-35)-1,1)),\"\")","v":""},{"$f":"IFERROR(VLOOKUP(B40,Teilnehmer[],2,FALSE),\"\")","v":""},{"$f":"IFERROR(VLOOKUP(B40,Teilnehmer[],3,FALSE),\"\")","v":""},{"$f":"IFERROR(VLOOKUP(B40,Teilnehmer[],40,FALSE),\"\")","v":""},null,null,5,{"$f":"IFERROR(_xlfn.SINGLE(INDEX(Teilnehmer[Lfd. Nr.],_xlfn.AGGREGATE(15,6,ROW(Teilnehmer[Lfd. Nr.])/((Teilnehmer[Großgruppe]=$L$33)),ROW()-35)-1,1)),\"\")","v":""},{"$f":"IFERROR(VLOOKUP(I40,Teilnehmer[],2,FALSE),\"\")","v":""},{"$f":"IFERROR(VLOOKUP(I40,Teilnehmer[],3,FALSE),\"\")","v":""},{"$f":"IFERROR(VLOOKUP(I40,Teilnehmer[],40,FALSE),\"\")","v":""},null,null,5,{"$f":"IFERROR(_xlfn.SINGLE(INDEX(Teilnehmer[Lfd. Nr.],_xlfn.AGGREGATE(15,6,ROW(Teilnehmer[Lfd. Nr.])/((Teilnehmer[Großgruppe]=$S$33)),ROW()-35)-1,1)),\"\")","v":""},{"$f":"IFERROR(VLOOKUP(P40,Teilnehmer[],2,FALSE),\"\")","v":""},{"$f":"IFERROR(VLOOKUP(P40,Teilnehmer[],3,FALSE),\"\")","v":""},{"$f":"IFERROR(VLOOKUP(P40,Teilnehmer[],40,FALSE),\"\")","v":""}]
[6,{"$f":"IFERROR(_xlfn.SINGLE(INDEX(Teilnehmer[Lfd. Nr.],_xlfn.AGGREGATE(15,6,ROW(Teilnehmer[Lfd. Nr.])/((Teilnehmer[Großgruppe]=$E$33)),ROW()-35)-1,1)),\"\")","v":""},{"$f":"IFERROR(VLOOKUP(B41,Teilnehmer[],2,FALSE),\"\")","v":""},{"$f":"IFERROR(VLOOKUP(B41,Teilnehmer[],3,FALSE),\"\")","v":""},{"$f":"IFERROR(VLOOKUP(B41,Teilnehmer[],40,FALSE),\"\")","v":""},null,null,6,{"$f":"IFERROR(_xlfn.SINGLE(INDEX(Teilnehmer[Lfd. Nr.],_xlfn.AGGREGATE(15,6,ROW(Teilnehmer[Lfd. Nr.])/((Teilnehmer[Großgruppe]=$L$33)),ROW()-35)-1,1)),\"\")","v":""},{"$f":"IFERROR(VLOOKUP(I41,Teilnehmer[],2,FALSE),\"\")","v":""},{"$f":"IFERROR(VLOOKUP(I41,Teilnehmer[],3,FALSE),\"\")","v":""},{"$f":"IFERROR(VLOOKUP(I41,Teilnehmer[],40,FALSE),\"\")","v":""},null,null,6,{"$f":"IFERROR(_xlfn.SINGLE(INDEX(Teilnehmer[Lfd. Nr.],_xlfn.AGGREGATE(15,6,ROW(Teilnehmer[Lfd. Nr.])/((Teilnehmer[Großgruppe]=$S$33)),ROW()-35)-1,1)),\"\")","v":""},{"$f":"IFERROR(VLOOKUP(P41,Teilnehmer[],2,FALSE),\"\")","v":""},{"$f":"IFERROR(VLOOKUP(P41,Teilnehmer[],3,FALSE),\"\")","v":""},{"$f":"IFERROR(VLOOKUP(P41,Teilnehmer[],40,FALSE),\"\")","v":""}]
[7,{"$f":"IFERROR(_xlfn.SINGLE(INDEX(Teilnehmer[Lfd. Nr.],_xlfn.AGGREGATE(15,6,ROW(Teilnehmer[Lfd. Nr.])/((Teilnehmer[Großgruppe]=$E$33)),ROW()-35)-1,1)),\"\")","v":""},{"$f":"IFERROR(VLOOKUP(B42,Teilnehmer[],2,FALSE),\"\")","v":""},{"$f":"IFERROR(VLOOKUP(B42,Teilnehmer[],3,FALSE),\"\")","v":""},{"$f":"IFERROR(VLOOKUP(B42,Teilnehmer[],40,FALSE),\"\")","v":""},null,null,7,{"$f":"IFERROR(_xlfn.SINGLE(INDEX(Teilnehmer[Lfd. Nr.],_xlfn.AGGREGATE(15,6,ROW(Teilnehmer[Lfd. Nr.])/((Teilnehmer[Großgruppe]=$L$33)),ROW()-35)-1,1)),\"\")","v":""},{"$f":"IFERROR(VLOOKUP(I42,Teilnehmer[],2,FALSE),\"\")","v":""},{"$f":"IFERROR(VLOOKUP(I42,Teilnehmer[],3,FALSE),\"\")","v":""},{"$f":"IFERROR(VLOOKUP(I42,Teilnehmer[],40,FALSE),\"\")","v":""},null,null,7,{"$f":"IFERROR(_xlfn.SINGLE(INDEX(Teilnehmer[Lfd. Nr.],_xlfn.AGGREGATE(15,6,ROW(Teilnehmer[Lfd. Nr.])/((Teilnehmer[Großgruppe]=$S$33)),ROW()-35)-1,1)),\"\")","v":""},{"$f":"IFERROR(VLOOKUP(P42,Teilnehmer[],2,FALSE),\"\")","v":""},{"$f":"IFERROR(VLOOKUP(P42,Teilnehmer[],3,FALSE),\"\")","v":""},{"$f":"IFERROR(VLOOKUP(P42,Teilnehmer[],40,FALSE),\"\")","v":""}]
[8,{"$f":"IFERROR(_xlfn.SINGLE(INDEX(Teilnehmer[Lfd. Nr.],_xlfn.AGGREGATE(15,6,ROW(Teilnehmer[Lfd. Nr.])/((Teilnehmer[Großgruppe]=$E$33)),ROW()-35)-1,1)),\"\")","v":""},{"$f":"IFERROR(VLOOKUP(B43,Teilnehmer[],2,FALSE),\"\")","v":""},{"$f":"IFERROR(VLOOKUP(B43,Teilnehmer[],3,FALSE),\"\")","v":""},{"$f":"IFERROR(VLOOKUP(B43,Teilnehmer[],40,FALSE),\"\")","v":""},null,null,8,{"$f":"IFERROR(_xlfn.SINGLE(INDEX(Teilnehmer[Lfd. Nr.],_xlfn.AGGREGATE(15,6,ROW(Teilnehmer[Lfd. Nr.])/((Teilnehmer[Großgruppe]=$L$33)),ROW()-35)-1,1)),\"\")","v":""},{"$f":"IFERROR(VLOOKUP(I43,Teilnehmer[],2,FALSE),\"\")","v":""},{"$f":"IFERROR(VLOOKUP(I43,Teilnehmer[],3,FALSE),\"\")","v":""},{"$f":"IFERROR(VLOOKUP(I43,Teilnehmer[],40,FALSE),\"\")","v":""},null,null,8,{"$f":"IFERROR(_xlfn.SINGLE(INDEX(Teilnehmer[Lfd. Nr.],_xlfn.AGGREGATE(15,6,ROW(Teilnehmer[Lfd. Nr.])/((Teilnehmer[Großgruppe]=$S$33)),ROW()-35)-1,1)),\"\")","v":""},{"$f":"IFERROR(VLOOKUP(P43,Teilnehmer[],2,FALSE),\"\")","v":""},{"$f":"IFERROR(VLOOKUP(P43,Teilnehmer[],3,FALSE),\"\")","v":""},{"$f":"IFERROR(VLOOKUP(P43,Teilnehmer[],40,FALSE),\"\")","v":""}]
[9,{"$f":"IFERROR(_xlfn.SINGLE(INDEX(Teilnehmer[Lfd. Nr.],_xlfn.AGGREGATE(15,6,ROW(Teilnehmer[Lfd. Nr.])/((Teilnehmer[Großgruppe]=$E$33)),ROW()-35)-1,1)),\"\")","v":""},{"$f":"IFERROR(VLOOKUP(B44,Teilnehmer[],2,FALSE),\"\")","v":""},{"$f":"IFERROR(VLOOKUP(B44,Teilnehmer[],3,FALSE),\"\")","v":""},{"$f":"IFERROR(VLOOKUP(B44,Teilnehmer[],40,FALSE),\"\")","v":""},null,null,9,{"$f":"IFERROR(_xlfn.SINGLE(INDEX(Teilnehmer[Lfd. Nr.],_xlfn.AGGREGATE(15,6,ROW(Teilnehmer[Lfd. Nr.])/((Teilnehmer[Großgruppe]=$L$33)),ROW()-35)-1,1)),\"\")","v":""},{"$f":"IFERROR(VLOOKUP(I44,Teilnehmer[],2,FALSE),\"\")","v":""},{"$f":"IFERROR(VLOOKUP(I44,Teilnehmer[],3,FALSE),\"\")","v":""},{"$f":"IFERROR(VLOOKUP(I44,Teilnehmer[],40,FALSE),\"\")","v":""},null,null,9,{"$f":"IFERROR(_xlfn.SINGLE(INDEX(Teilnehmer[Lfd. Nr.],_xlfn.AGGREGATE(15,6,ROW(Teilnehmer[Lfd. Nr.])/((Teilnehmer[Großgruppe]=$S$33)),ROW()-35)-1,1)),\"\")","v":""},{"$f":"IFERROR(VLOOKUP(P44,Teilnehmer[],2,FALSE),\"\")","v":""},{"$f":"IFERROR(VLOOKUP(P44,Teilnehmer[],3,FALSE),\"\")","v":""},{"$f":"IFERROR(VLOOKUP(P44,Teilnehmer[],40,FALSE),\"\")","v":""}]
[10,{"$f":"IFERROR(_xlfn.SINGLE(INDEX(Teilnehmer[Lfd. Nr.],_xlfn.AGGREGATE(15,6,ROW(Teilnehmer[Lfd. Nr.])/((Teilnehmer[Großgruppe]=$E$33)),ROW()-35)-1,1)),\"\")","v":""},{"$f":"IFERROR(VLOOKUP(B45,Teilnehmer[],2,FALSE),\"\")","v":""},{"$f":"IFERROR(VLOOKUP(B45,Teilnehmer[],3,FALSE),\"\")","v":""},{"$f":"IFERROR(VLOOKUP(B45,Teilnehmer[],40,FALSE),\"\")","v":""},null,null,10,{"$f":"IFERROR(_xlfn.SINGLE(INDEX(Teilnehmer[Lfd. Nr.],_xlfn.AGGREGATE(15,6,ROW(Teilnehmer[Lfd. Nr.])/((Teilnehmer[Großgruppe]=$L$33)),ROW()-35)-1,1)),\"\")","v":""},{"$f":"IFERROR(VLOOKUP(I45,Teilnehmer[],2,FALSE),\"\")","v":""},{"$f":"IFERROR(VLOOKUP(I45,Teilnehmer[],3,FALSE),\"\")","v":""},{"$f":"IFERROR(VLOOKUP(I45,Teilnehmer[],40,FALSE),\"\")","v":""},null,null,10,{"$f":"IFERROR(_xlfn.SINGLE(INDEX(Teilnehmer[Lfd. Nr.],_xlfn.AGGREGATE(15,6,ROW(Teilnehmer[Lfd. Nr.])/((Teilnehmer[Großgruppe]=$S$33)),ROW()-35)-1,1)),\"\")","v":""},{"$f":"IFERROR(VLOOKUP(P45,Teilnehmer[],2,FALSE),\"\")","v":""},{"$f":"IFERROR(VLOOKUP(P45,Teilnehmer[],3,FALSE),\"\")","v":""},{"$f":"IFERROR(VLOOKUP(P45,Teilnehmer[],40,FALSE),\"\")","v":""}]
[11,{"$f":"IFERROR(_xlfn.SINGLE(INDEX(Teilnehmer[Lfd. Nr.],_xlfn.AGGREGATE(15,6,ROW(Teilnehmer[Lfd. Nr.])/((Teilnehmer[Großgruppe]=$E$33)),ROW()-35)-1,1)),\"\")","v":""},{"$f":"IFERROR(VLOOKUP(B46,Teilnehmer[],2,FALSE),\"\")","v":""},{"$f":"IFERROR(VLOOKUP(B46,Teilnehmer[],3,FALSE),\"\")","v":""},{"$f":"IFERROR(VLOOKUP(B46,Teilnehmer[],40,FALSE),\"\")","v":""},null,null,11,{"$f":"IFERROR(_xlfn.SINGLE(INDEX(Teilnehmer[Lfd. Nr.],_xlfn.AGGREGATE(15,6,ROW(Teilnehmer[Lfd. Nr.])/((Teilnehmer[Großgruppe]=$L$33)),ROW()-35)-1,1)),\"\")","v":""},{"$f":"IFERROR(VLOOKUP(I46,Teilnehmer[],2,FALSE),\"\")","v":""},{"$f":"IFERROR(VLOOKUP(I46,Teilnehmer[],3,FALSE),\"\")","v":""},{"$f":"IFERROR(VLOOKUP(I46,Teilnehmer[],40,FALSE),\"\")","v":""},null,null,11,{"$f":"IFERROR(_xlfn.SINGLE(INDEX(Teilnehmer[Lfd. Nr.],_xlfn.AGGREGATE(15,6,ROW(Teilnehmer[Lfd. Nr.])/((Teilnehmer[Großgruppe]=$S$33)),ROW()-35)-1,1)),\"\")","v":""},{"$f":"IFERROR(VLOOKUP(P46,Teilnehmer[],2,FALSE),\"\")","v":""},{"$f":"IFERROR(VLOOKUP(P46,Teilnehmer[],3,FALSE),\"\")","v":""},{"$f":"IFERROR(VLOOKUP(P46,Teilnehmer[],40,FALSE),\"\")","v":""}]
[12,{"$f":"IFERROR(_xlfn.SINGLE(INDEX(Teilnehmer[Lfd. Nr.],_xlfn.AGGREGATE(15,6,ROW(Teilnehmer[Lfd. Nr.])/((Teilnehmer[Großgruppe]=$E$33)),ROW()-35)-1,1)),\"\")","v":""},{"$f":"IFERROR(VLOOKUP(B47,Teilnehmer[],2,FALSE),\"\")","v":""},{"$f":"IFERROR(VLOOKUP(B47,Teilnehmer[],3,FALSE),\"\")","v":""},{"$f":"IFERROR(VLOOKUP(B47,Teilnehmer[],40,FALSE),\"\")","v":""},null,null,12,{"$f":"IFERROR(_xlfn.SINGLE(INDEX(Teilnehmer[Lfd. Nr.],_xlfn.AGGREGATE(15,6,ROW(Teilnehmer[Lfd. Nr.])/((Teilnehmer[Großgruppe]=$L$33)),ROW()-35)-1,1)),\"\")","v":""},{"$f":"IFERROR(VLOOKUP(I47,Teilnehmer[],2,FALSE),\"\")","v":""},{"$f":"IFERROR(VLOOKUP(I47,Teilnehmer[],3,FALSE),\"\")","v":""},{"$f":"IFERROR(VLOOKUP(I47,Teilnehmer[],40,FALSE),\"\")","v":""},null,null,12,{"$f":"IFERROR(_xlfn.SINGLE(INDEX(Teilnehmer[Lfd. Nr.],_xlfn.AGGREGATE(15,6,ROW(Teilnehmer[Lfd. Nr.])/((Teilnehmer[Großgruppe]=$S$33)),ROW()-35)-1,1)),\"\")","v":""},{"$f":"IFERROR(VLOOKUP(P47,Teilnehmer[],2,FALSE),\"\")","v":""},{"$f":"IFERROR(VLOOKUP(P47,Teilnehmer[],3,FALSE),\"\")","v":""},{"$f":"IFERROR(VLOOKUP(P47,Teilnehmer[],40,FALSE),\"\")","v":""}]
[13,{"$f":"IFERROR(_xlfn.SINGLE(INDEX(Teilnehmer[Lfd. Nr.],_xlfn.AGGREGATE(15,6,ROW(Teilnehmer[Lfd. Nr.])/((Teilnehmer[Großgruppe]=$E$33)),ROW()-35)-1,1)),\"\")","v":""},{"$f":"IFERROR(VLOOKUP(B48,Teilnehmer[],2,FALSE),\"\")","v":""},{"$f":"IFERROR(VLOOKUP(B48,Teilnehmer[],3,FALSE),\"\")","v":""},{"$f":"IFERROR(VLOOKUP(B48,Teilnehmer[],40,FALSE),\"\")","v":""},null,null,13,{"$f":"IFERROR(_xlfn.SINGLE(INDEX(Teilnehmer[Lfd. Nr.],_xlfn.AGGREGATE(15,6,ROW(Teilnehmer[Lfd. Nr.])/((Teilnehmer[Großgruppe]=$L$33)),ROW()-35)-1,1)),\"\")","v":""},{"$f":"IFERROR(VLOOKUP(I48,Teilnehmer[],2,FALSE),\"\")","v":""},{"$f":"IFERROR(VLOOKUP(I48,Teilnehmer[],3,FALSE),\"\")","v":""},{"$f":"IFERROR(VLOOKUP(I48,Teilnehmer[],40,FALSE),\"\")","v":""},null,null,13,{"$f":"IFERROR(_xlfn.SINGLE(INDEX(Teilnehmer[Lfd. Nr.],_xlfn.AGGREGATE(15,6,ROW(Teilnehmer[Lfd. Nr.])/((Teilnehmer[Großgruppe]=$S$33)),ROW()-35)-1,1)),\"\")","v":""},{"$f":"IFERROR(VLOOKUP(P48,Teilnehmer[],2,FALSE),\"\")","v":""},{"$f":"IFERROR(VLOOKUP(P48,Teilnehmer[],3,FALSE),\"\")","v":""},{"$f":"IFERROR(VLOOKUP(P48,Teilnehmer[],40,FALSE),\"\")","v":""}]
[14,{"$f":"IFERROR(_xlfn.SINGLE(INDEX(Teilnehmer[Lfd. Nr.],_xlfn.AGGREGATE(15,6,ROW(Teilnehmer[Lfd. Nr.])/((Teilnehmer[Großgruppe]=$E$33)),ROW()-35)-1,1)),\"\")","v":""},{"$f":"IFERROR(VLOOKUP(B49,Teilnehmer[],2,FALSE),\"\")","v":""},{"$f":"IFERROR(VLOOKUP(B49,Teilnehmer[],3,FALSE),\"\")","v":""},{"$f":"IFERROR(VLOOKUP(B49,Teilnehmer[],40,FALSE),\"\")","v":""},null,null,14,{"$f":"IFERROR(_xlfn.SINGLE(INDEX(Teilnehmer[Lfd. Nr.],_xlfn.AGGREGATE(15,6,ROW(Teilnehmer[Lfd. Nr.])/((Teilnehmer[Großgruppe]=$L$33)),ROW()-35)-1,1)),\"\")","v":""},{"$f":"IFERROR(VLOOKUP(I49,Teilnehmer[],2,FALSE),\"\")","v":""},{"$f":"IFERROR(VLOOKUP(I49,Teilnehmer[],3,FALSE),\"\")","v":""},{"$f":"IFERROR(VLOOKUP(I49,Teilnehmer[],40,FALSE),\"\")","v":""},null,null,14,{"$f":"IFERROR(_xlfn.SINGLE(INDEX(Teilnehmer[Lfd. Nr.],_xlfn.AGGREGATE(15,6,ROW(Teilnehmer[Lfd. Nr.])/((Teilnehmer[Großgruppe]=$S$33)),ROW()-35)-1,1)),\"\")","v":""},{"$f":"IFERROR(VLOOKUP(P49,Teilnehmer[],2,FALSE),\"\")","v":""},{"$f":"IFERROR(VLOOKUP(P49,Teilnehmer[],3,FALSE),\"\")","v":""},{"$f":"IFERROR(VLOOKUP(P49,Teilnehmer[],40,FALSE),\"\")","v":""}]
[15,{"$f":"IFERROR(_xlfn.SINGLE(INDEX(Teilnehmer[Lfd. Nr.],_xlfn.AGGREGATE(15,6,ROW(Teilnehmer[Lfd. Nr.])/((Teilnehmer[Großgruppe]=$E$33)),ROW()-35)-1,1)),\"\")","v":""},{"$f":"IFERROR(VLOOKUP(B50,Teilnehmer[],2,FALSE),\"\")","v":""},{"$f":"IFERROR(VLOOKUP(B50,Teilnehmer[],3,FALSE),\"\")","v":""},{"$f":"IFERROR(VLOOKUP(B50,Teilnehmer[],40,FALSE),\"\")","v":""},null,null,15,{"$f":"IFERROR(_xlfn.SINGLE(INDEX(Teilnehmer[Lfd. Nr.],_xlfn.AGGREGATE(15,6,ROW(Teilnehmer[Lfd. Nr.])/((Teilnehmer[Großgruppe]=$L$33)),ROW()-35)-1,1)),\"\")","v":""},{"$f":"IFERROR(VLOOKUP(I50,Teilnehmer[],2,FALSE),\"\")","v":""},{"$f":"IFERROR(VLOOKUP(I50,Teilnehmer[],3,FALSE),\"\")","v":""},{"$f":"IFERROR(VLOOKUP(I50,Teilnehmer[],40,FALSE),\"\")","v":""},null,null,15,{"$f":"IFERROR(_xlfn.SINGLE(INDEX(Teilnehmer[Lfd. Nr.],_xlfn.AGGREGATE(15,6,ROW(Teilnehmer[Lfd. Nr.])/((Teilnehmer[Großgruppe]=$S$33)),ROW()-35)-1,1)),\"\")","v":""},{"$f":"IFERROR(VLOOKUP(P50,Teilnehmer[],2,FALSE),\"\")","v":""},{"$f":"IFERROR(VLOOKUP(P50,Teilnehmer[],3,FALSE),\"\")","v":""},{"$f":"IFERROR(VLOOKUP(P50,Teilnehmer[],40,FALSE),\"\")","v":""}]
[16,{"$f":"IFERROR(_xlfn.SINGLE(INDEX(Teilnehmer[Lfd. Nr.],_xlfn.AGGREGATE(15,6,ROW(Teilnehmer[Lfd. Nr.])/((Teilnehmer[Großgruppe]=$E$33)),ROW()-35)-1,1)),\"\")","v":""},{"$f":"IFERROR(VLOOKUP(B51,Teilnehmer[],2,FALSE),\"\")","v":""},{"$f":"IFERROR(VLOOKUP(B51,Teilnehmer[],3,FALSE),\"\")","v":""},{"$f":"IFERROR(VLOOKUP(B51,Teilnehmer[],40,FALSE),\"\")","v":""},null,null,16,{"$f":"IFERROR(_xlfn.SINGLE(INDEX(Teilnehmer[Lfd. Nr.],_xlfn.AGGREGATE(15,6,ROW(Teilnehmer[Lfd. Nr.])/((Teilnehmer[Großgruppe]=$L$33)),ROW()-35)-1,1)),\"\")","v":""},{"$f":"IFERROR(VLOOKUP(I51,Teilnehmer[],2,FALSE),\"\")","v":""},{"$f":"IFERROR(VLOOKUP(I51,Teilnehmer[],3,FALSE),\"\")","v":""},{"$f":"IFERROR(VLOOKUP(I51,Teilnehmer[],40,FALSE),\"\")","v":""},null,null,16,{"$f":"IFERROR(_xlfn.SINGLE(INDEX(Teilnehmer[Lfd. Nr.],_xlfn.AGGREGATE(15,6,ROW(Teilnehmer[Lfd. Nr.])/((Teilnehmer[Großgruppe]=$S$33)),ROW()-35)-1,1)),\"\")","v":""},{"$f":"IFERROR(VLOOKUP(P51,Teilnehmer[],2,FALSE),\"\")","v":""},{"$f":"IFERROR(VLOOKUP(P51,Teilnehmer[],3,FALSE),\"\")","v":""},{"$f":"IFERROR(VLOOKUP(P51,Teilnehmer[],40,FALSE),\"\")","v":""}]
[17,{"$f":"IFERROR(_xlfn.SINGLE(INDEX(Teilnehmer[Lfd. Nr.],_xlfn.AGGREGATE(15,6,ROW(Teilnehmer[Lfd. Nr.])/((Teilnehmer[Großgruppe]=$E$33)),ROW()-35)-1,1)),\"\")","v":""},{"$f":"IFERROR(VLOOKUP(B52,Teilnehmer[],2,FALSE),\"\")","v":""},{"$f":"IFERROR(VLOOKUP(B52,Teilnehmer[],3,FALSE),\"\")","v":""},{"$f":"IFERROR(VLOOKUP(B52,Teilnehmer[],40,FALSE),\"\")","v":""},null,null,17,{"$f":"IFERROR(_xlfn.SINGLE(INDEX(Teilnehmer[Lfd. Nr.],_xlfn.AGGREGATE(15,6,ROW(Teilnehmer[Lfd. Nr.])/((Teilnehmer[Großgruppe]=$L$33)),ROW()-35)-1,1)),\"\")","v":""},{"$f":"IFERROR(VLOOKUP(I52,Teilnehmer[],2,FALSE),\"\")","v":""},{"$f":"IFERROR(VLOOKUP(I52,Teilnehmer[],3,FALSE),\"\")","v":""},{"$f":"IFERROR(VLOOKUP(I52,Teilnehmer[],40,FALSE),\"\")","v":""},null,null,17,{"$f":"IFERROR(_xlfn.SINGLE(INDEX(Teilnehmer[Lfd. Nr.],_xlfn.AGGREGATE(15,6,ROW(Teilnehmer[Lfd. Nr.])/((Teilnehmer[Großgruppe]=$S$33)),ROW()-35)-1,1)),\"\")","v":""},{"$f":"IFERROR(VLOOKUP(P52,Teilnehmer[],2,FALSE),\"\")","v":""},{"$f":"IFERROR(VLOOKUP(P52,Teilnehmer[],3,FALSE),\"\")","v":""},{"$f":"IFERROR(VLOOKUP(P52,Teilnehmer[],40,FALSE),\"\")","v":""}]
[18,{"$f":"IFERROR(_xlfn.SINGLE(INDEX(Teilnehmer[Lfd. Nr.],_xlfn.AGGREGATE(15,6,ROW(Teilnehmer[Lfd. Nr.])/((Teilnehmer[Großgruppe]=$E$33)),ROW()-35)-1,1)),\"\")","v":""},{"$f":"IFERROR(VLOOKUP(B53,Teilnehmer[],2,FALSE),\"\")","v":""},{"$f":"IFERROR(VLOOKUP(B53,Teilnehmer[],3,FALSE),\"\")","v":""},{"$f":"IFERROR(VLOOKUP(B53,Teilnehmer[],40,FALSE),\"\")","v":""},null,null,18,{"$f":"IFERROR(_xlfn.SINGLE(INDEX(Teilnehmer[Lfd. Nr.],_xlfn.AGGREGATE(15,6,ROW(Teilnehmer[Lfd. Nr.])/((Teilnehmer[Großgruppe]=$L$33)),ROW()-35)-1,1)),\"\")","v":""},{"$f":"IFERROR(VLOOKUP(I53,Teilnehmer[],2,FALSE),\"\")","v":""},{"$f":"IFERROR(VLOOKUP(I53,Teilnehmer[],3,FALSE),\"\")","v":""},{"$f":"IFERROR(VLOOKUP(I53,Teilnehmer[],40,FALSE),\"\")","v":""},null,null,18,{"$f":"IFERROR(_xlfn.SINGLE(INDEX(Teilnehmer[Lfd. Nr.],_xlfn.AGGREGATE(15,6,ROW(Teilnehmer[Lfd. Nr.])/((Teilnehmer[Großgruppe]=$S$33)),ROW()-35)-1,1)),\"\")","v":""},{"$f":"IFERROR(VLOOKUP(P53,Teilnehmer[],2,FALSE),\"\")","v":""},{"$f":"IFERROR(VLOOKUP(P53,Teilnehmer[],3,FALSE),\"\")","v":""},{"$f":"IFERROR(VLOOKUP(P53,Teilnehmer[],40,FALSE),\"\")","v":""}]
[19,{"$f":"IFERROR(_xlfn.SINGLE(INDEX(Teilnehmer[Lfd. Nr.],_xlfn.AGGREGATE(15,6,ROW(Teilnehmer[Lfd. Nr.])/((Teilnehmer[Großgruppe]=$E$33)),ROW()-35)-1,1)),\"\")","v":""},{"$f":"IFERROR(VLOOKUP(B54,Teilnehmer[],2,FALSE),\"\")","v":""},{"$f":"IFERROR(VLOOKUP(B54,Teilnehmer[],3,FALSE),\"\")","v":""},{"$f":"IFERROR(VLOOKUP(B54,Teilnehmer[],40,FALSE),\"\")","v":""},null,null,19,{"$f":"IFERROR(_xlfn.SINGLE(INDEX(Teilnehmer[Lfd. Nr.],_xlfn.AGGREGATE(15,6,ROW(Teilnehmer[Lfd. Nr.])/((Teilnehmer[Großgruppe]=$L$33)),ROW()-35)-1,1)),\"\")","v":""},{"$f":"IFERROR(VLOOKUP(I54,Teilnehmer[],2,FALSE),\"\")","v":""},{"$f":"IFERROR(VLOOKUP(I54,Teilnehmer[],3,FALSE),\"\")","v":""},{"$f":"IFERROR(VLOOKUP(I54,Teilnehmer[],40,FALSE),\"\")","v":""},null,null,19,{"$f":"IFERROR(_xlfn.SINGLE(INDEX(Teilnehmer[Lfd. Nr.],_xlfn.AGGREGATE(15,6,ROW(Teilnehmer[Lfd. Nr.])/((Teilnehmer[Großgruppe]=$S$33)),ROW()-35)-1,1)),\"\")","v":""},{"$f":"IFERROR(VLOOKUP(P54,Teilnehmer[],2,FALSE),\"\")","v":""},{"$f":"IFERROR(VLOOKUP(P54,Teilnehmer[],3,FALSE),\"\")","v":""},{"$f":"IFERROR(VLOOKUP(P54,Teilnehmer[],40,FALSE),\"\")","v":""}]
[20,{"$f":"IFERROR(_xlfn.SINGLE(INDEX(Teilnehmer[Lfd. Nr.],_xlfn.AGGREGATE(15,6,ROW(Teilnehmer[Lfd. Nr.])/((Teilnehmer[Großgruppe]=$E$33)),ROW()-35)-1,1)),\"\")","v":""},{"$f":"IFERROR(VLOOKUP(B55,Teilnehmer[],2,FALSE),\"\")","v":""},{"$f":"IFERROR(VLOOKUP(B55,Teilnehmer[],3,FALSE),\"\")","v":""},{"$f":"IFERROR(VLOOKUP(B55,Teilnehmer[],40,FALSE),\"\")","v":""},null,null,20,{"$f":"IFERROR(_xlfn.SINGLE(INDEX(Teilnehmer[Lfd. Nr.],_xlfn.AGGREGATE(15,6,ROW(Teilnehmer[Lfd. Nr.])/((Teilnehmer[Großgruppe]=$L$33)),ROW()-35)-1,1)),\"\")","v":""},{"$f":"IFERROR(VLOOKUP(I55,Teilnehmer[],2,FALSE),\"\")","v":""},{"$f":"IFERROR(VLOOKUP(I55,Teilnehmer[],3,FALSE),\"\")","v":""},{"$f":"IFERROR(VLOOKUP(I55,Teilnehmer[],40,FALSE),\"\")","v":""},null,null,20,{"$f":"IFERROR(_xlfn.SINGLE(INDEX(Teilnehmer[Lfd. Nr.],_xlfn.AGGREGATE(15,6,ROW(Teilnehmer[Lfd. Nr.])/((Teilnehmer[Großgruppe]=$S$33)),ROW()-35)-1,1)),\"\")","v":""},{"$f":"IFERROR(VLOOKUP(P55,Teilnehmer[],2,FALSE),\"\")","v":""},{"$f":"IFERROR(VLOOKUP(P55,Teilnehmer[],3,FALSE),\"\")","v":""},{"$f":"IFERROR(VLOOKUP(P55,Teilnehmer[],40,FALSE),\"\")","v":""}]
[21,{"$f":"IFERROR(_xlfn.SINGLE(INDEX(Teilnehmer[Lfd. Nr.],_xlfn.AGGREGATE(15,6,ROW(Teilnehmer[Lfd. Nr.])/((Teilnehmer[Großgruppe]=$E$33)),ROW()-35)-1,1)),\"\")","v":""},{"$f":"IFERROR(VLOOKUP(B56,Teilnehmer[],2,FALSE),\"\")","v":""},{"$f":"IFERROR(VLOOKUP(B56,Teilnehmer[],3,FALSE),\"\")","v":""},{"$f":"IFERROR(VLOOKUP(B56,Teilnehmer[],40,FALSE),\"\")","v":""},null,null,21,{"$f":"IFERROR(_xlfn.SINGLE(INDEX(Teilnehmer[Lfd. Nr.],_xlfn.AGGREGATE(15,6,ROW(Teilnehmer[Lfd. Nr.])/((Teilnehmer[Großgruppe]=$L$33)),ROW()-35)-1,1)),\"\")","v":""},{"$f":"IFERROR(VLOOKUP(I56,Teilnehmer[],2,FALSE),\"\")","v":""},{"$f":"IFERROR(VLOOKUP(I56,Teilnehmer[],3,FALSE),\"\")","v":""},{"$f":"IFERROR(VLOOKUP(I56,Teilnehmer[],40,FALSE),\"\")","v":""},null,null,21,{"$f":"IFERROR(_xlfn.SINGLE(INDEX(Teilnehmer[Lfd. Nr.],_xlfn.AGGREGATE(15,6,ROW(Teilnehmer[Lfd. Nr.])/((Teilnehmer[Großgruppe]=$S$33)),ROW()-35)-1,1)),\"\")","v":""},{"$f":"IFERROR(VLOOKUP(P56,Teilnehmer[],2,FALSE),\"\")","v":""},{"$f":"IFERROR(VLOOKUP(P56,Teilnehmer[],3,FALSE),\"\")","v":""},{"$f":"IFERROR(VLOOKUP(P56,Teilnehmer[],40,FALSE),\"\")","v":""}]
[22,{"$f":"IFERROR(_xlfn.SINGLE(INDEX(Teilnehmer[Lfd. Nr.],_xlfn.AGGREGATE(15,6,ROW(Teilnehmer[Lfd. Nr.])/((Teilnehmer[Großgruppe]=$E$33)),ROW()-35)-1,1)),\"\")","v":""},{"$f":"IFERROR(VLOOKUP(B57,Teilnehmer[],2,FALSE),\"\")","v":""},{"$f":"IFERROR(VLOOKUP(B57,Teilnehmer[],3,FALSE),\"\")","v":""},{"$f":"IFERROR(VLOOKUP(B57,Teilnehmer[],40,FALSE),\"\")","v":""},null,null,22,{"$f":"IFERROR(_xlfn.SINGLE(INDEX(Teilnehmer[Lfd. Nr.],_xlfn.AGGREGATE(15,6,ROW(Teilnehmer[Lfd. Nr.])/((Teilnehmer[Großgruppe]=$L$33)),ROW()-35)-1,1)),\"\")","v":""},{"$f":"IFERROR(VLOOKUP(I57,Teilnehmer[],2,FALSE),\"\")","v":""},{"$f":"IFERROR(VLOOKUP(I57,Teilnehmer[],3,FALSE),\"\")","v":""},{"$f":"IFERROR(VLOOKUP(I57,Teilnehmer[],40,FALSE),\"\")","v":""},null,null,22,{"$f":"IFERROR(_xlfn.SINGLE(INDEX(Teilnehmer[Lfd. Nr.],_xlfn.AGGREGATE(15,6,ROW(Teilnehmer[Lfd. Nr.])/((Teilnehmer[Großgruppe]=$S$33)),ROW()-35)-1,1)),\"\")","v":""},{"$f":"IFERROR(VLOOKUP(P57,Teilnehmer[],2,FALSE),\"\")","v":""},{"$f":"IFERROR(VLOOKUP(P57,Teilnehmer[],3,FALSE),\"\")","v":""},{"$f":"IFERROR(VLOOKUP(P57,Teilnehmer[],40,FALSE),\"\")","v":""}]
[23,{"$f":"IFERROR(_xlfn.SINGLE(INDEX(Teilnehmer[Lfd. Nr.],_xlfn.AGGREGATE(15,6,ROW(Teilnehmer[Lfd. Nr.])/((Teilnehmer[Großgruppe]=$E$33)),ROW()-35)-1,1)),\"\")","v":""},{"$f":"IFERROR(VLOOKUP(B58,Teilnehmer[],2,FALSE),\"\")","v":""},{"$f":"IFERROR(VLOOKUP(B58,Teilnehmer[],3,FALSE),\"\")","v":""},{"$f":"IFERROR(VLOOKUP(B58,Teilnehmer[],40,FALSE),\"\")","v":""},null,null,23,{"$f":"IFERROR(_xlfn.SINGLE(INDEX(Teilnehmer[Lfd. Nr.],_xlfn.AGGREGATE(15,6,ROW(Teilnehmer[Lfd. Nr.])/((Teilnehmer[Großgruppe]=$L$33)),ROW()-35)-1,1)),\"\")","v":""},{"$f":"IFERROR(VLOOKUP(I58,Teilnehmer[],2,FALSE),\"\")","v":""},{"$f":"IFERROR(VLOOKUP(I58,Teilnehmer[],3,FALSE),\"\")","v":""},{"$f":"IFERROR(VLOOKUP(I58,Teilnehmer[],40,FALSE),\"\")","v":""},null,null,23,{"$f":"IFERROR(_xlfn.SINGLE(INDEX(Teilnehmer[Lfd. Nr.],_xlfn.AGGREGATE(15,6,ROW(Teilnehmer[Lfd. Nr.])/((Teilnehmer[Großgruppe]=$S$33)),ROW()-35)-1,1)),\"\")","v":""},{"$f":"IFERROR(VLOOKUP(P58,Teilnehmer[],2,FALSE),\"\")","v":""},{"$f":"IFERROR(VLOOKUP(P58,Teilnehmer[],3,FALSE),\"\")","v":""},{"$f":"IFERROR(VLOOKUP(P58,Teilnehmer[],40,FALSE),\"\")","v":""}]
[24,{"$f":"IFERROR(_xlfn.SINGLE(INDEX(Teilnehmer[Lfd. Nr.],_xlfn.AGGREGATE(15,6,ROW(Teilnehmer[Lfd. Nr.])/((Teilnehmer[Großgruppe]=$E$33)),ROW()-35)-1,1)),\"\")","v":""},{"$f":"IFERROR(VLOOKUP(B59,Teilnehmer[],2,FALSE),\"\")","v":""},{"$f":"IFERROR(VLOOKUP(B59,Teilnehmer[],3,FALSE),\"\")","v":""},{"$f":"IFERROR(VLOOKUP(B59,Teilnehmer[],40,FALSE),\"\")","v":""},null,null,24,{"$f":"IFERROR(_xlfn.SINGLE(INDEX(Teilnehmer[Lfd. Nr.],_xlfn.AGGREGATE(15,6,ROW(Teilnehmer[Lfd. Nr.])/((Teilnehmer[Großgruppe]=$L$33)),ROW()-35)-1,1)),\"\")","v":""},{"$f":"IFERROR(VLOOKUP(I59,Teilnehmer[],2,FALSE),\"\")","v":""},{"$f":"IFERROR(VLOOKUP(I59,Teilnehmer[],3,FALSE),\"\")","v":""},{"$f":"IFERROR(VLOOKUP(I59,Teilnehmer[],40,FALSE),\"\")","v":""},null,null,24,{"$f":"IFERROR(_xlfn.SINGLE(INDEX(Teilnehmer[Lfd. Nr.],_xlfn.AGGREGATE(15,6,ROW(Teilnehmer[Lfd. Nr.])/((Teilnehmer[Großgruppe]=$S$33)),ROW()-35)-1,1)),\"\")","v":""},{"$f":"IFERROR(VLOOKUP(P59,Teilnehmer[],2,FALSE),\"\")","v":""},{"$f":"IFERROR(VLOOKUP(P59,Teilnehmer[],3,FALSE),\"\")","v":""},{"$f":"IFERROR(VLOOKUP(P59,Teilnehmer[],40,FALSE),\"\")","v":""}]
["Anzahl Fahrer:",null,null,"Anzahl Ersatzfahrer:",null,null,null,"Anzahl Fahrer:",null,null,"Anzahl Ersatzfahrer:",null,null,null,"Anzahl Fahrer:",null,null,"Anzahl Ersatzfahrer:",null,null,null,{"$f":"OR(AND(C36<>\"\",(C60+E60)<>$AC$8),AND(C36<>\"\",C60<9),AND(C36<>\"\",C60>24))","v":false},{"$f":"OR(AND(J36<>\"\",(J60+L60)<>$AC$9),AND(J36<>\"\",J60<9),AND(J36<>\"\",J60>24))","v":false},{"$f":"OR(AND(Q36<>\"\",(Q60+S60)<>$AC$10),AND(Q36<>\"\",Q60<9),AND(Q36<>\"\",Q60>24))","v":false}]
[null,null,null,null,null,null,null,null,null,null,null,null,null,null,null,null,null,null,null,null,null,null,{"$f":"OR(V5:X5,V31:X31,V34:X34,V60:X60)","v":false}]

{"sheet":"Juryabfrage","index":8,"n_rows":108,"n_cols":70,"rows_kept":108,"cut":false,"hidden":true,"merged":[[4,16,4,18],[35,4,35,6],[54,2,54,3],[54,4,54,6],[23,58,24,58],[23,52,24,52],[23,55,24,55],[23,46,24,46],[23,49,24,49],[5,53,6,53],[5,54,6,54],[5,20,6,20],[5,21,6,21],[5,22,6,22],[5,23,6,23],[5,24,6,24],[5,25,6,25],[5,26,6,26],[5,55,6,55],[5,48,6,48],[5,49,6,49],[5,13,6,13],[5,14,6,14],[5,15,6,15],[3,49,3,60],[5,43,6,43],[5,44,6,44],[5,45,6,45],[5,46,6,46],[5,47,6,47],[4,31,4,33],[5,32,6,32],[5,33,6,33],[3,31,3,48],[2,31,2,60],[5,56,6,56],[5,27,6,27],[5,57,6,57],[5,58,6,58],[5,59,6,59],[5,60,6,60],[2,13,2,30],[3,7,3,30],[5,37,6,37],[5,38,6,38],[5,39,6,39],[5,40,6,40],[5,41,6,41],[5,42,6,42],[4,37,4,39],[5,9,6,9],[5,10,6,10],[5,31,6,31],[4,25,4,27],[4,28,4,30],[4,13,4,15],[4,19,4,21],[4,22,4,24],[5,1,6,1],[4,5,4,6],[23,1,24,1],[23,6,24,6],[4,1,4,4],[5,12,6,12],[23,7,24,7],[23,10,24,10],[5,7,6,7],[4,10,4,12],[5,11,6,11],[23,8,24,9],[23,11,24,12],[104,4,104,5],[25,6,30,6],[7,6,22,6],[1,1,1,4],[4,7,4,9],[1,5,1,70],[4,58,4,60],[4,52,4,54],[4,34,4,36],[4,55,4,57],[4,43,4,45],[4,46,4,48],[2,7,2,12],[4,49,4,51],[4,40,4,42],[5,34,6,34],[5,35,6,35],[5,36,6,36],[5,51,6,51],[5,52,6,52],[5,8,6,8],[23,19,24,19],[23,22,24,22],[23,25,24,25],[23,14,24,15],[23,17,24,18],[23,20,24,21],[23,23,24,24],[23,13,24,13],[23,16,24,16],[5,29,6,29],[5,30,6,30],[23,56,24,57],[5,16,6,16],[23,41,24,42],[23,44,24,45],[23,47,24,48],[23,50,24,51],[23,53,24,54],[5,50,6,50],[5,28,6,28],[5,18,6,18],[5,19,6,19],[5,17,6,17],[23,26,24,27],[23,29,24,30],[23,59,24,60],[23,28,24,28],[23,31,24,31],[23,43,24,43],[23,34,24,34],[23,37,24,37],[23,40,24,40],[23,32,24,33],[23,35,24,36],[23,38,24,39]]}
[{"$f":"Deckblatt!B2","v":46311}]
[null,"Juryabfrage",null,null,null,"Süddeutsche Meisterschaft Einrad Freestyle 🧡"]
[null,"Der Verein",null,null,null,null,null,"Freitag, 16.10.26",null,null,null,null,null,"Samstag, 17. Oktober 2026",null,null,null,null,null,null,null,null,null,null,null,null,null,null,null,null,null,{"$f":"Deckblatt!C2","v":"2026-10-18"},null,null,null,null,null,null,null,null,null,null,null,null,null,null,null,null,null,null,null,null,null,null,null,null,null,null,null,null,null,"Ist Anzahl Juryeinsätze",null,{"$f":"SUM(BL8:BL23)","v":0}]
[null,{"$f":"IFERROR(IF(Deckblatt!C9=0,\"\",Deckblatt!C9),\"\")","v":""},null,null,null,null,null,"Vorläufe ",null,null,null,null,null,null,null,null,null,null,null,null,null,null,null,null,null,null,null,null,null,null,null,"Finale EK + PK",null,null,null,null,null,null,null,null,null,null,null,null,null,null,null,null,null,"Finale Gruppenkür",null,null,null,null,null,null,null,null,null,null,null,"Anzahl Meldungen",null,{"$f":"Startgebühr!C27","v":""}]
[null,"ist verpflichtet folgende Mindestanzahl Juryeinsätze für T/P \nmit ausgebildeten Juroren (Mindestalter 15 Jahre) zu stellen:",null,null,null,{"$f":"IFERROR(IF(Startgebühr!C28=0,\"\",Startgebühr!C28),\"\")","v":""},null,"Einzelkür (w)\nU11 /U13/U15",null,null,"Einzelkür (m) \nU11/U13/U15",null,null,"Einzelkür (w) \nU17/U19/U21",null,null,"Einzelkür (w) \nU23/U25/>U25",null,null,"Einzelkür (m) \nU17/U19/>U19",null,null,"Paarkür JExp\nU11/U13/U15",null,null,"Paarkür Exp 1\nU17/U19/U21",null,null,"Paarkür Exp 2\nU23/U25/>U25",null,null,"Einzelkür (w)\nJunior Expert",null,null,"Einzelkür (w)\nExpert",null,null,"Einzelkür (m)\nJunior Expert",null,null,"Einzelkür (m)\nExpert",null,null,"Paarkür\nJunior Expert",null,null,"Paarkür\nExpert",null,null,"Kleingruppe\nJunior Expert",null,null,"Kleingruppe\nExpert",null,null,"Großgruppe\nJunior Expert",null,null,"Großgruppe\nExpert",null,null,"Soll Anzahl Juryeinsätze",null,{"$f":"Startgebühr!C28","v":""}]
[null,"#","Ausgebildete Juroren",null,null,null,null,"A","T","P","A","T","P","A","T","P","A","T","P","A","T","P","A","T","P","A","T","P","A","T","P","A","T","P","A","T","P","A","T","P","A","T","P","A","T","P","A","T","P","A","T","P","A","T","P","A","T","P","A","T","P","Anzahl empfohlene Judges",null,{"$f":"ROUNDUP(BL4/4,0)","v":{"$error":"#VALUE!"}}]
[null,null,"Name  ","Vorname","Geb.Datum","Alter",null,null,null,null,null,null,null,null,null,null,null,null,null,null,null,null,null,null,null,null,null,null,null,null,null,null,null,null,null,null,null,null,null,null,null,null,null,null,null,null,null,null,null,null,null,null,null,null,null,null,null,null,null,null,null,"Bemerkung (optional):",null,{"$f":"MAX(BL5-BL3,0)","v":{"$error":"#VALUE!"}}]
[null,{"$f":"IFERROR(IF(BL6>0,1,IF(ISBLANK(C8)=FALSE,1,\"\")),\"\")","v":""},null,null,null,{"$f":"IFERROR(IF( E8>1940,DATEDIF(E8,Deckblatt!$B$2,\"y\"),\" \"),\"\")","v":" "},"Bitte ankreuzen  X  wo ihr werten könnt",null,null,null,null,null,null,null,null,null,null,null,null,null,null,null,null,null,null,null,null,null,null,null,null,null,null,null,null,null,null,null,null,null,null,null,null,null,null,null,null,null,null,null,null,null,null,null,null,null,null,null,null,null,null,null,{"$f":"IF(AND(B8=\"\",COUNTA(C8:E8,H8:BI8)<1),\"\",IF(OR(COUNTA(C8:E8)<3,COUNTA(H8:BI8)<1,F8<16,F8>$A$1),\"ERROR\",\"OKAY\"))","v":""},{"$f":"IF(BK8=\"ERROR\",0,MIN(COUNTA(I8:J8),1)*2+MIN(COUNTA(L8:M8),1)*2+MIN(COUNTA(O8:P8),1)*2+MIN(COUNTA(R8:S8),1)*2+MIN(COUNTA(U8:V8),1)*2+MIN(COUNTA(X8:Y8),1)*2+MIN(COUNTA(AA8:AB8),1)*2+MIN(COUNTA(AD8:AE8),1)*2+MIN(COUNTA(AG8:AH8),1)+MIN(COUNTA(AJ8:AK8),1)+MIN(COUNTA(AM8:AN8),1)+MIN(COUNTA(AP8:AQ8),1)+MIN(COUNTA(AS8:AT8),1)+MIN(COUNTA(AV8:AW8),1)++MIN(COUNTA(AY8:AZ8),1)+MIN(COUNTA(BB8:BC8),1)+MIN(COUNTA(BE8:BF8),1)+MIN(COUNTA(BH8:BI8),1))","v":0}]
[null,{"$f":"IFERROR(IF($BL$6>1,2,IF(ISBLANK(C9)=FALSE,COUNT(B8)+1,\"\")),\"\")","v":""},null,null,null,{"$f":"IFERROR(IF( E9>1940,DATEDIF(E9,Deckblatt!$B$2,\"y\"),\" \"),\"\")","v":" "},null,null,null,null,null,null,null,null,null,null,null,null,null,null,null,null,null,null,null,null,null,null,null,null,null,null,null,null,null,null,null,null,null,null,null,null,null,null,null,null,null,null,null,null,null,null,null,null,null,null,null,null,null,null,null,null,{"$f":"IF(AND(B9=\"\",COUNTA(C9:E9,H9:BI9)<1),\"\",IF(OR(COUNTA(C9:E9)<3,COUNTA(H9:BI9)<1,F9<16,F9>$A$1),\"ERROR\",\"OKAY\"))","v":""},{"$f":"IF(BK9=\"ERROR\",0,MIN(COUNTA(I9:J9),1)*2+MIN(COUNTA(L9:M9),1)*2+MIN(COUNTA(O9:P9),1)*2+MIN(COUNTA(R9:S9),1)*2+MIN(COUNTA(U9:V9),1)*2+MIN(COUNTA(X9:Y9),1)*2+MIN(COUNTA(AA9:AB9),1)*2+MIN(COUNTA(AD9:AE9),1)*2+MIN(COUNTA(AG9:AH9),1)+MIN(COUNTA(AJ9:AK9),1)+MIN(COUNTA(AM9:AN9),1)+MIN(COUNTA(AP9:AQ9),1)+MIN(COUNTA(AS9:AT9),1)+MIN(COUNTA(AV9:AW9),1)++MIN(COUNTA(AY9:AZ9),1)+MIN(COUNTA(BB9:BC9),1)+MIN(COUNTA(BE9:BF9),1)+MIN(COUNTA(BH9:BI9),1))","v":0}]
[null,{"$f":"IFERROR(IF($BL$6>2,3,IF(ISBLANK(C10)=FALSE,COUNT(B8:B9)+1,\"\")),\"\")","v":""},null,null,null,{"$f":"IFERROR(IF( E10>1940,DATEDIF(E10,Deckblatt!$B$2,\"y\"),\" \"),\"\")","v":" "},null,null,null,null,null,null,null,null,null,null,null,null,null,null,null,null,null,null,null,null,null,null,null,null,null,null,null,null,null,null,null,null,null,null,null,null,null,null,null,null,null,null,null,null,null,null,null,null,null,null,null,null,null,null,null,null,"",0]
[null,{"$f":"IFERROR(IF($BL$6>3,4,IF(ISBLANK(C11)=FALSE,COUNT($B$8:B10)+1,\"\")),\"\")","v":""},null,null,null,{"$f":"IFERROR(IF( E11>1940,DATEDIF(E11,Deckblatt!$B$2,\"y\"),\" \"),\"\")","v":" "},null,null,null,null,null,null,null,null,null,null,null,null,null,null,null,null,null,null,null,null,null,null,null,null,null,null,null,null,null,null,null,null,null,null,null,null,null,null,null,null,null,null,null,null,null,null,null,null,null,null,null,null,null,null,null,null,"",0]
[null,{"$f":"IFERROR(IF($BL$6>4,5,IF(ISBLANK(C12)=FALSE,COUNT($B$8:B11)+1,\"\")),\"\")","v":""},null,null,null,{"$f":"IFERROR(IF( E12>1940,DATEDIF(E12,Deckblatt!$B$2,\"y\"),\" \"),\"\")","v":" "},null,null,null,null,null,null,null,null,null,null,null,null,null,null,null,null,null,null,null,null,null,null,null,null,null,null,null,null,null,null,null,null,null,null,null,null,null,null,null,null,null,null,null,null,null,null,null,null,null,null,null,null,null,null,null,null,"",0]
[null,{"$f":"IFERROR(IF($BL$6>5,6,IF(ISBLANK(C13)=FALSE,COUNT($B$8:B12)+1,\"\")),\"\")","v":""},null,null,null,{"$f":"IFERROR(IF( E13>1940,DATEDIF(E13,Deckblatt!$B$2,\"y\"),\" \"),\"\")","v":" "},null,null,null,null,null,null,null,null,null,null,null,null,null,null,null,null,null,null,null,null,null,null,null,null,null,null,null,null,null,null,null,null,null,null,null,null,null,null,null,null,null,null,null,null,null,null,null,null,null,null,null,null,null,null,null,null,"",0]
[null,{"$f":"IFERROR(IF($BL$6>6,7,IF(ISBLANK(C14)=FALSE,COUNT($B$8:B13)+1,\"\")),\"\")","v":""},null,null,null,{"$f":"IFERROR(IF( E14>1940,DATEDIF(E14,Deckblatt!$B$2,\"y\"),\" \"),\"\")","v":" "},null,null,null,null,null,null,null,null,null,null,null,null,null,null,null,null,null,null,null,null,null,null,null,null,null,null,null,null,null,null,null,null,null,null,null,null,null,null,null,null,null,null,null,null,null,null,null,null,null,null,null,null,null,null,null,null,"",0]
[null,{"$f":"IFERROR(IF($BL$6>7,8,IF(ISBLANK(C15)=FALSE,COUNT($B$8:B14)+1,\"\")),\"\")","v":""},null,null,null,{"$f":"IFERROR(IF( E15>1940,DATEDIF(E15,Deckblatt!$B$2,\"y\"),\" \"),\"\")","v":" "},null,null,null,null,null,null,null,null,null,null,null,null,null,null,null,null,null,null,null,null,null,null,null,null,null,null,null,null,null,null,null,null,null,null,null,null,null,null,null,null,null,null,null,null,null,null,null,null,null,null,null,null,null,null,null,null,"",0]
[null,{"$f":"IFERROR(IF($BL$6>8,9,IF(ISBLANK(C16)=FALSE,COUNT($B$8:B15)+1,\"\")),\"\")","v":""},null,null,null,{"$f":"IFERROR(IF( E16>1940,DATEDIF(E16,Deckblatt!$B$2,\"y\"),\" \"),\"\")","v":" "},null,null,null,null,null,null,null,null,null,null,null,null,null,null,null,null,null,null,null,null,null,null,null,null,null,null,null,null,null,null,null,null,null,null,null,null,null,null,null,null,null,null,null,null,null,null,null,null,null,null,null,null,null,null,null,null,"",0]
[null,{"$f":"IFERROR(IF($BL$6>9,10,IF(ISBLANK(C17)=FALSE,COUNT($B$8:B16)+1,\"\")),\"\")","v":""},null,null,null,{"$f":"IFERROR(IF( E17>1940,DATEDIF(E17,Deckblatt!$B$2,\"y\"),\" \"),\"\")","v":" "},null,null,null,null,null,null,null,null,null,null,null,null,null,null,null,null,null,null,null,null,null,null,null,null,null,null,null,null,null,null,null,null,null,null,null,null,null,null,null,null,null,null,null,null,null,null,null,null,null,null,null,null,null,null,null,null,"",0]
[null,{"$f":"IFERROR(IF($BL$6>10,11,IF(ISBLANK(C18)=FALSE,COUNT($B$8:B17)+1,\"\")),\"\")","v":""},null,null,null,{"$f":"IFERROR(IF( E18>1940,DATEDIF(E18,Deckblatt!$B$2,\"y\"),\" \"),\"\")","v":" "},null,null,null,null,null,null,null,null,null,null,null,null,null,null,null,null,null,null,null,null,null,null,null,null,null,null,null,null,null,null,null,null,null,null,null,null,null,null,null,null,null,null,null,null,null,null,null,null,null,null,null,null,null,null,null,null,"",0]
[null,{"$f":"IFERROR(IF($BL$6>11,12,IF(ISBLANK(C19)=FALSE,COUNT($B$8:B18)+1,\"\")),\"\")","v":""},null,null,null,{"$f":"IFERROR(IF( E19>1940,DATEDIF(E19,Deckblatt!$B$2,\"y\"),\" \"),\"\")","v":" "},null,null,null,null,null,null,null,null,null,null,null,null,null,null,null,null,null,null,null,null,null,null,null,null,null,null,null,null,null,null,null,null,null,null,null,null,null,null,null,null,null,null,null,null,null,null,null,null,null,null,null,null,null,null,null,null,"",0]
[null,{"$f":"IFERROR(IF($BL$6>12,13,IF(ISBLANK(C20)=FALSE,COUNT($B$8:B19)+1,\"\")),\"\")","v":""},null,null,null,{"$f":"IFERROR(IF( E20>1940,DATEDIF(E20,Deckblatt!$B$2,\"y\"),\" \"),\"\")","v":" "},null,null,null,null,null,null,null,null,null,null,null,null,null,null,null,null,null,null,null,null,null,null,null,null,null,null,null,null,null,null,null,null,null,null,null,null,null,null,null,null,null,null,null,null,null,null,null,null,null,null,null,null,null,null,null,null,"",0]
[null,{"$f":"IFERROR(IF($BL$6>13,14,IF(ISBLANK(C21)=FALSE,COUNT($B$8:B20)+1,\"\")),\"\")","v":""},null,null,null,{"$f":"IFERROR(IF( E21>1940,DATEDIF(E21,Deckblatt!$B$2,\"y\"),\" \"),\"\")","v":" "},null,null,null,null,null,null,null,null,null,null,null,null,null,null,null,null,null,null,null,null,null,null,null,null,null,null,null,null,null,null,null,null,null,null,null,null,null,null,null,null,null,null,null,null,null,null,null,null,null,null,null,null,null,null,null,null,"",0]
[null,{"$f":"IFERROR(IF($BL$6>14,15,IF(ISBLANK(C22)=FALSE,COUNT($B$8:B21)+1,\"\")),\"\")","v":""},null,null,null,{"$f":"IFERROR(IF( E22>1940,DATEDIF(E22,Deckblatt!$B$2,\"y\"),\" \"),\"\")","v":" "},null,null,null,null,null,null,null,null,null,null,null,null,null,null,null,null,null,null,null,null,null,null,null,null,null,null,null,null,null,null,null,null,null,null,null,null,null,null,null,null,null,null,null,null,null,null,null,null,null,null,null,null,null,null,null,null,"",0]
[null,{"$f":"IFERROR(IF($BL$6>15,16,IF(ISBLANK(C23)=FALSE,COUNT(B8:B22)+1,\"\")),\"\")","v":""},null,null,null,{"$f":"IFERROR(IF( E23>1940,DATEDIF(E23,Deckblatt!$B$2,\"y\"),\" \"),\"\")","v":" "},null,null,null,null,null,null,null,null,null,null,null,null,null,null,null,null,null,null,null,null,null,null,null,null,null,null,null,null,null,null,null,null,null,null,null,null,null,null,null,null,null,null,null,null,null,null,null,null,null,null,null,null,null,null,null,null,"",0]
[null,"#","Juroren ohne Ausbildung",null,null,null,null,"A",null,null,"A",null,null,"A",null,null,"A",null,null,"A",null,null,"A",null,null,"A",null,null,"A",null,null,"A",null,null,"A",null,null,"A",null,null,"A",null,null,"A",null,null,"A",null,null,"A",null,null,"A",null,null,"A",null,null,"A",null,null,null,{"$f":"IF(OR(BK8=\"ERROR\",BK9=\"ERROR\",BK10=\"ERROR\",BK11=\"ERROR\",BK12=\"ERROR\",BK13=\"ERROR\",BK14=\"ERROR\",BK15=\"ERROR\",BK16=\"ERROR\",BK17=\"ERROR\",BK18=\"ERROR\",BK19=\"ERROR\",BK20=\"ERROR\",BK21=\"ERROR\",BK22=\"ERROR\",BK23=\"ERROR\"),1,0)","v":0}]
[null,null,"Name  ","Vorname","Geb.Datum","Alter"]
[null,1,null,null,null,{"$f":"IF( E26>1940,DATEDIF(E26,Deckblatt!$B$2,\"y\"),\" \")","v":" "},"Bitte  ankreuzen   X"]
[null,2,null,null,null,{"$f":"IF( E27>1940,DATEDIF(E27,Deckblatt!$B$2,\"y\"),\" \")","v":" "}]
[null,3,null,null,null,{"$f":"IF( E28>1940,DATEDIF(E28,Deckblatt!$B$2,\"y\"),\" \")","v":" "}]
[null,4,null,null,null,{"$f":"IF( E29>1940,DATEDIF(E29,Deckblatt!$B$2,\"y\"),\" \")","v":" "}]
[null,5,null,null,null,{"$f":"IF( E30>1940,DATEDIF(E30,Deckblatt!$B$2,\"y\"),\" \")","v":" "}]
[null,6,null,null,null,{"$f":"IF( E31>1940,DATEDIF(E31,Deckblatt!$B$2,\"y\"),\" \")","v":" "}]
[]
[null,"Alle Vereine sind verpflichtet, abhängig von der Anzahl gemeldeter Küren, eine bestimmte Mindestanzahl Juryeinsätze mit ausgebildeten Juroren, nach IUF Regelwerk 2019, für T/P zu stellen (gerne auch mehr)."]
[null,"Juroren, die sich ausschließlich als Abstiegszähler zur Verfügung stellen, zählen nicht zur Mindestanzahl. "]
[{"$f":"Startgebühr!C28","v":""},"Soll"]
[{"$f":"COUNTA(Juryabfrage!$C$8:$C$23)","v":0},"Ist","Anzahl gemeldete Küren","Mindestanzahl Juroren\n(Empfehlung)","Mindestanzahl Juryeinsätze (Vorlauf ≙ 2 Wertungseinsätze)"]
[null,null,"  1 -  2",1,4]
[null,null,"  3 -  4",1,8]
[null,null,"  5 -  6",2,12]
[null,null,"  7 -  8",2,16]
[null,null,"  9 - 10",3,20]
[null,null,"11 - 12",3,24]
[null,null,"13 - 14",4,28]
[null,null,"15 - 16",4,32]
[null,null,"17 - 18",5,36]
[null,null,"19 - 20",5,40]
[null,null,"21 - 22",6,44]
[null,null,"23 - 24",6,48]
[null,null,"25 - 26",7,52]
[null,null,"27 - 28",7,56]
[null,null,"29 - 30",8,60]
[null,null,"31 - 32",8,64]
[null,null,"…","…","…"]
[]
[null,null,"Strafgebühr für fehlende Juryeinsätze:",null,{"$f":"E104","v":""}]
[]
[]
[]
[null,null,"Textverketten Anzahl Wertungsdisziplinen T/P"]
[null,null,{"$f":"(45-COUNTBLANK(F60:BS60))","v":-15},null,null,{"$f":"SUBSTITUTE(_xlfn.TEXTJOIN(\"\",TRUE,H6,I6,J6),\" \",\"\")","v":"ATP"},null,null,{"$f":"SUBSTITUTE(_xlfn.TEXTJOIN(\"\",TRUE,#REF!,#REF!,#REF!),\" \",\"\")","v":{"$error":"#REF!"}},null,null,{"$f":"SUBSTITUTE(_xlfn.TEXTJOIN(\"\",TRUE,#REF!,#REF!,#REF!),\" \",\"\")","v":{"$error":"#REF!"}},null,null,null,null,null,null,null,null,null,null,null,null,null,null,{"$f":"SUBSTITUTE(_xlfn.TEXTJOIN(\"\",TRUE,#REF!,#REF!,#REF!),\" \",\"\")","v":{"$error":"#REF!"}},null,null,{"$f":"SUBSTITUTE(_xlfn.TEXTJOIN(\"\",TRUE,#REF!,#REF!,#REF!),\" \",\"\")","v":{"$error":"#REF!"}},null,null,{"$f":"SUBSTITUTE(_xlfn.TEXTJOIN(\"\",TRUE,W7,X7,Y7),\" \",\"\")","v":""},null,null,{"$f":"SUBSTITUTE(_xlfn.TEXTJOIN(\"\",TRUE,Z7,AA7,AB7),\" \",\"\")","v":""},null,null,null,null,null,null,null,null,{"$f":"SUBSTITUTE(_xlfn.TEXTJOIN(\"\",TRUE,AI7,AJ7,AK7),\" \",\"\")","v":""},null,null,null,null,null,{"$f":"SUBSTITUTE(_xlfn.TEXTJOIN(\"\",TRUE,#REF!,#REF!,#REF!),\" \",\"\")","v":{"$error":"#REF!"}},null,null,{"$f":"SUBSTITUTE(_xlfn.TEXTJOIN(\"\",TRUE,AR7,AS7,AT7),\" \",\"\")","v":""},null,null,{"$f":"SUBSTITUTE(_xlfn.TEXTJOIN(\"\",TRUE,AU7,AV7,AW7),\" \",\"\")","v":""},null,null,{"$f":"SUBSTITUTE(_xlfn.TEXTJOIN(\"\",TRUE,AX7,AY7,AZ7),\" \",\"\")","v":""},null,null,{"$f":"SUBSTITUTE(_xlfn.TEXTJOIN(\"\",TRUE,BA7,BB7,BC7),\" \",\"\")","v":""},null,null,{"$f":"SUBSTITUTE(_xlfn.TEXTJOIN(\"\",TRUE,BD7,BE7,BF7),\" \",\"\")","v":""},null,null,{"$f":"SUBSTITUTE(_xlfn.TEXTJOIN(\"\",TRUE,BG7,BH7,BI7),\" \",\"\")","v":""}]
[null,null,-16,null,"#1",{"$f":"SUBSTITUTE(_xlfn.TEXTJOIN(\"\",TRUE,I8,J8),\" \",\"\")","v":""},null,null,{"$f":"SUBSTITUTE(_xlfn.TEXTJOIN(\"\",TRUE,#REF!,#REF!),\" \",\"\")","v":{"$error":"#REF!"}},null,null,{"$f":"SUBSTITUTE(_xlfn.TEXTJOIN(\"\",TRUE,#REF!,#REF!),\" \",\"\")","v":{"$error":"#REF!"}},null,null,null,null,null,null,null,null,null,null,null,null,null,null,{"$f":"SUBSTITUTE(_xlfn.TEXTJOIN(\"\",TRUE,#REF!,#REF!),\" \",\"\")","v":{"$error":"#REF!"}},null,null,{"$f":"SUBSTITUTE(_xlfn.TEXTJOIN(\"\",TRUE,#REF!,#REF!),\" \",\"\")","v":{"$error":"#REF!"}},null,null,{"$f":"SUBSTITUTE(_xlfn.TEXTJOIN(\"\",TRUE,X8,Y8),\" \",\"\")","v":""},null,null,{"$f":"SUBSTITUTE(_xlfn.TEXTJOIN(\"\",TRUE,AA8,AB8),\" \",\"\")","v":""},null,null,null,null,null,null,null,null,{"$f":"SUBSTITUTE(_xlfn.TEXTJOIN(\"\",TRUE,AJ8,AK8),\" \",\"\")","v":""},null,null,null,null,null,{"$f":"SUBSTITUTE(_xlfn.TEXTJOIN(\"\",TRUE,#REF!,#REF!),\" \",\"\")","v":{"$error":"#REF!"}},null,null,{"$f":"SUBSTITUTE(_xlfn.TEXTJOIN(\"\",TRUE,AS8,AT8),\" \",\"\")","v":""},null,null,{"$f":"SUBSTITUTE(_xlfn.TEXTJOIN(\"\",TRUE,AV8,AW8),\" \",\"\")","v":""},null,null,{"$f":"SUBSTITUTE(_xlfn.TEXTJOIN(\"\",TRUE,AY8,AZ8),\" \",\"\")","v":""},null,null,{"$f":"SUBSTITUTE(_xlfn.TEXTJOIN(\"\",TRUE,BB8,BC8),\" \",\"\")","v":""},null,null,{"$f":"SUBSTITUTE(_xlfn.TEXTJOIN(\"\",TRUE,BE8,BF8),\" \",\"\")","v":""},null,null,{"$f":"SUBSTITUTE(_xlfn.TEXTJOIN(\"\",TRUE,BH8,BI8),\" \",\"\")","v":""}]
[null,null,-16,null,"#2","",null,null,{"$f":"SUBSTITUTE(_xlfn.TEXTJOIN(\"\",TRUE,#REF!,#REF!),\" \",\"\")","v":{"$error":"#REF!"}},null,null,{"$f":"SUBSTITUTE(_xlfn.TEXTJOIN(\"\",TRUE,#REF!,#REF!),\" \",\"\")","v":{"$error":"#REF!"}},null,null,null,null,null,null,null,null,null,null,null,null,null,null,{"$f":"SUBSTITUTE(_xlfn.TEXTJOIN(\"\",TRUE,#REF!,#REF!),\" \",\"\")","v":{"$error":"#REF!"}},null,null,{"$f":"SUBSTITUTE(_xlfn.TEXTJOIN(\"\",TRUE,#REF!,#REF!),\" \",\"\")","v":{"$error":"#REF!"}},null,null,"",null,null,"",null,null,null,null,null,null,null,null,"",null,null,null,null,null,{"$f":"SUBSTITUTE(_xlfn.TEXTJOIN(\"\",TRUE,#REF!,#REF!),\" \",\"\")","v":{"$error":"#REF!"}},null,null,"",null,null,"",null,null,"",null,null,"",null,null,"",null,null,""]
[null,null,-16,null,"#3","",null,null,{"$f":"SUBSTITUTE(_xlfn.TEXTJOIN(\"\",TRUE,#REF!,#REF!),\" \",\"\")","v":{"$error":"#REF!"}},null,null,{"$f":"SUBSTITUTE(_xlfn.TEXTJOIN(\"\",TRUE,#REF!,#REF!),\" \",\"\")","v":{"$error":"#REF!"}},null,null,null,null,null,null,null,null,null,null,null,null,null,null,{"$f":"SUBSTITUTE(_xlfn.TEXTJOIN(\"\",TRUE,#REF!,#REF!),\" \",\"\")","v":{"$error":"#REF!"}},null,null,{"$f":"SUBSTITUTE(_xlfn.TEXTJOIN(\"\",TRUE,#REF!,#REF!),\" \",\"\")","v":{"$error":"#REF!"}},null,null,"",null,null,"",null,null,null,null,null,null,null,null,"",null,null,null,null,null,{"$f":"SUBSTITUTE(_xlfn.TEXTJOIN(\"\",TRUE,#REF!,#REF!),\" \",\"\")","v":{"$error":"#REF!"}},null,null,"",null,null,"",null,null,"",null,null,"",null,null,"",null,null,""]
[null,null,-16,null,"#4","",null,null,{"$f":"SUBSTITUTE(_xlfn.TEXTJOIN(\"\",TRUE,#REF!,#REF!),\" \",\"\")","v":{"$error":"#REF!"}},null,null,{"$f":"SUBSTITUTE(_xlfn.TEXTJOIN(\"\",TRUE,#REF!,#REF!),\" \",\"\")","v":{"$error":"#REF!"}},null,null,null,null,null,null,null,null,null,null,null,null,null,null,{"$f":"SUBSTITUTE(_xlfn.TEXTJOIN(\"\",TRUE,#REF!,#REF!),\" \",\"\")","v":{"$error":"#REF!"}},null,null,{"$f":"SUBSTITUTE(_xlfn.TEXTJOIN(\"\",TRUE,#REF!,#REF!),\" \",\"\")","v":{"$error":"#REF!"}},null,null,"",null,null,"",null,null,null,null,null,null,null,null,"",null,null,null,null,null,{"$f":"SUBSTITUTE(_xlfn.TEXTJOIN(\"\",TRUE,#REF!,#REF!),\" \",\"\")","v":{"$error":"#REF!"}},null,null,"",null,null,"",null,null,"",null,null,"",null,null,"",null,null,""]
[null,null,-16,null,"#5","",null,null,{"$f":"SUBSTITUTE(_xlfn.TEXTJOIN(\"\",TRUE,#REF!,#REF!),\" \",\"\")","v":{"$error":"#REF!"}},null,null,{"$f":"SUBSTITUTE(_xlfn.TEXTJOIN(\"\",TRUE,#REF!,#REF!),\" \",\"\")","v":{"$error":"#REF!"}},null,null,null,null,null,null,null,null,null,null,null,null,null,null,{"$f":"SUBSTITUTE(_xlfn.TEXTJOIN(\"\",TRUE,#REF!,#REF!),\" \",\"\")","v":{"$error":"#REF!"}},null,null,{"$f":"SUBSTITUTE(_xlfn.TEXTJOIN(\"\",TRUE,#REF!,#REF!),\" \",\"\")","v":{"$error":"#REF!"}},null,null,"",null,null,"",null,null,null,null,null,null,null,null,"",null,null,null,null,null,{"$f":"SUBSTITUTE(_xlfn.TEXTJOIN(\"\",TRUE,#REF!,#REF!),\" \",\"\")","v":{"$error":"#REF!"}},null,null,"",null,null,"",null,null,"",null,null,"",null,null,"",null,null,""]
[null,null,-16,null,"#6","",null,null,{"$f":"SUBSTITUTE(_xlfn.TEXTJOIN(\"\",TRUE,#REF!,#REF!),\" \",\"\")","v":{"$error":"#REF!"}},null,null,{"$f":"SUBSTITUTE(_xlfn.TEXTJOIN(\"\",TRUE,#REF!,#REF!),\" \",\"\")","v":{"$error":"#REF!"}},null,null,null,null,null,null,null,null,null,null,null,null,null,null,{"$f":"SUBSTITUTE(_xlfn.TEXTJOIN(\"\",TRUE,#REF!,#REF!),\" \",\"\")","v":{"$error":"#REF!"}},null,null,{"$f":"SUBSTITUTE(_xlfn.TEXTJOIN(\"\",TRUE,#REF!,#REF!),\" \",\"\")","v":{"$error":"#REF!"}},null,null,"",null,null,"",null,null,null,null,null,null,null,null,"",null,null,null,null,null,{"$f":"SUBSTITUTE(_xlfn.TEXTJOIN(\"\",TRUE,#REF!,#REF!),\" \",\"\")","v":{"$error":"#REF!"}},null,null,"",null,null,"",null,null,"",null,null,"",null,null,"",null,null,""]
[null,null,-16,null,"#7","",null,null,{"$f":"SUBSTITUTE(_xlfn.TEXTJOIN(\"\",TRUE,#REF!,#REF!),\" \",\"\")","v":{"$error":"#REF!"}},null,null,{"$f":"SUBSTITUTE(_xlfn.TEXTJOIN(\"\",TRUE,#REF!,#REF!),\" \",\"\")","v":{"$error":"#REF!"}},null,null,null,null,null,null,null,null,null,null,null,null,null,null,{"$f":"SUBSTITUTE(_xlfn.TEXTJOIN(\"\",TRUE,#REF!,#REF!),\" \",\"\")","v":{"$error":"#REF!"}},null,null,{"$f":"SUBSTITUTE(_xlfn.TEXTJOIN(\"\",TRUE,#REF!,#REF!),\" \",\"\")","v":{"$error":"#REF!"}},null,null,"",null,null,"",null,null,null,null,null,null,null,null,"",null,null,null,null,null,{"$f":"SUBSTITUTE(_xlfn.TEXTJOIN(\"\",TRUE,#REF!,#REF!),\" \",\"\")","v":{"$error":"#REF!"}},null,null,"",null,null,"",null,null,"",null,null,"",null,null,"",null,null,""]
[null,null,-16,null,"#8","",null,null,{"$f":"SUBSTITUTE(_xlfn.TEXTJOIN(\"\",TRUE,#REF!,#REF!),\" \",\"\")","v":{"$error":"#REF!"}},null,null,{"$f":"SUBSTITUTE(_xlfn.TEXTJOIN(\"\",TRUE,#REF!,#REF!),\" \",\"\")","v":{"$error":"#REF!"}},null,null,null,null,null,null,null,null,null,null,null,null,null,null,{"$f":"SUBSTITUTE(_xlfn.TEXTJOIN(\"\",TRUE,#REF!,#REF!),\" \",\"\")","v":{"$error":"#REF!"}},null,null,{"$f":"SUBSTITUTE(_xlfn.TEXTJOIN(\"\",TRUE,#REF!,#REF!),\" \",\"\")","v":{"$error":"#REF!"}},null,null,"",null,null,"",null,null,null,null,null,null,null,null,"",null,null,null,null,null,{"$f":"SUBSTITUTE(_xlfn.TEXTJOIN(\"\",TRUE,#REF!,#REF!),\" \",\"\")","v":{"$error":"#REF!"}},null,null,"",null,null,"",null,null,"",null,null,"",null,null,"",null,null,""]
[null,null,-16,null,"#9",{"$f":"SUBSTITUTE(_xlfn.TEXTJOIN(\"\",TRUE,I22,J22),\" \",\"\")","v":""},null,null,{"$f":"SUBSTITUTE(_xlfn.TEXTJOIN(\"\",TRUE,#REF!,#REF!),\" \",\"\")","v":{"$error":"#REF!"}},null,null,{"$f":"SUBSTITUTE(_xlfn.TEXTJOIN(\"\",TRUE,#REF!,#REF!),\" \",\"\")","v":{"$error":"#REF!"}},null,null,null,null,null,null,null,null,null,null,null,null,null,null,{"$f":"SUBSTITUTE(_xlfn.TEXTJOIN(\"\",TRUE,#REF!,#REF!),\" \",\"\")","v":{"$error":"#REF!"}},null,null,{"$f":"SUBSTITUTE(_xlfn.TEXTJOIN(\"\",TRUE,#REF!,#REF!),\" \",\"\")","v":{"$error":"#REF!"}},null,null,{"$f":"SUBSTITUTE(_xlfn.TEXTJOIN(\"\",TRUE,X22,Y22),\" \",\"\")","v":""},null,null,{"$f":"SUBSTITUTE(_xlfn.TEXTJOIN(\"\",TRUE,AA22,AB22),\" \",\"\")","v":""},null,null,null,null,null,null,null,null,{"$f":"SUBSTITUTE(_xlfn.TEXTJOIN(\"\",TRUE,AJ22,AK22),\" \",\"\")","v":""},null,null,null,null,null,{"$f":"SUBSTITUTE(_xlfn.TEXTJOIN(\"\",TRUE,#REF!,#REF!),\" \",\"\")","v":{"$error":"#REF!"}},null,null,{"$f":"SUBSTITUTE(_xlfn.TEXTJOIN(\"\",TRUE,AS22,AT22),\" \",\"\")","v":""},null,null,{"$f":"SUBSTITUTE(_xlfn.TEXTJOIN(\"\",TRUE,AV22,AW22),\" \",\"\")","v":""},null,null,{"$f":"SUBSTITUTE(_xlfn.TEXTJOIN(\"\",TRUE,AY22,AZ22),\" \",\"\")","v":""},null,null,{"$f":"SUBSTITUTE(_xlfn.TEXTJOIN(\"\",TRUE,BB22,BC22),\" \",\"\")","v":""},null,null,{"$f":"SUBSTITUTE(_xlfn.TEXTJOIN(\"\",TRUE,BE22,BF22),\" \",\"\")","v":""},null,null,{"$f":"SUBSTITUTE(_xlfn.TEXTJOIN(\"\",TRUE,BH22,BI22),\" \",\"\")","v":""}]
[null,null,-16,null,"#10",{"$f":"SUBSTITUTE(_xlfn.TEXTJOIN(\"\",TRUE,I23,J23),\" \",\"\")","v":""},null,null,{"$f":"SUBSTITUTE(_xlfn.TEXTJOIN(\"\",TRUE,#REF!,#REF!),\" \",\"\")","v":{"$error":"#REF!"}},null,null,{"$f":"SUBSTITUTE(_xlfn.TEXTJOIN(\"\",TRUE,#REF!,#REF!),\" \",\"\")","v":{"$error":"#REF!"}},null,null,null,null,null,null,null,null,null,null,null,null,null,null,{"$f":"SUBSTITUTE(_xlfn.TEXTJOIN(\"\",TRUE,#REF!,#REF!),\" \",\"\")","v":{"$error":"#REF!"}},null,null,{"$f":"SUBSTITUTE(_xlfn.TEXTJOIN(\"\",TRUE,#REF!,#REF!),\" \",\"\")","v":{"$error":"#REF!"}},null,null,{"$f":"SUBSTITUTE(_xlfn.TEXTJOIN(\"\",TRUE,X23,Y23),\" \",\"\")","v":""},null,null,{"$f":"SUBSTITUTE(_xlfn.TEXTJOIN(\"\",TRUE,AA23,AB23),\" \",\"\")","v":""},null,null,null,null,null,null,null,null,{"$f":"SUBSTITUTE(_xlfn.TEXTJOIN(\"\",TRUE,AJ23,AK23),\" \",\"\")","v":""},null,null,null,null,null,{"$f":"SUBSTITUTE(_xlfn.TEXTJOIN(\"\",TRUE,#REF!,#REF!),\" \",\"\")","v":{"$error":"#REF!"}},null,null,{"$f":"SUBSTITUTE(_xlfn.TEXTJOIN(\"\",TRUE,AS23,AT23),\" \",\"\")","v":""},null,null,{"$f":"SUBSTITUTE(_xlfn.TEXTJOIN(\"\",TRUE,AV23,AW23),\" \",\"\")","v":""},null,null,{"$f":"SUBSTITUTE(_xlfn.TEXTJOIN(\"\",TRUE,AY23,AZ23),\" \",\"\")","v":""},null,null,{"$f":"SUBSTITUTE(_xlfn.TEXTJOIN(\"\",TRUE,BB23,BC23),\" \",\"\")","v":""},null,null,{"$f":"SUBSTITUTE(_xlfn.TEXTJOIN(\"\",TRUE,BE23,BF23),\" \",\"\")","v":""},null,null,{"$f":"SUBSTITUTE(_xlfn.TEXTJOIN(\"\",TRUE,BH23,BI23),\" \",\"\")","v":""}]
[]
[null,{"$f":"SUM(B73:B82)","v":{"$error":"#REF!"}},"Nur Abstiegszähler?",null,null,{"$f":"SUBSTITUTE(_xlfn.TEXTJOIN(\"\",TRUE,H6),\" \",\"\")","v":"A"},{"$f":"SUBSTITUTE(_xlfn.TEXTJOIN(\"\",TRUE,I6,J6),\" \",\"\")","v":"TP"},null,{"$f":"SUBSTITUTE(_xlfn.TEXTJOIN(\"\",TRUE,#REF!),\" \",\"\")","v":{"$error":"#REF!"}},{"$f":"SUBSTITUTE(_xlfn.TEXTJOIN(\"\",TRUE,#REF!,#REF!),\" \",\"\")","v":{"$error":"#REF!"}},null,{"$f":"SUBSTITUTE(_xlfn.TEXTJOIN(\"\",TRUE,#REF!),\" \",\"\")","v":{"$error":"#REF!"}},{"$f":"SUBSTITUTE(_xlfn.TEXTJOIN(\"\",TRUE,#REF!,#REF!),\" \",\"\")","v":{"$error":"#REF!"}},null,null,null,null,null,null,null,null,null,null,null,null,null,{"$f":"SUBSTITUTE(_xlfn.TEXTJOIN(\"\",TRUE,#REF!),\" \",\"\")","v":{"$error":"#REF!"}},{"$f":"SUBSTITUTE(_xlfn.TEXTJOIN(\"\",TRUE,#REF!,#REF!),\" \",\"\")","v":{"$error":"#REF!"}},null,{"$f":"SUBSTITUTE(_xlfn.TEXTJOIN(\"\",TRUE,#REF!),\" \",\"\")","v":{"$error":"#REF!"}},{"$f":"SUBSTITUTE(_xlfn.TEXTJOIN(\"\",TRUE,#REF!,#REF!),\" \",\"\")","v":{"$error":"#REF!"}},null,{"$f":"SUBSTITUTE(_xlfn.TEXTJOIN(\"\",TRUE,W7),\" \",\"\")","v":""},{"$f":"SUBSTITUTE(_xlfn.TEXTJOIN(\"\",TRUE,X7,Y7),\" \",\"\")","v":""},null,{"$f":"SUBSTITUTE(_xlfn.TEXTJOIN(\"\",TRUE,Z7),\" \",\"\")","v":""},{"$f":"SUBSTITUTE(_xlfn.TEXTJOIN(\"\",TRUE,AA7,AB7),\" \",\"\")","v":""},null,null,null,null,null,null,null,{"$f":"SUBSTITUTE(_xlfn.TEXTJOIN(\"\",TRUE,AI7),\" \",\"\")","v":""},{"$f":"SUBSTITUTE(_xlfn.TEXTJOIN(\"\",TRUE,AJ7,AK7),\" \",\"\")","v":""},null,null,null,null,{"$f":"SUBSTITUTE(_xlfn.TEXTJOIN(\"\",TRUE,#REF!),\" \",\"\")","v":{"$error":"#REF!"}},{"$f":"SUBSTITUTE(_xlfn.TEXTJOIN(\"\",TRUE,#REF!,#REF!),\" \",\"\")","v":{"$error":"#REF!"}},null,{"$f":"SUBSTITUTE(_xlfn.TEXTJOIN(\"\",TRUE,AR7),\" \",\"\")","v":""},{"$f":"SUBSTITUTE(_xlfn.TEXTJOIN(\"\",TRUE,AS7,AT7),\" \",\"\")","v":""},null,{"$f":"SUBSTITUTE(_xlfn.TEXTJOIN(\"\",TRUE,AU7),\" \",\"\")","v":""},{"$f":"SUBSTITUTE(_xlfn.TEXTJOIN(\"\",TRUE,AV7,AW7),\" \",\"\")","v":""},null,{"$f":"SUBSTITUTE(_xlfn.TEXTJOIN(\"\",TRUE,AX7),\" \",\"\")","v":""},{"$f":"SUBSTITUTE(_xlfn.TEXTJOIN(\"\",TRUE,AY7,AZ7),\" \",\"\")","v":""},null,{"$f":"SUBSTITUTE(_xlfn.TEXTJOIN(\"\",TRUE,BA7),\" \",\"\")","v":""},{"$f":"SUBSTITUTE(_xlfn.TEXTJOIN(\"\",TRUE,BB7,BC7),\" \",\"\")","v":""},null,{"$f":"SUBSTITUTE(_xlfn.TEXTJOIN(\"\",TRUE,BD7),\" \",\"\")","v":""},{"$f":"SUBSTITUTE(_xlfn.TEXTJOIN(\"\",TRUE,BE7,BF7),\" \",\"\")","v":""},null,{"$f":"SUBSTITUTE(_xlfn.TEXTJOIN(\"\",TRUE,BG7),\" \",\"\")","v":""},{"$f":"SUBSTITUTE(_xlfn.TEXTJOIN(\"\",TRUE,BH7,BI7),\" \",\"\")","v":""}]
[null,{"$f":"C73*1","v":{"$error":"#REF!"}},{"$f":"AND(C8<>\"\",G73=\"\",J73=\"\",M73=\"\",AB73=\"\",AE73=\"\",AH73=\"\",#REF!=\"\",AT73=\"\",AZ73=\"\",BC73=\"\",BF73=\"\",BI73=\"\",BL73=\"\",BO73=\"\",BR73=\"\",(OR(F73<>\"\",I73<>\"\",L73<>\"\",AA73<>\"\",AD73<>\"\",AG73<>\"\",#REF!<>\"\",AS73<>\"\",AY73<>\"\",BB73<>\"\",BE73<>\"\",BH73<>\"\",BK73<>\"\",BN73<>\"\",BQ73<>\"\")))","v":{"$error":"#REF!"}},null,"#1",{"$f":"SUBSTITUTE(_xlfn.TEXTJOIN(\"\",TRUE,H8),\" \",\"\")","v":""},{"$f":"SUBSTITUTE(_xlfn.TEXTJOIN(\"\",TRUE,I8,J8),\" \",\"\")","v":""},null,{"$f":"SUBSTITUTE(_xlfn.TEXTJOIN(\"\",TRUE,#REF!),\" \",\"\")","v":{"$error":"#REF!"}},{"$f":"SUBSTITUTE(_xlfn.TEXTJOIN(\"\",TRUE,#REF!,#REF!),\" \",\"\")","v":{"$error":"#REF!"}},null,{"$f":"SUBSTITUTE(_xlfn.TEXTJOIN(\"\",TRUE,#REF!),\" \",\"\")","v":{"$error":"#REF!"}},{"$f":"SUBSTITUTE(_xlfn.TEXTJOIN(\"\",TRUE,#REF!,#REF!),\" \",\"\")","v":{"$error":"#REF!"}},null,null,null,null,null,null,null,null,null,null,null,null,null,{"$f":"SUBSTITUTE(_xlfn.TEXTJOIN(\"\",TRUE,#REF!),\" \",\"\")","v":{"$error":"#REF!"}},{"$f":"SUBSTITUTE(_xlfn.TEXTJOIN(\"\",TRUE,#REF!,#REF!),\" \",\"\")","v":{"$error":"#REF!"}},null,{"$f":"SUBSTITUTE(_xlfn.TEXTJOIN(\"\",TRUE,#REF!),\" \",\"\")","v":{"$error":"#REF!"}},{"$f":"SUBSTITUTE(_xlfn.TEXTJOIN(\"\",TRUE,#REF!,#REF!),\" \",\"\")","v":{"$error":"#REF!"}},null,"","",null,"","",null,null,null,null,null,null,null,"","",null,null,null,null,{"$f":"SUBSTITUTE(_xlfn.TEXTJOIN(\"\",TRUE,#REF!),\" \",\"\")","v":{"$error":"#REF!"}},{"$f":"SUBSTITUTE(_xlfn.TEXTJOIN(\"\",TRUE,#REF!,#REF!),\" \",\"\")","v":{"$error":"#REF!"}},null,"","",null,"","",null,"","",null,"","",null,"","",null,"",""]
[null,{"$f":"C74*1","v":{"$error":"#REF!"}},{"$f":"AND(C9<>\"\",G74=\"\",J74=\"\",M74=\"\",AB74=\"\",AE74=\"\",AH74=\"\",#REF!=\"\",AT74=\"\",AZ74=\"\",BC74=\"\",BF74=\"\",BI74=\"\",BL74=\"\",BO74=\"\",BR74=\"\",(OR(F74<>\"\",I74<>\"\",L74<>\"\",AA74<>\"\",AD74<>\"\",AG74<>\"\",#REF!<>\"\",AS74<>\"\",AY74<>\"\",BB74<>\"\",BE74<>\"\",BH74<>\"\",BK74<>\"\",BN74<>\"\",BQ74<>\"\")))","v":{"$error":"#REF!"}},null,"#2","","",null,{"$f":"SUBSTITUTE(_xlfn.TEXTJOIN(\"\",TRUE,#REF!),\" \",\"\")","v":{"$error":"#REF!"}},{"$f":"SUBSTITUTE(_xlfn.TEXTJOIN(\"\",TRUE,#REF!,#REF!),\" \",\"\")","v":{"$error":"#REF!"}},null,{"$f":"SUBSTITUTE(_xlfn.TEXTJOIN(\"\",TRUE,#REF!),\" \",\"\")","v":{"$error":"#REF!"}},{"$f":"SUBSTITUTE(_xlfn.TEXTJOIN(\"\",TRUE,#REF!,#REF!),\" \",\"\")","v":{"$error":"#REF!"}},null,null,null,null,null,null,null,null,null,null,null,null,null,{"$f":"SUBSTITUTE(_xlfn.TEXTJOIN(\"\",TRUE,#REF!),\" \",\"\")","v":{"$error":"#REF!"}},{"$f":"SUBSTITUTE(_xlfn.TEXTJOIN(\"\",TRUE,#REF!,#REF!),\" \",\"\")","v":{"$error":"#REF!"}},null,{"$f":"SUBSTITUTE(_xlfn.TEXTJOIN(\"\",TRUE,#REF!),\" \",\"\")","v":{"$error":"#REF!"}},{"$f":"SUBSTITUTE(_xlfn.TEXTJOIN(\"\",TRUE,#REF!,#REF!),\" \",\"\")","v":{"$error":"#REF!"}},null,"","",null,"","",null,null,null,null,null,null,null,"","",null,null,null,null,{"$f":"SUBSTITUTE(_xlfn.TEXTJOIN(\"\",TRUE,#REF!),\" \",\"\")","v":{"$error":"#REF!"}},{"$f":"SUBSTITUTE(_xlfn.TEXTJOIN(\"\",TRUE,#REF!,#REF!),\" \",\"\")","v":{"$error":"#REF!"}},null,"","",null,"","",null,"","",null,"","",null,"","",null,"",""]
[null,{"$error":"#REF!"},{"$f":"AND(C10<>\"\",G75=\"\",J75=\"\",M75=\"\",AB75=\"\",AE75=\"\",AH75=\"\",#REF!=\"\",AT75=\"\",AZ75=\"\",BC75=\"\",BF75=\"\",BI75=\"\",BL75=\"\",BO75=\"\",BR75=\"\",(OR(F75<>\"\",I75<>\"\",L75<>\"\",AA75<>\"\",AD75<>\"\",AG75<>\"\",#REF!<>\"\",AS75<>\"\",AY75<>\"\",BB75<>\"\",BE75<>\"\",BH75<>\"\",BK75<>\"\",BN75<>\"\",BQ75<>\"\")))","v":{"$error":"#REF!"}},null,"#3","","",null,{"$f":"SUBSTITUTE(_xlfn.TEXTJOIN(\"\",TRUE,#REF!),\" \",\"\")","v":{"$error":"#REF!"}},{"$f":"SUBSTITUTE(_xlfn.TEXTJOIN(\"\",TRUE,#REF!,#REF!),\" \",\"\")","v":{"$error":"#REF!"}},null,{"$f":"SUBSTITUTE(_xlfn.TEXTJOIN(\"\",TRUE,#REF!),\" \",\"\")","v":{"$error":"#REF!"}},{"$f":"SUBSTITUTE(_xlfn.TEXTJOIN(\"\",TRUE,#REF!,#REF!),\" \",\"\")","v":{"$error":"#REF!"}},null,null,null,null,null,null,null,null,null,null,null,null,null,{"$f":"SUBSTITUTE(_xlfn.TEXTJOIN(\"\",TRUE,#REF!),\" \",\"\")","v":{"$error":"#REF!"}},{"$f":"SUBSTITUTE(_xlfn.TEXTJOIN(\"\",TRUE,#REF!,#REF!),\" \",\"\")","v":{"$error":"#REF!"}},null,{"$f":"SUBSTITUTE(_xlfn.TEXTJOIN(\"\",TRUE,#REF!),\" \",\"\")","v":{"$error":"#REF!"}},{"$f":"SUBSTITUTE(_xlfn.TEXTJOIN(\"\",TRUE,#REF!,#REF!),\" \",\"\")","v":{"$error":"#REF!"}},null,"","",null,"","",null,null,null,null,null,null,null,"","",null,null,null,null,{"$f":"SUBSTITUTE(_xlfn.TEXTJOIN(\"\",TRUE,#REF!),\" \",\"\")","v":{"$error":"#REF!"}},{"$f":"SUBSTITUTE(_xlfn.TEXTJOIN(\"\",TRUE,#REF!,#REF!),\" \",\"\")","v":{"$error":"#REF!"}},null,"","",null,"","",null,"","",null,"","",null,"","",null,"",""]
[null,{"$error":"#REF!"},{"$f":"AND(C11<>\"\",G76=\"\",J76=\"\",M76=\"\",AB76=\"\",AE76=\"\",AH76=\"\",#REF!=\"\",AT76=\"\",AZ76=\"\",BC76=\"\",BF76=\"\",BI76=\"\",BL76=\"\",BO76=\"\",BR76=\"\",(OR(F76<>\"\",I76<>\"\",L76<>\"\",AA76<>\"\",AD76<>\"\",AG76<>\"\",#REF!<>\"\",AS76<>\"\",AY76<>\"\",BB76<>\"\",BE76<>\"\",BH76<>\"\",BK76<>\"\",BN76<>\"\",BQ76<>\"\")))","v":{"$error":"#REF!"}},null,"#4","","",null,{"$f":"SUBSTITUTE(_xlfn.TEXTJOIN(\"\",TRUE,#REF!),\" \",\"\")","v":{"$error":"#REF!"}},{"$f":"SUBSTITUTE(_xlfn.TEXTJOIN(\"\",TRUE,#REF!,#REF!),\" \",\"\")","v":{"$error":"#REF!"}},null,{"$f":"SUBSTITUTE(_xlfn.TEXTJOIN(\"\",TRUE,#REF!),\" \",\"\")","v":{"$error":"#REF!"}},{"$f":"SUBSTITUTE(_xlfn.TEXTJOIN(\"\",TRUE,#REF!,#REF!),\" \",\"\")","v":{"$error":"#REF!"}},null,null,null,null,null,null,null,null,null,null,null,null,null,{"$f":"SUBSTITUTE(_xlfn.TEXTJOIN(\"\",TRUE,#REF!),\" \",\"\")","v":{"$error":"#REF!"}},{"$f":"SUBSTITUTE(_xlfn.TEXTJOIN(\"\",TRUE,#REF!,#REF!),\" \",\"\")","v":{"$error":"#REF!"}},null,{"$f":"SUBSTITUTE(_xlfn.TEXTJOIN(\"\",TRUE,#REF!),\" \",\"\")","v":{"$error":"#REF!"}},{"$f":"SUBSTITUTE(_xlfn.TEXTJOIN(\"\",TRUE,#REF!,#REF!),\" \",\"\")","v":{"$error":"#REF!"}},null,"","",null,"","",null,null,null,null,null,null,null,"","",null,null,null,null,{"$f":"SUBSTITUTE(_xlfn.TEXTJOIN(\"\",TRUE,#REF!),\" \",\"\")","v":{"$error":"#REF!"}},{"$f":"SUBSTITUTE(_xlfn.TEXTJOIN(\"\",TRUE,#REF!,#REF!),\" \",\"\")","v":{"$error":"#REF!"}},null,"","",null,"","",null,"","",null,"","",null,"","",null,"",""]
[null,{"$error":"#REF!"},{"$f":"AND(C12<>\"\",G77=\"\",J77=\"\",M77=\"\",AB77=\"\",AE77=\"\",AH77=\"\",#REF!=\"\",AT77=\"\",AZ77=\"\",BC77=\"\",BF77=\"\",BI77=\"\",BL77=\"\",BO77=\"\",BR77=\"\",(OR(F77<>\"\",I77<>\"\",L77<>\"\",AA77<>\"\",AD77<>\"\",AG77<>\"\",#REF!<>\"\",AS77<>\"\",AY77<>\"\",BB77<>\"\",BE77<>\"\",BH77<>\"\",BK77<>\"\",BN77<>\"\",BQ77<>\"\")))","v":{"$error":"#REF!"}},null,"#5","","",null,{"$f":"SUBSTITUTE(_xlfn.TEXTJOIN(\"\",TRUE,#REF!),\" \",\"\")","v":{"$error":"#REF!"}},{"$f":"SUBSTITUTE(_xlfn.TEXTJOIN(\"\",TRUE,#REF!,#REF!),\" \",\"\")","v":{"$error":"#REF!"}},null,{"$f":"SUBSTITUTE(_xlfn.TEXTJOIN(\"\",TRUE,#REF!),\" \",\"\")","v":{"$error":"#REF!"}},{"$f":"SUBSTITUTE(_xlfn.TEXTJOIN(\"\",TRUE,#REF!,#REF!),\" \",\"\")","v":{"$error":"#REF!"}},null,null,null,null,null,null,null,null,null,null,null,null,null,{"$f":"SUBSTITUTE(_xlfn.TEXTJOIN(\"\",TRUE,#REF!),\" \",\"\")","v":{"$error":"#REF!"}},{"$f":"SUBSTITUTE(_xlfn.TEXTJOIN(\"\",TRUE,#REF!,#REF!),\" \",\"\")","v":{"$error":"#REF!"}},null,{"$f":"SUBSTITUTE(_xlfn.TEXTJOIN(\"\",TRUE,#REF!),\" \",\"\")","v":{"$error":"#REF!"}},{"$f":"SUBSTITUTE(_xlfn.TEXTJOIN(\"\",TRUE,#REF!,#REF!),\" \",\"\")","v":{"$error":"#REF!"}},null,"","",null,"","",null,null,null,null,null,null,null,"","",null,null,null,null,{"$f":"SUBSTITUTE(_xlfn.TEXTJOIN(\"\",TRUE,#REF!),\" \",\"\")","v":{"$error":"#REF!"}},{"$f":"SUBSTITUTE(_xlfn.TEXTJOIN(\"\",TRUE,#REF!,#REF!),\" \",\"\")","v":{"$error":"#REF!"}},null,"","",null,"","",null,"","",null,"","",null,"","",null,"",""]
[null,{"$error":"#REF!"},{"$f":"AND(C13<>\"\",G78=\"\",J78=\"\",M78=\"\",AB78=\"\",AE78=\"\",AH78=\"\",#REF!=\"\",AT78=\"\",AZ78=\"\",BC78=\"\",BF78=\"\",BI78=\"\",BL78=\"\",BO78=\"\",BR78=\"\",(OR(F78<>\"\",I78<>\"\",L78<>\"\",AA78<>\"\",AD78<>\"\",AG78<>\"\",#REF!<>\"\",AS78<>\"\",AY78<>\"\",BB78<>\"\",BE78<>\"\",BH78<>\"\",BK78<>\"\",BN78<>\"\",BQ78<>\"\")))","v":{"$error":"#REF!"}},null,"#6","","",null,{"$f":"SUBSTITUTE(_xlfn.TEXTJOIN(\"\",TRUE,#REF!),\" \",\"\")","v":{"$error":"#REF!"}},{"$f":"SUBSTITUTE(_xlfn.TEXTJOIN(\"\",TRUE,#REF!,#REF!),\" \",\"\")","v":{"$error":"#REF!"}},null,{"$f":"SUBSTITUTE(_xlfn.TEXTJOIN(\"\",TRUE,#REF!),\" \",\"\")","v":{"$error":"#REF!"}},{"$f":"SUBSTITUTE(_xlfn.TEXTJOIN(\"\",TRUE,#REF!,#REF!),\" \",\"\")","v":{"$error":"#REF!"}},null,null,null,null,null,null,null,null,null,null,null,null,null,{"$f":"SUBSTITUTE(_xlfn.TEXTJOIN(\"\",TRUE,#REF!),\" \",\"\")","v":{"$error":"#REF!"}},{"$f":"SUBSTITUTE(_xlfn.TEXTJOIN(\"\",TRUE,#REF!,#REF!),\" \",\"\")","v":{"$error":"#REF!"}},null,{"$f":"SUBSTITUTE(_xlfn.TEXTJOIN(\"\",TRUE,#REF!),\" \",\"\")","v":{"$error":"#REF!"}},{"$f":"SUBSTITUTE(_xlfn.TEXTJOIN(\"\",TRUE,#REF!,#REF!),\" \",\"\")","v":{"$error":"#REF!"}},null,"","",null,"","",null,null,null,null,null,null,null,"","",null,null,null,null,{"$f":"SUBSTITUTE(_xlfn.TEXTJOIN(\"\",TRUE,#REF!),\" \",\"\")","v":{"$error":"#REF!"}},{"$f":"SUBSTITUTE(_xlfn.TEXTJOIN(\"\",TRUE,#REF!,#REF!),\" \",\"\")","v":{"$error":"#REF!"}},null,"","",null,"","",null,"","",null,"","",null,"","",null,"",""]
[null,{"$error":"#REF!"},{"$f":"AND(C14<>\"\",G79=\"\",J79=\"\",M79=\"\",AB79=\"\",AE79=\"\",AH79=\"\",#REF!=\"\",AT79=\"\",AZ79=\"\",BC79=\"\",BF79=\"\",BI79=\"\",BL79=\"\",BO79=\"\",BR79=\"\",(OR(F79<>\"\",I79<>\"\",L79<>\"\",AA79<>\"\",AD79<>\"\",AG79<>\"\",#REF!<>\"\",AS79<>\"\",AY79<>\"\",BB79<>\"\",BE79<>\"\",BH79<>\"\",BK79<>\"\",BN79<>\"\",BQ79<>\"\")))","v":{"$error":"#REF!"}},null,"#7","","",null,{"$f":"SUBSTITUTE(_xlfn.TEXTJOIN(\"\",TRUE,#REF!),\" \",\"\")","v":{"$error":"#REF!"}},{"$f":"SUBSTITUTE(_xlfn.TEXTJOIN(\"\",TRUE,#REF!,#REF!),\" \",\"\")","v":{"$error":"#REF!"}},null,{"$f":"SUBSTITUTE(_xlfn.TEXTJOIN(\"\",TRUE,#REF!),\" \",\"\")","v":{"$error":"#REF!"}},{"$f":"SUBSTITUTE(_xlfn.TEXTJOIN(\"\",TRUE,#REF!,#REF!),\" \",\"\")","v":{"$error":"#REF!"}},null,null,null,null,null,null,null,null,null,null,null,null,null,{"$f":"SUBSTITUTE(_xlfn.TEXTJOIN(\"\",TRUE,#REF!),\" \",\"\")","v":{"$error":"#REF!"}},{"$f":"SUBSTITUTE(_xlfn.TEXTJOIN(\"\",TRUE,#REF!,#REF!),\" \",\"\")","v":{"$error":"#REF!"}},null,{"$f":"SUBSTITUTE(_xlfn.TEXTJOIN(\"\",TRUE,#REF!),\" \",\"\")","v":{"$error":"#REF!"}},{"$f":"SUBSTITUTE(_xlfn.TEXTJOIN(\"\",TRUE,#REF!,#REF!),\" \",\"\")","v":{"$error":"#REF!"}},null,"","",null,"","",null,null,null,null,null,null,null,"","",null,null,null,null,{"$f":"SUBSTITUTE(_xlfn.TEXTJOIN(\"\",TRUE,#REF!),\" \",\"\")","v":{"$error":"#REF!"}},{"$f":"SUBSTITUTE(_xlfn.TEXTJOIN(\"\",TRUE,#REF!,#REF!),\" \",\"\")","v":{"$error":"#REF!"}},null,"","",null,"","",null,"","",null,"","",null,"","",null,"",""]
[null,{"$f":"C80*1","v":{"$error":"#REF!"}},{"$f":"AND(C15<>\"\",G80=\"\",J80=\"\",M80=\"\",AB80=\"\",AE80=\"\",AH80=\"\",#REF!=\"\",AT80=\"\",AZ80=\"\",BC80=\"\",BF80=\"\",BI80=\"\",BL80=\"\",BO80=\"\",BR80=\"\",(OR(F80<>\"\",I80<>\"\",L80<>\"\",AA80<>\"\",AD80<>\"\",AG80<>\"\",#REF!<>\"\",AS80<>\"\",AY80<>\"\",BB80<>\"\",BE80<>\"\",BH80<>\"\",BK80<>\"\",BN80<>\"\",BQ80<>\"\")))","v":{"$error":"#REF!"}},null,"#8","","",null,{"$f":"SUBSTITUTE(_xlfn.TEXTJOIN(\"\",TRUE,#REF!),\" \",\"\")","v":{"$error":"#REF!"}},{"$f":"SUBSTITUTE(_xlfn.TEXTJOIN(\"\",TRUE,#REF!,#REF!),\" \",\"\")","v":{"$error":"#REF!"}},null,{"$f":"SUBSTITUTE(_xlfn.TEXTJOIN(\"\",TRUE,#REF!),\" \",\"\")","v":{"$error":"#REF!"}},{"$f":"SUBSTITUTE(_xlfn.TEXTJOIN(\"\",TRUE,#REF!,#REF!),\" \",\"\")","v":{"$error":"#REF!"}},null,null,null,null,null,null,null,null,null,null,null,null,null,{"$f":"SUBSTITUTE(_xlfn.TEXTJOIN(\"\",TRUE,#REF!),\" \",\"\")","v":{"$error":"#REF!"}},{"$f":"SUBSTITUTE(_xlfn.TEXTJOIN(\"\",TRUE,#REF!,#REF!),\" \",\"\")","v":{"$error":"#REF!"}},null,{"$f":"SUBSTITUTE(_xlfn.TEXTJOIN(\"\",TRUE,#REF!),\" \",\"\")","v":{"$error":"#REF!"}},{"$f":"SUBSTITUTE(_xlfn.TEXTJOIN(\"\",TRUE,#REF!,#REF!),\" \",\"\")","v":{"$error":"#REF!"}},null,"","",null,"","",null,null,null,null,null,null,null,"","",null,null,null,null,{"$f":"SUBSTITUTE(_xlfn.TEXTJOIN(\"\",TRUE,#REF!),\" \",\"\")","v":{"$error":"#REF!"}},{"$f":"SUBSTITUTE(_xlfn.TEXTJOIN(\"\",TRUE,#REF!,#REF!),\" \",\"\")","v":{"$error":"#REF!"}},null,"","",null,"","",null,"","",null,"","",null,"","",null,"",""]
[null,{"$error":"#REF!"},{"$f":"AND(C22<>\"\",G81=\"\",J81=\"\",M81=\"\",AB81=\"\",AE81=\"\",AH81=\"\",#REF!=\"\",AT81=\"\",AZ81=\"\",BC81=\"\",BF81=\"\",BI81=\"\",BL81=\"\",BO81=\"\",BR81=\"\",(OR(F81<>\"\",I81<>\"\",L81<>\"\",AA81<>\"\",AD81<>\"\",AG81<>\"\",#REF!<>\"\",AS81<>\"\",AY81<>\"\",BB81<>\"\",BE81<>\"\",BH81<>\"\",BK81<>\"\",BN81<>\"\",BQ81<>\"\")))","v":{"$error":"#REF!"}},null,"#9",{"$f":"SUBSTITUTE(_xlfn.TEXTJOIN(\"\",TRUE,H22),\" \",\"\")","v":""},{"$f":"SUBSTITUTE(_xlfn.TEXTJOIN(\"\",TRUE,I22,J22),\" \",\"\")","v":""},null,{"$f":"SUBSTITUTE(_xlfn.TEXTJOIN(\"\",TRUE,#REF!),\" \",\"\")","v":{"$error":"#REF!"}},{"$f":"SUBSTITUTE(_xlfn.TEXTJOIN(\"\",TRUE,#REF!,#REF!),\" \",\"\")","v":{"$error":"#REF!"}},null,{"$f":"SUBSTITUTE(_xlfn.TEXTJOIN(\"\",TRUE,#REF!),\" \",\"\")","v":{"$error":"#REF!"}},{"$f":"SUBSTITUTE(_xlfn.TEXTJOIN(\"\",TRUE,#REF!,#REF!),\" \",\"\")","v":{"$error":"#REF!"}},null,null,null,null,null,null,null,null,null,null,null,null,null,{"$f":"SUBSTITUTE(_xlfn.TEXTJOIN(\"\",TRUE,#REF!),\" \",\"\")","v":{"$error":"#REF!"}},{"$f":"SUBSTITUTE(_xlfn.TEXTJOIN(\"\",TRUE,#REF!,#REF!),\" \",\"\")","v":{"$error":"#REF!"}},null,{"$f":"SUBSTITUTE(_xlfn.TEXTJOIN(\"\",TRUE,#REF!),\" \",\"\")","v":{"$error":"#REF!"}},{"$f":"SUBSTITUTE(_xlfn.TEXTJOIN(\"\",TRUE,#REF!,#REF!),\" \",\"\")","v":{"$error":"#REF!"}},null,{"$f":"SUBSTITUTE(_xlfn.TEXTJOIN(\"\",TRUE,W22),\" \",\"\")","v":""},{"$f":"SUBSTITUTE(_xlfn.TEXTJOIN(\"\",TRUE,X22,Y22),\" \",\"\")","v":""},null,{"$f":"SUBSTITUTE(_xlfn.TEXTJOIN(\"\",TRUE,Z22),\" \",\"\")","v":""},{"$f":"SUBSTITUTE(_xlfn.TEXTJOIN(\"\",TRUE,AA22,AB22),\" \",\"\")","v":""},null,null,null,null,null,null,null,{"$f":"SUBSTITUTE(_xlfn.TEXTJOIN(\"\",TRUE,AI22),\" \",\"\")","v":""},{"$f":"SUBSTITUTE(_xlfn.TEXTJOIN(\"\",TRUE,AJ22,AK22),\" \",\"\")","v":""},null,null,null,null,{"$f":"SUBSTITUTE(_xlfn.TEXTJOIN(\"\",TRUE,#REF!),\" \",\"\")","v":{"$error":"#REF!"}},{"$f":"SUBSTITUTE(_xlfn.TEXTJOIN(\"\",TRUE,#REF!,#REF!),\" \",\"\")","v":{"$error":"#REF!"}},null,{"$f":"SUBSTITUTE(_xlfn.TEXTJOIN(\"\",TRUE,AR22),\" \",\"\")","v":""},{"$f":"SUBSTITUTE(_xlfn.TEXTJOIN(\"\",TRUE,AS22,AT22),\" \",\"\")","v":""},null,{"$f":"SUBSTITUTE(_xlfn.TEXTJOIN(\"\",TRUE,AU22),\" \",\"\")","v":""},{"$f":"SUBSTITUTE(_xlfn.TEXTJOIN(\"\",TRUE,AV22,AW22),\" \",\"\")","v":""},null,{"$f":"SUBSTITUTE(_xlfn.TEXTJOIN(\"\",TRUE,AX22),\" \",\"\")","v":""},{"$f":"SUBSTITUTE(_xlfn.TEXTJOIN(\"\",TRUE,AY22,AZ22),\" \",\"\")","v":""},null,{"$f":"SUBSTITUTE(_xlfn.TEXTJOIN(\"\",TRUE,BA22),\" \",\"\")","v":""},{"$f":"SUBSTITUTE(_xlfn.TEXTJOIN(\"\",TRUE,BB22,BC22),\" \",\"\")","v":""},null,{"$f":"SUBSTITUTE(_xlfn.TEXTJOIN(\"\",TRUE,BD22),\" \",\"\")","v":""},{"$f":"SUBSTITUTE(_xlfn.TEXTJOIN(\"\",TRUE,BE22,BF22),\" \",\"\")","v":""},null,{"$f":"SUBSTITUTE(_xlfn.TEXTJOIN(\"\",TRUE,BG22),\" \",\"\")","v":""},{"$f":"SUBSTITUTE(_xlfn.TEXTJOIN(\"\",TRUE,BH22,BI22),\" \",\"\")","v":""}]
[null,{"$error":"#REF!"},{"$f":"AND(C23<>\"\",G82=\"\",J82=\"\",M82=\"\",AB82=\"\",AE82=\"\",AH82=\"\",#REF!=\"\",AT82=\"\",AZ82=\"\",BC82=\"\",BF82=\"\",BI82=\"\",BL82=\"\",BO82=\"\",BR82=\"\",(OR(F82<>\"\",I82<>\"\",L82<>\"\",AA82<>\"\",AD82<>\"\",AG82<>\"\",#REF!<>\"\",AS82<>\"\",AY82<>\"\",BB82<>\"\",BE82<>\"\",BH82<>\"\",BK82<>\"\",BN82<>\"\",BQ82<>\"\")))","v":{"$error":"#REF!"}},null,"#10",{"$f":"SUBSTITUTE(_xlfn.TEXTJOIN(\"\",TRUE,H23),\" \",\"\")","v":""},{"$f":"SUBSTITUTE(_xlfn.TEXTJOIN(\"\",TRUE,I23,J23),\" \",\"\")","v":""},null,{"$f":"SUBSTITUTE(_xlfn.TEXTJOIN(\"\",TRUE,#REF!),\" \",\"\")","v":{"$error":"#REF!"}},{"$f":"SUBSTITUTE(_xlfn.TEXTJOIN(\"\",TRUE,#REF!,#REF!),\" \",\"\")","v":{"$error":"#REF!"}},null,{"$f":"SUBSTITUTE(_xlfn.TEXTJOIN(\"\",TRUE,#REF!),\" \",\"\")","v":{"$error":"#REF!"}},{"$f":"SUBSTITUTE(_xlfn.TEXTJOIN(\"\",TRUE,#REF!,#REF!),\" \",\"\")","v":{"$error":"#REF!"}},null,null,null,null,null,null,null,null,null,null,null,null,null,{"$f":"SUBSTITUTE(_xlfn.TEXTJOIN(\"\",TRUE,#REF!),\" \",\"\")","v":{"$error":"#REF!"}},{"$f":"SUBSTITUTE(_xlfn.TEXTJOIN(\"\",TRUE,#REF!,#REF!),\" \",\"\")","v":{"$error":"#REF!"}},null,{"$f":"SUBSTITUTE(_xlfn.TEXTJOIN(\"\",TRUE,#REF!),\" \",\"\")","v":{"$error":"#REF!"}},{"$f":"SUBSTITUTE(_xlfn.TEXTJOIN(\"\",TRUE,#REF!,#REF!),\" \",\"\")","v":{"$error":"#REF!"}},null,{"$f":"SUBSTITUTE(_xlfn.TEXTJOIN(\"\",TRUE,W23),\" \",\"\")","v":""},{"$f":"SUBSTITUTE(_xlfn.TEXTJOIN(\"\",TRUE,X23,Y23),\" \",\"\")","v":""},null,{"$f":"SUBSTITUTE(_xlfn.TEXTJOIN(\"\",TRUE,Z23),\" \",\"\")","v":""},{"$f":"SUBSTITUTE(_xlfn.TEXTJOIN(\"\",TRUE,AA23,AB23),\" \",\"\")","v":""},null,null,null,null,null,null,null,{"$f":"SUBSTITUTE(_xlfn.TEXTJOIN(\"\",TRUE,AI23),\" \",\"\")","v":""},{"$f":"SUBSTITUTE(_xlfn.TEXTJOIN(\"\",TRUE,AJ23,AK23),\" \",\"\")","v":""},null,null,null,null,{"$f":"SUBSTITUTE(_xlfn.TEXTJOIN(\"\",TRUE,#REF!),\" \",\"\")","v":{"$error":"#REF!"}},{"$f":"SUBSTITUTE(_xlfn.TEXTJOIN(\"\",TRUE,#REF!,#REF!),\" \",\"\")","v":{"$error":"#REF!"}},null,{"$f":"SUBSTITUTE(_xlfn.TEXTJOIN(\"\",TRUE,AR23),\" \",\"\")","v":""},{"$f":"SUBSTITUTE(_xlfn.TEXTJOIN(\"\",TRUE,AS23,AT23),\" \",\"\")","v":""},null,{"$f":"SUBSTITUTE(_xlfn.TEXTJOIN(\"\",TRUE,AU23),\" \",\"\")","v":""},{"$f":"SUBSTITUTE(_xlfn.TEXTJOIN(\"\",TRUE,AV23,AW23),\" \",\"\")","v":""},null,{"$f":"SUBSTITUTE(_xlfn.TEXTJOIN(\"\",TRUE,AX23),\" \",\"\")","v":""},{"$f":"SUBSTITUTE(_xlfn.TEXTJOIN(\"\",TRUE,AY23,AZ23),\" \",\"\")","v":""},null,{"$f":"SUBSTITUTE(_xlfn.TEXTJOIN(\"\",TRUE,BA23),\" \",\"\")","v":""},{"$f":"SUBSTITUTE(_xlfn.TEXTJOIN(\"\",TRUE,BB23,BC23),\" \",\"\")","v":""},null,{"$f":"SUBSTITUTE(_xlfn.TEXTJOIN(\"\",TRUE,BD23),\" \",\"\")","v":""},{"$f":"SUBSTITUTE(_xlfn.TEXTJOIN(\"\",TRUE,BE23,BF23),\" \",\"\")","v":""},null,{"$f":"SUBSTITUTE(_xlfn.TEXTJOIN(\"\",TRUE,BG23),\" \",\"\")","v":""},{"$f":"SUBSTITUTE(_xlfn.TEXTJOIN(\"\",TRUE,BH23,BI23),\" \",\"\")","v":""}]
[]
[null,null,"Ergebnis zusammengefasst"]
[null,null,{"$f":"OR(AND(C8<>\"\",C61<3),C73,AND(C8=\"\",C61>0))","v":{"$error":"#REF!"}},null,"#1"]
[null,null,{"$error":"#REF!"},null,"#2"]
[null,null,{"$error":"#REF!"},null,"#3"]
[null,null,{"$error":"#REF!"},null,"#4"]
[null,null,{"$error":"#REF!"},null,"#5"]
[null,null,{"$error":"#REF!"},null,"#6"]
[null,null,{"$error":"#REF!"},null,"#7"]
[null,null,{"$error":"#REF!"},null,"#8"]
[null,null,{"$f":"OR(AND(C22<>\"\",C69<3),C81,AND(C22=\"\",C69>0))","v":{"$error":"#REF!"}},null,"#9"]
[null,null,{"$f":"OR(AND(C23<>\"\",C70<3),C82,AND(C23=\"\",C70>0))","v":{"$error":"#REF!"}},null,"#10"]
[null,null,{"$f":"OR(C85:C94)","v":{"$error":"#REF!"}}]
[]
[null,null,{"$f":"(10-COUNTBLANK(Juryabfrage!$C$8:$C$23))","v":-6}]
[]
[]
[null,null,"IST-Anzahl ausgebildete Juroren T/P ohne A",null,{"$f":"IFERROR(BL3,\"\")","v":0}]
[null,null,"Erforderliche Mindestanzahl Juroren",null,{"$f":"IFERROR(Startgebühr!C28,\"\")","v":""}]
[null,null,"Fehlende Juroren Strafzahlung (Methode 1)",null,{"$f":"SUM(A8:A23)","v":0}]
[null,null,"Fehlende Juroren Strafzahlung (Methode 2)",null,{"$f":"IFERROR(IF(E100>E101,0,E101-E100),\"\")","v":""}]
[null,null,"Summe Strafzahlung",null,{"$f":"IFERROR(E103*Deckblatt!C26,\"\")","v":""}]
[null,null,"Mindestanzahl nicht erreicht",null,{"$f":"IFERROR(E103>0,\"\")","v":true}]
[null,null,"Summe der Jury-Einsätze",null,{"$f":"SUM(C61:C70)","v":-160}]
[null,null,"Verhältnis Summe Jury-Einsätze zu Anzahl Jury",null,{"$f":"IFERROR(E106/E101,\"\")","v":""}]
[null,null,"Rot-Feld Bedingung: nur Abstiege o. Jury-Einsätze"]

{"sheet":"Startgebühr","index":9,"n_rows":29,"n_cols":6,"rows_kept":29,"cut":false,"hidden":true,"merged":[[7,1,7,3],[28,4,29,5],[10,1,10,3],[11,1,11,3],[12,1,12,3],[13,1,13,3]]}
[null,"Süddeutsche Meisterschaft Einrad Freestyle 🧡"]
[null,{"$f":"Deckblatt!B2","v":"2026-10-16"},{"$f":"Deckblatt!C2","v":"2026-10-18"}]
[null,"Startgebühr."]
[]
[null,"Einrad.Anmeldung@tsv-ga.de"]
[]
[null,"Startgebühr:",{"$f":"IFERROR(SUM(Teilnehmer[Startgebühr])+Juryabfrage!E55,\"\")","v":""}]
[null,{"$f":"IFERROR(IF(C7=\"\",\"\",IF(AND(C7<>0,Juryabfrage!E55>0),_xlfn.TEXTJOIN(\"\",TRUE,\"…die Startgebühr beinhaltet \",Juryabfrage!E55,\" € für fehlende Juroreneinsätze.\"),\"\")),\"\")","v":""}]
[]
[null,"Überweisung bitte auf folgendes Konto:"]
[null,"TSV Gilching-Argelsried, Abteilung Einrad",null,null,"<5",1]
[null,"IBAN:  DE80 7025 0150 0017 0386 96 ",null,null,"<11",2]
[null,"Kreissparkasse München Starnberg Ebersberg",null,null,"<16",3]
[null,"Verwendungszweck: SDM 2026_Startgebühr_>Vereinsname<",null,null,"<21",4]
[null,null,null,null,"<26",5]
[null,"Zusammenfassung der Anmeldung:",null,null,26,6]
[]
[null,"Anzahl gemeldete Einzelküren (weiblich):",{"$f":"COUNTA(Einzelküren_weiblich[Name])-COUNTBLANK(Einzelküren_weiblich[Name])","v":0}]
[null,"Anzahl gemeldete Einzelküren (männlich):",{"$f":"COUNTA(Einzelküren_männlich[Name])-COUNTBLANK(Einzelküren_männlich[Name])","v":0}]
[]
[null,"Anzahl gemeldete Paarküren:",{"$f":"ROUNDUP((COUNTA(Tabelle_Paarkür[Name])-COUNTBLANK(Tabelle_Paarkür[Name]))/2,0)","v":0},null," "]
[]
[null,"Anzahl gemeldete Kleingruppenküren:",{"$f":"(COUNTA(Kleingrp!L5:L10)-COUNTBLANK(Kleingrp!L5:L10))","v":0},null,{"$f":"IF(Kleingrp!H105=TRUE,\"Korrekturbedarf!\",\"\")","v":""}]
[null,"Anzahl gemeldete Großgruppenküren:",{"$f":"(COUNTA(Tabelle30[Kürname])-COUNTBLANK(Tabelle30[Kürname]))","v":0},null,{"$f":"IF(Großgrp!W61=TRUE,\"Korrekturbedarf!\",\"\")","v":""}]
[]
[null,"Anzahl gemeldete FahrerInnen:",{"$f":"COUNTA(Teilnehmer[Vorname])","v":0}]
[null,"Anzahl gemeldete Küren:",{"$f":"IFERROR(IF(C18+C19+C21+C23+C24=0,\"\",C18+C19+C21+C23+C24),\"\")","v":""}]
[null,"Mindestanzahl Juryeinsätze:",{"$f":"IFERROR(ROUNDUP(C27/2,0)*4,\"\")","v":""}]
[null,"Gemeldete Juryeinsätze:",{"$f":"IFERROR(IF(C28=\"\",\"\",Juryabfrage!BL3),\"\")","v":""},null,{"$f":"IF(Juryabfrage!BK24=1,\"Korrekturbedarf!\",\"\")","v":""}]

{"sheet":"Kürmusik","index":10,"n_rows":22,"n_cols":5,"rows_kept":22,"cut":false,"hidden":true,"merged":[[6,1,6,5]]}
[null,"Süddeutsche Meisterschaft Einrad Freestyle 🧡"]
[null,{"$f":"Deckblatt!B2","v":"2026-10-16"},{"$f":"Deckblatt!C2","v":"2026-10-18"}]
[null,"Kürmusik."]
[]
[null,"Einrad.Musik@tsv-ga.de"]
[]
[null," Die Kürmusik bitte bis spätestens 06.09.2026 per E-Mail an Einrad.Musik@tsv-ga.de"]
[]
[null,"Bitte folgende Hinweise beachten:"]
[null,"- Die Kürmusik bitte als mp3-Datei mit mindestens 192 kBit/s zur Verfügung stellen."]
[]
[null,"- Der Dateiname der Musikstücke soll bitte folgendem Format entsprechen:"]
[null,"'Disziplin_Altersklasse_Name der Fahrer_Kürname_Verein.mp3'"]
[null,"'Disziplin_Altersklasse_Gruppenkürname_Verein.mp3'"]
[null," Beispiel 1: PK_U15_SchneiderMüller_Piraten_TSV Muster.mp3"]
[null," Beispiel 2: KGK_JExp_Schlümpfe_TSV Muster.mp3"]
[]
[null,"- Die Fahrer sind selbst dafür verantwortlich, dass die Lautstärkebalance "]
[null,"   innerhalb des Musikstücks ausgeglichen ist."]
[]
[null,"- Ein Ersatzmedium ist obligatorisch."]
[null,null,null,null,"<26"]

{"sheet":"Ausfüll-Hilfe","index":11,"n_rows":27,"n_cols":6,"rows_kept":27,"cut":false,"hidden":true,"merged":[[0,1,0,23],[26,1,26,2]]}
[null,"Süddeutsche Meisterschaft Einrad Freestyle 🧡"]
[]
[null,"Schritt-für-Schritt-Anleitung. 😊"]
[]
[null,"Schritt 1:","Deckblatt",null,"--> Bitte die acht grauen Felder ausfüllen: Verein & Kontakt-Daten."]
[]
[null,"Schritt 2:","Meldung",null,"--> Teilnehmerdaten & Kürmeldung eintragen: Bitte auf korrektes Geburtsdatum achten."]
[null,null,null,null,null,"Einzelkür: Teilnehmer für Einzelkür \"ja\" auswählen und EK-Name eintragen."]
[null,null,null,null,null,"Paarkür: Paaren die gleiche Nummer geben. Die selbe Zahl nur 2x. PK-Name eintragen."]
[null,null,null,null,null,"Kleingruppe: Fahrer und Ersatzfahrer einer KG die gleiche Nummer geben."]
[null,null,null,null,null,"Großgruppe: Fahrer und Ersatzfahrer einer GG die gleiche Nummer geben."]
[]
[null,"Schritt 3:","Kleingrp",null,"--> Eingaben prüfen, Gruppenkürname ergänzen und Anzahl Fahrer/ Ersatzfahrer eintragen."]
[]
[null,"Schritt 4:","Großgrp",null,"--> Eingaben prüfen, Gruppenkürname ergänzen und Anzahl Fahrer/ Ersatzfahrer eintragen."]
[]
[null,"Schritt 5:","Juryabfrage",null,"--> Namen der Juroren eintragen und bitte ankreuzen  X  wo gewertet werden kann."]
[]
[null,"Schritt 6:","Startgebühr",null,"--> Zusammenfassung der Anmeldung auf Korrekturbedarf prüfen."]
[]
[null,"Schritt 7:","Anmeldung",null,"--> Anmelde-Excel bitte bis spätestens 30.08.2026 per E-Mail an Einrad.Anmeldung@tsv-ga.de "]
[]
[null,"Schritt 8:","Startgebühr",null,"--> Startgebühr bitte bis spätestens 30.08.2026 überweisen."]
[]
[null,"Schritt 9:","Kürmusik",null,"--> Kürmusik bitte bis spätestens 06.09.2026 per E-Mail an Einrad.Musik@tsv-ga.de "]
[]
[null,"Beispiel \"Meldung\":"]

{"sheet":"Check-Liste","index":12,"n_rows":43,"n_cols":4,"rows_kept":43,"cut":false,"hidden":true,"merged":[]}
["Übergreifend:",null,"umgesetzt","getestet"]
[null,"Ausfüll-HILFE / Anleitung","umgesetzt"]
[null,"Alter - Rot-Markierung weg, wenn Name nicht gefunden (Geburtsdaten-Datenbank)","umgesetzt"]
[null,"Alter - Datenbank mit Widersprüchen."]
[null,"Kleingruppe / Großgruppe: Altern nur U15 vs. 15+","umgesetzt"]
[]
["Juroren-Check:"]
[null,"Erforderliche Mindestanzahl Juroren nicht erreicht","umgesetzt"]
[null,"nur als Abstiegszähler eingetragen?","umgesetzt"]
[null,"Für einen Juror <3 Disziplinen eingetragen?","umgesetzt"]
[]
["Einzelkür (m)"]
[null,"Altersklasse hat nicht gestimmt","umgesetzt"]
[null,"Videokür angemeldet?","umgesetzt"]
[]
["Einzelkür (w)"]
[null,"Altersklasse hat nicht gestimmt","umgesetzt"]
[null,"Videokür angemeldet?","umgesetzt"]
[]
["Paarkür"]
[null,"Altersklasse hat nicht gestimmt","umgesetzt"]
[null,"Videokür angemeldet?","umgesetzt"]
[null,"Altersklassensprung zur nächsten Meisterschaft","umgesetzt"]
[]
[]
["Kleingruppe"]
[null,"Anzahl Ersatzfahrer hat nicht gestimmt.","umgesetzt"]
[null,"Kürname ohne Fahrer eingetragen","umgesetzt"]
[null,"Fahrer ohne Kürname eingetragen","umgesetzt"]
[null,"mehr als 8 aktive Fahrer gemeldet, ohne Ersatzfahrer","umgesetzt"]
[null,"Summe: Anzahl Fahrer vs. Ersatzfahrer passt nicht","umgesetzt"]
[null,"Altersklasse hat nicht gestimmt","umgesetzt"]
[null,"Fehlermeldungen auf Startgebührseite zusammenfassen","umgesetzt"]
[]
["Großgruppe "]
[null,null,"umgesetzt"]
[null,"Anzahl Ersatzfahrer hat nicht gestimmt.","umgesetzt"]
[null,"Kürname ohne Fahrer eingetragen","umgesetzt"]
[null,"Fahrer ohne Kürname eingetragen","umgesetzt"]
[null,"Summe: Anzahl Fahrer vs. Ersatzfahrer passt nicht","umgesetzt"]
[null,"Altersklasse hat nicht gestimmt","umgesetzt"]
[null,"Fehlermeldungen auf Startgebührseite zusammenfassen","umgesetzt"]
[null,"weniger als 9 Fahrer eingetragen"]

{"sheet":"Daten","index":13,"n_rows":309,"n_cols":6,"rows_kept":309,"cut":false,"hidden":true,"merged":[]}
["Textkette","Spalte1","Name","Vorname","Geb. datum","Datenbasis"]
[{"$f":"_xlfn.TEXTJOIN(\" \",TRUE,C2,D2)","v":"Joschko Antonia"},{"$f":"SUBSTITUTE(A2,\" \",\"\")","v":"JoschkoAntonia"},"Joschko","Antonia","2002-03-27",2022]
["Abendschön Emily",{"$f":"SUBSTITUTE(A3,\" \",\"\")","v":"AbendschönEmily"},"Abendschön","Emily","2003-06-06",2023]
["Abrantes Daniela","AbrantesDaniela","Abrantes","Daniela","2013-11-05",2023]
["Amslinger Angelina","AmslingerAngelina","Amslinger","Angelina","2006-03-01",2023]
["Augustin Sophie","AugustinSophie","Augustin","Sophie","2009-09-08",2023]
["Backe Tamina","BackeTamina","Backe","Tamina","2000-12-09",2022]
["Bahn Lea","BahnLea","Bahn","Lea","2007-09-03",2022]
["Bandlow Christina","BandlowChristina","Bandlow","Christina","2009-01-25",2023]
["Bandlow Eva","BandlowEva","Bandlow","Eva","2007-05-06",2022]
["Bauer Marie","BauerMarie","Bauer","Marie","2003-04-21",2022]
["Bebst Belinda","BebstBelinda","Bebst","Belinda","1997-09-23",2023]
["Beer Luana","BeerLuana","Beer","Luana","2013-07-30",2023]
["Behl Hannah",{"$f":"SUBSTITUTE(A14,\" \",\"\")","v":"BehlHannah"},"Behl","Hannah","2009-02-03",2023]
["Bentenrieder Magdalena","BentenriederMagdalena","Bentenrieder","Magdalena","2008-05-06",2023]
["Bieringer Vitus","BieringerVitus","Bieringer","Vitus","2010-02-28",2023]
["Blaschke Anna-Lena","BlaschkeAnna-Lena","Blaschke","Anna-Lena","1996-10-24",2023]
["Blocher Julia","BlocherJulia","Blocher","Julia","2008-01-07",2022]
["Bögl Selina","BöglSelina","Bögl","Selina","2010-12-10",2023]
["Bögl Selina","BöglSelina","Bögl","Selina","2011-05-12",2022]
["Böhm Katharina","BöhmKatharina","Böhm","Katharina","2001-07-23",2022]
["Bonauer Leonie","BonauerLeonie","Bonauer","Leonie","1995-03-30",2023]
["Brandl Alica","BrandlAlica","Brandl","Alica","2011-02-28",2023]
["Braun Clara","BraunClara","Braun","Clara","2008-08-20",2023]
["Braun Maja","BraunMaja","Braun","Maja","2014-12-10",2023]
["Braune Leya","BrauneLeya","Braune","Leya","2010-11-09",2023]
["Bräunlein Klara","BräunleinKlara","Bräunlein","Klara","2012-09-26",2023]
["Brehm Leonie","BrehmLeonie","Brehm","Leonie","2008-12-01",2023]
["Breunig Lisa","BreunigLisa","Breunig","Lisa","2006-06-27",2022]
["Brunnhuber Bernadette","BrunnhuberBernadette","Brunnhuber","Bernadette","2010-11-14",2023]
["Buchroth Leya",{"$f":"SUBSTITUTE(A31,\" \",\"\")","v":"BuchrothLeya"},"Buchroth","Leya","2010-09-29",2023]
["Buechler Flora","BuechlerFlora","Buechler","Flora","2012-04-13",2023]
["Bulling Antonia","BullingAntonia","Bulling","Antonia","2011-06-06",2023]
["Burkhardt Carlotta","BurkhardtCarlotta","Burkhardt","Carlotta","2013-06-16",2023]
["Burkhardt Greta","BurkhardtGreta","Burkhardt","Greta","2013-06-16",2023]
["Class Paulina","ClassPaulina","Class","Paulina","2006-12-12",2022]
["Cordes Nina","CordesNina","Cordes","Nina","1999-07-18",2023]
["Dankwart Charlotte","DankwartCharlotte","Dankwart","Charlotte","2014-07-05",2023]
["Danz Marie-Chantal","DanzMarie-Chantal","Danz","Marie-Chantal","2002-07-22",2023]
["Dein Julia","DeinJulia","Dein","Julia","2014-09-19",2023]
["Diehl Fiona","DiehlFiona","Diehl","Fiona","2005-11-03",2023]
["Dierkes Antonia","DierkesAntonia","Dierkes","Antonia","2011-03-13",2023]
["Ditz Milena","DitzMilena","Ditz","Milena","2010-10-01",2023]
["Dmoch Celina","DmochCelina","Dmoch","Celina","2007-06-24",2023]
["Dmoch Elena","DmochElena","Dmoch","Elena","2009-09-12",2023]
["Dolainsky Anika","DolainskyAnika","Dolainsky","Anika","2005-06-27",2023]
["Dollacker Valentina","DollackerValentina","Dollacker","Valentina","2012-05-14",2023]
["Dollhopf Klara","DollhopfKlara","Dollhopf","Klara","2010-12-17",2023]
["Dotzek Gregor","DotzekGregor","Dotzek","Gregor","2003-02-08",2022]
["Dumann Johanna","DumannJohanna","Dumann","Johanna","2004-08-22",2023]
["Ebert Nina","EbertNina","Ebert","Nina","2000-02-28",2023]
["Einsiedl Paula","EinsiedlPaula","Einsiedl","Paula","2007-09-02",2022]
["Elster Gerhild","ElsterGerhild","Elster","Gerhild","1962-12-09",2022]
["Elster Yvonne","ElsterYvonne","Elster","Yvonne","1998-01-12",2022]
["Emehrer Johanna","EmehrerJohanna","Emehrer","Johanna","2003-06-10",2022]
["Engelhardt Smilla","EngelhardtSmilla","Engelhardt","Smilla","2009-02-18",2023]
["Emehrer Martha","EmehrerMartha","Emehrer","Martha","2003-06-10",2022]
["Werner Ronja","WernerRonja","Werner","Ronja","2005-12-02",2022]
["Esch  Laura","EschLaura","Esch ","Laura","2008-07-11",2022]
["Falkenau Pia","FalkenauPia","Falkenau","Pia","2010-11-09",2023]
["Feldkircher Julia","FeldkircherJulia","Feldkircher","Julia","2009-01-23",2023]
["Feuchtenberger Pia","FeuchtenbergerPia","Feuchtenberger","Pia","2002-12-02",2023]
["Fischer Ben","FischerBen","Fischer","Ben","2012-11-13",2023]
["Fischer Daniela","FischerDaniela","Fischer","Daniela","1997-08-24",2022]
["Fischer Hannah","FischerHannah","Fischer","Hannah","2010-10-14",2023]
[{"$f":"_xlfn.TEXTJOIN(\" \",TRUE,C66,D66)","v":"Fischer Ronja"},{"$f":"SUBSTITUTE(A66,\" \",\"\")","v":"FischerRonja"},"Fischer","Ronja","2012-06-02",2023]
["Fitouri Linda","FitouriLinda","Fitouri","Linda","2012-03-25",2023]
["Fortner Collien","FortnerCollien","Fortner","Collien","2012-01-01",2023]
["Fregin Elena","FreginElena","Fregin","Elena","2012-07-10",2023]
["Freimuth Lena","FreimuthLena","Freimuth","Lena","2000-10-29",2023]
["Ganser Eleonora","GanserEleonora","Ganser","Eleonora","2005-12-11",2023]
["Gaspar Kyra","GasparKyra","Gaspar","Kyra","2007-03-23",2022]
["Gauler Daniela","GaulerDaniela","Gauler","Daniela","2004-01-21",2022]
["Gauler Julia","GaulerJulia","Gauler","Julia","2007-01-05",2023]
["Gerzer Luzia","GerzerLuzia","Gerzer","Luzia","2009-01-26",2023]
["Geuther Julia","GeutherJulia","Geuther","Julia","2003-02-21",2022]
["Glassner Laura","GlassnerLaura","Glassner","Laura","2007-12-17",2023]
["Glassner Lucie","GlassnerLucie","Glassner","Lucie","2010-10-06",2023]
["Goller Zoe","GollerZoe","Goller","Zoe","2011-08-07",2023]
["Grätzl Annika","GrätzlAnnika","Grätzl","Annika","2010-04-10",2023]
["Grätzl Anika","GrätzlAnika","Grätzl","Anika","2010-04-10",2022]
["Grätzl Hannah","GrätzlHannah","Grätzl","Hannah","2006-06-18",2023]
["Grätzl Hannah","GrätzlHannah","Grätzl","Hannah","2006-07-18",2022]
["Gröger Annalena","GrögerAnnalena","Gröger","Annalena","2005-01-16",2023]
["Gröger Analena","GrögerAnalena","Gröger","Analena","2005-01-16",2022]
["Gröschel Sebastian","GröschelSebastian","Gröschel","Sebastian","2014-10-19",2023]
["Habatsch Mara","HabatschMara","Habatsch","Mara","2011-11-29",2023]
["Hafemann Tamy","HafemannTamy","Hafemann","Tamy","2007-04-19",2022]
["Hanny Lisa","HannyLisa","Hanny","Lisa","1995-08-10",2023]
["Hartmann  Stefan","HartmannStefan","Hartmann ","Stefan","1990-10-04",2022]
["Hausen Magdalena","HausenMagdalena","Hausen","Magdalena","2008-01-01",2023]
["Häuser Anika","HäuserAnika","Häuser","Anika","2009-12-07",2023]
["Heindl Amalie","HeindlAmalie","Heindl","Amalie","2011-04-20",2023]
["Heller Josefine","HellerJosefine","Heller","Josefine","2010-12-15",2023]
["Herbst Amelie","HerbstAmelie","Herbst","Amelie","2004-10-25",2023]
["Hildebrandt Marlene","HildebrandtMarlene","Hildebrandt","Marlene","2010-12-23",2023]
["Himborn Nele","HimbornNele","Himborn","Nele","2010-10-23",2023]
["Hirschmann Jan","HirschmannJan","Hirschmann","Jan","1998-08-15",2023]
["Höckelmann Kathrin","HöckelmannKathrin","Höckelmann","Kathrin","2010-06-11",2023]
["Höckelmann Katrin","HöckelmannKatrin","Höckelmann","Katrin","2010-06-11",2022]
["Hofer Neele","HoferNeele","Hofer","Neele","2010-09-10",2023]
["Hofer Sofie","HoferSofie","Hofer","Sofie","2010-09-10",2023]
["Höhne Henriette","HöhneHenriette","Höhne","Henriette","2003-08-20",2023]
["Holland Elina","HollandElina","Holland","Elina","2009-05-04",2023]
["Holzweißig Nonah","HolzweißigNonah","Holzweißig","Nonah","2008-02-12",2023]
["Honold Henriette","HonoldHenriette","Honold","Henriette","2009-09-20",2023]
["Hörmann Lara","HörmannLara","Hörmann","Lara","2011-01-17",2023]
["Hüttinger Felicia","HüttingerFelicia","Hüttinger","Felicia","2008-06-19",2023]
["Hüttinger Mira","HüttingerMira","Hüttinger","Mira","2010-07-10",2023]
["Idel Juline","IdelJuline","Idel","Juline","2003-04-22",2023]
["Ilg Martha","IlgMartha","Ilg","Martha","2011-08-17",2023]
["Joschko Antonia","JoschkoAntonia","Joschko","Antonia","2002-03-27",2023]
["Jud Mia","JudMia","Jud","Mia","2012-04-09",2023]
["Kaduk Elias","KadukElias","Kaduk","Elias","2009-09-23",2023]
["Kaelcke Nicola","KaelckeNicola","Kaelcke","Nicola","2001-01-15",2023]
["Kallert Maja",{"$f":"SUBSTITUTE(A116,\" \",\"\")","v":"KallertMaja"},"Kallert","Maja","2008-12-08",2023]
["Käufl Johanna","KäuflJohanna","Käufl","Johanna","2012-05-18",2023]
["Klapthor Anna","KlapthorAnna","Klapthor","Anna","2008-02-20",2023]
["Klinglmair Franziska","KlinglmairFranziska","Klinglmair","Franziska","2009-02-05",2023]
["Knaus Tamara","KnausTamara","Knaus","Tamara","2004-05-09",2022]
["Kock Anna","KockAnna","Kock","Anna","1999-05-07",2023]
["Kögel Selina","KögelSelina","Kögel","Selina","2000-03-30",2023]
["Körber Raffael","KörberRaffael","Körber","Raffael","2012-05-17",2023]
["Kotalla Verena","KotallaVerena","Kotalla","Verena","2002-09-17",2023]
["Kraus Vreni","KrausVreni","Kraus","Vreni","2013-09-22",2023]
["Kreibich Valentina","KreibichValentina","Kreibich","Valentina","2009-02-08",2023]
["Kühn Rebekka","KühnRebekka","Kühn","Rebekka","2002-08-21",2023]
["Kühn Sarah","KühnSarah","Kühn","Sarah","2002-08-21",2023]
["Kühne Emilia","KühneEmilia","Kühne","Emilia","2008-10-26",2023]
[{"$f":"_xlfn.TEXTJOIN(\" \",TRUE,C130,D130)","v":"Kühnhauser Sophia"},"KühnhauserSophia","Kühnhauser","Sophia","2009-09-26",2023]
["Kullen Charlotta","KullenCharlotta","Kullen","Charlotta","2003-06-13",2023]
["Lechner Emma","LechnerEmma","Lechner","Emma","2013-09-10",2023]
["Lehner Anna","LehnerAnna","Lehner","Anna","2012-10-04",2023]
["Lehner Chiara","LehnerChiara","Lehner","Chiara","2007-01-17",2023]
["Lehner Hannah","LehnerHannah","Lehner","Hannah","2008-10-28",2023]
["Lehner Sarah","LehnerSarah","Lehner","Sarah","2010-06-27",2023]
["Lettner Charlotte","LettnerCharlotte","Lettner","Charlotte","2010-08-03",2023]
["Lezius Ramona","LeziusRamona","Lezius","Ramona","2000-02-17",2023]
["Linden Carlotta","LindenCarlotta","Linden","Carlotta","1994-04-14",2023]
["Linn Florine","LinnFlorine","Linn","Florine","2008-08-22",2023]
["Lippmann Paula","LippmannPaula","Lippmann","Paula","2012-01-27",2023]
["Lohmayer Annalena","LohmayerAnnalena","Lohmayer","Annalena","2011-09-04",2023]
["Lohrer Anna","LohrerAnna","Lohrer","Anna","2009-05-12",2023]
["Lösch Anna","LöschAnna","Lösch","Anna","2012-08-17",2023]
["Lunau Iris","LunauIris","Lunau","Iris","2006-06-03",2022]
["Mair Selina","MairSelina","Mair","Selina","1998-11-29",2023]
["Mangstl Eva","MangstlEva","Mangstl","Eva","2011-06-15",2023]
["Martin Lilian","MartinLilian","Martin","Lilian","2007-05-01",2022]
["Martin Nadine","MartinNadine","Martin","Nadine","2001-05-02",2023]
["Mattlener Helena","MattlenerHelena","Mattlener","Helena","2012-05-07",2023]
["Matzke Fabian","MatzkeFabian","Matzke","Fabian","2002-07-29",2022]
["Meier Helena","MeierHelena","Meier","Helena","2016-05-01",2023]
["Meier Miriam","MeierMiriam","Meier","Miriam","2011-03-26",2023]
["Meier Rebekka","MeierRebekka","Meier","Rebekka","2009-02-24",2023]
["Meier Sofia","MeierSofia","Meier","Sofia","2014-01-09",2023]
["Menhorn Sarah","MenhornSarah","Menhorn","Sarah","2006-10-06",2023]
["Menn Mia","MennMia","Menn","Mia","2009-10-12",2023]
["Menn Mia Charlotte","MennMiaCharlotte","Menn","Mia Charlotte","2009-10-12",2022]
["Menzinger Veronika","MenzingerVeronika","Menzinger","Veronika","1998-06-17",2023]
["Micka Nane",{"$f":"SUBSTITUTE(A160,\" \",\"\")","v":"MickaNane"},"Micka","Nane","2011-10-07",2023]
["Mike Ramona","MikeRamona","Mike","Ramona","2002-08-30",2023]
["Mittermaier  Katrin ","MittermaierKatrin","Mittermaier ","Katrin ","2004-07-15",2022]
["Mönikes Melina","MönikesMelina","Mönikes","Melina","2007-01-26",2023]
["Mosser Lena","MosserLena","Mosser","Lena","2007-07-27",2023]
["Müller Anna","MüllerAnna","Müller","Anna","2008-07-23",2023]
["Neumann Emma","NeumannEmma","Neumann","Emma","2003-07-11",2022]
["Niebergall Anna","NiebergallAnna","Niebergall","Anna","2011-08-22",2023]
["Niebergall Matthias","NiebergallMatthias","Niebergall","Matthias","1963-04-10",2023]
["Niklas Leonie","NiklasLeonie","Niklas","Leonie","2013-02-05",2023]
["Nothelfer Hanna","NothelferHanna","Nothelfer","Hanna","2013-02-07",2023]
["Nothelfer Leonie","NothelferLeonie","Nothelfer","Leonie","2010-05-06",2023]
["Oelbaum Johanna","OelbaumJohanna","Oelbaum","Johanna","2007-02-24",2022]
["Ott Klara","OttKlara","Ott","Klara","2009-04-13",2023]
["Pilz Marie","PilzMarie","Pilz","Marie","2011-03-26",2023]
["Plininger Eva","PliningerEva","Plininger","Eva","2008-11-04",2022]
["Prinz Magali","PrinzMagali","Prinz","Magali","2005-07-03",2022]
["Raif Marieluise","RaifMarieluise","Raif","Marieluise","2009-11-22",2022]
["Raif Marie-Luise","RaifMarie-Luise","Raif","Marie-Luise","2011-11-22",2023]
["Ranft Paula","RanftPaula","Ranft","Paula","2012-09-02",2023]
["Rapp Ida","RappIda","Rapp","Ida","2013-05-02",2023]
["Rapp Mia","RappMia","Rapp","Mia","2011-02-20",2022]
["Rätz Sina","RätzSina","Rätz","Sina","2010-09-21",2023]
["Rechenburg Lea","RechenburgLea","Rechenburg","Lea","2013-12-01",2023]
["Reich Melanie","ReichMelanie","Reich","Melanie","1997-01-25",2022]
["Reichardt Sofie","ReichardtSofie","Reichardt","Sofie","2012-02-12",2023]
["Reinfelder Ann-Sophie","ReinfelderAnn-Sophie","Reinfelder","Ann-Sophie","2006-04-12",2023]
["Reisnecker Susanne","ReisneckerSusanne","Reisnecker","Susanne","1998-08-26",2023]
["Riedel Caroline","RiedelCaroline","Riedel","Caroline","2011-05-22",2023]
["Riedel Marleen","RiedelMarleen","Riedel","Marleen","2010-01-06",2023]
["Riedlberger Carina","RiedlbergerCarina","Riedlberger","Carina","2000-04-20",2023]
["Rieger Franziska","RiegerFranziska","Rieger","Franziska","2010-10-06",2023]
["Riegler Emma","RieglerEmma","Riegler","Emma","2012-06-15",2023]
[{"$f":"_xlfn.TEXTJOIN(\" \",TRUE,C193,D193)","v":"Rißmann Henriette"},"RißmannHenriette","Rißmann","Henriette","2007-11-29",2023]
["Rissmann Henriette","RissmannHenriette","Rissmann","Henriette","2007-11-29",2022]
["Rohlff Lotta","RohlffLotta","Rohlff","Lotta","2007-03-30",2023]
["Ropertz Lena","RopertzLena","Ropertz","Lena","2006-05-30",2022]
["Rosenberger Christine","RosenbergerChristine","Rosenberger","Christine","2004-05-26",2023]
["Rosenberger Christine","RosenbergerChristine","Rosenberger","Christine","2004-10-13",2022]
["Rößner Johanna","RößnerJohanna","Rößner","Johanna","2012-08-31",2023]
["Roth Sarah","RothSarah","Roth","Sarah","2012-05-22",2023]
["Rueß Jennifer","RueßJennifer","Rueß","Jennifer","1999-08-22",2023]
["Saak  Moni","SaakMoni","Saak ","Moni","1976-12-07",2022]
["Saak Christian","SaakChristian","Saak","Christian","1968-12-01",2023]
["Saak Lotta","SaakLotta","Saak","Lotta","2009-11-11",2023]
["Saak Monika","SaakMonika","Saak","Monika","1976-12-07",2023]
["Saak Ronja","SaakRonja","Saak","Ronja","2008-01-07",2023]
["Saller Simone","SallerSimone","Saller","Simone","2003-02-01",2023]
["Salomon Rebecca","SalomonRebecca","Salomon","Rebecca","2001-05-10",2023]
["Sander Mia","SanderMia","Sander","Mia","2007-05-15",2023]
["Schäfer Nelly",{"$f":"SUBSTITUTE(A210,\" \",\"\")","v":"SchäferNelly"},"Schäfer","Nelly","2006-12-29",2023]
["Schiller Svenja","SchillerSvenja","Schiller","Svenja","1996-09-21",2023]
["Schindele Cora","SchindeleCora","Schindele","Cora","2009-08-10",2023]
["Schindelmann Amrei","SchindelmannAmrei","Schindelmann","Amrei","1997-08-11",2022]
["Schmidt Clara","SchmidtClara","Schmidt","Clara","2005-10-28",2023]
["Schmidt Claudia","SchmidtClaudia","Schmidt","Claudia","1992-10-27",2023]
["Schmidt Linda","SchmidtLinda","Schmidt","Linda","2013-05-23",2023]
["Schneider Franziska","SchneiderFranziska","Schneider","Franziska","2012-12-17",2023]
["Schrader Valentina","SchraderValentina","Schrader","Valentina","2007-01-17",2023]
["Schröter Mia","SchröterMia","Schröter","Mia","2008-02-07",2023]
["Schubert  Anna","SchubertAnna","Schubert ","Anna","1998-08-20",2022]
["Schubert Lisa","SchubertLisa","Schubert","Lisa","1997-05-22",2023]
["Schubert Lukas","SchubertLukas","Schubert","Lukas","1995-04-03",2023]
["Schütz Leni","SchützLeni","Schütz","Leni","2010-02-17",2023]
["Schwind Hannah","SchwindHannah","Schwind","Hannah","2008-06-06",2023]
["Schwind Vroni","SchwindVroni","Schwind","Vroni","2011-07-21",2023]
["Sedlmayr Laura","SedlmayrLaura","Sedlmayr","Laura","2010-11-03",2023]
["Segerer Annika","SegererAnnika","Segerer","Annika","2005-10-31",2023]
["Seidler Leonie","SeidlerLeonie","Seidler","Leonie","2006-03-25",2022]
["Seidler Lotta","SeidlerLotta","Seidler","Lotta","2007-12-13",2023]
["Seitz Maxima","SeitzMaxima","Seitz","Maxima","2010-08-15",2023]
["Simon Paula","SimonPaula","Simon","Paula","2007-11-13",2022]
["Sinnhuber Franziska","SinnhuberFranziska","Sinnhuber","Franziska","2009-04-27",2023]
["Sinnhuber Luisa","SinnhuberLuisa","Sinnhuber","Luisa","2011-10-23",2023]
["Söll Annalena","SöllAnnalena","Söll","Annalena","2004-08-11",2023]
["Söll Antonia","SöllAntonia","Söll","Antonia","2007-06-06",2023]
["Söll Antonia","SöllAntonia","Söll","Antonia","2007-03-17",2023]
["Söll Antonia","SöllAntonia","Söll","Antonia","2007-03-17",2022]
["Söll Antonia","SöllAntonia","Söll","Antonia","2007-06-06",2022]
["Sperr Annika","SperrAnnika","Sperr","Annika","2004-06-03",2023]
["Sporer Anna","SporerAnna","Sporer","Anna","2011-05-08",2023]
["Spreemann Charlotte","SpreemannCharlotte","Spreemann","Charlotte","2009-01-05",2023]
["Spreemann Moritz","SpreemannMoritz","Spreemann","Moritz","2011-11-05",2022]
["Stark Emma","StarkEmma","Stark","Emma","2009-10-18",2023]
["Steinböck Emma","SteinböckEmma","Steinböck","Emma","2010-03-25",2023]
["Steinmetz Alma","SteinmetzAlma","Steinmetz","Alma","2010-10-09",2023]
["Stettner Andreas","StettnerAndreas","Stettner","Andreas","2014-01-10",2023]
["Stettner Laura","StettnerLaura","Stettner","Laura","2011-11-22",2023]
["Stettner Sarah","StettnerSarah","Stettner","Sarah","2016-05-12",2023]
["Still Vroni","StillVroni","Still","Vroni","2009-08-10",2023]
["Straub Annika","StraubAnnika","Straub","Annika","2010-09-10",2023]
["Straubinger Bianca","StraubingerBianca","Straubinger","Bianca","2013-08-01",2023]
["Streubel Sophia","StreubelSophia","Streubel","Sophia","2006-12-09",2022]
["Stronzik Svenja","StronzikSvenja","Stronzik","Svenja","2002-04-04",2023]
["Stumf Mira","StumfMira","Stumf","Mira","2013-05-15",2023]
["Sturm Fabienne","SturmFabienne","Sturm","Fabienne","2005-08-20",2023]
["Sturm Lea",{"$f":"SUBSTITUTE(A256,\" \",\"\")","v":"SturmLea"},"Sturm","Lea","2003-09-06",2022]
[{"$f":"_xlfn.TEXTJOIN(\" \",TRUE,C257,D257)","v":"Sturm Lea Marie"},"SturmLeaMarie","Sturm","Lea Marie","2003-09-06",2023]
["Teichmann  Patrizia","TeichmannPatrizia","Teichmann ","Patrizia","2001-11-08",2022]
["Teichmann Felizia","TeichmannFelizia","Teichmann","Felizia","2008-05-01",2023]
["Teichmann Larissa","TeichmannLarissa","Teichmann","Larissa","2011-05-02",2023]
["Teichmann Lena","TeichmannLena","Teichmann","Lena","2005-08-04",2023]
["ten Eicken Anna-Lena","tenEickenAnna-Lena","ten Eicken","Anna-Lena","2011-08-13",2023]
["ten Eicken Louisa","tenEickenLouisa","ten Eicken","Louisa","2008-11-24",2023]
["Tittel Caroline","TittelCaroline","Tittel","Caroline","2006-06-30",2023]
["Trautner Milena","TrautnerMilena","Trautner","Milena","2009-08-17",2023]
["Treplin Rebecca","TreplinRebecca","Treplin","Rebecca","2004-08-24",2023]
["Trompler Lena","TromplerLena","Trompler","Lena","2010-08-20",2022]
["Trompler Tom","TromplerTom","Trompler","Tom","2008-03-03",2023]
["Tschirner Antonia","TschirnerAntonia","Tschirner","Antonia","2004-04-24",2023]
["Unz Elina","UnzElina","Unz","Elina","2012-06-11",2023]
["Unz Lea","UnzLea","Unz","Lea","2001-05-03",2023]
["Unz Linda","UnzLinda","Unz","Linda","2004-05-14",2023]
["Unz Saskia","UnzSaskia","Unz","Saskia","2004-05-14",2022]
["Unz Sophie","UnzSophie","Unz","Sophie","2001-05-03",2023]
["Urabl Carolin","UrablCarolin","Urabl","Carolin","2010-07-20",2023]
["Uzun Melissa","UzunMelissa","Uzun","Melissa","1998-12-11",2022]
["Varettoni Laura","VarettoniLaura","Varettoni","Laura","2008-05-20",2023]
["Varettoni Marina","VarettoniMarina","Varettoni","Marina","2005-01-06",2023]
["von Fraunberg Sophia","vonFraunbergSophia","von Fraunberg","Sophia","1997-03-01",2023]
["von Roeder Luise","vonRoederLuise","von Roeder","Luise","2004-04-24",2023]
["Vostrikov Sofia","VostrikovSofia","Vostrikov","Sofia","2013-02-09",2023]
["Wagenlechner Melanie","WagenlechnerMelanie","Wagenlechner","Melanie","2006-08-26",2023]
["Wagenlechner Melanie","WagenlechnerMelanie","Wagenlechner","Melanie","2006-08-26",2022]
["Wagner Ida","WagnerIda","Wagner","Ida","2011-07-15",2023]
["Wagner Karla","WagnerKarla","Wagner","Karla","2012-06-28",2023]
["Wenk Mara","WenkMara","Wenk","Mara","2010-08-05",2023]
["Wiedermann Jule","WiedermannJule","Wiedermann","Jule","2010-02-09",2023]
["Will Tobias","WillTobias","Will","Tobias","1998-09-03",2022]
["Wimmer Amelie","WimmerAmelie","Wimmer","Amelie","2007-04-19",2023]
["Wimmer Hannah","WimmerHannah","Wimmer","Hannah","2011-08-05",2023]
["Wimmer Helena","WimmerHelena","Wimmer","Helena","2009-02-14",2023]
["Wimmer Johanna","WimmerJohanna","Wimmer","Johanna","2004-08-30",2023]
["Wimmer Tamina","WimmerTamina","Wimmer","Tamina","2008-06-27",2022]
["Wünsch Bianca","WünschBianca","Wünsch","Bianca","2013-04-18",2023]
["Zahn Lucia","ZahnLucia","Zahn","Lucia","2010-09-05",2023]
["Zeltner Janine","ZeltnerJanine","Zeltner","Janine","2002-05-15",2023]
["Zengel Amalie","ZengelAmalie","Zengel","Amalie","2012-04-13",2023]
["Zengel Nathan","ZengelNathan","Zengel","Nathan","1970-09-25",2023]
["Zengel Zoe","ZengelZoe","Zengel","Zoe","2014-09-26",2023]
[{"$f":"_xlfn.TEXTJOIN(\" \",TRUE,C300,D300)","v":"Mouse Micky"},{"$f":"SUBSTITUTE(A300,\" \",\"\")","v":"MouseMicky"},"Mouse","Micky","2008-05-20",2023]
["Mouse Minnie","MouseMinnie","Mouse","Minnie","2004-08-24",2023]
["Duck Donald","DuckDonald","Duck","Donald","2005-01-06",2023]
["Naseweis Charlie","NaseweisCharlie","Naseweis","Charlie","2007-11-29",2023]
["Madrigal Mirabel","MadrigalMirabel","Madrigal","Mirabel","2006-04-12",2023]
["Shang Li","ShangLi","Shang","Li","2008-02-20",2023]
["Duck  Daisy","DuckDaisy","Duck ","Daisy","2001-01-15",2023]
["De Vil Carlos","DeVilCarlos","De Vil","Carlos","2001-05-03",2023]
["Lightyear Buzz","LightyearBuzz","Lightyear","Buzz","2004-05-14",2023]
["De Vil Cruella","DeVilCruella","De Vil","Cruella","2008-07-23",2023]